Workbook

Sheet AER only (hidden)
B1: Data in these columns used for data validation and database purposes.
B2: Date last modified:
AC4: FOR ELECTRICITY BUSINESSES ONLY
AC5: Feeder Types | AG5: TasNetworks (D) | AH5: MAIFI flag | AI5: Feeder Names
AC6: CBD | AD6: Urban | AE6: Short rural | AF6: long rural | AG6: EXTRA
B7: dms_TradingName_List | C7: dms_TradingNameFull_List | D7: dms_ABN_List | E7: dms_JurisdictionList | F7: dms_Sector_List | G7: dms_Segment_List | H7: dms_FormControl_List | I7: dms_RPT_List | J7: dms_RPTMonth_List | K7: dms_CRCPlength_List | L7: dms_FRCPlength_List | M7: dms_663_List | N7: dms_DeterminationRef_List | P7: dms_Addr1_List | Q7: dms_Addr2_List | R7: dms_Suburb_List | S7: dms_State_List | T7: dms_PostCode_List | U7: dms_PAddr1_List | V7: dms_PAddr2_List | W7: dms_PSuburb_List | X7: dms_PState_List | Y7: dms_PPostCode_List | Z7: dms_ContactName1_List | AA7: dms_ContactPh1_List | AB7: dms_ContactEmail_List | AC7: dms_CBD_flag | AD7: dms_Urban_flag | AE7: dms_ShortRural_flag | AF7: dms_LongRural_flag | AG7: dms_FeederType_5_flag | AH7: dms_MAIFI_flag_List | AI7: dms_FeederName_1 | AJ7: dms_FeederName_2 | AK7: dms_FeederName_3 | AL7: dms_FeederName_4 | AM7: dms_FeederName_5
B8: ActewAGL Distribution | C8: ActewAGL Distribution | D8: 76670568688 | E8: ACT | F8: Electricity | G8: Distribution | H8: Revenue cap | I8: Financial | J8: June | K8: 5 | L8: 5 | M8: 5 | N8: 2014-19 Distribution Determination | P8: 40 Bunda Street | R8: CANBERRA | S8: ACT | T8: 2600 | U8: GPO BOX 366 | W8: CANBERRA | X8: ACT | Y8: 2601 | Z8: Robert Walker | AA8: 02 6248 3847 | AB8: robert.walker@actewagle.com.au | AC8: NO | AD8: YES | AE8: YES | AF8: NO | AG8: NO | AI8: CBD | AJ8: Urban | AK8: Short rural | AL8: Long rural | AN8: ActewAGL Distribution
B9: ActewAGL Distribution (Tx Assets) | C9: ActewAGL Distribution (Tx Assets) | D9: 76670568688 | E9: ACT | F9: Electricity | G9: Distribution | H9: Revenue cap | I9: Financial | J9: June | K9: 5 | L9: 5 | M9: 5 | N9: distribution determination | P9: 40 Bunda Street | R9: CANBERRA | S9: ACT | T9: 2600 | U9: GPO BOX 366 | W9: CANBERRA | X9: ACT | Y9: 2601 | Z9: Robert Walker | AA9: 02 6248 3847 | AB9: robert.walker@actewagle.com.au | AI9: CBD | AJ9: Urban | AK9: Short rural | AL9: Long rural | AN9: ActewAGL Distribution (Tx Assets)
B10: ActewAGL Gas | C10: ActewAGL Gas | D10: 76670568688 | E10: ACT | F10: Gas | G10: Distribution | H10: Weighted average price cap | I10: Financial | J10: June | K10: 6 | L10: 5 | M10: x | P10: 40 Bunda Street | R10: CANBERRA | S10: ACT | T10: 2600 | U10: GPO BOX 366 | W10: CANBERRA | X10: ACT | Y10: 2601 | Z10: Philip Deamer | AA10: 02 6248 3438 | AB10: GasAAReview@actewagl.com.au | AN10: ActewAGL Gas
B11: AGN (SA) | C11: AGN | D11: 78551685 | E11: SA | F11: Gas | G11: Distribution | H11: Weighted average price cap | I11: Financial | J11: June | K11: 5 | L11: 5 | M11: 5 | N11: distribution determination | P11: please input | R11: please input | S11: SA | U11: please input | W11: please input | Z11: please input | AI11: CBD | AJ11: Urban | AK11: Short rural | AL11: Long rural | AN11: AGN
B12: Amadeus | C12: APT Pipelines (NT) Pty Ltd | D12: 39009737393 | E12: NT | F12: Gas | G12: Transmission | H12: Weighted average price cap | I12: Financial | J12: June | K12: 5 | L12: 5 | M12: x | N12: n/a | P12: Level 19, HSBC Building | Q12: 580 George Street | R12: SYDNEY | S12: NSW | T12: 2000 | U12: Level 19, HSBC Building | V12: 580 George Street | W12: SYDNEY | X12: NSW | Y12: 2000 | Z12: Alexandra Curran | AA12: 02 9275 0020 | AB12: alexandra.curran@apa.com.au | AN12: Amadeus
B13: APA GasNet | C13: APA VTS Australia Limited | D13: 79096457868 | E13: Vic | F13: Gas | G13: Transmission | H13: Weighted average price cap | I13: Calendar | J13: December | K13: 5 | L13: 5 | M13: x | P13: Level 19, HSBC Building | Q13: 580 George Street | R13: SYDNEY | S13: NSW | T13: 2000 | U13: PO Box R41 | W13: ROYAL EXCHANGE | X13: NSW | Y13: 1225 | Z13: please input | AA13: 02 9693 0000 | AB13: please input | AN13: APA GasNet
B14: Ausgrid | C14: Ausgrid | D14: 67505337385 | E14: NSW | F14: Electricity | G14: Distribution | H14: Revenue cap | I14: Financial | J14: June | K14: 5 | L14: 5 | M14: 5 | N14: 2014-19 Distribution Determination | P14: 570 George St | R14: SYDNEY | S14: NSW | T14: 2000 | U14: please input | W14: please input | Z14: John Thomson | AA14: (02) 9269 2312 | AB14: john.thomson@ausgrid.com.au | AC14: YES | AD14: YES | AE14: YES | AF14: YES | AG14: NO | AI14: CBD | AJ14: Urban | AK14: Short rural | AL14: Long rural | AN14: Ausgrid
B15: Ausgrid (Tx Assets) | C15: Ausgrid (Tx Assets) | D15: 67505337385 | E15: NSW | F15: Electricity | G15: Distribution | H15: Revenue cap | I15: Financial | J15: June | K15: 5 | L15: 5 | M15: 5 | N15: distribution determination | P15: please input | R15: please input | S15: NSW | U15: please input | W15: please input | Z15: please input | AA15: please input | AB15: please input | AI15: CBD | AJ15: Urban | AK15: Short rural | AL15: Long rural | AN15: Ausgrid (Tx Assets)
B16: AusNet (D) | C16: AusNet Electricity Services (D) | D16: 91064651118 | E16: Vic | F16: Electricity | G16: Distribution | H16: Revenue cap | I16: Calendar | J16: December | K16: 5 | L16: 5 | M16: 2 | N16: 2016-20 Distribution Determination | P16: Level 32 | Q16: 2 Southbank Boulevard | R16: SOUTHBANK | S16: Vic | T16: 3006 | U16: Locked Bag 14051 | W16: MELBOURNE CITY MAIL CENTRE | X16: VIC | Y16: 8001 | Z16: Hannah Williams | AA16: 03 9683 4088 | AB16: hwilliams@powercor.com.au | AD16: YES | AE16: YES | AF16: YES | AG16: NO | AI16: CBD | AJ16: Urban | AK16: Short rural | AL16: Long rural | AN16: AusNet (D)
B17: AusNet (Gas) | C17: AusNet Gas Services | E17: Vic | F17: Gas | G17: Distribution | H17: Weighted average price cap | I17: Calendar | J17: December | K17: 5 | L17: 5 | M17: X | P17: please input | R17: please input | S17: Vic | U17: please input | W17: please input | Z17: please input | AA17: please input | AB17: please input | AN17: AusNet (Gas)
B18: AusNet (T) | C18: AusNet (T) | D18: 48116124362 | E18: Vic | F18: Electricity | G18: Transmission | H18: Revenue cap | I18: Financial | J18: March | K18: 5 | L18: 5 | M18: 2 | N18: transmission determination | P18: Level 32 | Q18: 2 Southbank Boulevard | R18: SOUTHBANK | S18: Vic | T18: 3006 | U18: please input | W18: please input | Z18: Tom Hallam | AA18: 03 9695 6617 | AB18: Thomas.hallam@SP-Ausnet.com.au | AI18: CBD | AJ18: Urban | AK18: Short rural | AL18: Long rural | AN18: AusNet (T)
B19: Australian Distribution Co. | C19: Australian Distribution Co. | D19: 11222333444 | E19: - | F19: Electricity | G19: Distribution | H19: Revenue cap | I19: Financial | J19: June | K19: 5 | L19: 5 | M19: 2 | N19: distribution determination | P19: 123 Straight Street | R19: SYDNEY | S19: NSW | T19: 2000 | U19: PO Box 123 | W19: SYDNEY | X19: NSW | Y19: 2000 | Z19: Bob Smith | AA19: 02 1234 5678 | AB19: bob@auselec.net.au | AI19: CBD | AJ19: Urban | AK19: Short rural | AL19: Long rural | AN19: Australian Distribution Co.
B20: Australian Transmission Co. | C20: Australian Transmission Co. | D20: 11222333444 | E20: - | F20: Electricity | G20: Transmission | H20: Revenue cap | I20: Financial | J20: June | K20: 5 | L20: 5 | M20: 5 | N20: transmission determination | P20: 123 Straight Street | R20: SYDNEY | S20: NSW | T20: 2000 | U20: PO Box 123 | W20: SYDNEY | X20: NSW | Y20: 2000 | Z20: Bob Smith | AA20: 02 1234 5678 | AB20: bob@auselec.net.au | AI20: CBD | AJ20: Urban | AK20: Short rural | AL20: Long rural | AN20: Australian Transmission Co.
B21: CitiPower | C21: CitiPower | D21: 76064651056 | E21: Vic | F21: Electricity | G21: Distribution | H21: Revenue cap | I21: Calendar | J21: December | K21: 5 | L21: 5 | M21: 2 | N21: 2016-20 Distribution Determination | P21: 40 Market Street | R21: MELBOURNE | S21: Vic | T21: 3000 | U21: Locked Bag 14090 | W21: MELBOURNE | X21: VIC | Y21: 8001 | Z21: Hannah Williams | AA21: 03 9683 4088 | AB21: hwilliams@powercor.com.au | AC21: YES | AD21: YES | AE21: NO | AF21: NO | AG21: NO | AI21: CBD | AJ21: Urban | AK21: Short rural | AL21: Long rural | AN21: CitiPower
B22: Directlink | C22: Directlink | D22: 16779340889 | E22: Qld | F22: Electricity | G22: Transmission | H22: Revenue cap | I22: Financial | J22: June | K22: 9 | L22: 5 | M22: 5 | N22: transmission determination | P22: please input | R22: please input | S22: NSW | U22: please input | W22: please input | Z22: please input | AA22: please input | AB22: please input | AI22: CBD | AJ22: Urban | AK22: Short rural | AL22: Long rural | AN22: Directlink
B23: ElectraNet | C23: ElectraNet | D23: 41094482416 | E23: SA | F23: Electricity | G23: Transmission | H23: Revenue cap | I23: Financial | J23: June | K23: 5 | L23: 5 | M23: 5 | N23: transmission determination | P23: 52-55 East Terrace | Q23: Rymill Park | R23: ADELAIDE | S23: SA | T23: 5000 | U23: PO Box 7096 | V23: Hutt Street Post Office | W23: ADELAIDE | X23: SA | Z23: Bill Jackson | AA23: 08 8404 7969 | AB23: jackson.bill@electranet.com.au | AI23: CBD | AJ23: Urban | AK23: Short rural | AL23: Long rural | AN23: ElectraNet
B24: Endeavour Energy | C24: Endeavour Energy | D24: 59253130878 | E24: NSW | F24: Electricity | G24: Distribution | H24: Revenue cap | I24: Financial | J24: June | K24: 5 | L24: 5 | M24: 5 | N24: 2014-19 Distribution Determination | P24: 51 Huntingwood Drive | R24: HUNTINGWOOD | S24: NSW | T24: 2148 | U24: PO Box 811 | W24: SEVEN HILLS | X24: NSW | Z24: Jon Hocking | AA24: 02 9853 4386 / 0407 348 156 | AB24: Jon.Hocking@Endeavourenergy.com.au | AC24: NO | AD24: YES | AE24: YES | AF24: YES | AG24: NO | AI24: CBD | AJ24: Urban | AK24: Short rural | AL24: Long rural | AN24: Endeavour Energy
B25: Energex | C25: Energex | D25: 40078849055 | E25: Qld | F25: Electricity | G25: Distribution | H25: Revenue cap | I25: Financial | J25: June | K25: 5 | L25: 5 | M25: 5 | N25: 2015-20 Distribution Determination | P25: 26 Reddacliff Street | R25: NEWSTEAD | S25: Qld | T25: 4006 | U25: 26 Reddacliff Street | W25: NEWSTEAD | X25: QLD | Y25: 4006 | Z25: Nicola Roscoe | AA25: 07 3664 5891 | AB25: nicolaroscoe@energex.com.au | AC25: YES | AD25: YES | AE25: YES | AF25: NO | AG25: NO | AI25: CBD | AJ25: Urban | AK25: Short rural | AL25: Long rural | AN25: Energex
B26: Ergon Energy | C26: Ergon Energy | D26: 50087646062 | E26: Qld | F26: Electricity | G26: Distribution | H26: Revenue cap | I26: Financial | J26: June | K26: 5 | L26: 5 | M26: 5 | N26: 2015-20 Distribution Determination | P26: 22 Walker Street | R26: TOWNSVILLE | S26: Qld | T26: 4810 | U26: Po Box 264 | W26: FORTITUDE VALLEY | X26: QLD | Y26: 4006 | Z26: Jenny Doyle, Group Manager Regulatory Affairs | AA26: (07) 3851 6416 | AB26: jenny.doyle@ergon.com.au | AC26: NO | AD26: YES | AE26: YES | AF26: YES | AG26: NO | AI26: CBD | AJ26: Urban | AK26: Short rural | AL26: Long rural | AN26: Ergon Energy
B27: AGN (Victoria) | C27: Australian Gas Networks Limited | D27: 19078551685 | E27: Vic | F27: Gas | G27: Distribution | H27: Weighted average price cap | I27: Calendar | J27: December | K27: 5 | L27: 5 | M27: x | P27: Level 10 | Q27: 81 Flinders Street | R27: ADELAIDE | S27: SA | T27: 5000 | U27: please input | W27: please input | AA27: 08 8227 1500 | AN27: Envestra (Victoria and Albury)
B28: Essential Energy | C28: Essential Energy | D28: 37428185226 | E28: NSW | F28: Electricity | G28: Distribution | H28: Revenue cap | I28: Financial | J28: June | K28: 5 | L28: 5 | M28: 5 | N28: 2014-19 Distribution Determination | P28: 8 Buller Street | R28: PORT MACQUARIE | S28: NSW | U28: PO Box 5730 | W28: PORT MACQUARIE | X28: NSW | Z28: Catherine Waddell | AA28: 02 6338 3553 | AB28: catherine.waddell@essentialenergy.com.au | AE28: YES | AF28: YES | AG28: NO | AI28: CBD | AJ28: Urban | AK28: Short rural | AL28: Long rural | AN28: Essential Energy
B29: Jemena Electricity | C29: Jemena Electricity | D29: 82064651083 | E29: Vic | F29: Electricity | G29: Distribution | H29: Revenue cap | I29: Calendar | J29: December | K29: 5 | L29: 5 | M29: 2 | N29: 2016-20 Distribution Determination | P29: Level 16 | Q29: 567 Collins Street | R29: MELBOURNE | S29: VIC | T29: 3000 | U29: PO Box 16182 | W29: MELBOURNE | X29: VIC | Y29: 8001 | Z29: Robert McMillan | AA29: 03 9173 7000 | AB29: robert.mcmillan@jemena.com.au | AE29: YES | AF29: NO | AG29: NO | AI29: CBD | AJ29: Urban | AK29: Short rural | AL29: Long rural | AN29: Jemena Electricity
B30: JGN | C30: Jemena Gas Networks | E30: NSW | F30: Gas | G30: Distribution | H30: Weighted average price cap | I30: Financial | J30: June | K30: 5 | L30: 5 | P30: please input | R30: please input | S30: NSW | U30: please input | W30: please input | Z30: please input | AA30: please input | AB30: please input
B31: Multinet Gas | C31: Multinet Gas (DB No.1) Pty Ltd (ACN 086 026 986), Multinet Gas (DB No.2) Pty Ltd (ACN 086 230 122) | D31: 86026986 | E31: Vic | F31: Gas | G31: Distribution | H31: Weighted average price cap | I31: Calendar | J31: December | K31: 5 | L31: 5 | M31: x | P31: please input | R31: please input | S31: Vic | U31: please input | W31: please input | Z31: please input | AA31: please input | AB31: please input | AN31: Multinet Gas
B32: Murraylink | C32: Murraylink | D32: 79181207909 | E32: SA | F32: Electricity | G32: Transmission | H32: Revenue cap | I32: Financial | J32: June | K32: 5 | L32: 5 | M32: 5 | N32: transmission determination | P32: please input | S32: SA | U32: please input | Z32: please input | AI32: CBD | AJ32: Urban | AK32: Short rural | AL32: Long rural | AN32: Murraylink
B33: Powercor Australia | C33: Powercor Australia | D33: 89064651109 | E33: Vic | F33: Electricity | G33: Distribution | H33: Revenue cap | I33: Calendar | J33: December | K33: 5 | L33: 5 | M33: 2 | N33: 2016-20 Distribution Determination | P33: 40 Market Street | R33: MELBOURNE | S33: Vic | T33: 3000 | U33: Locked bag 14090 | W33: MELBOURNE | X33: VIC | Y33: 8001 | Z33: Hannah Williams | AA33: 03 9683 4088 | AB33: hwilliams@powercor.com.au | AE33: YES | AF33: YES | AG33: NO | AI33: CBD | AJ33: Urban | AK33: Short rural | AL33: Long rural | AN33: Powercor Australia
B34: Powerlink | C34: Queensland Electricity Transmission Corporation Limited trading as Powerlink Queensland | D34: 82078849233 | E34: Qld | F34: Electricity | G34: Transmission | H34: Revenue cap | I34: Financial | J34: June | K34: 5 | L34: 5 | M34: 5 | N34: transmission determination | P34: 33 Harold St | R34: VIRGINIA | S34: Qld | T34: 4014 | U34: PO Box 1193 | W34: VIRGINIA | X34: QLD | Y34: 4014 | Z34: Jennifer Harris | AA34: 07 3860 2667 | AB34: jharris@powerlink.com.au | AI34: CBD | AJ34: Urban | AK34: Short rural | AL34: Long rural | AN34: Powerlink
B35: Roma to Brisbane Pipeline | C35: APT Petroleum Pipelines Limited t/a Roma to Brisbane Pipeline | D35: 009 737 393 | E35: Qld | F35: Gas | G35: Transmission | H35: Revenue cap | I35: Financial | J35: June | K35: 5 | L35: 5 | M35: x | N35: n/a | P35: please input | R35: please input | S35: Qld | U35: please input | W35: please input | Z35: please input | AA35: please input | AB35: please input | AI35: CBD | AJ35: Urban | AK35: Short rural | AL35: Long rural | AN35: Roma to Brisbane Pipeline
B36: SA Power Networks | C36: SA Power Networks | D36: 13332330749 | E36: SA | F36: Electricity | G36: Distribution | H36: Revenue cap | I36: Financial | J36: June | K36: 5 | L36: 5 | M36: 5 | N36: 2015-20 Distribution Determination | P36: 1 Anzac Highway | R36: KESWICK | S36: SA | T36: 5035 | U36: GPO Box 77 | W36: ADELAIDE | X36: SA | Z36: Damien O'Connor | AA36: 08 8404 5066 | AB36: damien.oconnor@sapowernetworks.com.au | AE36: YES | AF36: YES | AG36: NO | AI36: CBD | AJ36: Urban | AK36: Short rural | AL36: Long rural | AN36: SA Power Networks
B37: TasNetworks (D) | C37: TasNetworks (D) | D37: 24167357299 | E37: Tas | F37: Electricity | G37: Distribution | H37: Revenue cap | I37: Financial | J37: June | K37: 5 | L37: 5 | M37: 5 | N37: distribution determination | P37: 21 Kirksway Place | R37: HOBART | S37: Tas | T37: 7000 | U37: GPO Box 191 | W37: HOBART | X37: Tas | Z37: Leigh Mayne | AA37: 03 6270 3691 | AB37: rrp2012@auroraenergy.com.au | AE37: YES | AF37: YES | AG37: YES | AI37: Critical Infrastructure | AJ37: High density commercial | AK37: Urban | AL37: High density rural | AM37: Low density rural | AN37: TasNetworks (D)
B38: TasNetworks (T) | C38: TasNetworks (T) | D38: 24167357299 | E38: Tas | F38: Electricity | G38: Transmission | H38: Revenue cap | I38: Financial | J38: March | K38: 5 | L38: 5 | M38: 5 | N38: transmission determination | P38: 1-7 Maria Street | R38: LENAH VALLEY | S38: Tas | T38: 7008 | U38: PO Box 606 | W38: MOONAH | X38: Tas | Z38: Heath Dillon | AA38: 03 6274 3664 | AB38: heath.dillon@transend.com.au | AI38: CBD | AJ38: Urban | AK38: Short rural | AL38: Long rural | AN38: TasNetworks (T)
B39: TransGrid | C39: TransGrid | D39: 19622755774 | E39: NSW | F39: Electricity | G39: Transmission | H39: Revenue cap | I39: Financial | J39: June | K39: 5 | L39: 4 | M39: 5 | N39: transmission determination | P39: 180 Thomas Street | R39: HAYMARKET | S39: NSW | T39: 2000 | U39: PO Box A1000 | W39: SYDNEY SOUTH | X39: NSW | Z39: Andrew Kingsmill | AA39: 02 9284 3149 | AB39: andrew.kingsmill@transgrid.com.au | AI39: CBD | AJ39: Urban | AK39: Short rural | AL39: Long rural | AN39: TransGrid
B40: United Energy | C40: United Energy | D40: 70064651029 | E40: Vic | F40: Electricity | G40: Distribution | H40: Revenue cap | I40: Calendar | J40: December | K40: 5 | L40: 5 | M40: 2 | N40: 2016-20 Distribution Determination | P40: Level 3 | Q40: 6 Nexus Court | R40: MULGRAVE | S40: Vic | T40: 3149 | U40: PO Box 449 | W40: MOUNT WAVERLEY | X40: VIC | Y40: 3170 | Z40: Mathew Abraham | AA40: 03 8846 9758 | AB40: mathew.abraham@ue.com.au | AE40: YES | AF40: NO | AG40: NO | AI40: CBD | AJ40: Urban | AK40: Short rural | AL40: Long rural | AN40: United Energy
B41: Western Power (D) | C41: Western Power (D) | D41: 18540492861 | E41: WA | F41: Electricity | G41: Distribution | H41: Revenue cap | I41: Financial | J41: June | K41: 12 | L41: 4 | M41: x | N41: distribution determination | P41: 363 Wellington Street | R41: PERTH | S41: WA | T41: 6000 | U41: GPO Box L921 | W41: PERTH | X41: WA | Y41: 6842 | Z41: Judy Hunter | AA41: 08 9326 6239 | AB41: judy.hunter@westernpower.com.au | AE41: YES | AF41: YES | AG41: NO | AH41: NO | AI41: CBD | AJ41: Urban | AK41: Short rural | AL41: Long rural | AN41: Western Power (D)
B42: Western Power (T) | C42: Western Power (T) | D42: 18540492861 | E42: WA | F42: Electricity | G42: Transmission | H42: Revenue cap | I42: Financial | J42: June | K42: 12 | L42: 4 | M42: x | N42: transmission determination | P42: 363 Wellington Street | R42: PERTH | S42: WA | T42: 6000 | U42: GPO Box L921 | W42: PERTH | X42: WA | Y42: 6842 | Z42: Judy Hunter | AA42: 08 9326 6239 | AB42: judy.hunter@westernpower.com.au | AE42: YES | AF42: YES | AG42: NO | AI42: CBD | AJ42: Urban | AK42: Short rural | AL42: Long rural | AN42: Western Power (T)
X45: For EB & Reset RINs only
B46: The Reg Year Ending (dms_RYE) must be set to the last year of the regulatory period. For forecast data is is usually (FRCP_y5) for actual it is a single year (CRY). For historical actual data the RYE will need to be set manually in the business details sheet by setting the dms_Multiyear_flag to 1 and putting the correct value in 'dms_Specified_FinalYear. See cells C67:C68 | G46: =IF(dms_RPT="financial",VALUE(LEFT(CRCP_y1,4)-1)&"-"&TEXT(VALUE(RIGHT(CRCP_y1,2)-1),"00"),VALUE(LEFT(CRCP_y1,4)-1)) -> 2012-13 | N46: Drop down selector box for CA & Reset RINs. | P46: For CA & Reset RINs only | X46: for DNSP only | AI46: Reason for interruption | AJ46: dms_Reason_Interruption_Detailed | AK46: dms_Reason_Interruption
B47: dms_Model_List | C47: DELETE NR 'CRY' IF NOT AN ANNUAL RIN (EB, CA , ARR) | E47: dms_RYE_Formula_Result | N47: dms_0203_ProjectType | P47: dms_020303_01_UOM | Q47: dms_020501_01_UOM | R47: dms_020501_02_UOM | S47: dms_020501_03_UOM | T47: dms_020501_04_UOM | U47: dms_020603_01_UOM | V47: dms_040102_01_UOM | W47: dms_040102_04_UOM | X47: dms_030601_01_UOM | Y47: dms_030601_02_UOM | Z47: dms_030701_01_UOM | AA47: dms_030702_01_UOM | AB47: dms_030703_01_UOM | AI47: Animal | AJ47: Animal impact | AK47: Animal
B48: ARR | C48: ANNUAL REPORTING STATEMENT | E48: =LEFT(dms_SingleYear_FinalYear_Result,2)&RIGHT(dms_SingleYear_FinalYear_Result,2) ->  | F48: =LEFT(dms_SingleYear_FinalYear_Result,2)&RIGHT(dms_SingleYear_FinalYear_Result,2) | H48: Formula errors are OK | N48: New line on new route - single circuit | P48: Circuit line length in km | Q48: 0's | R48: 0's | S48: 0's | T48: 0's | U48: 0's | V48: 0's | W48: days | X48: minutes/customer | Y48: minutes/customer | Z48: Customer / km | AA48: % | AB48: km | AJ48: Animal nesting/burrowing, etc and other | AK48: Asset failure
B49: CA | C49: CATEGORY ANALYSIS | E49: =LEFT(dms_SingleYear_FinalYear_Result,2)&RIGHT(dms_SingleYear_FinalYear_Result,2) ->  | F49: =LEFT(dms_SingleYear_FinalYear_Result,2)&RIGHT(dms_SingleYear_FinalYear_Result,2) | H49: Formula errors are OK | N49: New line on new route - dual circuit | P49: Circuit line length in km | Q49: 0's | R49: 0's | S49: 0's | T49: 0's | U49: 0's | V49: 0's | W49: 0's | X49: minutes/customer | Y49: minutes/customer | Z49: MWh/customer | AA49: Number of spans | AJ49: Other | AK49: Other
B50: CPI | C50: CPI | N50: New line on new route - other | P50: Circuit line length in km | Q50: MVA added | R50: MVA added | S50: MVA added | T50: MVA added | U50: 0's | V50: 0's | W50: $0s | X50: interruptions/customer | Y50: interruptions/customer | Z50: kVA / customer | AA50: Number of spans | AI50: Asset failure | AJ50: LV | AK50: Overloads
B51: EB | C51: ECONOMIC BENCHMARKING | E51: =LEFT(dms_SingleYear_FinalYear_Result,2)&RIGHT(dms_SingleYear_FinalYear_Result,2) ->  | F51: =LEFT(dms_SingleYear_FinalYear_Result,2)&RIGHT(dms_SingleYear_FinalYear_Result,2) | H51: Formula errors are OK | N51: Line rebuild over existing route - single circuit | P51: Circuit line length in km | Q51: 0's | R51: 0's | S51: 0's | T51: 0's | U51: 0's | V51: $0s | W51: 0's | X51: interruptions/customer | Y51: interruptions/customer | AA51: Number of spans | AJ51: Distribution substation | AK51: Planned
B52: PTRM | C52: POST TAX REVENUE MODEL | E52: =LEFT(dms_MultiYear_FinalYear_Result,2)&RIGHT(dms_MultiYear_FinalYear_Result,2) -> 2023 | F52: =LEFT(dms_MultiYear_FinalYear_Result,2)&RIGHT(dms_MultiYear_FinalYear_Result,2) | N52: Line rebuild over existing route - dual circuit | P52: Number | Q52: total spend $0s | R52: total spend $0s | S52: total spend $0s | T52: total spend $0s | U52: (per cent) | AA52: Number of spans | AJ52: HV | AK52: Network business
B53: Reset | C53: REGULATORY REPORTING STATEMENT | E53: =LEFT(dms_MultiYear_FinalYear_Result,2)&RIGHT(dms_MultiYear_FinalYear_Result,2) -> 2023 | F53: =LEFT(dms_MultiYear_FinalYear_Result,2)&RIGHT(dms_MultiYear_FinalYear_Result,2) | H53: Formula errors are OK | N53: Reconductor - Single circuit | P53: Number | Q53: net circuit km added | R53: net circuit km added | S53: net circuit km added | T53: net circuit km added | AA53: Years | AJ53: Zone substation | AK53: Third party
B54: RFM | C54: ROLL FORWARD MODEL | E54: =LEFT(dms_CRCP_FinalYear_Result,2)&RIGHT(dms_CRCP_FinalYear_Result,2) -> 2018 | F54: =LEFT(dms_CRCP_FinalYear_Result,2)&RIGHT(dms_CRCP_FinalYear_Result,2) | N54: Reconductor - Dual circuit | P54: Number | Q54: total spend $0s | R54: total spend $0s | S54: total spend $0s | T54: total spend $0s | AA54: Years | AJ54: Subtransmission | AK54: Unknown
B55: WACC | C55: WEIGHTED AVERAGE COST OF CAPITAL | E55: =LEFT(dms_MultiYear_FinalYear_Result,2)&RIGHT(dms_MultiYear_FinalYear_Result,2) -> 2023 | F55: =LEFT(dms_MultiYear_FinalYear_Result,2)&RIGHT(dms_MultiYear_FinalYear_Result,2) | N55: Other | Q55: net circuit km added | R55: net circuit km added | S55: net circuit km added | T55: net circuit km added | AA55: Trees | AI55: Other | AJ55: insert description of 'other' | AK55: Vegetation
Q56: total spend $0s | R56: total spend $0s | S56: total spend $0s | T56: total spend $0s | AA56: Trees | AI56: Overloads | AJ56: - | AK56: Weather
Q57: 0's | S57: $0s | AA57: Defects | AI57: Planned | AJ57: - | AK57: 2 - STPIS Exclusion (3.3)(a)
Q58: 0's | AA58: Defects | AI58: Network business | AJ58: Network error | AK58: 3 - STPIS Exclusion (3.3)(a)
Q59: 0's | AA59: Spans | AJ59: Switching and protection error | AK59: 4 - STPIS Exclusion (3.3)(a)
Q60: $0s | AA60: km | AI60: Third party | AJ60: Fire | AK60: 5 - STPIS Exclusion (3.3)(a)
AA61: Spans | AJ61: Other | AK61: 6 - STPIS Exclusion (3.3)(a)
AJ62: Dig-in | AK62: 7 - STPIS Exclusion (3.3)(a)
AJ63: Unauthorised access
B64: For all files either AER or business needs to be able to specify the type of submission | C64: For PTRM & RFM templates we must provide a choice in case they change their form of control - otherwise it is drawn from the business specific lookup table above. | E64: These are indeces and lookup values for various dates. All step from the value placed in FRCP_y1 on the business and other details worksheet | X64: for TNSP only | AJ64: Vehicle impact
B65: dms_SourceList | C65: dms_FormControl_Choices | E65: dms_FRCPlength_Num_List | F65: dms_FinalYear_List | G65: dms_CRCPlength_Num_List | H65: dms_CFinalYear_List | I65: dms_FRCP_years | K65: dms_CRCP_years | M65: dms_CRCP_index | X65: dms_030601_01_UOM | Z65: dms_030701_01_UOM | AA65: dms_030702_01_UOM | AI65: Unknown | AJ65: Unknown
B66: After appeal | C66: Revenue cap | E66: 1 | F66: dms_FRCP_y1 | G66: 1 | H66: CRCP_y1 | I66: =FRCP_y1 -> 2018-19 | J66: dms_FRCP_y1 | K66: =IF(dms_RPT="financial",VALUE(LEFT(dms_FRCP_y1,4)-1)&"-"&TEXT(VALUE(MID(dms_FRCP_y1,3,2)),"00"),VALUE(LEFT(dms_FRCP_y1,4)-1)) -> 2017-18 | L66: dms_CRCP_yZ | M66: 1 | X66: % | Z66: Number of spans | AA66: km | AI66: Vegetation | AJ66: Blow-in/Fall-in - NSP responsibility
B67: Draft decision | C67: Revenue yield | E67: 2 | F67: dms_FRCP_y2 | G67: 2 | H67: CRCP_y2 | I67: =IF(dms_RPT="financial",VALUE(LEFT(dms_FRCP_y1,4)+1)&"-"&TEXT(VALUE(RIGHT(dms_FRCP_y1,2)+1),"00"),VALUE(LEFT(dms_FRCP_y1,4)+1)) -> 2019-20 | J67: dms_FRCP_y2 | K67: =IF(dms_RPT="financial",VALUE(LEFT(dms_CRCP_yZ,4)-1)&"-"&TEXT(VALUE(MID(dms_CRCP_yZ,3,2)),"00"),VALUE(LEFT(dms_CRCP_yZ,4)-1)) -> 2016-17 | L67: dms_CRCP_yY | M67: 2 | X67: number | Z67: Years | AA67: % | AJ67: Grow-in - NSP responsibility
B68: Final decision | C68: Weighted average price cap | E68: 3 | F68: dms_FRCP_y3 | G68: 3 | H68: CRCP_y3 | I68: =IF(dms_RPT="financial",VALUE(LEFT(dms_FRCP_y2,4)+1)&"-"&TEXT(VALUE(RIGHT(dms_FRCP_y2,2)+1),"00"),VALUE(LEFT(dms_FRCP_y2,4)+1)) -> 2020-21 | J68: dms_FRCP_y3 | K68: =IF(dms_RPT="financial",VALUE(LEFT(dms_CRCP_yY,4)-1)&"-"&TEXT(VALUE(MID(dms_CRCP_yY,3,2)),"00"),VALUE(LEFT(dms_CRCP_yY,4)-1)) -> 2015-16 | L68: dms_CRCP_yX | M68: 3 | X68: number | Z68: Trees | AA68: km | AJ68: Blow-in/Fall-in - Other responsible party
B69: PTRM update 1 | E69: 4 | F69: dms_FRCP_y4 | G69: 4 | H69: CRCP_y4 | I69: =IF(dms_RPT="financial",VALUE(LEFT(dms_FRCP_y3,4)+1)&"-"&TEXT(VALUE(RIGHT(dms_FRCP_y3,2)+1),"00"),VALUE(LEFT(dms_FRCP_y3,4)+1)) -> 2021-22 | J69: dms_FRCP_y4 | K69: =IF(dms_RPT="financial",VALUE(LEFT(dms_CRCP_yX,4)-1)&"-"&TEXT(VALUE(MID(dms_CRCP_yX,3,2)),"00"),VALUE(LEFT(dms_CRCP_yX,4)-1)) -> 2014-15 | L69: dms_CRCP_yW | M69: 4 | X69: % | Z69: Defects | AA69: number | AJ69: Grow-in - Other responsible party
B70: PTRM update 2 | E70: 5 | F70: dms_FRCP_y5 | G70: 5 | H70: CRCP_y5 | I70: =IF(dms_RPT="financial",VALUE(LEFT(dms_FRCP_y4,4)+1)&"-"&TEXT(VALUE(RIGHT(dms_FRCP_y4,2)+1),"00"),VALUE(LEFT(dms_FRCP_y4,4)+1)) -> 2022-23 | J70: dms_FRCP_y5 | K70: =IF(dms_RPT="financial",VALUE(LEFT(dms_CRCP_yW,4)-1)&"-"&TEXT(VALUE(MID(dms_CRCP_yW,3,2)),"00"),VALUE(LEFT(dms_CRCP_yW,4)-1)) -> 2013-14 | L70: dms_CRCP_yV | M70: 5 | X70: number | Z70: Number of spans | AI70: Weather
B71: PTRM update 3 | E71: 6 | F71: dms_FRCP_y6 | G71: 6 | H71: CRCP_y6 | I71: =IF(dms_RPT="financial",VALUE(LEFT(dms_FRCP_y5,4)+1)&"-"&TEXT(VALUE(RIGHT(dms_FRCP_y5,2)+1),"00"),VALUE(LEFT(dms_FRCP_y5,4)+1)) -> 2023-24 | J71: dms_FRCP_y6 | K71: =IF(dms_RPT="financial",VALUE(LEFT(dms_CRCP_yV,4)-1)&"-"&TEXT(VALUE(MID(dms_CRCP_yV,3,2)),"00"),VALUE(LEFT(dms_CRCP_yV,4)-1)) -> 2012-13 | L71: dms_CRCP_yU | M71: 6 | X71: number | Z71: km | AI71: 2 - STPIS Exclusion (3.3)(a)
B72: PTRM update 4 | E72: 7 | F72: dms_FRCP_y7 | G72: 7 | H72: CRCP_y7 | I72: =IF(dms_RPT="financial",VALUE(LEFT(dms_FRCP_y6,4)+1)&"-"&TEXT(VALUE(RIGHT(dms_FRCP_y6,2)+1),"00"),VALUE(LEFT(dms_FRCP_y6,4)+1)) -> 2024-25 | J72: dms_FRCP_y7 | K72: =IF(dms_RPT="financial",VALUE(LEFT(dms_CRCP_yU,4)-1)&"-"&TEXT(VALUE(MID(dms_CRCP_yU,3,2)),"00"),VALUE(LEFT(dms_CRCP_yU,4)-1)) -> 2011-12 | L72: dms_CRCP_yT | M72: 7 | X72: % | Z72: km | AI72: 3 - STPIS Exclusion (3.3)(a)
B73: PTRM update 5 | E73: 8 | F73: dms_FRCP_y8 | G73: 8 | H73: CRCP_y8 | I73: =IF(dms_RPT="financial",VALUE(LEFT(dms_FRCP_y7,4)+1)&"-"&TEXT(VALUE(RIGHT(dms_FRCP_y7,2)+1),"00"),VALUE(LEFT(dms_FRCP_y7,4)+1)) -> 2025-26 | J73: dms_FRCP_y8 | K73: =IF(dms_RPT="financial",VALUE(LEFT(dms_CRCP_yT,4)-1)&"-"&TEXT(VALUE(MID(dms_CRCP_yT,3,2)),"00"),VALUE(LEFT(dms_CRCP_yT,4)-1)) -> 2010-11 | L73: dms_CRCP_yS | M73: 8 | X73: number | Z73: Number of spans | AI73: 4 - STPIS Exclusion (3.3)(a)
B74: PTRM update 6 | E74: 9 | F74: dms_FRCP_y9 | G74: 9 | H74: CRCP_y9 | I74: =IF(dms_RPT="financial",VALUE(LEFT(dms_FRCP_y8,4)+1)&"-"&TEXT(VALUE(RIGHT(dms_FRCP_y8,2)+1),"00"),VALUE(LEFT(dms_FRCP_y8,4)+1)) -> 2026-27 | J74: dms_FRCP_y9 | K74: =IF(dms_RPT="financial",VALUE(LEFT(dms_CRCP_yS,4)-1)&"-"&TEXT(VALUE(MID(dms_CRCP_yS,3,2)),"00"),VALUE(LEFT(dms_CRCP_yS,4)-1)) -> 2009-10 | L74: dms_CRCP_yR | M74: 9 | X74: number | AI74: 5 - STPIS Exclusion (3.3)(a)
B75: PTRM update 7 | E75: 10 | F75: dms_FRCP_y10 | G75: 10 | H75: CRCP_y10 | I75: =IF(dms_RPT="financial",VALUE(LEFT(dms_FRCP_y9,4)+1)&"-"&TEXT(VALUE(RIGHT(dms_FRCP_y9,2)+1),"00"),VALUE(LEFT(dms_FRCP_y9,4)+1)) -> 2027-28 | J75: dms_FRCP_y10 | K75: =IF(dms_RPT="financial",VALUE(LEFT(dms_CRCP_yR,4)-1)&"-"&TEXT(VALUE(MID(dms_CRCP_yR,3,2)),"00"),VALUE(LEFT(dms_CRCP_yR,4)-1)) -> 2008-09 | L75: dms_CRCP_yQ | M75: 10 | X75: % | AI75: 6 - STPIS Exclusion (3.3)(a)
B76: Regulatory proposal | E76: 11 | F76: dms_FRCP_y11 | G76: 11 | H76: CRCP_y11 | I76: =IF(dms_RPT="financial",VALUE(LEFT(dms_FRCP_y10,4)+1)&"-"&TEXT(VALUE(RIGHT(dms_FRCP_y10,2)+1),"00"),VALUE(LEFT(dms_FRCP_y10,4)+1)) -> 2028-29 | J76: dms_FRCP_y11 | K76: =IF(dms_RPT="financial",VALUE(LEFT(dms_CRCP_yQ,4)-1)&"-"&TEXT(VALUE(MID(dms_CRCP_yQ,3,2)),"00"),VALUE(LEFT(dms_CRCP_yQ,4)-1)) -> 2007-08 | L76: dms_CRCP_yP | M76: 11 | X76: number | AI76: 7 - STPIS Exclusion (3.3)(a)
B77: Reporting | E77: 12 | F77: dms_FRCP_y12 | G77: 12 | H77: CRCP_y12 | I77: =IF(dms_RPT="financial",VALUE(LEFT(dms_FRCP_y11,4)+1)&"-"&TEXT(VALUE(RIGHT(dms_FRCP_y11,2)+1),"00"),VALUE(LEFT(dms_FRCP_y11,4)+1)) -> 2029-30 | J77: dms_FRCP_y12 | K77: =IF(dms_RPT="financial",VALUE(LEFT(dms_CRCP_yP,4)-1)&"-"&TEXT(VALUE(MID(dms_CRCP_yP,3,2)),"00"),VALUE(LEFT(dms_CRCP_yP,4)-1)) -> 2006-07 | L77: dms_CRCP_yO | M77: 12 | X77: %
B78: Revised regulatory proposal | E78: 13 | F78: dms_FRCP_y13 | G78: 13 | H78: CRCP_y13 | I78: =IF(dms_RPT="financial",VALUE(LEFT(dms_FRCP_y12,4)+1)&"-"&TEXT(VALUE(RIGHT(dms_FRCP_y12,2)+1),"00"),VALUE(LEFT(dms_FRCP_y12,4)+1)) -> 2030-31 | J78: dms_FRCP_y13 | K78: =IF(dms_RPT="financial",VALUE(LEFT(dms_CRCP_yO,4)-1)&"-"&TEXT(VALUE(MID(dms_CRCP_yO,3,2)),"00"),VALUE(LEFT(dms_CRCP_yO,4)-1)) -> 2005-06 | L78: dms_CRCP_yN | M78: 13 | X78: number
E79: 14 | F79: dms_FRCP_y14 | G79: 14 | H79: CRCP_y14 | I79: =IF(dms_RPT="financial",VALUE(LEFT(dms_FRCP_y13,4)+1)&"-"&TEXT(VALUE(RIGHT(dms_FRCP_y13,2)+1),"00"),VALUE(LEFT(dms_FRCP_y13,4)+1)) -> 2031-32 | J79: dms_FRCP_y14 | K79: =IF(dms_RPT="financial",VALUE(LEFT(dms_CRCP_yN,4)-1)&"-"&TEXT(VALUE(MID(dms_CRCP_yN,3,2)),"00"),VALUE(LEFT(dms_CRCP_yN,4)-1)) -> 2004-05 | L79: dms_CRCP_yM | M79: 14 | X79: %
E80: 15 | F80: dms_FRCP_y15 | G80: 15 | H80: CRCP_y15 | I80: =IF(dms_RPT="financial",VALUE(LEFT(dms_FRCP_y14,4)+1)&"-"&TEXT(VALUE(RIGHT(dms_FRCP_y14,2)+1),"00"),VALUE(LEFT(dms_FRCP_y14,4)+1)) -> 2032-33 | J80: dms_FRCP_y15 | K80: =IF(dms_RPT="financial",VALUE(LEFT(dms_CRCP_yM,4)-1)&"-"&TEXT(VALUE(MID(dms_CRCP_yM,3,2)),"00"),VALUE(LEFT(dms_CRCP_yM,4)-1)) -> 2003-04 | L80: dms_CRCP_yL | M80: 15 | X80: number
B82: dms_DataQuality_List | E82: These are drop down lists for businesses to select the correct FRCP_y1 on the business and other details worksheet. This also populates the column headings in the worksheets
B83: Actual | E83: dms_RCP_fyear_list | F83: dms_CRY_ListF | G83: dms_CRY_ListC | H83: dms_RCP_cyear_list | I83: dms_FRCP_fyear_list | J83: dms_FRCP_ListF | K83: dms_FRCP_ListC | L83: dms_FRCP_cyear_list
B84: Estimate | E84: dms_fy1 | F84: 2006-07 | G84: 2007 | H84: dms_cy1 | I84: dms_frcp_fy1 | J84: 2016-17 | K84: 2017 | L84: dms_crcp_cy1
B85: Consolidated | E85: dms_fy2 | F85: 2007-08 | G85: 2008 | H85: dms_cy2 | I85: dms_frcp_fy2 | J85: 2017-18 | K85: 2018 | L85: dms_crcp_cy2
B86: Recast | E86: dms_fy3 | F86: 2008-09 | G86: 2009 | H86: dms_cy3 | I86: dms_frcp_fy3 | J86: 2018-19 | K86: 2019 | L86: dms_crcp_cy3
B87: Public | E87: dms_fy4 | F87: 2009-10 | G87: 2010 | H87: dms_cy4 | I87: dms_frcp_fy4 | J87: 2019-20 | K87: 2020 | L87: dms_crcp_cy4
E88: dms_fy5 | F88: 2010-11 | G88: 2011 | H88: dms_cy5 | I88: dms_frcp_fy5 | J88: 2020-21 | K88: 2021 | L88: dms_crcp_cy5
E89: dms_fy6 | F89: 2011-12 | G89: 2012 | H89: dms_cy6 | I89: dms_frcp_fy6 | J89: 2021-22 | K89: 2022 | L89: dms_crcp_cy6
E90: dms_fy7 | F90: 2012-13 | G90: 2013 | H90: dms_cy7 | I90: dms_frcp_fy7 | J90: 2022-23 | K90: 2023 | L90: dms_crcp_cy7
E91: dms_fy8 | F91: 2013-14 | G91: 2014 | H91: dms_cy8 | I91: dms_frcp_fy8 | J91: 2023-24 | K91: 2024 | L91: dms_crcp_cy8
E92: dms_fy9 | F92: 2014-15 | G92: 2015 | H92: dms_cy9 | I92: dms_frcp_fy9 | J92: 2024-25 | K92: 2025 | L92: dms_crcp_cy9
E93: dms_fy10 | F93: 2015-16 | G93: 2016 | H93: dms_cy10 | I93: dms_frcp_fy10 | J93: 2025-26 | K93: 2026 | L93: dms_crcp_cy10
E94: dms_fy11 | F94: 2016-17 | G94: 2017 | H94: dms_cy11 | I94: dms_frcp_fy11 | J94: 2026-27 | K94: 2027 | L94: dms_crcp_cy11
E95: dms_fy12 | F95: 2017-18 | G95: 2018 | H95: dms_cy12 | I95: dms_frcp_fy12 | J95: 2027-28 | K95: 2028 | L95: dms_crcp_cy12
E96: dms_fy13 | F96: 2018-19 | G96: 2019 | H96: dms_cy13 | I96: dms_frcp_fy13 | J96: 2028-29 | K96: 2029 | L96: dms_crcp_cy13
E97: dms_fy14 | F97: 2019-20 | G97: 2020 | H97: dms_cy14 | I97: dms_frcp_fy14 | J97: 2029-30 | K97: 2030 | L97: dms_crcp_cy14
E98: dms_fy15 | F98: 2020-21 | G98: 2021 | H98: dms_cy15 | I98: dms_frcp_fy15 | J98: 2030-31 | K98: 2031 | L98: dms_crcp_cy15

Sheet Business & other details (hidden)
B1: =IF(dms_DataQuality="backcast",INDEX(dms_Worksheet_List,MATCH(dms_Model,dms_Model_List))&" BACKCAST",INDEX(dms_Worksheet_List,MATCH(dms_Model,dms_Model_List))) -> ROLL FORWARD MODEL
B2: =INDEX(dms_TradingNameFull_List,MATCH(dms_TradingName,dms_TradingName_List)) -> Endeavour Energy
B3: =IF(SUM(dms_SingleYear_Model)>0,CRY,CONCATENATE(FRCP_y1," to ",dms_MultiYear_FinalYear_Result)) -> 2018-19 to 2022-23
B4: BUSINESS & OTHER DETAILS
B7: Instructions
B8: Complete the following business details regulatory template before entering data or values in any other regulatory template. This regulatory template is linked to other cells within the spreadsheet and automatically generates column headings and conditional formatting to distinguish business specific input and non-input cells.
B10: SUBMISSION PARTICULARS INPUT SHEETS
B12: ENTITY DETAILS
B14: Short name | C14: ='DMS input'!C14 -> Endeavour Energy
B15: ACN / ABN | C15: =INDEX(dms_ABN_List,MATCH(dms_TradingName,dms_TradingName_List)) -> 59253130878
B18: Business address | C18: Address 1 | E18: =INDEX(dms_Addr1_List,MATCH(dms_TradingName,dms_TradingName_List)) -> 51 Huntingwood Drive
D19: Address 2 | E19: =IF(ISBLANK(INDEX(dms_Addr2_List,MATCH(dms_TradingName,dms_TradingName_List))),"",INDEX(dms_Addr2_List,MATCH(dms_TradingName,dms_TradingName_List))) -> 
C20: Suburb | E20: =INDEX(dms_Suburb_List,MATCH(dms_TradingName,dms_TradingName_List)) -> HUNTINGWOOD
D21: State | E21: =INDEX(dms_State_List,MATCH(dms_TradingName,dms_TradingName_List)) -> NSW | F21: p/code | G21: =IF(ISBLANK(INDEX(dms_PostCode_List,MATCH(dms_TradingName,dms_TradingName_List))),"",INDEX(dms_PostCode_List,MATCH(dms_TradingName,dms_TradingName_List))) -> 2148
B23: Postal address | C23: Address 1 | E23: =INDEX(dms_PAddr1_List,MATCH(dms_TradingName,dms_TradingName_List)) -> PO Box 811
D24: Address 2 | E24: =IF(ISBLANK(INDEX(dms_PAddr2_List,MATCH(dms_TradingName,dms_TradingName_List))),"",INDEX(dms_PAddr2_List,MATCH(dms_TradingName,dms_TradingName_List))) -> 
C25: Suburb | E25: =INDEX(dms_PSuburb_List,MATCH(dms_TradingName,dms_TradingName_List)) -> SEVEN HILLS
D26: State | E26: =IF(ISBLANK(INDEX(dms_PState_List,MATCH(dms_TradingName,dms_TradingName_List))),"",INDEX(dms_PState_List,MATCH(dms_TradingName,dms_TradingName_List))) -> NSW | F26: p/code | G26: =IF(ISBLANK(INDEX(dms_PPostCode_List,MATCH(dms_TradingName,dms_TradingName_List))),"",INDEX(dms_PPostCode_List,MATCH(dms_TradingName,dms_TradingName_List))) -> 
B29: Contact name/s | C29: =INDEX(dms_ContactName1_List,MATCH(dms_TradingName,dms_TradingName_List)) -> Jon Hocking
B30: Contact phone/s | C30: =INDEX(dms_ContactPh1_List,MATCH(dms_TradingName,dms_TradingName_List)) -> 02 9853 4386 / 0407 348 156
B31: Contact email address/s | C31: =INDEX(dms_ContactEmail_List,MATCH(dms_TradingName,dms_TradingName_List)) -> Jon.Hocking@Endeavourenergy.com.au
B33: REGULATORY CONTROL PERIODS
B35: Forthcoming regulatory control period | C35: 2018-19 | D35: =dms_FRCP_y2 -> 2019-20 | E35: =dms_FRCP_y3 -> 2020-21 | F35: =dms_FRCP_y4 -> 2021-22 | G35: =dms_FRCP_y5 -> 2022-23 | H35: =dms_FRCP_y6 -> 2023-24 | I35: =dms_FRCP_y7 -> 2024-25 | J35: =dms_FRCP_y8 -> 2025-26 | K35: =dms_FRCP_y9 -> 2026-27 | L35: =dms_FRCP_y10 -> 2027-28
B38: Current regulatory control period | C38: =dms_CRCP_FirstYear_Result -> 2013-14 | D38: =IF(dms_RPT="financial",VALUE(LEFT(CRCP_y1,4)+1)&"-"&TEXT(MID(CRCP_y1,3,2)+2,"00"),VALUE(LEFT(CRCP_y1,4)+1)) -> 2014-15 | E38: =IF(dms_RPT="financial",VALUE(LEFT(CRCP_y2,4)+1)&"-"&TEXT(VALUE(MID(CRCP_y2,3,2)+2),"00"),VALUE(LEFT(CRCP_y2,4)+1)) -> 2015-16 | F38: =IF(dms_RPT="financial",VALUE(LEFT(CRCP_y3,4)+1)&"-"&TEXT(VALUE(MID(CRCP_y3,3,2)+2),"00"),VALUE(LEFT(CRCP_y3,4)+1)) -> 2016-17 | G38: =IF(dms_RPT="financial",VALUE(LEFT(CRCP_y4,4)+1)&"-"&TEXT(VALUE(MID(CRCP_y4,3,2)+2),"00"),VALUE(LEFT(CRCP_y4,4)+1)) -> 2017-18 | H38: =IF(dms_RPT="financial",VALUE(LEFT(CRCP_y5,4)+1)&"-"&TEXT(VALUE(MID(CRCP_y5,3,2)+2),"00"),VALUE(LEFT(CRCP_y5,4)+1)) -> 2018-19 | I38: =IF(dms_RPT="financial",VALUE(LEFT(CRCP_y6,4)+1)&"-"&TEXT(VALUE(MID(CRCP_y6,3,2)+2),"00"),VALUE(LEFT(CRCP_y6,4)+1)) -> 2019-20 | J38: =IF(dms_RPT="financial",VALUE(LEFT(CRCP_y7,4)+1)&"-"&TEXT(VALUE(MID(CRCP_y7,3,2)+2),"00"),VALUE(LEFT(CRCP_y7,4)+1)) -> 2020-21 | K38: =IF(dms_RPT="financial",VALUE(LEFT(CRCP_y8,4)+1)&"-"&TEXT(VALUE(MID(CRCP_y8,3,2)+2),"00"),VALUE(LEFT(CRCP_y8,4)+1)) -> 2021-22 | L38: =IF(dms_RPT="financial",VALUE(LEFT(CRCP_y9,4)+1)&"-"&TEXT(VALUE(MID(CRCP_y9,3,2)+2),"00"),VALUE(LEFT(CRCP_y9,4)+1)) -> 2022-23
B41: Previous regulatory control period | C41: =IF(dms_RPT="financial",VALUE(LEFT(PRCP_y2,4)-1)&"-"&TEXT(VALUE(MID(PRCP_y2,3,2)),"00"),VALUE(LEFT(PRCP_y2,4)-1)) -> 2008-09 | D41: =IF(dms_RPT="financial",VALUE(LEFT(PRCP_y3,4)-1)&"-"&TEXT(VALUE(MID(PRCP_y3,3,2)),"00"),VALUE(LEFT(PRCP_y3,4)-1)) -> 2009-10 | E41: =IF(dms_RPT="financial",VALUE(LEFT(PRCP_y4,4)-1)&"-"&TEXT(VALUE(MID(PRCP_y4,3,2)),"00"),VALUE(LEFT(PRCP_y4,4)-1)) -> 2010-11 | F41: =IF(dms_RPT="financial",VALUE(LEFT(PRCP_y5,4)-1)&"-"&TEXT(VALUE(RIGHT(PRCP_y5,2)-1),"00"),VALUE(LEFT(PRCP_y5,4)-1)) -> 2011-12 | G41: =IF(dms_RPT="financial",VALUE(LEFT(CRCP_y1,4)-1)&"-"&TEXT(VALUE(RIGHT(CRCP_y1,2)-1),"00"),VALUE(LEFT(CRCP_y1,4)-1)) -> 2012-13
B44: Current regulatory year | C44: 2005-06 | D44: CRY
C47: DELETE NR 'CRY' IF NOT AN ANNUAL RIN (EB, CA , ARR)
C48: APPLY NR 'CRY' IF AN ANNUAL RIN (EB, CA , ARR) - including multi year annual RINs eg. Recast CA. EB
B50: Source | C50: ='DMS input'!C36 -> Final decision | E50: Please select the correct submission type from the dropdown list.
B51: Data quality (actual, estimate, public, consolidated) | C51: Consolidated
B52: Amended RIN submission - amendment reason | C52: =IF(ISBLANK('DMS input'!C37:H37),"",'DMS input'!C37:H37) -> 
B53: Submission Date | C53: dd/mm/yyyy | D53: dms_SubmissionDate | E53: Please enter date this file submitted to AER (dd/mm/yyyy)
B54: EBSS - First application of scheme in forthcoming period? | C54: No
B55: Sector | C55: =INDEX(dms_Sector_List,MATCH(dms_TradingName,dms_TradingName_List)) -> Electricity | D55: dms_Sector | E55: =INDEX(dms_Sector_List,MATCH(dms_TradingName,dms_TradingName_List))
B56: Segment | C56: =INDEX(dms_Segment_List,MATCH(dms_TradingName,dms_TradingName_List)) -> Distribution | D56: dms_Segment | E56: =INDEX(dms_Segment_List,MATCH(dms_TradingName,dms_TradingName_List))
B57: Regulatory Year Ending | C57: =IF(dms_MultiYear_Flag=1,LEFT(dms_Specified_FinalYear,2)&RIGHT(dms_Specified_FinalYear,2),INDEX(dms_RYE_Formula_Result,MATCH(dms_Model,dms_Model_List))) -> 2018 | D57: dms_RYE | E57: =IF(dms_MultiYear_Flag=1,LEFT(dms_Specified_FinalYear,2)&RIGHT(dms_Specified_FinalYear,2),INDEX(dms_RYE_Formula_Result,MATCH(dms_Model,dms_Model_List)))
B58: Reporting Period Type | C58: =INDEX(dms_RPT_List,MATCH(dms_TradingName,dms_TradingName_List)) -> Financial | D58: dms_RPT | E58: =INDEX(dms_RPT_List,MATCH(dms_TradingName,dms_TradingName_List))
B59: Model or RIN Type | C59: RFM | D59: dms_Model | E59: Drop down selection
B60: Security Classification | C60: Public | D60: dms_Classification | E60: Always Public
B61: Template - version no. | C61: 5 | D61: dms_TemplateNumber
B62: Dollar $ real month | C62: =INDEX(dms_RPTMonth_List,MATCH(dms_TradingName,dms_TradingName_List)) -> June | D62: dms_RPTMonth | E62: =INDEX(dms_RPTMonth_List,MATCH(dms_TradingName,dms_TradingName_List))
B63: Dollar $ real (the last month before the FRCP_y1) | C63: =CONCATENATE(dms_RPTMonth)&" "&VALUE((LEFT(dms_CRCP_FinalYear_Result,2)&RIGHT(dms_CRCP_FinalYear_Result,2))) -> June 2018 | D63: dms_DollarReal | E63: =IF(SUM(dms_SingleYear_Model)>0,CONCATENATE(dms_RPTMonth)&" "&VALUE((LEFT(CRY,2))&RIGHT(CRY,2)),CONCATENATE(dms_RPTMonth)&" "&VALUE((LEFT(dms_CRCP_FinalYear_Result,2)&RIGHT(dms_CRCP_FinalYear_Result,2))))
B64: Form of control | C64: =INDEX(dms_FormControl_List,MATCH(dms_TradingName,dms_TradingName_List)) -> Revenue cap | D64: dms_FormControl | E64: =INDEX(dms_FormControl_List,MATCH(dms_TradingName,dms_TradingName_List))
B65: RIN response - version no. | C65: 1 | D65: dms_RINversion
B66: Jurisdiction | C66: =INDEX(dms_JurisdictionList,MATCH(dms_TradingName,dms_TradingName_List)) -> NSW | D66: dms_Jurisdiction | E66: =INDEX(dms_JurisdictionList,MATCH(dms_TradingName,dms_TradingName_List))
B67: Backcast Multiyear EB, CA or ARR? | C67: 0 | D67: dms_MultiYear_Flag | E67: 1=y, 0-n
C68: 2013 | D68: dms_Specified_FinalYear | E68: The result here is returned to dms_CRCP_FinalYear_Result if dms_MultiYear_Flag is set to 1
B69: Single Year Model T/F | C69: =IF(dms_Model="EB",1,0) -> 0 | D69: dms_EB
C70: =IF(dms_Model="CA",1,0) -> 0 | D70: dms_CA | E70: =dms_SingleYear_Model
C71: =IF(dms_Model="ARR",1,0) -> 0 | D71: dms_ARR
B72: Single Year Final Year Reference | C72: CRY | D72: dms_SingleYear_FinalYear_Ref | E72: This is the reference for EB, CA & ARR RINs
B73: Single Year Final Year Result | C73: =INDIRECT(dms_SingleYear_FinalYear_Ref) ->  | D73: dms_SingleYear_FinalYear_Result | E73: =INDIRECT(dms_SingleYear_FinalYear_Ref) | I73: Formula errors OK
B74: FRCP length in years | C74: =INDEX(dms_FRCPlength_List,MATCH(dms_TradingName,dms_TradingName_List)) -> 5 | D74: dms_FRCPlength_Num | E74: =INDEX(dms_FRCPlength_List,MATCH(dms_TradingName,dms_TradingName_List))
B75: Multi Year Final Year Reference | C75: =INDEX(dms_FinalYear_List,MATCH(dms_FRCPlength_Num,dms_FRCPlength_Num_List)) -> dms_FRCP_y5 | D75: dms_MultiYear_FinalYear_Ref | E75: =INDEX(dms_FinalYear_List,MATCH(dms_FRCPlength_Num,dms_FRCPlength_Num_List))
B76: Multi Year Final Year Result | C76: =IF(dms_MultiYear_Flag=0,INDIRECT(dms_MultiYear_FinalYear_Ref),dms_Specified_FinalYear) -> 2022-23 | D76: dms_MultiYear_FinalYear_Result | E76: =IF(dms_MultiYear_Flag=0,INDIRECT(dms_MultiYear_FinalYear_Ref),dms_Specified_FinalYear) | I76: Formula errors OK
B77: CRCP length in years | C77: =INDEX(dms_CRCPlength_List,MATCH(dms_TradingName,dms_TradingName_List)) -> 5 | D77: dms_CRCPlength_Num | E77: =INDEX(dms_CRCPlength_List,MATCH(dms_TradingName,dms_TradingName_List))
B78: CRCP Final Year Reference | C78: =INDEX(dms_CFinalYear_List,MATCH(dms_CRCPlength_Num,dms_CRCPlength_Num_List)) -> CRCP_y5 | D78: dms_CRCP_FinalYear_Ref | E78: =INDEX(dms_CFinalYear_List,MATCH(dms_CRCPlength_Num,dms_CRCPlength_Num_List))
B79: CRCP First Year Result | C79: =INDEX(dms_CRCP_years,MATCH(dms_CRCPlength_Num,dms_CRCP_index)) -> 2013-14 | D79: dms_CRCP_FirstYear_Result | E79: =INDEX(dms_CRCP_years,MATCH(dms_CRCPlength_Num,dms_CRCP_index))
B80: CRCP Final Year Result | C80: =IF(dms_MultiYear_Flag=0,(IF(SUM(dms_SingleYear_Model)>0,CRY,dms_CRCP_yZ)),dms_Specified_FinalYear) -> 2017-18 | D80: dms_CRCP_FinalYear_Result | E80: =IF(dms_MultiYear_Flag=0,(IF(SUM(dms_SingleYear_Model)>0,CRY,dms_CRCP_yZ)),dms_Specified_FinalYear)
B81: Table 6.6.3 - Public lighting repair - no. business days | C81: =INDEX(dms_663_List,MATCH(dms_TradingName,dms_TradingName_List)) -> 5 | D81: dms_663
B82: Distribution Determination Reference | C82: =INDEX(dms_DeterminationRef_List,MATCH(dms_TradingName,dms_TradingName_List)) -> 2014-19 Distribution Determination
B83: Backcast templates only - unit of measure | C83: $0s | D83: dms_Backcast_UOM | E83: If the cover sheet is for Backcast data ensure to apply dms_Backcast_UOM named range to this field. Otherwise, do not apply this named range.
B84: EB/CA Unit of Measure for Monetary Values | C84: $0s | D84: dms_dollar_nom_UOM | E84: If the cover sheet is attached to an EB files make sure this field is set
B86: discard this record? | C86: NO | D86: dms_DISCARD | E86: If record is to be discarded from DB set this flag to YES
B88: USES NAMED RANGES FLAG | C88: yes | D88: dms_Defined_Names_Used

Sheet Intro
G2: Electricity Distribution Network Service Provider
I3: Roll Forward Model
L4: Version: | M4: 2
L5: Date: | M5: December 2016
B8: Introduction | J8: Electricity Distribution Module
C14: This model is used by the AER to determine the opening regulatory and tax asset bases for a distribution network service provider. It also calculates the weighted average remaining asset lives for regulatory and tax purposes using the asset values as weights.
C15: The roll forward of the asset base is undertaken in nominal terms.
C17: INSTRUCTIONS FOR USE
C18: The RFM handbook is available on the AER website at http://www.aer.gov.au
C20: a. Fill out input cells on the 'DMS Input' sheet. These input cells are highlighted blue.
C21: This provides information on the service provider submitting the RFM and the context for the RFM preparation.
C22: This information also controls the automatic import of the RFM into the AER's Data Management System (DMS).
C24: b. Fill out input cells on the 'RFM Input' sheet. These input cells are highlighted blue.
C25: This provides the data for the RFM calculations.
C26: In general, input expenditure data should be valued in nominal dollar terms of the year indicated, as at the end of that year.
C27: Units and basis for entry are specified where required for each data table.
C29: c. The values in the 'PTRM input summary' sheet
C30: This sheet summarises the key outputs of the RFM. These include the opening regulatory and tax asset values, and remaining asset lives. They become the inputs to the PTRM.
C33: VERSION RECORD
C35: Version | D35: Date | F35: Description
C36: 1 | D36: June 2008 | F36: Initial model
C38: 2 | D38: December 2016 | F38: Added new input sections for end of period adjustments, and removed redundant inputs
F39: Built-in option to select actual or forecast depreciation approach for the RAB roll forward
F40: Adjusted depreciation calculation formula in the RAB roll forward and TAB roll forward period start date
F41: Updated inputs to handle different annual WACCs due to time-varying return on debt
F42: Added calculations of weighted average remaining lives for RAB and TAB to individually track capex over multiple periods
F43: Enabled automatic import into AER DMS

Sheet DMS input
B2: =$C$16&" - DMS Input"&" - DNSP RFM - version "&Intro!$M$4 -> Endeavour - DMS Input - DNSP RFM - version 2 | G2: Input cells are in blue
B6: This sheet requests information that allows the AER to automatically import the RFM into our data management system (DMS).
B7: This sheet's metadata relates to the business and context for the RFM (rather than the RFM itself).
B8: Some of this data is automatically populated based on data entered on the RFM input sheet. Only change blue input cells.
B9: Some rows are hidden. To facilitate the automatic import, please do not delete or add rows on this sheet.
B10: Throughout the rest of the workbook, defined name ranges are used to identify data that is imported into the DMS.
B12: Entity details
B14: Trading name | C14: Endeavour Energy
B15: ACN / ABN | C15: =INDEX(dms_ABN_List,MATCH(dms_TradingName,dms_TradingName_List)) -> 59253130878
B16: Business short name | C16: Endeavour
B18: Business address | C18: Address 1 | E18: =dms_Addr1 -> 51 Huntingwood Drive
D19: Address 2 | E19: =dms_Addr2 -> 
C20: Suburb | E20: =dms_Suburb -> HUNTINGWOOD
D21: State | E21: =dms_State -> NSW | F21: Postcode | G21: =dms_PostCode -> 2148
B23: Postal address | C23: Address 1 | E23: =dms_PAddr1 -> PO Box 811
D24: Address 2 | E24: =dms_PAddr2 -> 
C25: Suburb | E25: =dms_PSuburb -> SEVEN HILLS
D26: State | E26: =dms_PState -> NSW | F26: Postcode | G26: =dms_PostCode -> 2148
B29: Contact name/s | C29: =dms_ContactName1 -> Jon Hocking
B30: Contact phone/s | C30: =dms_ContactPh1 -> 02 9853 4386 / 0407 348 156
B31: Contact email address/s | C31: =dms_ContactEmail -> Jon.Hocking@Endeavourenergy.com.au
B33: Regulatory process details
B36: Source | C36: Final decision
B37: Amended model submission - reason

Sheet RFM input
F2: ='DMS input'!$C$16&" - RFM Input"&" - DNSP RFM - version "&Intro!$M$4 -> Endeavour - RFM Input - DNSP RFM - version 2 | G2: Input cells are in blue
F5: ="Opening Regulatory Asset Base for "&IF(LEN($V$7)>4,CONCATENATE(LEFT($V$7,4)-1&"-"&IF($V$7>"2009-10",,"0")&RIGHT($V$7,2)-1),$V$7-1)&" and Opening Tax Asset Base for "&$V$7&" ($m Nominal)" -> Opening Regulatory Asset Base for 2013-14 and Opening Tax Asset Base for 2014-15 ($m Nominal)
G6: Asset Class Name | J6: Opening Asset Value | K6: Average Remaining Life (Year) | L6: Standard Life (Year) | M6: Forecast Net Capex | N6: Forecast Regulatory Depreciation | O6: Forecast Customer Contributions | P6: Difference in Final Year Capex | Q6: Return on Difference in Final Year Capex | R6: Other Final Year Adjustments | S6: Opening Tax Asset Value | T6: Average Tax Remaining Life (Year) | U6: Tax Standard Life (Year) | V6: Base Regulatory Year | W6: Length of Regulatory Control Period (Year)
F7: Asset Class 1 | G7: 2013-14 ORAB Sub-transmission lines and cables | J7: 477.5570443 | K7: 30.43142031 | L7: 47.41891326 | M7: 69.64630953 | N7: 11.46823792 | O7: 3.94988999 | P7: -22.32992497 | Q7: -13.63305803 | R7: 0 | S7: 429.3707683 | T7: 37.99416571 | U7: 46.77020128 | V7: 2014-15 | W7: 5
F8: Asset Class 2 | G8: 2013-14 ORAB Distribution lines and cables | J8: 1045.077693 | K8: 38.30255326 | L8: 50.61429162 | M8: 124.852722 | N8: 4.982587946 | O8: 31.28636055 | P8: 7.518835781 | Q8: 4.590464352 | R8: 0 | S8: 992.305627 | T8: 38.96229623 | U8: 47.85490518
F9: Asset Class 3 | G9: 2013-14 ORAB Substations | J9: 2074.137607 | K9: 28.19867779 | L9: 39.9998983 | M9: 222.7262982 | N9: 42.44579164 | O9: 13.01528101 | P9: -102.8959852 | Q9: -62.82094273 | R9: 0 | S9: 1958.8361 | T9: 33.81171853 | U9: 40
F10: Asset Class 4 | G10: 2013-14 ORAB Transformers | J10: 433.8910444 | K10: 24.91292952 | L10: 44.32109334 | M10: 26.37268011 | N10: 10.29338143 | O10: 0.71204083 | P10: 25.20857926 | Q10: 15.39055884 | R10: 0 | S10: 315.8402152 | T10: 27.52953364 | U10: 40
F11: Asset Class 5 | G11: 2013-14 ORAB Low Voltage lines and cables | J11: 654.1185171 | K11: 27.894476 | L11: 52.43316548 | M11: 46.49043007 | N11: 10.72244959 | O11: 33.58934082 | P11: 7.834787279 | Q11: 4.783361781 | R11: 0 | S11: 372.6286669 | T11: 34.4648354 | U11: 47.766964
F12: Asset Class 6 | G12: 2013-14 ORAB Customer metering and Load control | J12: 23.86726862 | K12: 22.81765232 | L12: 25.00005614 | M12: 4.745979658 | N12: 0.5238556192 | O12: 0.02969687 | P12: -1.620008675 | Q12: -0.9890616432 | R12: -17.33774941 | S12: 11.06265965 | T12: 17.99927216 | U12: 25
F13: Asset Class 7 | G13: 2013-14 ORAB Communication | J13: 17.7716869 | K13: 7.083516421 | L13: 8.401674385 | M13: 4.634193838 | N13: 2.006991895 | O13: 0 | P13: -2.414082485 | Q13: -1.473866422 | R13: 0 | S13: 20.70118657 | T13: 8.29743072 | U13: 10
F14: Asset Class 8 | G14: 2013-14 ORAB Land | J14: 134.4533557 | K14: n/a | L14: n/a | M14: -0.5717688111 | N14: -3.29395749 | O14: 1.54566 | P14: -4.859343924 | Q14: -2.966768488 | R14: 0 | S14: 94.4331855 | T14: n/a | U14: n/a
F15: Asset Class 9 | G15: 2013-14 ORAB Easements | J15: 14.7397767 | K15: n/a | L15: n/a | M15: 0.7603491864 | N15: -0.3611081152 | O15: 0 | P15: 0.4797602359 | Q15: 0.2929073496 | R15: 0 | S15: 13.66765542 | T15: n/a | U15: n/a
F16: Asset Class 10 | G16: 2013-14 ORAB Equity raising costs | J16: 7.987380923 | K16: 37.03087213 | L16: 44.51038088 | M16: 0 | N16: 0.01802619949 | O16: 0 | P16: 0 | Q16: 0 | R16: 0 | S16: 6.869867021 | T16: 37.03087213 | U16: 5
F17: Asset Class 11 | G17: 2013-14 ORAB Emergency Spares (Major Plant, Excludes Inventory) | J17: 10.76582976 | K17: 10.8450064 | L17: 23.64001787 | M17: 0.05453605464 | N17: 1.342292624 | O17: 0 | P17: 2.450352905 | Q17: 1.496010551 | R17: 0 | S17: 12.3549081 | T17: 26.86350913 | U17: 40
F18: Asset Class 12 | G18: 2013-14 ORAB Work in progress | J18: 0 | K18: n/a | L18: n/a | M18: 0 | N18: 0 | O18: 0 | P18: 0 | Q18: 0 | R18: 0 | S18: 0 | T18: n/a | U18: n/a
F19: Asset Class 13 | G19: 2013-14 ORAB Information & Communication Technology | J19: 47.7857445 | K19: 3.447222475 | L19: 5 | M19: 14.52553446 | N19: 13.59576643 | O19: 0 | P19: -2.235247057 | Q19: -1.364682277 | R19: -0.1515895599 | S19: 29.18872462 | T19: 2.039665626 | U19: 2.88166167
F20: Asset Class 14 | G20: 2013-14 ORAB Furniture, fittings, plant and equipment | J20: 43.02289526 | K20: 7.826717588 | L20: 13 | M20: 3.671841374 | N20: 4.725886801 | O20: 0 | P20: 2.143262021 | Q20: 1.308522781 | R20: -0.1526145408 | S20: 19.12174919 | T20: 4.487682375 | U20: 8.627245607
F21: Asset Class 15 | G21: 2013-14 ORAB Motor Vehicles | J21: 36.61781445 | K21: 5.644483632 | L21: 8 | M21: 3.31632236 | N21: 5.308753856 | O21: 0 | P21: -7.205217526 | Q21: -4.398991435 | R21: -0.07735175712 | S21: 72.58410298 | T21: 7.080282255 | U21: 12.09368161
F22: Asset Class 16 | G22: 2013-14 ORAB Buildings | J22: 202.2077858 | K22: 44.69186598 | L22: 50 | M22: 21.14418056 | N22: -0.2881522617 | O22: 0 | P22: -18.85602264 | Q22: -11.51214128 | R22: -0.64939891 | S22: 187.194364 | T22: 33.2681177 | U22: 40
F23: Asset Class 17 | G23: 2013-14 ORAB Land (non-system) | J23: 121.9863871 | K23: n/a | L23: n/a | M23: 0 | N23: -2.988530641 | O23: 0 | P23: 0.2235447639 | Q23: 0.1364804738 | R23: -0.421128743 | S23: 40.47562542 | T23: n/a | U23: n/a
F24: Asset Class 18 | G24: 2013-14 ORAB Other non system assets | J24: -0.008359946674 | K24: n/a | L24: n/a | M24: 0 | N24: 0.000204809384 | O24: 0 | P24: 0 | Q24: 0 | R24: 2.877780823e-05 | S24: 0 | T24: n/a | U24: n/a
F25: Asset Class 19 | G25: 2013-14 ORAB Blank 1
F26: Asset Class 20 | G26: 2013-14 ORAB Blank 2
F27: Asset Class 21 | G27: 2014-15 to 2018-19 Sub-transmission lines and cables | J27: 0 | K27: n/a | L27: =L7 -> 47.41891326 | S27: 0 | T27: n/a | U27: =U7 -> 46.77020128
F28: Asset Class 22 | G28: 2014-15 to 2018-19 Distribution lines and cables | J28: 0 | K28: n/a | L28: =L8 -> 50.61429162 | S28: 0 | T28: n/a | U28: =U8 -> 47.85490518
F29: Asset Class 23 | G29: 2014-15 to 2018-19 Substations | J29: 0 | K29: n/a | L29: 39.9998983 | S29: 0 | T29: n/a | U29: 40
F30: Asset Class 24 | G30: 2014-15 to 2018-19 Transformers | J30: 0 | K30: n/a | L30: 44.32109334 | S30: 0 | T30: n/a | U30: 40
F31: Asset Class 25 | G31: 2014-15 to 2018-19 Low Voltage lines and cables | J31: 0 | K31: n/a | L31: 52.43316548 | S31: 0 | T31: n/a | U31: 47.766964
F32: Asset Class 26 | G32: 2014-15 to 2018-19 Customer metering and Load control | J32: 0 | K32: n/a | L32: 25.00005614 | S32: 0 | T32: n/a | U32: 25
F33: Asset Class 27 | G33: 2014-15 to 2018-19 Communication | J33: 0 | K33: n/a | L33: 8.401674385 | S33: 0 | T33: n/a | U33: 10
F34: Asset Class 28 | G34: 2014-15 to 2018-19 Land | J34: 0 | K34: n/a | L34: n/a | S34: 0 | T34: n/a | U34: n/a
F35: Asset Class 29 | G35: 2014-15 to 2018-19 Easements | J35: 0 | K35: n/a | L35: n/a | S35: 0 | T35: n/a | U35: n/a
F36: Asset Class 30 | G36: 2014-15 to 2018-19 Equity raising costs | J36: 0 | K36: n/a | L36: 44.51038088 | S36: 0 | T36: n/a | U36: 5
F37: Asset Class 31 | G37: 2014-15 to 2018-19 Emergency Spares (Major Plant, Excludes Inventory) | J37: 0 | K37: n/a | L37: 23.64001787 | S37: 0 | T37: n/a | U37: 40
F38: Asset Class 32 | G38: 2014-15 to 2018-19 Work in progress | J38: 0 | K38: n/a | L38: n/a | S38: 0 | T38: n/a | U38: n/a
F39: Asset Class 33 | G39: 2014-15 to 2018-19 Information & Communication Technology | J39: 0 | K39: n/a | L39: 5 | S39: 0 | T39: n/a | U39: 2.88166167
F40: Asset Class 34 | G40: 2014-15 to 2018-19 Furniture, fittings, plant and equipment | J40: 0 | K40: n/a | L40: 13 | S40: 0 | T40: n/a | U40: 8.627245607
F41: Asset Class 35 | G41: 2014-15 to 2018-19 Motor Vehicles | J41: 0 | K41: n/a | L41: 8 | S41: 0 | T41: n/a | U41: 12.09368161
F42: Asset Class 36 | G42: 2014-15 to 2018-19 Buildings | J42: 0 | K42: n/a | L42: 50 | S42: 0 | T42: n/a | U42: 40
F43: Asset Class 37 | G43: 2014-15 to 2018-19 Land (non-system) | J43: 0 | K43: n/a | L43: n/a | S43: 0 | T43: n/a | U43: n/a
F44: Asset Class 38 | G44: 2014-15 to 2018-19 Other non system assets | J44: 0 | K44: n/a | L44: n/a | S44: 0 | T44: n/a | U44: n/a
F45: Asset Class 39 | G45: 2014-15 to 2018-19 Blank 1 | J45: 0 | K45: n/a | L45: 0 | S45: 0 | T45: n/a | U45: 0
F46: Asset Class 40 | G46: 2014-15 to 2018-19 Blank 2 | J46: 0 | K46: n/a | L46: 0 | S46: 0 | T46: n/a | U46: 0
F47: Asset Class 41 | G47: 2019-20 to 2023-24 Sub-transmission lines and cables | J47: 0 | K47: n/a | L47: 47.41891326 | S47: 0 | T47: n/a | U47: 46.77020128
F48: Asset Class 42 | G48: 2019-20 to 2023-24 Distribution lines and cables | J48: 0 | K48: n/a | L48: 50.61429162 | S48: 0 | T48: n/a | U48: 47.85490518
F49: Asset Class 43 | G49: 2019-20 to 2023-24 Substations | J49: 0 | K49: n/a | L49: 39.9998983 | S49: 0 | T49: n/a | U49: 40
F50: Asset Class 44 | G50: 2019-20 to 2023-24 Transformers | J50: 0 | K50: n/a | L50: 44.32109334 | S50: 0 | T50: n/a | U50: 40
F51: Asset Class 45 | G51: 2019-20 to 2023-24 Low Voltage lines and cables | J51: 0 | K51: n/a | L51: 52.43316548 | S51: 0 | T51: n/a | U51: 47.766964
F52: Asset Class 46 | G52: 2019-20 to 2023-24 Customer metering and Load control | J52: 0 | K52: n/a | L52: 25.00005614 | S52: 0 | T52: n/a | U52: 25
F53: Asset Class 47 | G53: 2019-20 to 2023-24 Communication | J53: 0 | K53: n/a | L53: 8.401674385 | S53: 0 | T53: n/a | U53: 10
F54: Asset Class 48 | G54: 2019-20 to 2023-24 Land | J54: 0 | K54: n/a | L54: n/a | S54: 0 | T54: n/a | U54: n/a
F55: Asset Class 49 | G55: 2019-20 to 2023-24 Easements | J55: 0 | K55: n/a | L55: n/a | S55: 0 | T55: n/a | U55: n/a
F56: Asset Class 50 | G56: 2019-20 to 2023-24 Equity raising costs | J56: 0 | K56: n/a | L56: 44.51038088 | S56: 0 | T56: n/a | U56: 5
F57: Asset Class 51 | G57: 2019-20 to 2023-24 Emergency Spares (Major Plant, Excludes Inventory) | J57: 0 | K57: n/a | L57: 23.64001787 | S57: 0 | T57: n/a | U57: 40
F58: Asset Class 52 | G58: 2019-20 to 2023-24 Work in progress | J58: 0 | K58: n/a | L58: n/a | S58: 0 | T58: n/a | U58: n/a
F59: Asset Class 53 | G59: 2019-20 to 2023-24 Information & Communication Technology | J59: 0 | K59: n/a | L59: 5 | S59: 0 | T59: n/a | U59: 2.88166167
F60: Asset Class 54 | G60: 2019-20 to 2023-24 Furniture, fittings, plant and equipment | J60: 0 | K60: n/a | L60: 13 | S60: 0 | T60: n/a | U60: 8.627245607
F61: Asset Class 55 | G61: 2019-20 to 2023-24 Motor Vehicles | J61: 0 | K61: n/a | L61: 8 | S61: 0 | T61: n/a | U61: 12.09368161
F62: Asset Class 56 | G62: 2019-20 to 2023-24 Buildings | J62: 0 | K62: n/a | L62: 50 | S62: 0 | T62: n/a | U62: 40
F63: Asset Class 57 | G63: 2019-20 to 2023-24 Land (non-system) | J63: 0 | K63: n/a | L63: n/a | S63: 0 | T63: n/a | U63: n/a
F64: Asset Class 58 | G64: 2019-20 to 2023-24 Other non system assets | J64: 0 | K64: n/a | L64: n/a | S64: 0 | T64: n/a | U64: n/a
F65: Asset Class 59 | G65: 2019-20 to 2023-24 Blank 1 | J65: 0 | K65: n/a | L65: 0 | S65: 0 | T65: n/a | U65: 0
F66: Asset Class 60 | G66: 2019-20 to 2023-24 Blank 2 | J66: 0 | K66: n/a | L66: 0 | S66: 0 | T66: n/a | U66: 0
F67: Total | J67: =SUM(J7:J66) -> 5345.979472 | M67: =SUM(M7:M66) -> 542.3696085 | N67: 100.5024783 | O67: 84.12827007 | P67: -116.5567102 | Q67: -71.16120618 | R67: -18.78980414 | S67: 4576.635405
F69: Actual Capital Expenditure – As Incurred ($m Nominal)
F70: Year | G70: =IF(LEN(H70)>4,CONCATENATE(LEFT(H70,4)-1&"-"&IF(H70>"2009-10",,"0")&RIGHT(H70,2)-1),H70-1) -> 2013-14 | H70: =V7 -> 2014-15 | I70: =IF(LEN(H70)>4,CONCATENATE(LEFT(H70,4)+1&"-"&IF(H70>"2007-08",,"0")&RIGHT(H70,2)+1),H70+1) -> 2015-16 | J70: =IF(LEN(I70)>4,CONCATENATE(LEFT(I70,4)+1&"-"&IF(I70>"2007-08",,"0")&RIGHT(I70,2)+1),I70+1) -> 2016-17 | K70: =IF(LEN(J70)>4,CONCATENATE(LEFT(J70,4)+1&"-"&IF(J70>"2007-08",,"0")&RIGHT(J70,2)+1),J70+1) -> 2017-18 | L70: =IF(LEN(K70)>4,CONCATENATE(LEFT(K70,4)+1&"-"&IF(K70>"2007-08",,"0")&RIGHT(K70,2)+1),K70+1) -> 2018-19 | M70: =IF(LEN(L70)>4,CONCATENATE(LEFT(L70,4)+1&"-"&IF(L70>"2007-08",,"0")&RIGHT(L70,2)+1),L70+1) -> 2019-20 | N70: =IF(LEN(M70)>4,CONCATENATE(LEFT(M70,4)+1&"-"&IF(M70>"2007-08",,"0")&RIGHT(M70,2)+1),M70+1) -> 2020-21 | O70: =IF(LEN(N70)>4,CONCATENATE(LEFT(N70,4)+1&"-"&IF(N70>"2007-08",,"0")&RIGHT(N70,2)+1),N70+1) -> 2021-22 | P70: =IF(LEN(O70)>4,CONCATENATE(LEFT(O70,4)+1&"-"&IF(O70>"2007-08",,"0")&RIGHT(O70,2)+1),O70+1) -> 2022-23 | Q70: =IF(LEN(P70)>4,CONCATENATE(LEFT(P70,4)+1&"-"&IF(P70>"2007-08",,"0")&RIGHT(P70,2)+1),P70+1) -> 2023-24
F71: =Asset1 -> 2013-14 ORAB Sub-transmission lines and cables | G71: ='Adjustment for Provisions'!F22 -> 69.87918385
F72: =Asset2 -> 2013-14 ORAB Distribution lines and cables | G72: ='Adjustment for Provisions'!F23 -> 149.4757069
F73: =Asset3 -> 2013-14 ORAB Substations | G73: ='Adjustment for Provisions'!F24 -> 223.8547018
F74: =Asset4 -> 2013-14 ORAB Transformers | G74: ='Adjustment for Provisions'!F25 -> 26.25077204
F75: =Asset5 -> 2013-14 ORAB Low Voltage lines and cables | G75: ='Adjustment for Provisions'!F26 -> 77.5985819
F76: =Asset6 -> 2013-14 ORAB Customer metering and Load control | G76: ='Adjustment for Provisions'!F27 -> 4.52238413
F77: =Asset7 -> 2013-14 ORAB Communication | G77: ='Adjustment for Provisions'!F28 -> 4.386867437
F78: =Asset8 -> 2013-14 ORAB Land | G78: ='Adjustment for Provisions'!F29 -> 1.759080374
F79: =Asset9 -> 2013-14 ORAB Easements | G79: ='Adjustment for Provisions'!F30 -> 0.7197694363
F80: =Asset10 -> 2013-14 ORAB Equity raising costs | G80: ='Adjustment for Provisions'!F31 -> 0
F81: =Asset11 -> 2013-14 ORAB Emergency Spares (Major Plant, Excludes Inventory) | G81: ='Adjustment for Provisions'!F32 -> 0.05162547157
F82: =Asset12 -> 2013-14 ORAB Work in progress | G82: ='Adjustment for Provisions'!F33 -> 0
F83: =Asset13 -> 2013-14 ORAB Information & Communication Technology | G83: ='Adjustment for Provisions'!F34 -> 13.75030833
F84: =Asset14 -> 2013-14 ORAB Furniture, fittings, plant and equipment | G84: ='Adjustment for Provisions'!F35 -> 3.475875615
F85: =Asset15 -> 2013-14 ORAB Motor Vehicles | G85: ='Adjustment for Provisions'!F36 -> 4.824033615
F86: =Asset16 -> 2013-14 ORAB Buildings | G86: ='Adjustment for Provisions'!F37 -> 20.01571803
F87: =Asset17 -> 2013-14 ORAB Land (non-system) | G87: ='Adjustment for Provisions'!F38 -> 0
F88: =Asset18 -> 2013-14 ORAB Other non system assets | G88: ='Adjustment for Provisions'!F39 -> 0
F89: =Asset19 -> 2013-14 ORAB Blank 1
F90: =Asset20 -> 2013-14 ORAB Blank 2
F91: =Asset21 -> 2014-15 to 2018-19 Sub-transmission lines and cables | H91: ='Adjustment for Provisions'!G42 -> 49.06262132 | I91: ='Adjustment for Provisions'!H42 -> 25.39509632 | J91: ='Adjustment for Provisions'!I42 -> 53.3310276 | K91: ='Adjustment for Provisions'!J42 -> 36.07234196 | L91: ='Adjustment for Provisions'!K42 -> 27.23464204
F92: =Asset22 -> 2014-15 to 2018-19 Distribution lines and cables | H92: ='Adjustment for Provisions'!G43 -> 120.8876884 | I92: ='Adjustment for Provisions'!H43 -> 86.33231964 | J92: ='Adjustment for Provisions'!I43 -> 93.4718442 | K92: ='Adjustment for Provisions'!J43 -> 102.0396999 | L92: ='Adjustment for Provisions'!K43 -> 168.9712733
F93: =Asset23 -> 2014-15 to 2018-19 Substations | H93: ='Adjustment for Provisions'!G44 -> 151.6181121 | I93: ='Adjustment for Provisions'!H44 -> 107.1960892 | J93: ='Adjustment for Provisions'!I44 -> 72.69391229 | K93: ='Adjustment for Provisions'!J44 -> 131.056787 | L93: ='Adjustment for Provisions'!K44 -> 165.8614834
F94: =Asset24 -> 2014-15 to 2018-19 Transformers | H94: ='Adjustment for Provisions'!G45 -> 23.51342499 | I94: ='Adjustment for Provisions'!H45 -> 19.76098601 | J94: ='Adjustment for Provisions'!I45 -> 16.75678217 | K94: ='Adjustment for Provisions'!J45 -> 18.43682353 | L94: ='Adjustment for Provisions'!K45 -> 12.53342815
F95: =Asset25 -> 2014-15 to 2018-19 Low Voltage lines and cables | H95: ='Adjustment for Provisions'!G46 -> 88.04625548 | I95: ='Adjustment for Provisions'!H46 -> 102.6330417 | J95: ='Adjustment for Provisions'!I46 -> 100.2789559 | K95: ='Adjustment for Provisions'!J46 -> 143.0622052 | L95: ='Adjustment for Provisions'!K46 -> 62.58442042
F96: =Asset26 -> 2014-15 to 2018-19 Customer metering and Load control | H96: ='Adjustment for Provisions'!G47 -> 0.8167452066 | I96: ='Adjustment for Provisions'!H47 -> 0.5407827666 | J96: ='Adjustment for Provisions'!I47 -> 1.771912474 | K96: ='Adjustment for Provisions'!J47 -> 0.6969863339 | L96: ='Adjustment for Provisions'!K47 -> 0.7383421674
F97: =Asset27 -> 2014-15 to 2018-19 Communication | H97: ='Adjustment for Provisions'!G48 -> 5.437961296 | I97: ='Adjustment for Provisions'!H48 -> 4.541512163 | J97: ='Adjustment for Provisions'!I48 -> 6.896140808 | K97: ='Adjustment for Provisions'!J48 -> 8.295442484 | L97: ='Adjustment for Provisions'!K48 -> 17.9572189
F98: =Asset28 -> 2014-15 to 2018-19 Land | H98: ='Adjustment for Provisions'!G49 -> 1.390111116 | I98: ='Adjustment for Provisions'!H49 -> 2.354126526 | J98: ='Adjustment for Provisions'!I49 -> 3.577173302 | K98: ='Adjustment for Provisions'!J49 -> 0.5219138287 | L98: ='Adjustment for Provisions'!K49 -> 6.140438339
F99: =Asset29 -> 2014-15 to 2018-19 Easements | H99: ='Adjustment for Provisions'!G50 -> 0.08369138557 | I99: ='Adjustment for Provisions'!H50 -> 0.4242481662 | J99: ='Adjustment for Provisions'!I50 -> 0.1377429666 | K99: ='Adjustment for Provisions'!J50 -> 0.09413776341 | L99: ='Adjustment for Provisions'!K50 -> 0.009058820679
F100: =Asset30 -> 2014-15 to 2018-19 Equity raising costs | H100: ='Adjustment for Provisions'!G51 -> 2.257848313 | I100: ='Adjustment for Provisions'!H51 -> 0 | J100: ='Adjustment for Provisions'!I51 -> 0 | K100: ='Adjustment for Provisions'!J51 -> 0 | L100: ='Adjustment for Provisions'!K51 -> 0
F101: =Asset31 -> 2014-15 to 2018-19 Emergency Spares (Major Plant, Excludes Inventory) | H101: ='Adjustment for Provisions'!G52 -> 0.2468014356 | I101: ='Adjustment for Provisions'!H52 -> 0.1328358867 | J101: ='Adjustment for Provisions'!I52 -> 0.2909961194 | K101: ='Adjustment for Provisions'!J52 -> 1.186042161 | L101: ='Adjustment for Provisions'!K52 -> 1.570180741
F102: =Asset32 -> 2014-15 to 2018-19 Work in progress | H102: ='Adjustment for Provisions'!G53 -> 0 | I102: ='Adjustment for Provisions'!H53 -> 0 | J102: ='Adjustment for Provisions'!I53 -> 0 | K102: ='Adjustment for Provisions'!J53 -> 0 | L102: ='Adjustment for Provisions'!K53 -> 0
F103: =Asset33 -> 2014-15 to 2018-19 Information & Communication Technology | H103: ='Adjustment for Provisions'!G54 -> 11.83005273 | I103: ='Adjustment for Provisions'!H54 -> 9.655266821 | J103: ='Adjustment for Provisions'!I54 -> 8.523776077 | K103: ='Adjustment for Provisions'!J54 -> 49.65901165 | L103: ='Adjustment for Provisions'!K54 -> 40.67
F104: =Asset34 -> 2014-15 to 2018-19 Furniture, fittings, plant and equipment | H104: ='Adjustment for Provisions'!G55 -> 2.300540332 | I104: ='Adjustment for Provisions'!H55 -> 2.438206267 | J104: ='Adjustment for Provisions'!I55 -> 1.430239652 | K104: ='Adjustment for Provisions'!J55 -> 3.58676244 | L104: ='Adjustment for Provisions'!K55 -> 3.55
F105: =Asset35 -> 2014-15 to 2018-19 Motor Vehicles | H105: ='Adjustment for Provisions'!G56 -> 2.94591092 | I105: ='Adjustment for Provisions'!H56 -> 2.945622326 | J105: ='Adjustment for Provisions'!I56 -> 2.653302066 | K105: ='Adjustment for Provisions'!J56 -> 5.547519022 | L105: ='Adjustment for Provisions'!K56 -> 4.7
F106: =Asset36 -> 2014-15 to 2018-19 Buildings | H106: ='Adjustment for Provisions'!G57 -> 21.04450439 | I106: ='Adjustment for Provisions'!H57 -> 4.554881755 | J106: ='Adjustment for Provisions'!I57 -> 3.523993355 | K106: ='Adjustment for Provisions'!J57 -> 6.509752074 | L106: ='Adjustment for Provisions'!K57 -> 3.69
F107: =Asset37 -> 2014-15 to 2018-19 Land (non-system) | H107: ='Adjustment for Provisions'!G58 -> 0 | I107: ='Adjustment for Provisions'!H58 -> 0 | J107: ='Adjustment for Provisions'!I58 -> 0.007028475477 | K107: ='Adjustment for Provisions'!J58 -> 0.01719369802 | L107: ='Adjustment for Provisions'!K58 -> 0
F108: =Asset38 -> 2014-15 to 2018-19 Other non system assets | H108: ='Adjustment for Provisions'!G59 -> 0 | I108: ='Adjustment for Provisions'!H59 -> 0 | J108: ='Adjustment for Provisions'!I59 -> 0 | K108: ='Adjustment for Provisions'!J59 -> 0 | L108: ='Adjustment for Provisions'!K59 -> 0
F109: =Asset39 -> 2014-15 to 2018-19 Blank 1
F110: =Asset40 -> 2014-15 to 2018-19 Blank 2
F111: =Asset41 -> 2019-20 to 2023-24 Sub-transmission lines and cables
F112: =Asset42 -> 2019-20 to 2023-24 Distribution lines and cables
F113: =Asset43 -> 2019-20 to 2023-24 Substations
F114: =Asset44 -> 2019-20 to 2023-24 Transformers
F115: =Asset45 -> 2019-20 to 2023-24 Low Voltage lines and cables
F116: =Asset46 -> 2019-20 to 2023-24 Customer metering and Load control
F117: =Asset47 -> 2019-20 to 2023-24 Communication
F118: =Asset48 -> 2019-20 to 2023-24 Land
F119: =Asset49 -> 2019-20 to 2023-24 Easements
F120: =Asset50 -> 2019-20 to 2023-24 Equity raising costs
F121: =Asset51 -> 2019-20 to 2023-24 Emergency Spares (Major Plant, Excludes Inventory)
F122: =Asset52 -> 2019-20 to 2023-24 Work in progress
F123: =Asset53 -> 2019-20 to 2023-24 Information & Communication Technology
F124: =Asset54 -> 2019-20 to 2023-24 Furniture, fittings, plant and equipment
F125: =Asset55 -> 2019-20 to 2023-24 Motor Vehicles
F126: =Asset56 -> 2019-20 to 2023-24 Buildings
F127: =Asset57 -> 2019-20 to 2023-24 Land (non-system)
F128: =Asset58 -> 2019-20 to 2023-24 Other non system assets
F129: =Asset59 -> 2019-20 to 2023-24 Blank 1
F130: =Asset60 -> 2019-20 to 2023-24 Blank 2
F131: Total | G131: =SUM(G71:G130) -> 600.5646089 | H131: =SUM(H71:H130) -> 481.4822695 | I131: 368.9050156 | J131: 365.3448275 | K131: 506.782619 | L131: 516.2104863 | M131: 0 | N131: 0 | O131: 0 | P131: 0 | Q131: 0
R132: =SUM(G131:Q131) -> 2839.289827
F133: Actual Asset Disposal – As Incurred ($m Nominal)
F134: Year | G134: =G$70 -> 2013-14 | H134: =H$70 -> 2014-15 | I134: 2015-16 | J134: 2016-17 | K134: 2017-18 | L134: 2018-19 | M134: 2019-20 | N134: 2020-21 | O134: 2021-22 | P134: 2022-23 | Q134: 2023-24
F135: =Asset1 -> 2013-14 ORAB Sub-transmission lines and cables | G135: 0
F136: =Asset2 -> 2013-14 ORAB Distribution lines and cables | G136: 0
F137: =Asset3 -> 2013-14 ORAB Substations | G137: 0
F138: =Asset4 -> 2013-14 ORAB Transformers | G138: 0.577702
F139: =Asset5 -> 2013-14 ORAB Low Voltage lines and cables | G139: 0
F140: =Asset6 -> 2013-14 ORAB Customer metering and Load control | G140: 0
F141: =Asset7 -> 2013-14 ORAB Communication | G141: 0
F142: =Asset8 -> 2013-14 ORAB Land | G142: 0.76012645
F143: =Asset9 -> 2013-14 ORAB Easements | G143: 0
F144: =Asset10 -> 2013-14 ORAB Equity raising costs | G144: 0
F145: =Asset11 -> 2013-14 ORAB Emergency Spares (Major Plant, Excludes Inventory) | G145: 0
F146: =Asset12 -> 2013-14 ORAB Work in progress | G146: 0
F147: =Asset13 -> 2013-14 ORAB Information & Communication Technology | G147: 0
F148: =Asset14 -> 2013-14 ORAB Furniture, fittings, plant and equipment | G148: 0
F149: =Asset15 -> 2013-14 ORAB Motor Vehicles | G149: 1.696874945
F150: =Asset16 -> 2013-14 ORAB Buildings | G150: 0
F151: =Asset17 -> 2013-14 ORAB Land (non-system) | G151: 0
F152: =Asset18 -> 2013-14 ORAB Other non system assets | G152: 0
F153: =Asset19 -> 2013-14 ORAB Blank 1
F154: =Asset20 -> 2013-14 ORAB Blank 2
F155: =Asset21 -> 2014-15 to 2018-19 Sub-transmission lines and cables | H155: 0.3505162364 | I155: 0 | J155: 0 | K155: 0 | L155: 0
F156: =Asset22 -> 2014-15 to 2018-19 Distribution lines and cables | H156: 0 | I156: 0.08843336 | J156: 0 | K156: 0 | L156: 0
F157: =Asset23 -> 2014-15 to 2018-19 Substations | H157: 0 | I157: 0.02895266 | J157: 0 | K157: 0 | L157: 0.01126729471
F158: =Asset24 -> 2014-15 to 2018-19 Transformers | H158: 0.44146419 | I158: 1.11886494 | J158: 1.50517208 | K158: 0.47459999 | L158: 0.2555969163
F159: =Asset25 -> 2014-15 to 2018-19 Low Voltage lines and cables | H159: 0 | I159: 0.00049143 | J159: 0 | K159: 0 | L159: 0
F160: =Asset26 -> 2014-15 to 2018-19 Customer metering and Load control | H160: 0 | I160: 0 | J160: 0 | K160: 0 | L160: 0
F161: =Asset27 -> 2014-15 to 2018-19 Communication | H161: 0 | I161: 0 | J161: 0 | K161: 0 | L161: 0
F162: =Asset28 -> 2014-15 to 2018-19 Land | H162: 1.5159357 | I162: 4.845454419 | J162: 5.5085114 | K162: 3.072532279 | L162: 0.313135789
F163: =Asset29 -> 2014-15 to 2018-19 Easements | H163: 0 | I163: 0 | J163: 0 | K163: 0 | L163: 0
F164: =Asset30 -> 2014-15 to 2018-19 Equity raising costs | H164: 0 | I164: 0 | J164: 1e-06 | K164: 0 | L164: 0
F165: =Asset31 -> 2014-15 to 2018-19 Emergency Spares (Major Plant, Excludes Inventory) | H165: 0 | I165: 0 | J165: 0 | K165: 0 | L165: 0
F166: =Asset32 -> 2014-15 to 2018-19 Work in progress | H166: 0 | I166: 0 | J166: 0 | K166: 0 | L166: 0
F167: =Asset33 -> 2014-15 to 2018-19 Information & Communication Technology | H167: 0 | I167: 0.08881044502 | J167: 0 | K167: 0 | L167: 0
F168: =Asset34 -> 2014-15 to 2018-19 Furniture, fittings, plant and equipment | H168: 0 | I168: 0 | J168: 1.130947688 | K168: 0 | L168: 0
F169: =Asset35 -> 2014-15 to 2018-19 Motor Vehicles | H169: 2.095805278 | I169: 2.808144725 | J169: 2.86732042 | K169: 0.171454353 | L169: 1.332763024
F170: =Asset36 -> 2014-15 to 2018-19 Buildings | H170: 0 | I170: 0 | J170: 0 | K170: 0 | L170: 0
F171: =Asset37 -> 2014-15 to 2018-19 Land (non-system) | H171: 0 | I171: 25.71186931 | J171: 0 | K171: 0 | L171: 0
F172: =Asset38 -> 2014-15 to 2018-19 Other non system assets | H172: 0 | I172: 0 | J172: 0 | K172: 0 | L172: 0
F173: =Asset39 -> 2014-15 to 2018-19 Blank 1
F174: =Asset40 -> 2014-15 to 2018-19 Blank 2
F175: =Asset41 -> 2019-20 to 2023-24 Sub-transmission lines and cables
F176: =Asset42 -> 2019-20 to 2023-24 Distribution lines and cables
F177: =Asset43 -> 2019-20 to 2023-24 Substations
F178: =Asset44 -> 2019-20 to 2023-24 Transformers
F179: =Asset45 -> 2019-20 to 2023-24 Low Voltage lines and cables
F180: =Asset46 -> 2019-20 to 2023-24 Customer metering and Load control
F181: =Asset47 -> 2019-20 to 2023-24 Communication
F182: =Asset48 -> 2019-20 to 2023-24 Land
F183: =Asset49 -> 2019-20 to 2023-24 Easements
F184: =Asset50 -> 2019-20 to 2023-24 Equity raising costs
F185: =Asset51 -> 2019-20 to 2023-24 Emergency Spares (Major Plant, Excludes Inventory)
F186: =Asset52 -> 2019-20 to 2023-24 Work in progress
F187: =Asset53 -> 2019-20 to 2023-24 Information & Communication Technology
F188: =Asset54 -> 2019-20 to 2023-24 Furniture, fittings, plant and equipment
F189: =Asset55 -> 2019-20 to 2023-24 Motor Vehicles
F190: =Asset56 -> 2019-20 to 2023-24 Buildings
F191: =Asset57 -> 2019-20 to 2023-24 Land (non-system)
F192: =Asset58 -> 2019-20 to 2023-24 Other non system assets
F193: =Asset59 -> 2019-20 to 2023-24 Blank 1
F194: =Asset60 -> 2019-20 to 2023-24 Blank 2
F195: Total | G195: =SUM(G135:G194) -> 3.034703395 | H195: =SUM(H135:H194) -> 4.403721405 | I195: =SUM(I135:I194) -> 34.69102129 | J195: =SUM(J135:J194) -> 11.01195259 | K195: =SUM(K135:K194) -> 3.718586623 | L195: =SUM(L135:L194) -> 1.912763024 | M195: =SUM(M135:M194) -> 0 | N195: =SUM(N135:N194) -> 0 | O195: =SUM(O135:O194) -> 0 | P195: =SUM(P135:P194) -> 0 | Q195: =SUM(Q135:Q194) -> 0
R196: =SUM(G195:Q195) -> 58.77274832
F197: Actual Customer Contributions – As Incurred ($m Nominal)
F198: Year | G198: =G$70 -> 2013-14 | H198: =H$70 -> 2014-15 | I198: 2015-16 | J198: 2016-17 | K198: 2017-18 | L198: 2018-19 | M198: 2019-20 | N198: 2020-21 | O198: 2021-22 | P198: 2022-23 | Q198: 2023-24
F199: =Asset1 -> 2013-14 ORAB Sub-transmission lines and cables | G199: 3.94988999
F200: =Asset2 -> 2013-14 ORAB Distribution lines and cables | G200: 31.28636055
F201: =Asset3 -> 2013-14 ORAB Substations | G201: 13.01528101
F202: =Asset4 -> 2013-14 ORAB Transformers | G202: 0.71204083
F203: =Asset5 -> 2013-14 ORAB Low Voltage lines and cables | G203: 33.58934082
F204: =Asset6 -> 2013-14 ORAB Customer metering and Load control | G204: 0.02969687
... 264 more rows

Sheet Adjustment for Provisions
E8: Select Scenario
E11: Enter Scenario (1 = "Include Provision Adjustment to RAB"; 2 = "Exclude Provision Adjustment to RAB"):
E12: Provision Adjustment to RAB | F12: 1 | H12: =IF(F12=1,"Include Provision Adjustment to RAB", IF(F12=2, "Exclude Provision Adjustment to RAB","INPUT NOT DEFINED")) -> Include Provision Adjustment to RAB
E17: Selected Scenario
E20: Actual Capital Expenditure – As Incurred ($m Nominal)
E21: Year | F21: 2013-14 | G21: 2014-15 | H21: 2015-16 | I21: 2016-17 | J21: 2017-18 | K21: 2018-19
E22: =E95 -> 2013-14 ORAB Sub-transmission lines and cables | F22: =IF($F$12=1,F95+F172,IF($F$12=2,F95,"NOT DEFINED")) -> 69.87918385 | G22: =IF($F$12=1,G95+G172,IF($F$12=2,G95,"NOT DEFINED")) -> 0 | H22: 0 | I22: 0 | J22: 0 | K22: 0
E23: =E96 -> 2013-14 ORAB Distribution lines and cables | F23: =IF($F$12=1,F96+F173,IF($F$12=2,F96,"NOT DEFINED")) -> 149.4757069 | G23: 0 | H23: 0 | I23: 0 | J23: 0 | K23: 0
E24: 2013-14 ORAB Substations | F24: 223.8547018 | G24: 0 | H24: 0 | I24: 0 | J24: 0 | K24: 0
E25: 2013-14 ORAB Transformers | F25: 26.25077204 | G25: 0 | H25: 0 | I25: 0 | J25: 0 | K25: 0
E26: 2013-14 ORAB Low Voltage lines and cables | F26: 77.5985819 | G26: 0 | H26: 0 | I26: 0 | J26: 0 | K26: 0
E27: 2013-14 ORAB Customer metering and Load control | F27: 4.52238413 | G27: 0 | H27: 0 | I27: 0 | J27: 0 | K27: 0
E28: 2013-14 ORAB Communication | F28: 4.386867437 | G28: 0 | H28: 0 | I28: 0 | J28: 0 | K28: 0
E29: 2013-14 ORAB Land | F29: 1.759080374 | G29: 0 | H29: 0 | I29: 0 | J29: 0 | K29: 0
E30: 2013-14 ORAB Easements | F30: 0.7197694363 | G30: 0 | H30: 0 | I30: 0 | J30: 0 | K30: 0
E31: 2013-14 ORAB Equity raising costs | F31: 0 | G31: 0 | H31: 0 | I31: 0 | J31: 0 | K31: 0
E32: 2013-14 ORAB Emergency Spares (Major Plant, Excludes Inventory) | F32: 0.05162547157 | G32: 0 | H32: 0 | I32: 0 | J32: 0 | K32: 0
E33: 2013-14 ORAB Work in progress | F33: 0 | G33: 0 | H33: 0 | I33: 0 | J33: 0 | K33: 0
E34: 2013-14 ORAB Information & Communication Technology | F34: 13.75030833 | G34: 0 | H34: 0 | I34: 0 | J34: 0 | K34: 0
E35: 2013-14 ORAB Furniture, fittings, plant and equipment | F35: 3.475875615 | G35: 0 | H35: 0 | I35: 0 | J35: 0 | K35: 0
E36: 2013-14 ORAB Motor Vehicles | F36: 4.824033615 | G36: 0 | H36: 0 | I36: 0 | J36: 0 | K36: 0
E37: 2013-14 ORAB Buildings | F37: 20.01571803 | G37: 0 | H37: 0 | I37: 0 | J37: 0 | K37: 0
E38: 2013-14 ORAB Land (non-system) | F38: 0 | G38: 0 | H38: 0 | I38: 0 | J38: 0 | K38: 0
E39: 2013-14 ORAB Other non system assets | F39: 0 | G39: 0 | H39: 0 | I39: 0 | J39: 0 | K39: 0
E40: 2013-14 ORAB Blank 1 | F40: 0 | G40: 0 | H40: 0 | I40: 0 | J40: 0 | K40: 0
E41: 2013-14 ORAB Blank 2 | F41: 0 | G41: 0 | H41: 0 | I41: 0 | J41: 0 | K41: 0
E42: 2014-15 to 2018-19 Sub-transmission lines and cables | F42: 0 | G42: =IF($F$12=1,G115+G192,IF($F$12=2,G115,"NOT DEFINED")) -> 49.06262132 | H42: 25.39509632 | I42: 53.3310276 | J42: 36.07234196 | K42: 27.23464204
E43: 2014-15 to 2018-19 Distribution lines and cables | F43: 0 | G43: 120.8876884 | H43: 86.33231964 | I43: 93.4718442 | J43: 102.0396999 | K43: 168.9712733
E44: 2014-15 to 2018-19 Substations | F44: 0 | G44: 151.6181121 | H44: 107.1960892 | I44: 72.69391229 | J44: 131.056787 | K44: 165.8614834
E45: 2014-15 to 2018-19 Transformers | F45: 0 | G45: 23.51342499 | H45: 19.76098601 | I45: 16.75678217 | J45: 18.43682353 | K45: 12.53342815
E46: 2014-15 to 2018-19 Low Voltage lines and cables | F46: 0 | G46: 88.04625548 | H46: 102.6330417 | I46: 100.2789559 | J46: 143.0622052 | K46: 62.58442042
E47: 2014-15 to 2018-19 Customer metering and Load control | F47: 0 | G47: 0.8167452066 | H47: 0.5407827666 | I47: 1.771912474 | J47: 0.6969863339 | K47: 0.7383421674
E48: 2014-15 to 2018-19 Communication | F48: 0 | G48: 5.437961296 | H48: 4.541512163 | I48: 6.896140808 | J48: 8.295442484 | K48: 17.9572189
E49: 2014-15 to 2018-19 Land | F49: 0 | G49: 1.390111116 | H49: 2.354126526 | I49: 3.577173302 | J49: 0.5219138287 | K49: 6.140438339
E50: 2014-15 to 2018-19 Easements | F50: 0 | G50: 0.08369138557 | H50: 0.4242481662 | I50: 0.1377429666 | J50: 0.09413776341 | K50: 0.009058820679
E51: 2014-15 to 2018-19 Equity raising costs | F51: 0 | G51: 2.257848313 | H51: 0 | I51: 0 | J51: 0 | K51: 0
E52: 2014-15 to 2018-19 Emergency Spares (Major Plant, Excludes Inventory) | F52: 0 | G52: 0.2468014356 | H52: 0.1328358867 | I52: 0.2909961194 | J52: 1.186042161 | K52: 1.570180741
E53: 2014-15 to 2018-19 Work in progress | F53: 0 | G53: 0 | H53: 0 | I53: 0 | J53: 0 | K53: 0
E54: 2014-15 to 2018-19 Information & Communication Technology | F54: 0 | G54: 11.83005273 | H54: 9.655266821 | I54: 8.523776077 | J54: 49.65901165 | K54: 40.67
E55: 2014-15 to 2018-19 Furniture, fittings, plant and equipment | F55: 0 | G55: 2.300540332 | H55: 2.438206267 | I55: 1.430239652 | J55: 3.58676244 | K55: 3.55
E56: 2014-15 to 2018-19 Motor Vehicles | F56: 0 | G56: 2.94591092 | H56: 2.945622326 | I56: 2.653302066 | J56: 5.547519022 | K56: 4.7
E57: 2014-15 to 2018-19 Buildings | F57: 0 | G57: 21.04450439 | H57: 4.554881755 | I57: 3.523993355 | J57: 6.509752074 | K57: 3.69
E58: 2014-15 to 2018-19 Land (non-system) | F58: 0 | G58: 0 | H58: 0 | I58: 0.007028475477 | J58: 0.01719369802 | K58: 0
E59: 2014-15 to 2018-19 Other non system assets | F59: 0 | G59: 0 | H59: 0 | I59: 0 | J59: 0 | K59: 0
E60: 2014-15 to 2018-19 Blank 1 | F60: 0 | G60: 0 | H60: 0 | I60: 0 | J60: 0 | K60: 0
E61: 2014-15 to 2018-19 Blank 2 | F61: 0 | G61: 0 | H61: 0 | I61: 0 | J61: 0 | K61: 0
E62: 2019-20 to 2023-24 Sub-transmission lines and cables | F62: 0 | G62: 0 | H62: =IF($F$12=1,H135+H212,IF($F$12=2,H135,"NOT DEFINED")) -> 0 | I62: 0 | J62: 0 | K62: 0
E63: 2019-20 to 2023-24 Distribution lines and cables | F63: 0 | G63: 0 | H63: 0 | I63: 0 | J63: 0 | K63: 0
E64: 2019-20 to 2023-24 Substations | F64: 0 | G64: 0 | H64: 0 | I64: 0 | J64: 0 | K64: 0
E65: 2019-20 to 2023-24 Transformers | F65: 0 | G65: 0 | H65: 0 | I65: 0 | J65: 0 | K65: 0
E66: 2019-20 to 2023-24 Low Voltage lines and cables | F66: 0 | G66: 0 | H66: 0 | I66: 0 | J66: 0 | K66: 0
E67: 2019-20 to 2023-24 Customer metering and Load control | F67: 0 | G67: 0 | H67: 0 | I67: 0 | J67: 0 | K67: 0
E68: 2019-20 to 2023-24 Communication | F68: 0 | G68: 0 | H68: 0 | I68: 0 | J68: 0 | K68: 0
E69: 2019-20 to 2023-24 Land | F69: 0 | G69: 0 | H69: 0 | I69: 0 | J69: 0 | K69: 0
E70: 2019-20 to 2023-24 Easements | F70: 0 | G70: 0 | H70: 0 | I70: 0 | J70: 0 | K70: 0
E71: 2019-20 to 2023-24 Equity raising costs | F71: 0 | G71: 0 | H71: 0 | I71: 0 | J71: 0 | K71: 0
E72: 2019-20 to 2023-24 Emergency Spares (Major Plant, Excludes Inventory) | F72: 0 | G72: 0 | H72: 0 | I72: 0 | J72: 0 | K72: 0
E73: 2019-20 to 2023-24 Work in progress | F73: 0 | G73: 0 | H73: 0 | I73: 0 | J73: 0 | K73: 0
E74: 2019-20 to 2023-24 Information & Communication Technology | F74: 0 | G74: 0 | H74: 0 | I74: 0 | J74: 0 | K74: 0
E75: 2019-20 to 2023-24 Furniture, fittings, plant and equipment | F75: 0 | G75: 0 | H75: 0 | I75: 0 | J75: 0 | K75: 0
E76: 2019-20 to 2023-24 Motor Vehicles | F76: 0 | G76: 0 | H76: 0 | I76: 0 | J76: 0 | K76: 0
E77: 2019-20 to 2023-24 Buildings | F77: 0 | G77: 0 | H77: 0 | I77: 0 | J77: 0 | K77: 0
E78: 2019-20 to 2023-24 Land (non-system) | F78: 0 | G78: =IF($F$12=1,G151+G228,IF($F$12=2,G151,"NOT DEFINED")) -> 0 | H78: 0 | I78: 0 | J78: 0 | K78: 0
E79: 2019-20 to 2023-24 Other non system assets | F79: 0 | G79: 0 | H79: 0 | I79: 0 | J79: 0 | K79: 0
E80: 2019-20 to 2023-24 Blank 1 | F80: 0 | G80: 0 | H80: 0 | I80: 0 | J80: 0 | K80: 0
E81: =E154 -> 2019-20 to 2023-24 Blank 2 | F81: 0 | G81: 0 | H81: 0 | I81: 0 | J81: 0 | K81: 0
E82: Total | F82: =SUM(F22:F81) -> 600.5646089 | G82: =SUM(G22:G81) -> 481.4822695 | H82: 368.9050156 | I82: 365.3448275 | J82: 506.782619 | K82: 516.2104863
F83: =ROUND(IF($F$12=1,F155+F163-F82,F155-F82),10) -> 0 | G83: 0 | H83: 0 | I83: 0 | J83: 0 | K83: 0
E90: 1. Unadjusted Capex
E93: Actual Capital Expenditure – As Incurred ($m Nominal)
E94: Year | F94: 2013-14 | G94: 2014-15 | H94: 2015-16 | I94: 2016-17 | J94: 2017-18 | K94: 2018-19
E95: ='RFM input'!F71 -> 2013-14 ORAB Sub-transmission lines and cables | F95: 70.35552149
E96: ='RFM input'!F72 -> 2013-14 ORAB Distribution lines and cables | F96: 150.3296222
E97: ='RFM input'!F73 -> 2013-14 ORAB Substations | F97: 225.3780118
E98: ='RFM input'!F74 -> 2013-14 ORAB Transformers | F98: 26.43528879
E99: ='RFM input'!F75 -> 2013-14 ORAB Low Voltage lines and cables | F99: 77.91654766
E100: ='RFM input'!F76 -> 2013-14 ORAB Customer metering and Load control | F100: 4.554843693
E101: ='RFM input'!F77 -> 2013-14 ORAB Communication | F101: 4.418562453
E102: ='RFM input'!F78 -> 2013-14 ORAB Land | F102: 1.760622331
E103: ='RFM input'!F79 -> 2013-14 ORAB Easements | F103: 0.724969754
E104: ='RFM input'!F80 -> 2013-14 ORAB Equity raising costs | F104: 0
E105: ='RFM input'!F81 -> 2013-14 ORAB Emergency Spares (Major Plant, Excludes Inventory) | F105: 0.05199846442
E106: ='RFM input'!F82 -> 2013-14 ORAB Work in progress | F106: 0
E107: ='RFM input'!F83 -> 2013-14 ORAB Information & Communication Technology | F107: 13.84965399
E108: ='RFM input'!F84 -> 2013-14 ORAB Furniture, fittings, plant and equipment | F108: 3.500988737
E109: ='RFM input'!F85 -> 2013-14 ORAB Motor Vehicles | F109: 4.858887147
E110: ='RFM input'!F86 -> 2013-14 ORAB Buildings | F110: 20.16033114
E111: ='RFM input'!F87 -> 2013-14 ORAB Land (non-system) | F111: 0
E112: ='RFM input'!F88 -> 2013-14 ORAB Other non system assets | F112: 0
E113: ='RFM input'!F89 -> 2013-14 ORAB Blank 1
E114: ='RFM input'!F90 -> 2013-14 ORAB Blank 2
E115: ='RFM input'!F91 -> 2014-15 to 2018-19 Sub-transmission lines and cables | G115: 48.41787909 | H115: 25.55457616 | I115: 52.96632653 | J115: 35.56934913 | K115: 27.23464204
E116: ='RFM input'!F92 -> 2014-15 to 2018-19 Distribution lines and cables | G116: 119.4573754 | H116: 86.63505712 | I116: 92.90472889 | J116: 100.762211 | K116: 168.9712733
E117: ='RFM input'!F93 -> 2014-15 to 2018-19 Substations | G117: 149.4658873 | H117: 107.7656002 | I117: 72.20636424 | J117: 128.4600744 | K117: 165.8614834
E118: ='RFM input'!F94 -> 2014-15 to 2018-19 Transformers | G118: 23.16016086 | H118: 19.88308806 | I118: 16.58187275 | J118: 18.04437687 | K118: 12.53342815
E119: ='RFM input'!F95 -> 2014-15 to 2018-19 Low Voltage lines and cables | G119: 87.29054709 | H119: 102.9021447 | I119: 99.91173453 | J119: 141.3671258 | K119: 62.58442042
E120: ='RFM input'!F96 -> 2014-15 to 2018-19 Customer metering and Load control | G120: 0.8039143602 | H120: 0.544319837 | I120: 1.752128429 | J120: 0.681086869 | K120: 0.7383421674
E121: ='RFM input'!F97 -> 2014-15 to 2018-19 Communication | G121: 5.347686391 | H121: 4.571216602 | I121: 6.819142896 | J121: 8.10620908 | K121: 17.9572189
E122: ='RFM input'!F98 -> 2014-15 to 2018-19 Land | G122: 1.369997314 | H122: 2.369524042 | I122: 3.573863628 | J122: 0.5219138287 | K122: 6.140438339
E123: ='RFM input'!F99 -> 2014-15 to 2018-19 Easements | G123: 0.08254589353 | H123: 0.4270230247 | I123: 0.1362050164 | J123: 0.09199031806 | K123: 0.009058820679
E124: ='RFM input'!F100 -> 2014-15 to 2018-19 Equity raising costs | G124: 2.257848313 | H124: 0 | I124: 0 | J124: 0 | K124: 0
E125: ='RFM input'!F101 -> 2014-15 to 2018-19 Emergency Spares (Major Plant, Excludes Inventory) | G125: 0.2427043163 | H125: 0.1337047197 | I125: 0.2877470422 | J125: 1.158986486 | K125: 1.570180741
E126: ='RFM input'!F102 -> 2014-15 to 2018-19 Work in progress
E127: ='RFM input'!F103 -> 2014-15 to 2018-19 Information & Communication Technology | G127: 11.63366353 | H127: 9.718418535 | I127: 8.428605027 | J127: 48.52620363 | K127: 40.67
E128: ='RFM input'!F104 -> 2014-15 to 2018-19 Furniture, fittings, plant and equipment | G128: 2.262349354 | H128: 2.454153719 | I128: 1.414270507 | J128: 3.50494218 | K128: 3.55
E129: ='RFM input'!F105 -> 2014-15 to 2018-19 Motor Vehicles | G129: 2.897006227 | H129: 2.964888609 | I129: 2.623676986 | J129: 5.42097051 | K129: 4.7
E130: ='RFM input'!F106 -> 2014-15 to 2018-19 Buildings | G130: 20.69514724 | H130: 4.584673639 | I130: 3.484646692 | J130: 6.36125336 | K130: 3.69
E131: ='RFM input'!F107 -> 2014-15 to 2018-19 Land (non-system) | G131: 0 | H131: 0 | I131: 0.00695 | J131: 0.01680148 | K131: 0
E132: ='RFM input'!F108 -> 2014-15 to 2018-19 Other non system assets | G132: 0 | H132: 0 | I132: 0 | J132: 0 | K132: 0
E133: ='RFM input'!F109 -> 2014-15 to 2018-19 Blank 1
E134: ='RFM input'!F110 -> 2014-15 to 2018-19 Blank 2
E135: ='RFM input'!F111 -> 2019-20 to 2023-24 Sub-transmission lines and cables
E136: ='RFM input'!F112 -> 2019-20 to 2023-24 Distribution lines and cables
E137: ='RFM input'!F113 -> 2019-20 to 2023-24 Substations
E138: ='RFM input'!F114 -> 2019-20 to 2023-24 Transformers
E139: ='RFM input'!F115 -> 2019-20 to 2023-24 Low Voltage lines and cables
E140: ='RFM input'!F116 -> 2019-20 to 2023-24 Customer metering and Load control
E141: ='RFM input'!F117 -> 2019-20 to 2023-24 Communication
E142: ='RFM input'!F118 -> 2019-20 to 2023-24 Land
E143: ='RFM input'!F119 -> 2019-20 to 2023-24 Easements
E144: ='RFM input'!F120 -> 2019-20 to 2023-24 Equity raising costs
E145: ='RFM input'!F121 -> 2019-20 to 2023-24 Emergency Spares (Major Plant, Excludes Inventory)
E146: ='RFM input'!F122 -> 2019-20 to 2023-24 Work in progress
E147: ='RFM input'!F123 -> 2019-20 to 2023-24 Information & Communication Technology
E148: ='RFM input'!F124 -> 2019-20 to 2023-24 Furniture, fittings, plant and equipment
E149: ='RFM input'!F125 -> 2019-20 to 2023-24 Motor Vehicles
E150: ='RFM input'!F126 -> 2019-20 to 2023-24 Buildings
E151: ='RFM input'!F127 -> 2019-20 to 2023-24 Land (non-system)
E152: ='RFM input'!F128 -> 2019-20 to 2023-24 Other non system assets
E153: ='RFM input'!F129 -> 2019-20 to 2023-24 Blank 1
E154: ='RFM input'!F130 -> 2019-20 to 2023-24 Blank 2
E155: Total | F155: =SUM(F95:F154) -> 604.2958497 | G155: 475.3847127 | H155: 370.508389 | I155: 363.0982632 | J155: 498.5934949 | K155: 516.2104863
E159: 2. Provision Adjustments
E162: Year | F162: 2013-14 | G162: 2014-15 | H162: 2015-16 | I162: 2016-17 | J162: 2017-18 | K162: 2018-19
E163: Movements in provisions related to capex ($m Nominal) | F163: -3.731240736 | G163: 6.097556783 | H163: -1.603373429 | I163: 2.246564288 | J163: 8.189124065 | K163: 0
E167: 3. Provision Adjustments (Allocated to Asset Class)
E170: Actual Capital Expenditure – As Incurred ($m Nominal)
E171: Year | F171: 2013-14 | G171: 2014-15 | H171: 2015-16 | I171: 2016-17 | J171: 2017-18 | K171: 2018-19
E172: =E95 -> 2013-14 ORAB Sub-transmission lines and cables | F172: -0.4763376402
E173: =E96 -> 2013-14 ORAB Distribution lines and cables | F173: -0.8539153239
E174: 2013-14 ORAB Substations | F174: -1.523309993
E175: 2013-14 ORAB Transformers | F175: -0.1845167489
E176: 2013-14 ORAB Low Voltage lines and cables | F176: -0.3179657602
E177: 2013-14 ORAB Customer metering and Load control | F177: -0.0324595627
E178: 2013-14 ORAB Communication | F178: -0.03169501689
E179: 2013-14 ORAB Land | F179: -0.001541957318
E180: 2013-14 ORAB Easements | F180: -0.005200317715
E181: 2013-14 ORAB Equity raising costs
E182: 2013-14 ORAB Emergency Spares (Major Plant, Excludes Inventory) | F182: -0.0003729928513
E183: 2013-14 ORAB Work in progress | F183: 0
E184: 2013-14 ORAB Information & Communication Technology | F184: -0.09934566315
E185: 2013-14 ORAB Furniture, fittings, plant and equipment | F185: -0.02511312182
E186: 2013-14 ORAB Motor Vehicles | F186: -0.03485353253
E187: 2013-14 ORAB Buildings | F187: -0.144613105
E188: 2013-14 ORAB Land (non-system) | F188: 0
E189: 2013-14 ORAB Other non system assets | F189: 0
E190: 2013-14 ORAB Blank 1
E191: 2013-14 ORAB Blank 2
E192: 2014-15 to 2018-19 Sub-transmission lines and cables | G192: 0.6447422299 | H192: -0.1594798357 | I192: 0.3647010715 | J192: 0.5029928252 | K192: 0
E193: 2014-15 to 2018-19 Distribution lines and cables | G193: 1.430313005 | H193: -0.3027374863 | I193: 0.5671153059 | J193: 1.27748887 | K193: 0
E194: 2014-15 to 2018-19 Substations | G194: 2.152224835 | H194: -0.5695109699 | I194: 0.4875480513 | J194: 2.596712585 | K194: 0
E195: 2014-15 to 2018-19 Transformers | G195: 0.3532641363 | H195: -0.1221020432 | I195: 0.1749094148 | J195: 0.3924466594 | K195: 0
E196: 2014-15 to 2018-19 Low Voltage lines and cables | G196: 0.7557083931 | H196: -0.2691030437 | I196: 0.3672213743 | J196: 1.69507941 | K196: 0
E197: 2014-15 to 2018-19 Customer metering and Load control | G197: 0.0128308464 | H197: -0.003537070435 | I197: 0.01978404511 | J197: 0.01589946486 | K197: 0
E198: 2014-15 to 2018-19 Communication | G198: 0.09027490489 | H198: -0.02970443845 | I198: 0.07699791203 | J198: 0.1892334036 | K198: 0
E199: 2014-15 to 2018-19 Land | G199: 0.02011380228 | H199: -0.01539751606 | I199: 0.003309673621 | J199: 0 | K199: 0
E200: 2014-15 to 2018-19 Easements | G200: 0.001145492038 | H200: -0.00277485848 | I200: 0.001537950155 | J200: 0.002147445349 | K200: 0
E201: 2014-15 to 2018-19 Equity raising costs
E202: 2014-15 to 2018-19 Emergency Spares (Major Plant, Excludes Inventory) | G202: 0.00409711929 | H202: -0.0008688329522 | I202: 0.003249077162 | J202: 0.0270556749 | K202: 0
E203: 2014-15 to 2018-19 Work in progress | G203: 0 | H203: 0 | I203: 0 | J203: 0 | K203: 0
E204: 2014-15 to 2018-19 Information & Communication Technology | G204: 0.196389203 | H204: -0.06315171437 | I204: 0.09517104985 | J204: 1.132808023 | K204: 0
E205: 2014-15 to 2018-19 Furniture, fittings, plant and equipment | G205: 0.0381909779 | H205: -0.01594745216 | I205: 0.01596914419 | J205: 0.08182026046 | K205: 0
E206: 2014-15 to 2018-19 Motor Vehicles | G206: 0.04890469307 | H206: -0.01926628267 | I206: 0.02962507941 | J206: 0.1265485124 | K206: 0
E207: 2014-15 to 2018-19 Buildings | G207: 0.3493571448 | H207: -0.02979188425 | I207: 0.03934666329 | J207: 0.1484987141 | K207: 0
E208: 2014-15 to 2018-19 Land (non-system) | G208: 0 | H208: 0 | I208: 7.847547659e-05 | J208: 0.0003922180165 | K208: 0
E209: 2014-15 to 2018-19 Other non system assets | G209: 0 | H209: 0 | I209: 0 | J209: 0 | K209: 0
E210: 2014-15 to 2018-19 Blank 1
E211: 2014-15 to 2018-19 Blank 2
E212: 2019-20 to 2023-24 Sub-transmission lines and cables
E213: 2019-20 to 2023-24 Distribution lines and cables
E214: 2019-20 to 2023-24 Substations
E215: 2019-20 to 2023-24 Transformers
E216: 2019-20 to 2023-24 Low Voltage lines and cables
E217: 2019-20 to 2023-24 Customer metering and Load control
E218: 2019-20 to 2023-24 Communication
E219: 2019-20 to 2023-24 Land
E220: 2019-20 to 2023-24 Easements
E221: 2019-20 to 2023-24 Equity raising costs
E222: 2019-20 to 2023-24 Emergency Spares (Major Plant, Excludes Inventory)
E223: 2019-20 to 2023-24 Work in progress
E224: 2019-20 to 2023-24 Information & Communication Technology
E225: 2019-20 to 2023-24 Furniture, fittings, plant and equipment
E226: 2019-20 to 2023-24 Motor Vehicles
E227: 2019-20 to 2023-24 Buildings
E228: 2019-20 to 2023-24 Land (non-system)
E229: 2019-20 to 2023-24 Other non system assets
E230: 2019-20 to 2023-24 Blank 1
E231: 2019-20 to 2023-24 Blank 2
E232: Total | F232: =SUM(F172:F231) -> -3.731240736 | G232: =SUM(G172:G231) -> 6.097556783 | H232: =SUM(H172:H231) -> -1.603373429 | I232: =SUM(I172:I231) -> 2.246564288 | J232: 8.189124065 | K232: 0
F233: =F232-F163 -> 0 | G233: =G232-G163 -> 0 | H233: =H232-H163 -> 0 | I233: 0 | J233: 0 | K233: 0

Sheet Adjustment for previous period
B2: ='DMS input'!$C$16&" - Adjustment For Previous Period"&" - DNSP RFM - version "&Intro!$M$4 -> Endeavour - Adjustment For Previous Period - DNSP RFM - version 2
B4: Year | G4: ='RFM input'!G70 -> 2013-14 | H4: ='RFM input'!H70 -> 2014-15 | I4: ='RFM input'!I70 -> 2015-16 | J4: ='RFM input'!J70 -> 2016-17 | K4: ='RFM input'!K70 -> 2017-18 | L4: ='RFM input'!L70 -> 2018-19 | M4: ='RFM input'!M70 -> 2019-20 | N4: ='RFM input'!N70 -> 2020-21 | O4: ='RFM input'!O70 -> 2021-22 | P4: ='RFM input'!P70 -> 2022-23 | Q4: ='RFM input'!Q70 -> 2023-24
B6: Nominal Vanilla WACC (fixed real time varying) | H6: =vanilla1 -> 0.06818449314 | I6: =vanilla2 -> 0.05734715984 | J6: =vanilla3 -> 0.05405145743 | K6: =vanilla4 -> 0.06012344297 | L6: =vanilla5 -> 0.05868413359 | M6: =vanilla6 -> -0.02362819762 | N6: =vanilla7 -> -0.02362819762 | O6: =vanilla8 -> -0.02362819762 | P6: =vanilla9 -> -0.02362819762 | Q6: =vanilla10 -> -0.02362819762
B8: Nominal Adjustments for Difference Between Forecast and Actual Net Capex
B10: Nominal Forecast Net Capex (previous regulatory control period) | G10: =SUM(G11:G70) -> 542.3696085
C11: =Asset1 -> 2013-14 ORAB Sub-transmission lines and cables | G11: ='RFM input'!M7 -> 69.64630953
C12: =Asset2 -> 2013-14 ORAB Distribution lines and cables | G12: ='RFM input'!M8 -> 124.852722
C13: =Asset3 -> 2013-14 ORAB Substations | G13: ='RFM input'!M9 -> 222.7262982
C14: =Asset4 -> 2013-14 ORAB Transformers | G14: ='RFM input'!M10 -> 26.37268011
C15: =Asset5 -> 2013-14 ORAB Low Voltage lines and cables | G15: ='RFM input'!M11 -> 46.49043007
C16: =Asset6 -> 2013-14 ORAB Customer metering and Load control | G16: ='RFM input'!M12 -> 4.745979658
C17: =Asset7 -> 2013-14 ORAB Communication | G17: ='RFM input'!M13 -> 4.634193838
C18: =Asset8 -> 2013-14 ORAB Land | G18: ='RFM input'!M14 -> -0.5717688111
C19: =Asset9 -> 2013-14 ORAB Easements | G19: ='RFM input'!M15 -> 0.7603491864
C20: =Asset10 -> 2013-14 ORAB Equity raising costs | G20: ='RFM input'!M16 -> 0
C21: =Asset11 -> 2013-14 ORAB Emergency Spares (Major Plant, Excludes Inventory) | G21: ='RFM input'!M17 -> 0.05453605464
C22: =Asset12 -> 2013-14 ORAB Work in progress | G22: ='RFM input'!M18 -> 0
C23: =Asset13 -> 2013-14 ORAB Information & Communication Technology | G23: ='RFM input'!M19 -> 14.52553446
C24: =Asset14 -> 2013-14 ORAB Furniture, fittings, plant and equipment | G24: ='RFM input'!M20 -> 3.671841374
C25: =Asset15 -> 2013-14 ORAB Motor Vehicles | G25: ='RFM input'!M21 -> 3.31632236
C26: =Asset16 -> 2013-14 ORAB Buildings | G26: ='RFM input'!M22 -> 21.14418056
C27: =Asset17 -> 2013-14 ORAB Land (non-system) | G27: ='RFM input'!M23 -> 0
C28: =Asset18 -> 2013-14 ORAB Other non system assets | G28: ='RFM input'!M24 -> 0
C29: =Asset19 -> 2013-14 ORAB Blank 1 | G29: ='RFM input'!M25 -> 0
C30: =Asset20 -> 2013-14 ORAB Blank 2 | G30: ='RFM input'!M26 -> 0
C31: =Asset21 -> 2014-15 to 2018-19 Sub-transmission lines and cables | G31: ='RFM input'!M27 -> 0
C32: =Asset22 -> 2014-15 to 2018-19 Distribution lines and cables | G32: ='RFM input'!M28 -> 0
C33: =Asset23 -> 2014-15 to 2018-19 Substations | G33: ='RFM input'!M29 -> 0
C34: =Asset24 -> 2014-15 to 2018-19 Transformers | G34: ='RFM input'!M30 -> 0
C35: =Asset25 -> 2014-15 to 2018-19 Low Voltage lines and cables | G35: ='RFM input'!M31 -> 0
C36: =Asset26 -> 2014-15 to 2018-19 Customer metering and Load control | G36: ='RFM input'!M32 -> 0
C37: =Asset27 -> 2014-15 to 2018-19 Communication | G37: ='RFM input'!M33 -> 0
C38: =Asset28 -> 2014-15 to 2018-19 Land | G38: ='RFM input'!M34 -> 0
C39: =Asset29 -> 2014-15 to 2018-19 Easements | G39: ='RFM input'!M35 -> 0
C40: =Asset30 -> 2014-15 to 2018-19 Equity raising costs | G40: ='RFM input'!M36 -> 0
C41: =Asset31 -> 2014-15 to 2018-19 Emergency Spares (Major Plant, Excludes Inventory) | G41: ='RFM input'!M37 -> 0
C42: =Asset32 -> 2014-15 to 2018-19 Work in progress | G42: ='RFM input'!M38 -> 0
C43: =Asset33 -> 2014-15 to 2018-19 Information & Communication Technology | G43: ='RFM input'!M39 -> 0
C44: =Asset34 -> 2014-15 to 2018-19 Furniture, fittings, plant and equipment | G44: ='RFM input'!M40 -> 0
C45: =Asset35 -> 2014-15 to 2018-19 Motor Vehicles | G45: ='RFM input'!M41 -> 0
C46: =Asset36 -> 2014-15 to 2018-19 Buildings | G46: ='RFM input'!M42 -> 0
C47: =Asset37 -> 2014-15 to 2018-19 Land (non-system) | G47: ='RFM input'!M43 -> 0
C48: =Asset38 -> 2014-15 to 2018-19 Other non system assets | G48: ='RFM input'!M44 -> 0
C49: =Asset39 -> 2014-15 to 2018-19 Blank 1 | G49: ='RFM input'!M45 -> 0
C50: =Asset40 -> 2014-15 to 2018-19 Blank 2 | G50: ='RFM input'!M46 -> 0
C51: =Asset41 -> 2019-20 to 2023-24 Sub-transmission lines and cables | G51: ='RFM input'!M47 -> 0
C52: =Asset42 -> 2019-20 to 2023-24 Distribution lines and cables | G52: ='RFM input'!M48 -> 0
C53: =Asset43 -> 2019-20 to 2023-24 Substations | G53: ='RFM input'!M49 -> 0
C54: =Asset44 -> 2019-20 to 2023-24 Transformers | G54: ='RFM input'!M50 -> 0
C55: =Asset45 -> 2019-20 to 2023-24 Low Voltage lines and cables | G55: ='RFM input'!M51 -> 0
C56: =Asset46 -> 2019-20 to 2023-24 Customer metering and Load control | G56: ='RFM input'!M52 -> 0
C57: =Asset47 -> 2019-20 to 2023-24 Communication | G57: ='RFM input'!M53 -> 0
C58: =Asset48 -> 2019-20 to 2023-24 Land | G58: ='RFM input'!M54 -> 0
C59: =Asset49 -> 2019-20 to 2023-24 Easements | G59: ='RFM input'!M55 -> 0
C60: =Asset50 -> 2019-20 to 2023-24 Equity raising costs | G60: ='RFM input'!M56 -> 0
C61: =Asset51 -> 2019-20 to 2023-24 Emergency Spares (Major Plant, Excludes Inventory) | G61: ='RFM input'!M57 -> 0
C62: =Asset52 -> 2019-20 to 2023-24 Work in progress | G62: ='RFM input'!M58 -> 0
C63: =Asset53 -> 2019-20 to 2023-24 Information & Communication Technology | G63: ='RFM input'!M59 -> 0
C64: =Asset54 -> 2019-20 to 2023-24 Furniture, fittings, plant and equipment | G64: ='RFM input'!M60 -> 0
C65: =Asset55 -> 2019-20 to 2023-24 Motor Vehicles | G65: ='RFM input'!M61 -> 0
C66: =Asset56 -> 2019-20 to 2023-24 Buildings | G66: ='RFM input'!M62 -> 0
C67: =Asset57 -> 2019-20 to 2023-24 Land (non-system) | G67: ='RFM input'!M63 -> 0
C68: =Asset58 -> 2019-20 to 2023-24 Other non system assets | G68: ='RFM input'!M64 -> 0
C69: =Asset59 -> 2019-20 to 2023-24 Blank 1 | G69: ='RFM input'!M65 -> 0
C70: =Asset60 -> 2019-20 to 2023-24 Blank 2 | G70: ='RFM input'!M66 -> 0
B72: Nominal Actual Net Capex | G72: =SUM(G73:G132) -> 538.4562786
C73: =Asset1 -> 2013-14 ORAB Sub-transmission lines and cables | G73: ='RFM input'!G263*(1+previous_vanilla)^0.5 -> 69.14672601
C74: =Asset2 -> 2013-14 ORAB Distribution lines and cables | G74: ='RFM input'!G264*(1+previous_vanilla)^0.5 -> 123.9571345
C75: =Asset3 -> 2013-14 ORAB Substations | G75: ='RFM input'!G265*(1+previous_vanilla)^0.5 -> 221.1286487
C76: =Asset4 -> 2013-14 ORAB Transformers | G76: ='RFM input'!G266*(1+previous_vanilla)^0.5 -> 26.17915871
C77: =Asset5 -> 2013-14 ORAB Low Voltage lines and cables | G77: ='RFM input'!G267*(1+previous_vanilla)^0.5 -> 46.15694718
C78: =Asset6 -> 2013-14 ORAB Customer metering and Load control | G78: ='RFM input'!G268*(1+previous_vanilla)^0.5 -> 4.711936028
C79: =Asset7 -> 2013-14 ORAB Communication | G79: ='RFM input'!G269*(1+previous_vanilla)^0.5 -> 4.600952064
C80: =Asset8 -> 2013-14 ORAB Land | G80: ='RFM input'!G270*(1+previous_vanilla)^0.5 -> -0.5733860179
C81: =Asset9 -> 2013-14 ORAB Easements | G81: ='RFM input'!G271*(1+previous_vanilla)^0.5 -> 0.7548950867
C82: =Asset10 -> 2013-14 ORAB Equity raising costs | G82: ='RFM input'!G272*(1+previous_vanilla)^0.5 -> 0
C83: =Asset11 -> 2013-14 ORAB Emergency Spares (Major Plant, Excludes Inventory) | G83: ='RFM input'!G273*(1+previous_vanilla)^0.5 -> 0.05414485927
C84: =Asset12 -> 2013-14 ORAB Work in progress | G84: ='RFM input'!G274*(1+previous_vanilla)^0.5 -> 0
C85: =Asset13 -> 2013-14 ORAB Information & Communication Technology | G85: ='RFM input'!G275*(1+previous_vanilla)^0.5 -> 14.4213406
C86: =Asset14 -> 2013-14 ORAB Furniture, fittings, plant and equipment | G86: ='RFM input'!G276*(1+previous_vanilla)^0.5 -> 3.6455027
C87: =Asset15 -> 2013-14 ORAB Motor Vehicles | G87: ='RFM input'!G277*(1+previous_vanilla)^0.5 -> 3.279767931
C88: =Asset16 -> 2013-14 ORAB Buildings | G88: ='RFM input'!G278*(1+previous_vanilla)^0.5 -> 20.99251015
C89: =Asset17 -> 2013-14 ORAB Land (non-system) | G89: ='RFM input'!G279*(1+previous_vanilla)^0.5 -> 0
C90: =Asset18 -> 2013-14 ORAB Other non system assets | G90: ='RFM input'!G280*(1+previous_vanilla)^0.5 -> 0
C91: =Asset19 -> 2013-14 ORAB Blank 1 | G91: ='RFM input'!G281*(1+previous_vanilla)^0.5 -> 0
C92: =Asset20 -> 2013-14 ORAB Blank 2 | G92: ='RFM input'!G282*(1+previous_vanilla)^0.5 -> 0
C93: =Asset21 -> 2014-15 to 2018-19 Sub-transmission lines and cables | G93: ='RFM input'!G283*(1+previous_vanilla)^0.5 -> 0
C94: =Asset22 -> 2014-15 to 2018-19 Distribution lines and cables | G94: ='RFM input'!G284*(1+previous_vanilla)^0.5 -> 0
C95: =Asset23 -> 2014-15 to 2018-19 Substations | G95: ='RFM input'!G285*(1+previous_vanilla)^0.5 -> 0
C96: =Asset24 -> 2014-15 to 2018-19 Transformers | G96: ='RFM input'!G286*(1+previous_vanilla)^0.5 -> 0
C97: =Asset25 -> 2014-15 to 2018-19 Low Voltage lines and cables | G97: ='RFM input'!G287*(1+previous_vanilla)^0.5 -> 0
C98: =Asset26 -> 2014-15 to 2018-19 Customer metering and Load control | G98: ='RFM input'!G288*(1+previous_vanilla)^0.5 -> 0
C99: =Asset27 -> 2014-15 to 2018-19 Communication | G99: ='RFM input'!G289*(1+previous_vanilla)^0.5 -> 0
C100: =Asset28 -> 2014-15 to 2018-19 Land | G100: ='RFM input'!G290*(1+previous_vanilla)^0.5 -> 0
C101: =Asset29 -> 2014-15 to 2018-19 Easements | G101: ='RFM input'!G291*(1+previous_vanilla)^0.5 -> 0
C102: =Asset30 -> 2014-15 to 2018-19 Equity raising costs | G102: ='RFM input'!G292*(1+previous_vanilla)^0.5 -> 0
C103: =Asset31 -> 2014-15 to 2018-19 Emergency Spares (Major Plant, Excludes Inventory) | G103: ='RFM input'!G293*(1+previous_vanilla)^0.5 -> 0
C104: =Asset32 -> 2014-15 to 2018-19 Work in progress | G104: ='RFM input'!G294*(1+previous_vanilla)^0.5 -> 0
C105: =Asset33 -> 2014-15 to 2018-19 Information & Communication Technology | G105: ='RFM input'!G295*(1+previous_vanilla)^0.5 -> 0
C106: =Asset34 -> 2014-15 to 2018-19 Furniture, fittings, plant and equipment | G106: ='RFM input'!G296*(1+previous_vanilla)^0.5 -> 0
C107: =Asset35 -> 2014-15 to 2018-19 Motor Vehicles | G107: ='RFM input'!G297*(1+previous_vanilla)^0.5 -> 0
C108: =Asset36 -> 2014-15 to 2018-19 Buildings | G108: ='RFM input'!G298*(1+previous_vanilla)^0.5 -> 0
C109: =Asset37 -> 2014-15 to 2018-19 Land (non-system) | G109: ='RFM input'!G299*(1+previous_vanilla)^0.5 -> 0
C110: =Asset38 -> 2014-15 to 2018-19 Other non system assets | G110: ='RFM input'!G300*(1+previous_vanilla)^0.5 -> 0
C111: =Asset39 -> 2014-15 to 2018-19 Blank 1 | G111: ='RFM input'!G301*(1+previous_vanilla)^0.5 -> 0
C112: =Asset40 -> 2014-15 to 2018-19 Blank 2 | G112: ='RFM input'!G302*(1+previous_vanilla)^0.5 -> 0
C113: =Asset41 -> 2019-20 to 2023-24 Sub-transmission lines and cables | G113: ='RFM input'!G303*(1+previous_vanilla)^0.5 -> 0
C114: =Asset42 -> 2019-20 to 2023-24 Distribution lines and cables | G114: ='RFM input'!G304*(1+previous_vanilla)^0.5 -> 0
C115: =Asset43 -> 2019-20 to 2023-24 Substations | G115: ='RFM input'!G305*(1+previous_vanilla)^0.5 -> 0
C116: =Asset44 -> 2019-20 to 2023-24 Transformers | G116: ='RFM input'!G306*(1+previous_vanilla)^0.5 -> 0
C117: =Asset45 -> 2019-20 to 2023-24 Low Voltage lines and cables | G117: ='RFM input'!G307*(1+previous_vanilla)^0.5 -> 0
C118: =Asset46 -> 2019-20 to 2023-24 Customer metering and Load control | G118: ='RFM input'!G308*(1+previous_vanilla)^0.5 -> 0
C119: =Asset47 -> 2019-20 to 2023-24 Communication | G119: ='RFM input'!G309*(1+previous_vanilla)^0.5 -> 0
C120: =Asset48 -> 2019-20 to 2023-24 Land | G120: ='RFM input'!G310*(1+previous_vanilla)^0.5 -> 0
C121: =Asset49 -> 2019-20 to 2023-24 Easements | G121: ='RFM input'!G311*(1+previous_vanilla)^0.5 -> 0
C122: =Asset50 -> 2019-20 to 2023-24 Equity raising costs | G122: ='RFM input'!G312*(1+previous_vanilla)^0.5 -> 0
C123: =Asset51 -> 2019-20 to 2023-24 Emergency Spares (Major Plant, Excludes Inventory) | G123: ='RFM input'!G313*(1+previous_vanilla)^0.5 -> 0
C124: =Asset52 -> 2019-20 to 2023-24 Work in progress | G124: ='RFM input'!G314*(1+previous_vanilla)^0.5 -> 0
C125: =Asset53 -> 2019-20 to 2023-24 Information & Communication Technology | G125: ='RFM input'!G315*(1+previous_vanilla)^0.5 -> 0
C126: =Asset54 -> 2019-20 to 2023-24 Furniture, fittings, plant and equipment | G126: ='RFM input'!G316*(1+previous_vanilla)^0.5 -> 0
C127: =Asset55 -> 2019-20 to 2023-24 Motor Vehicles | G127: ='RFM input'!G317*(1+previous_vanilla)^0.5 -> 0
C128: =Asset56 -> 2019-20 to 2023-24 Buildings | G128: ='RFM input'!G318*(1+previous_vanilla)^0.5 -> 0
C129: =Asset57 -> 2019-20 to 2023-24 Land (non-system) | G129: ='RFM input'!G319*(1+previous_vanilla)^0.5 -> 0
C130: =Asset58 -> 2019-20 to 2023-24 Other non system assets | G130: ='RFM input'!G320*(1+previous_vanilla)^0.5 -> 0
C131: =Asset59 -> 2019-20 to 2023-24 Blank 1 | G131: ='RFM input'!G321*(1+previous_vanilla)^0.5 -> 0
C132: =Asset60 -> 2019-20 to 2023-24 Blank 2 | G132: ='RFM input'!G322*(1+previous_vanilla)^0.5 -> 0
B134: Nominal Difference Between Actual and Forecast Net Capex | G134: =SUM(G135:G194) -> -3.91332996
C135: =Asset1 -> 2013-14 ORAB Sub-transmission lines and cables | G135: =G73-G11 -> -0.4995835139
C136: =Asset2 -> 2013-14 ORAB Distribution lines and cables | G136: =G74-G12 -> -0.8955874617
C137: =Asset3 -> 2013-14 ORAB Substations | G137: -1.59764943
C138: =Asset4 -> 2013-14 ORAB Transformers | G138: -0.1935213974
C139: =Asset5 -> 2013-14 ORAB Low Voltage lines and cables | G139: -0.3334828877
C140: =Asset6 -> 2013-14 ORAB Customer metering and Load control | G140: -0.03404363003
C141: =Asset7 -> 2013-14 ORAB Communication | G141: -0.03324177343
C142: =Asset8 -> 2013-14 ORAB Land | G142: -0.001617206767
C143: =Asset9 -> 2013-14 ORAB Easements | G143: -0.005454099735
C144: =Asset10 -> 2013-14 ORAB Equity raising costs | G144: 0
C145: =Asset11 -> 2013-14 ORAB Emergency Spares (Major Plant, Excludes Inventory) | G145: -0.0003911953698
C146: =Asset12 -> 2013-14 ORAB Work in progress | G146: 0
C147: =Asset13 -> 2013-14 ORAB Information & Communication Technology | G147: -0.104193856
C148: =Asset14 -> 2013-14 ORAB Furniture, fittings, plant and equipment | G148: -0.02633867363
C149: =Asset15 -> 2013-14 ORAB Motor Vehicles | G149: -0.03655442859
C150: =Asset16 -> 2013-14 ORAB Buildings | G150: -0.1516704057
C151: =Asset17 -> 2013-14 ORAB Land (non-system) | G151: 0
C152: =Asset18 -> 2013-14 ORAB Other non system assets | G152: 0
C153: =Asset19 -> 2013-14 ORAB Blank 1 | G153: 0
C154: =Asset20 -> 2013-14 ORAB Blank 2 | G154: 0
C155: =Asset21 -> 2014-15 to 2018-19 Sub-transmission lines and cables | G155: 0
C156: =Asset22 -> 2014-15 to 2018-19 Distribution lines and cables | G156: 0
C157: =Asset23 -> 2014-15 to 2018-19 Substations | G157: 0
C158: =Asset24 -> 2014-15 to 2018-19 Transformers | G158: 0
C159: =Asset25 -> 2014-15 to 2018-19 Low Voltage lines and cables | G159: 0
C160: =Asset26 -> 2014-15 to 2018-19 Customer metering and Load control | G160: 0
C161: =Asset27 -> 2014-15 to 2018-19 Communication | G161: 0
C162: =Asset28 -> 2014-15 to 2018-19 Land | G162: 0
C163: =Asset29 -> 2014-15 to 2018-19 Easements | G163: 0
C164: =Asset30 -> 2014-15 to 2018-19 Equity raising costs | G164: 0
C165: =Asset31 -> 2014-15 to 2018-19 Emergency Spares (Major Plant, Excludes Inventory) | G165: 0
C166: =Asset32 -> 2014-15 to 2018-19 Work in progress | G166: 0
C167: =Asset33 -> 2014-15 to 2018-19 Information & Communication Technology | G167: 0
C168: =Asset34 -> 2014-15 to 2018-19 Furniture, fittings, plant and equipment | G168: 0
C169: =Asset35 -> 2014-15 to 2018-19 Motor Vehicles | G169: 0
C170: =Asset36 -> 2014-15 to 2018-19 Buildings | G170: 0
C171: =Asset37 -> 2014-15 to 2018-19 Land (non-system) | G171: 0
C172: =Asset38 -> 2014-15 to 2018-19 Other non system assets | G172: 0
C173: =Asset39 -> 2014-15 to 2018-19 Blank 1 | G173: 0
C174: =Asset40 -> 2014-15 to 2018-19 Blank 2 | G174: 0
C175: =Asset41 -> 2019-20 to 2023-24 Sub-transmission lines and cables | G175: 0
C176: =Asset42 -> 2019-20 to 2023-24 Distribution lines and cables | G176: 0
C177: =Asset43 -> 2019-20 to 2023-24 Substations | G177: 0
C178: =Asset44 -> 2019-20 to 2023-24 Transformers | G178: 0
C179: =Asset45 -> 2019-20 to 2023-24 Low Voltage lines and cables | G179: 0
C180: =Asset46 -> 2019-20 to 2023-24 Customer metering and Load control | G180: 0
C181: =Asset47 -> 2019-20 to 2023-24 Communication | G181: 0
C182: =Asset48 -> 2019-20 to 2023-24 Land | G182: 0
C183: =Asset49 -> 2019-20 to 2023-24 Easements | G183: 0
C184: =Asset50 -> 2019-20 to 2023-24 Equity raising costs | G184: 0
C185: =Asset51 -> 2019-20 to 2023-24 Emergency Spares (Major Plant, Excludes Inventory) | G185: 0
C186: =Asset52 -> 2019-20 to 2023-24 Work in progress | G186: 0
C187: =Asset53 -> 2019-20 to 2023-24 Information & Communication Technology | G187: 0
C188: =Asset54 -> 2019-20 to 2023-24 Furniture, fittings, plant and equipment | G188: 0
C189: =Asset55 -> 2019-20 to 2023-24 Motor Vehicles | G189: 0
C190: =Asset56 -> 2019-20 to 2023-24 Buildings | G190: 0
C191: =Asset57 -> 2019-20 to 2023-24 Land (non-system) | G191: 0
C192: =Asset58 -> 2019-20 to 2023-24 Other non system assets | G192: 0
C193: =Asset59 -> 2019-20 to 2023-24 Blank 1 | G193: 0
C194: =Asset60 -> 2019-20 to 2023-24 Blank 2 | G194: 0
B196: Compounded Nominal Return on Difference - Net Capex | H196: =SUM(H197,H199,H201,H203,H205,H207,H209,H211,H213,H215,H217,H219,H221,H223,H225,H227,H229,H231,H233,H235,H237,H239,H241,H243,H245,H247,H249,H251,H253,H255,H257,H259,H261,H263,H265,H267,H269,H271,H273,H275,H277,H279,H281,H283,H285,H287,H289,H291,H293,H295,H297,H299,H301,H303,H305,H307,H309,H311,H313,H315) -> -0.2668284198 | I196: =SUM(I197,I199,I201,I203,I205,I207,I209,I211,I213,I215,I217,I219,I221,I223,I225,I227,I229,I231,I233,I235,I237,I239,I241,I243,I245,I247,I249,I251,I253,I255,I257,I259,I261,I263,I265,I267,I269,I271,I273,I275,I277,I279,I281,I283,I285,I287,I289,I291,I293,I295,I297,I299,I301,I303,I305,I307,I309,I311,I313,I315) -> -0.2397202107 | J196: -0.2389008795 | K196: -0.2801018618 | L196: -0.2898339718 | M196: 0 | N196: 0 | O196: 0 | P196: 0 | Q196: 0
C197: =Asset1 -> 2013-14 ORAB Sub-transmission lines and cables | H197: =($G135+(SUM($G197:G197)))*H$6 -> -0.03406384868 | I197: =($G135+(SUM($G197:H197)))*I$6 -> -0.0306031606 | J197: =IF(COUNT($H197:I197)>='RFM input'!$W$7,0,($G135+(SUM($G197:I197)))*J$6) -> -0.03049856314 | K197: =IF(COUNT($H197:J197)>='RFM input'!$W$7,0,($G135+(SUM($G197:J197)))*K$6) -> -0.03575836277 | L197: =IF(COUNT($H197:K197)>='RFM input'!$W$7,0,($G135+(SUM($G197:K197)))*L$6) -> -0.03700078337 | M197: =IF(COUNT($H197:L197)>='RFM input'!$W$7,0,($G135+(SUM($G197:L197)))*M$6) -> 0 | N197: =IF(COUNT($H197:M197)>='RFM input'!$W$7,0,($G135+(SUM($G197:M197)))*N$6) -> 0 | O197: =IF(COUNT($H197:N197)>='RFM input'!$W$7,0,($G135+(SUM($G197:N197)))*O$6) -> 0 | P197: =IF(COUNT($H197:O197)>='RFM input'!$W$7,0,($G135+(SUM($G197:O197)))*P$6) -> 0 | Q197: =IF(COUNT($H197:P197)>='RFM input'!$W$7,0,($G135+(SUM($G197:P197)))*Q$6) -> 0
C198: Sub-total | D198: =C197 -> 2013-14 ORAB Sub-transmission lines and cables | I198: =IF(COUNT($H197:I197)='RFM input'!$W$7,SUM($G197:I197),0) -> 0 | J198: =IF(COUNT($H197:J197)='RFM input'!$W$7,SUM($G197:J197),0) -> 0 | K198: =IF(COUNT($H197:K197)='RFM input'!$W$7,SUM($G197:K197),0) -> 0 | L198: =IF(COUNT($H197:L197)='RFM input'!$W$7,SUM($G197:L197),0) -> -0.1679247186 | M198: =IF(COUNT($H197:M197)='RFM input'!$W$7,SUM($G197:M197),0) -> 0 | N198: =IF(COUNT($H197:N197)='RFM input'!$W$7,SUM($G197:N197),0) -> 0 | O198: =IF(COUNT($H197:O197)='RFM input'!$W$7,SUM($G197:O197),0) -> 0 | P198: =IF(COUNT($H197:P197)='RFM input'!$W$7,SUM($G197:P197),0) -> 0 | Q198: =IF(COUNT($H197:Q197)='RFM input'!$W$7,SUM($G197:Q197),0) -> 0
C199: =Asset2 -> 2013-14 ORAB Distribution lines and cables | H199: =($G136+(SUM($G199:G199)))*H$6 -> -0.06106517714 | I199: =($G136+(SUM($G199:H199)))*I$6 -> -0.05486131179 | J199: =IF(COUNT($H199:I199)>='RFM input'!$W$7,0,($G136+(SUM($G199:I199)))*J$6) -> -0.05467380325 | K199: =IF(COUNT($H199:J199)>='RFM input'!$W$7,0,($G136+(SUM($G199:J199)))*K$6) -> -0.06410287862 | L199: =IF(COUNT($H199:K199)>='RFM input'!$W$7,0,($G136+(SUM($G199:K199)))*L$6) -> -0.06633012648 | M199: =IF(COUNT($H199:L199)>='RFM input'!$W$7,0,($G136+(SUM($G199:L199)))*M$6) -> 0 | N199: =IF(COUNT($H199:M199)>='RFM input'!$W$7,0,($G136+(SUM($G199:M199)))*N$6) -> 0 | O199: =IF(COUNT($H199:N199)>='RFM input'!$W$7,0,($G136+(SUM($G199:N199)))*O$6) -> 0 | P199: =IF(COUNT($H199:O199)>='RFM input'!$W$7,0,($G136+(SUM($G199:O199)))*P$6) -> 0 | Q199: =IF(COUNT($H199:P199)>='RFM input'!$W$7,0,($G136+(SUM($G199:P199)))*Q$6) -> 0
C200: Sub-total | D200: =C199 -> 2013-14 ORAB Distribution lines and cables | I200: =IF(COUNT($H199:I199)='RFM input'!$W$7,SUM($G199:I199),0) -> 0 | J200: =IF(COUNT($H199:J199)='RFM input'!$W$7,SUM($G199:J199),0) -> 0 | K200: =IF(COUNT($H199:K199)='RFM input'!$W$7,SUM($G199:K199),0) -> 0 | L200: =IF(COUNT($H199:L199)='RFM input'!$W$7,SUM($G199:L199),0) -> -0.3010332973 | M200: =IF(COUNT($H199:M199)='RFM input'!$W$7,SUM($G199:M199),0) -> 0 | N200: =IF(COUNT($H199:N199)='RFM input'!$W$7,SUM($G199:N199),0) -> 0 | O200: =IF(COUNT($H199:O199)='RFM input'!$W$7,SUM($G199:O199),0) -> 0 | P200: =IF(COUNT($H199:P199)='RFM input'!$W$7,SUM($G199:P199),0) -> 0 | Q200: =IF(COUNT($H199:Q199)='RFM input'!$W$7,SUM($G199:Q199),0) -> 0
C201: =Asset3 -> 2013-14 ORAB Substations | H201: =($G137+(SUM($G201:G201)))*H$6 -> -0.1089349166 | I201: =($G137+(SUM($G201:H201)))*I$6 -> -0.09786776527 | J201: =IF(COUNT($H201:I201)>='RFM input'!$W$7,0,($G137+(SUM($G201:I201)))*J$6) -> -0.09753326649 | K201: =IF(COUNT($H201:J201)>='RFM input'!$W$7,0,($G137+(SUM($G201:J201)))*K$6) -> -0.1143539094 | L201: =IF(COUNT($H201:K201)>='RFM input'!$W$7,0,($G137+(SUM($G201:K201)))*L$6) -> -0.1183271241 | M201: =IF(COUNT($H201:L201)>='RFM input'!$W$7,0,($G137+(SUM($G201:L201)))*M$6) -> 0 | N201: =IF(COUNT($H201:M201)>='RFM input'!$W$7,0,($G137+(SUM($G201:M201)))*N$6) -> 0 | O201: =IF(COUNT($H201:N201)>='RFM input'!$W$7,0,($G137+(SUM($G201:N201)))*O$6) -> 0 | P201: =IF(COUNT($H201:O201)>='RFM input'!$W$7,0,($G137+(SUM($G201:O201)))*P$6) -> 0 | Q201: =IF(COUNT($H201:P201)>='RFM input'!$W$7,0,($G137+(SUM($G201:P201)))*Q$6) -> 0
C202: Sub-total | D202: =C201 -> 2013-14 ORAB Substations | I202: =IF(COUNT($H201:I201)='RFM input'!$W$7,SUM($G201:I201),0) -> 0 | J202: =IF(COUNT($H201:J201)='RFM input'!$W$7,SUM($G201:J201),0) -> 0 | K202: =IF(COUNT($H201:K201)='RFM input'!$W$7,SUM($G201:K201),0) -> 0 | L202: =IF(COUNT($H201:L201)='RFM input'!$W$7,SUM($G201:L201),0) -> -0.5370169818 | M202: =IF(COUNT($H201:M201)='RFM input'!$W$7,SUM($G201:M201),0) -> 0 | N202: =IF(COUNT($H201:N201)='RFM input'!$W$7,SUM($G201:N201),0) -> 0 | O202: =IF(COUNT($H201:O201)='RFM input'!$W$7,SUM($G201:O201),0) -> 0 | P202: =IF(COUNT($H201:P201)='RFM input'!$W$7,SUM($G201:P201),0) -> 0 | Q202: =IF(COUNT($H201:Q201)='RFM input'!$W$7,SUM($G201:Q201),0) -> 0
C203: =Asset4 -> 2013-14 ORAB Transformers | H203: =($G138+(SUM($G203:G203)))*H$6 -> -0.0131951584 | I203: =($G138+(SUM($G203:H203)))*I$6 -> -0.01185460737 | J203: =IF(COUNT($H203:I203)>='RFM input'!$W$7,0,($G138+(SUM($G203:I203)))*J$6) -> -0.01181408992 | K203: =IF(COUNT($H203:J203)>='RFM input'!$W$7,0,($G138+(SUM($G203:J203)))*K$6) -> -0.01385155463 | L203: =IF(COUNT($H203:K203)>='RFM input'!$W$7,0,($G138+(SUM($G203:K203)))*L$6) -> -0.01433282545 | M203: =IF(COUNT($H203:L203)>='RFM input'!$W$7,0,($G138+(SUM($G203:L203)))*M$6) -> 0 | N203: =IF(COUNT($H203:M203)>='RFM input'!$W$7,0,($G138+(SUM($G203:M203)))*N$6) -> 0 | O203: =IF(COUNT($H203:N203)>='RFM input'!$W$7,0,($G138+(SUM($G203:N203)))*O$6) -> 0 | P203: =IF(COUNT($H203:O203)>='RFM input'!$W$7,0,($G138+(SUM($G203:O203)))*P$6) -> 0 | Q203: =IF(COUNT($H203:P203)>='RFM input'!$W$7,0,($G138+(SUM($G203:P203)))*Q$6) -> 0
C204: Sub-total | D204: =C203 -> 2013-14 ORAB Transformers | I204: =IF(COUNT($H203:I203)='RFM input'!$W$7,SUM($G203:I203),0) -> 0 | J204: =IF(COUNT($H203:J203)='RFM input'!$W$7,SUM($G203:J203),0) -> 0 | K204: =IF(COUNT($H203:K203)='RFM input'!$W$7,SUM($G203:K203),0) -> 0 | L204: =IF(COUNT($H203:L203)='RFM input'!$W$7,SUM($G203:L203),0) -> -0.06504823577 | M204: =IF(COUNT($H203:M203)='RFM input'!$W$7,SUM($G203:M203),0) -> 0 | N204: =IF(COUNT($H203:N203)='RFM input'!$W$7,SUM($G203:N203),0) -> 0 | O204: =IF(COUNT($H203:O203)='RFM input'!$W$7,SUM($G203:O203),0) -> 0 | P204: =IF(COUNT($H203:P203)='RFM input'!$W$7,SUM($G203:P203),0) -> 0 | Q204: =IF(COUNT($H203:Q203)='RFM input'!$W$7,SUM($G203:Q203),0) -> 0
C205: =Asset5 -> 2013-14 ORAB Low Voltage lines and cables | H205: =($G139+(SUM($G205:G205)))*H$6 -> -0.02273836167 | I205: =($G139+(SUM($G205:H205)))*I$6 -> -0.02042827693 | J205: =IF(COUNT($H205:I205)>='RFM input'!$W$7,0,($G139+(SUM($G205:I205)))*J$6) -> -0.02035845584 | K205: =IF(COUNT($H205:J205)>='RFM input'!$W$7,0,($G139+(SUM($G205:J205)))*K$6) -> -0.02386948677 | L205: =IF(COUNT($H205:K205)>='RFM input'!$W$7,0,($G139+(SUM($G205:K205)))*L$6) -> -0.02469882961 | M205: =IF(COUNT($H205:L205)>='RFM input'!$W$7,0,($G139+(SUM($G205:L205)))*M$6) -> 0 | N205: =IF(COUNT($H205:M205)>='RFM input'!$W$7,0,($G139+(SUM($G205:M205)))*N$6) -> 0 | O205: =IF(COUNT($H205:N205)>='RFM input'!$W$7,0,($G139+(SUM($G205:N205)))*O$6) -> 0 | P205: =IF(COUNT($H205:O205)>='RFM input'!$W$7,0,($G139+(SUM($G205:O205)))*P$6) -> 0 | Q205: =IF(COUNT($H205:P205)>='RFM input'!$W$7,0,($G139+(SUM($G205:P205)))*Q$6) -> 0
C206: Sub-total | D206: =C205 -> 2013-14 ORAB Low Voltage lines and cables | I206: =IF(COUNT($H205:I205)='RFM input'!$W$7,SUM($G205:I205),0) -> 0 | J206: =IF(COUNT($H205:J205)='RFM input'!$W$7,SUM($G205:J205),0) -> 0 | K206: =IF(COUNT($H205:K205)='RFM input'!$W$7,SUM($G205:K205),0) -> 0 | L206: =IF(COUNT($H205:L205)='RFM input'!$W$7,SUM($G205:L205),0) -> -0.1120934108 | M206: =IF(COUNT($H205:M205)='RFM input'!$W$7,SUM($G205:M205),0) -> 0 | N206: =IF(COUNT($H205:N205)='RFM input'!$W$7,SUM($G205:N205),0) -> 0 | O206: =IF(COUNT($H205:O205)='RFM input'!$W$7,SUM($G205:O205),0) -> 0 | P206: =IF(COUNT($H205:P205)='RFM input'!$W$7,SUM($G205:P205),0) -> 0 | Q206: =IF(COUNT($H205:Q205)='RFM input'!$W$7,SUM($G205:Q205),0) -> 0
C207: =Asset6 -> 2013-14 ORAB Customer metering and Load control | H207: =($G140+(SUM($G207:G207)))*H$6 -> -0.002321247658 | I207: =($G140+(SUM($G207:H207)))*I$6 -> -0.002085422453 | J207: =IF(COUNT($H207:I207)>='RFM input'!$W$7,0,($G140+(SUM($G207:I207)))*J$6) -> -0.002078294761 | K207: =IF(COUNT($H207:J207)>='RFM input'!$W$7,0,($G140+(SUM($G207:J207)))*K$6) -> -0.002436718664 | L207: =IF(COUNT($H207:K207)>='RFM input'!$W$7,0,($G140+(SUM($G207:K207)))*L$6) -> -0.002521382201 | M207: =IF(COUNT($H207:L207)>='RFM input'!$W$7,0,($G140+(SUM($G207:L207)))*M$6) -> 0 | N207: =IF(COUNT($H207:M207)>='RFM input'!$W$7,0,($G140+(SUM($G207:M207)))*N$6) -> 0 | O207: =IF(COUNT($H207:N207)>='RFM input'!$W$7,0,($G140+(SUM($G207:N207)))*O$6) -> 0 | P207: =IF(COUNT($H207:O207)>='RFM input'!$W$7,0,($G140+(SUM($G207:O207)))*P$6) -> 0 | Q207: =IF(COUNT($H207:P207)>='RFM input'!$W$7,0,($G140+(SUM($G207:P207)))*Q$6) -> 0
C208: Sub-total | D208: =C207 -> 2013-14 ORAB Customer metering and Load control | I208: =IF(COUNT($H207:I207)='RFM input'!$W$7,SUM($G207:I207),0) -> 0 | J208: =IF(COUNT($H207:J207)='RFM input'!$W$7,SUM($G207:J207),0) -> 0 | K208: =IF(COUNT($H207:K207)='RFM input'!$W$7,SUM($G207:K207),0) -> 0 | L208: =IF(COUNT($H207:L207)='RFM input'!$W$7,SUM($G207:L207),0) -> -0.01144306574 | M208: =IF(COUNT($H207:M207)='RFM input'!$W$7,SUM($G207:M207),0) -> 0 | N208: =IF(COUNT($H207:N207)='RFM input'!$W$7,SUM($G207:N207),0) -> 0 | O208: =IF(COUNT($H207:O207)='RFM input'!$W$7,SUM($G207:O207),0) -> 0 | P208: =IF(COUNT($H207:P207)='RFM input'!$W$7,SUM($G207:P207),0) -> 0 | Q208: =IF(COUNT($H207:Q207)='RFM input'!$W$7,SUM($G207:Q207),0) -> 0
... 109 more rows

Sheet RAB roll forward
C2: ='DMS input'!$C$16&" - Asset Roll Forward"&" - DNSP RFM - version "&Intro!$M$4 -> Endeavour - Asset Roll Forward - DNSP RFM - version 2
G3: 0 | H3: =G3+1 -> 1 | I3: 2 | J3: 3 | K3: 4 | L3: 5 | M3: 6 | N3: 7 | O3: 8 | P3: 9 | Q3: 10 | R3: 11
C4: Year | G4: ='RFM input'!G70 -> 2013-14 | H4: ='RFM input'!H70 -> 2014-15 | I4: ='RFM input'!I70 -> 2015-16 | J4: ='RFM input'!J70 -> 2016-17 | K4: ='RFM input'!K70 -> 2017-18 | L4: ='RFM input'!L70 -> 2018-19 | M4: ='RFM input'!M70 -> 2019-20 | N4: ='RFM input'!N70 -> 2020-21 | O4: ='RFM input'!O70 -> 2021-22 | P4: ='RFM input'!P70 -> 2022-23 | Q4: ='RFM input'!Q70 -> 2023-24 | R4: =IF(LEN(Q4)>4,CONCATENATE(LEFT(Q4, 4)+1 &"-" &IF(Q4>"2007-08",,"0") &RIGHT(Q4,2)+1),Q4+1) -> 2024-25
C6: ='RFM input'!F332 -> Actual CPI Inflation Rate | G6: ='RFM input'!G332 -> 0.02449888641 | H6: ='RFM input'!H332 -> 0.02487922705 | I6: ='RFM input'!I332 -> 0.01508366722 | J6: ='RFM input'!J332 -> 0.01276990945 | K6: ='RFM input'!K332 -> 0.01948647409 | L6: ='RFM input'!L332 -> 0.01911400944 | M6: ='RFM input'!M332 -> 0 | N6: ='RFM input'!N332 -> 0 | O6: ='RFM input'!O332 -> 0 | P6: ='RFM input'!P332 -> 0 | Q6: ='RFM input'!Q332 -> 0
C7: Actual CPI (one year lagged) | G7: ='RFM input'!G333 -> 1 | H7: ='RFM input'!H333 -> 1.024498886 | I7: ='RFM input'!I333 -> 1.049987627 | J7: ='RFM input'!J333 -> 1.065825291 | K7: ='RFM input'!K333 -> 1.079435783 | L7: ='RFM input'!L333 -> 1.100470181 | M7: ='RFM input'!M333 -> 1.121504578 | N7: ='RFM input'!N333 -> 1.121504578 | O7: ='RFM input'!O333 -> 1.121504578 | P7: ='RFM input'!P333 -> 1.121504578 | Q7: ='RFM input'!Q333 -> 1.121504578
C9: ="Asset Values ($m Real "&G4&")" -> Asset Values ($m Real 2013-14)
C11: Real Actual Net Capex - As Incurred | H11: =SUM(H12:H71) -> 368.376467 | I11: =SUM(I12:I71) -> 206.0966906 | J11: 183.2091654 | K11: 338.8741916 | L11: 371.778009 | M11: 0 | N11: 0 | O11: 0 | P11: 0 | Q11: 0
D12: =Asset1 -> 2013-14 ORAB Sub-transmission lines and cables | H12: ='RFM input'!H263*(1+vanilla1)^0.5 -> 0 | I12: ='RFM input'!I263*(1+vanilla2)^0.5 -> 0 | J12: ='RFM input'!J263*(1+vanilla3)^0.5 -> 0 | K12: ='RFM input'!K263*(1+vanilla4)^0.5 -> 0 | L12: ='RFM input'!L263*(1+vanilla5)^0.5 -> 0 | M12: ='RFM input'!M263*(1+vanilla6)^0.5 -> 0 | N12: ='RFM input'!N263*(1+vanilla7)^0.5 -> 0 | O12: ='RFM input'!O263*(1+vanilla8)^0.5 -> 0 | P12: ='RFM input'!P263*(1+vanilla9)^0.5 -> 0 | Q12: ='RFM input'!Q263*(1+vanilla10)^0.5 -> 0
D13: =Asset2 -> 2013-14 ORAB Distribution lines and cables | H13: ='RFM input'!H264*(1+vanilla1)^0.5 -> 0 | I13: ='RFM input'!I264*(1+vanilla2)^0.5 -> 0 | J13: ='RFM input'!J264*(1+vanilla3)^0.5 -> 0 | K13: ='RFM input'!K264*(1+vanilla4)^0.5 -> 0 | L13: ='RFM input'!L264*(1+vanilla5)^0.5 -> 0 | M13: ='RFM input'!M264*(1+vanilla6)^0.5 -> 0 | N13: ='RFM input'!N264*(1+vanilla7)^0.5 -> 0 | O13: ='RFM input'!O264*(1+vanilla8)^0.5 -> 0 | P13: ='RFM input'!P264*(1+vanilla9)^0.5 -> 0 | Q13: ='RFM input'!Q264*(1+vanilla10)^0.5 -> 0
D14: =Asset3 -> 2013-14 ORAB Substations | H14: ='RFM input'!H265*(1+vanilla1)^0.5 -> 0 | I14: ='RFM input'!I265*(1+vanilla2)^0.5 -> 0 | J14: ='RFM input'!J265*(1+vanilla3)^0.5 -> 0 | K14: ='RFM input'!K265*(1+vanilla4)^0.5 -> 0 | L14: ='RFM input'!L265*(1+vanilla5)^0.5 -> 0 | M14: ='RFM input'!M265*(1+vanilla6)^0.5 -> 0 | N14: ='RFM input'!N265*(1+vanilla7)^0.5 -> 0 | O14: ='RFM input'!O265*(1+vanilla8)^0.5 -> 0 | P14: ='RFM input'!P265*(1+vanilla9)^0.5 -> 0 | Q14: ='RFM input'!Q265*(1+vanilla10)^0.5 -> 0
D15: =Asset4 -> 2013-14 ORAB Transformers | H15: ='RFM input'!H266*(1+vanilla1)^0.5 -> 0 | I15: ='RFM input'!I266*(1+vanilla2)^0.5 -> 0 | J15: ='RFM input'!J266*(1+vanilla3)^0.5 -> 0 | K15: ='RFM input'!K266*(1+vanilla4)^0.5 -> 0 | L15: ='RFM input'!L266*(1+vanilla5)^0.5 -> 0 | M15: ='RFM input'!M266*(1+vanilla6)^0.5 -> 0 | N15: ='RFM input'!N266*(1+vanilla7)^0.5 -> 0 | O15: ='RFM input'!O266*(1+vanilla8)^0.5 -> 0 | P15: ='RFM input'!P266*(1+vanilla9)^0.5 -> 0 | Q15: ='RFM input'!Q266*(1+vanilla10)^0.5 -> 0
D16: =Asset5 -> 2013-14 ORAB Low Voltage lines and cables | H16: ='RFM input'!H267*(1+vanilla1)^0.5 -> 0 | I16: ='RFM input'!I267*(1+vanilla2)^0.5 -> 0 | J16: ='RFM input'!J267*(1+vanilla3)^0.5 -> 0 | K16: ='RFM input'!K267*(1+vanilla4)^0.5 -> 0 | L16: ='RFM input'!L267*(1+vanilla5)^0.5 -> 0 | M16: ='RFM input'!M267*(1+vanilla6)^0.5 -> 0 | N16: ='RFM input'!N267*(1+vanilla7)^0.5 -> 0 | O16: ='RFM input'!O267*(1+vanilla8)^0.5 -> 0 | P16: ='RFM input'!P267*(1+vanilla9)^0.5 -> 0 | Q16: ='RFM input'!Q267*(1+vanilla10)^0.5 -> 0
D17: =Asset6 -> 2013-14 ORAB Customer metering and Load control | H17: ='RFM input'!H268*(1+vanilla1)^0.5 -> 0 | I17: ='RFM input'!I268*(1+vanilla2)^0.5 -> 0 | J17: ='RFM input'!J268*(1+vanilla3)^0.5 -> 0 | K17: ='RFM input'!K268*(1+vanilla4)^0.5 -> 0 | L17: ='RFM input'!L268*(1+vanilla5)^0.5 -> 0 | M17: ='RFM input'!M268*(1+vanilla6)^0.5 -> 0 | N17: ='RFM input'!N268*(1+vanilla7)^0.5 -> 0 | O17: ='RFM input'!O268*(1+vanilla8)^0.5 -> 0 | P17: ='RFM input'!P268*(1+vanilla9)^0.5 -> 0 | Q17: ='RFM input'!Q268*(1+vanilla10)^0.5 -> 0
D18: =Asset7 -> 2013-14 ORAB Communication | H18: ='RFM input'!H269*(1+vanilla1)^0.5 -> 0 | I18: ='RFM input'!I269*(1+vanilla2)^0.5 -> 0 | J18: ='RFM input'!J269*(1+vanilla3)^0.5 -> 0 | K18: ='RFM input'!K269*(1+vanilla4)^0.5 -> 0 | L18: ='RFM input'!L269*(1+vanilla5)^0.5 -> 0 | M18: ='RFM input'!M269*(1+vanilla6)^0.5 -> 0 | N18: ='RFM input'!N269*(1+vanilla7)^0.5 -> 0 | O18: ='RFM input'!O269*(1+vanilla8)^0.5 -> 0 | P18: ='RFM input'!P269*(1+vanilla9)^0.5 -> 0 | Q18: ='RFM input'!Q269*(1+vanilla10)^0.5 -> 0
D19: =Asset8 -> 2013-14 ORAB Land | H19: ='RFM input'!H270*(1+vanilla1)^0.5 -> 0 | I19: ='RFM input'!I270*(1+vanilla2)^0.5 -> 0 | J19: ='RFM input'!J270*(1+vanilla3)^0.5 -> 0 | K19: ='RFM input'!K270*(1+vanilla4)^0.5 -> 0 | L19: ='RFM input'!L270*(1+vanilla5)^0.5 -> 0 | M19: ='RFM input'!M270*(1+vanilla6)^0.5 -> 0 | N19: ='RFM input'!N270*(1+vanilla7)^0.5 -> 0 | O19: ='RFM input'!O270*(1+vanilla8)^0.5 -> 0 | P19: ='RFM input'!P270*(1+vanilla9)^0.5 -> 0 | Q19: ='RFM input'!Q270*(1+vanilla10)^0.5 -> 0
D20: =Asset9 -> 2013-14 ORAB Easements | H20: ='RFM input'!H271*(1+vanilla1)^0.5 -> 0 | I20: ='RFM input'!I271*(1+vanilla2)^0.5 -> 0 | J20: ='RFM input'!J271*(1+vanilla3)^0.5 -> 0 | K20: ='RFM input'!K271*(1+vanilla4)^0.5 -> 0 | L20: ='RFM input'!L271*(1+vanilla5)^0.5 -> 0 | M20: ='RFM input'!M271*(1+vanilla6)^0.5 -> 0 | N20: ='RFM input'!N271*(1+vanilla7)^0.5 -> 0 | O20: ='RFM input'!O271*(1+vanilla8)^0.5 -> 0 | P20: ='RFM input'!P271*(1+vanilla9)^0.5 -> 0 | Q20: ='RFM input'!Q271*(1+vanilla10)^0.5 -> 0
D21: =Asset10 -> 2013-14 ORAB Equity raising costs | H21: ='RFM input'!H272*(1+vanilla1)^0.5 -> 0 | I21: ='RFM input'!I272*(1+vanilla2)^0.5 -> 0 | J21: ='RFM input'!J272*(1+vanilla3)^0.5 -> 0 | K21: ='RFM input'!K272*(1+vanilla4)^0.5 -> 0 | L21: ='RFM input'!L272*(1+vanilla5)^0.5 -> 0 | M21: ='RFM input'!M272*(1+vanilla6)^0.5 -> 0 | N21: ='RFM input'!N272*(1+vanilla7)^0.5 -> 0 | O21: ='RFM input'!O272*(1+vanilla8)^0.5 -> 0 | P21: ='RFM input'!P272*(1+vanilla9)^0.5 -> 0 | Q21: ='RFM input'!Q272*(1+vanilla10)^0.5 -> 0
D22: =Asset11 -> 2013-14 ORAB Emergency Spares (Major Plant, Excludes Inventory) | H22: ='RFM input'!H273*(1+vanilla1)^0.5 -> 0 | I22: ='RFM input'!I273*(1+vanilla2)^0.5 -> 0 | J22: ='RFM input'!J273*(1+vanilla3)^0.5 -> 0 | K22: ='RFM input'!K273*(1+vanilla4)^0.5 -> 0 | L22: ='RFM input'!L273*(1+vanilla5)^0.5 -> 0 | M22: ='RFM input'!M273*(1+vanilla6)^0.5 -> 0 | N22: ='RFM input'!N273*(1+vanilla7)^0.5 -> 0 | O22: ='RFM input'!O273*(1+vanilla8)^0.5 -> 0 | P22: ='RFM input'!P273*(1+vanilla9)^0.5 -> 0 | Q22: ='RFM input'!Q273*(1+vanilla10)^0.5 -> 0
D23: =Asset12 -> 2013-14 ORAB Work in progress | H23: ='RFM input'!H274*(1+vanilla1)^0.5 -> 0 | I23: ='RFM input'!I274*(1+vanilla2)^0.5 -> 0 | J23: ='RFM input'!J274*(1+vanilla3)^0.5 -> 0 | K23: ='RFM input'!K274*(1+vanilla4)^0.5 -> 0 | L23: ='RFM input'!L274*(1+vanilla5)^0.5 -> 0 | M23: ='RFM input'!M274*(1+vanilla6)^0.5 -> 0 | N23: ='RFM input'!N274*(1+vanilla7)^0.5 -> 0 | O23: ='RFM input'!O274*(1+vanilla8)^0.5 -> 0 | P23: ='RFM input'!P274*(1+vanilla9)^0.5 -> 0 | Q23: ='RFM input'!Q274*(1+vanilla10)^0.5 -> 0
D24: =Asset13 -> 2013-14 ORAB Information & Communication Technology | H24: ='RFM input'!H275*(1+vanilla1)^0.5 -> 0 | I24: ='RFM input'!I275*(1+vanilla2)^0.5 -> 0 | J24: ='RFM input'!J275*(1+vanilla3)^0.5 -> 0 | K24: ='RFM input'!K275*(1+vanilla4)^0.5 -> 0 | L24: ='RFM input'!L275*(1+vanilla5)^0.5 -> 0 | M24: ='RFM input'!M275*(1+vanilla6)^0.5 -> 0 | N24: ='RFM input'!N275*(1+vanilla7)^0.5 -> 0 | O24: ='RFM input'!O275*(1+vanilla8)^0.5 -> 0 | P24: ='RFM input'!P275*(1+vanilla9)^0.5 -> 0 | Q24: ='RFM input'!Q275*(1+vanilla10)^0.5 -> 0
D25: =Asset14 -> 2013-14 ORAB Furniture, fittings, plant and equipment | H25: ='RFM input'!H276*(1+vanilla1)^0.5 -> 0 | I25: ='RFM input'!I276*(1+vanilla2)^0.5 -> 0 | J25: ='RFM input'!J276*(1+vanilla3)^0.5 -> 0 | K25: ='RFM input'!K276*(1+vanilla4)^0.5 -> 0 | L25: ='RFM input'!L276*(1+vanilla5)^0.5 -> 0 | M25: ='RFM input'!M276*(1+vanilla6)^0.5 -> 0 | N25: ='RFM input'!N276*(1+vanilla7)^0.5 -> 0 | O25: ='RFM input'!O276*(1+vanilla8)^0.5 -> 0 | P25: ='RFM input'!P276*(1+vanilla9)^0.5 -> 0 | Q25: ='RFM input'!Q276*(1+vanilla10)^0.5 -> 0
D26: =Asset15 -> 2013-14 ORAB Motor Vehicles | H26: ='RFM input'!H277*(1+vanilla1)^0.5 -> 0 | I26: ='RFM input'!I277*(1+vanilla2)^0.5 -> 0 | J26: ='RFM input'!J277*(1+vanilla3)^0.5 -> 0 | K26: ='RFM input'!K277*(1+vanilla4)^0.5 -> 0 | L26: ='RFM input'!L277*(1+vanilla5)^0.5 -> 0 | M26: ='RFM input'!M277*(1+vanilla6)^0.5 -> 0 | N26: ='RFM input'!N277*(1+vanilla7)^0.5 -> 0 | O26: ='RFM input'!O277*(1+vanilla8)^0.5 -> 0 | P26: ='RFM input'!P277*(1+vanilla9)^0.5 -> 0 | Q26: ='RFM input'!Q277*(1+vanilla10)^0.5 -> 0
D27: =Asset16 -> 2013-14 ORAB Buildings | H27: ='RFM input'!H278*(1+vanilla1)^0.5 -> 0 | I27: ='RFM input'!I278*(1+vanilla2)^0.5 -> 0 | J27: ='RFM input'!J278*(1+vanilla3)^0.5 -> 0 | K27: ='RFM input'!K278*(1+vanilla4)^0.5 -> 0 | L27: ='RFM input'!L278*(1+vanilla5)^0.5 -> 0 | M27: ='RFM input'!M278*(1+vanilla6)^0.5 -> 0 | N27: ='RFM input'!N278*(1+vanilla7)^0.5 -> 0 | O27: ='RFM input'!O278*(1+vanilla8)^0.5 -> 0 | P27: ='RFM input'!P278*(1+vanilla9)^0.5 -> 0 | Q27: ='RFM input'!Q278*(1+vanilla10)^0.5 -> 0
D28: =Asset17 -> 2013-14 ORAB Land (non-system) | H28: ='RFM input'!H279*(1+vanilla1)^0.5 -> 0 | I28: ='RFM input'!I279*(1+vanilla2)^0.5 -> 0 | J28: ='RFM input'!J279*(1+vanilla3)^0.5 -> 0 | K28: ='RFM input'!K279*(1+vanilla4)^0.5 -> 0 | L28: ='RFM input'!L279*(1+vanilla5)^0.5 -> 0 | M28: ='RFM input'!M279*(1+vanilla6)^0.5 -> 0 | N28: ='RFM input'!N279*(1+vanilla7)^0.5 -> 0 | O28: ='RFM input'!O279*(1+vanilla8)^0.5 -> 0 | P28: ='RFM input'!P279*(1+vanilla9)^0.5 -> 0 | Q28: ='RFM input'!Q279*(1+vanilla10)^0.5 -> 0
D29: =Asset18 -> 2013-14 ORAB Other non system assets | H29: ='RFM input'!H280*(1+vanilla1)^0.5 -> 0 | I29: ='RFM input'!I280*(1+vanilla2)^0.5 -> 0 | J29: ='RFM input'!J280*(1+vanilla3)^0.5 -> 0 | K29: ='RFM input'!K280*(1+vanilla4)^0.5 -> 0 | L29: ='RFM input'!L280*(1+vanilla5)^0.5 -> 0 | M29: ='RFM input'!M280*(1+vanilla6)^0.5 -> 0 | N29: ='RFM input'!N280*(1+vanilla7)^0.5 -> 0 | O29: ='RFM input'!O280*(1+vanilla8)^0.5 -> 0 | P29: ='RFM input'!P280*(1+vanilla9)^0.5 -> 0 | Q29: ='RFM input'!Q280*(1+vanilla10)^0.5 -> 0
D30: =Asset19 -> 2013-14 ORAB Blank 1 | H30: ='RFM input'!H281*(1+vanilla1)^0.5 -> 0 | I30: ='RFM input'!I281*(1+vanilla2)^0.5 -> 0 | J30: ='RFM input'!J281*(1+vanilla3)^0.5 -> 0 | K30: ='RFM input'!K281*(1+vanilla4)^0.5 -> 0 | L30: ='RFM input'!L281*(1+vanilla5)^0.5 -> 0 | M30: ='RFM input'!M281*(1+vanilla6)^0.5 -> 0 | N30: ='RFM input'!N281*(1+vanilla7)^0.5 -> 0 | O30: ='RFM input'!O281*(1+vanilla8)^0.5 -> 0 | P30: ='RFM input'!P281*(1+vanilla9)^0.5 -> 0 | Q30: ='RFM input'!Q281*(1+vanilla10)^0.5 -> 0
D31: =Asset20 -> 2013-14 ORAB Blank 2 | H31: ='RFM input'!H282*(1+vanilla1)^0.5 -> 0 | I31: ='RFM input'!I282*(1+vanilla2)^0.5 -> 0 | J31: ='RFM input'!J282*(1+vanilla3)^0.5 -> 0 | K31: ='RFM input'!K282*(1+vanilla4)^0.5 -> 0 | L31: ='RFM input'!L282*(1+vanilla5)^0.5 -> 0 | M31: ='RFM input'!M282*(1+vanilla6)^0.5 -> 0 | N31: ='RFM input'!N282*(1+vanilla7)^0.5 -> 0 | O31: ='RFM input'!O282*(1+vanilla8)^0.5 -> 0 | P31: ='RFM input'!P282*(1+vanilla9)^0.5 -> 0 | Q31: ='RFM input'!Q282*(1+vanilla10)^0.5 -> 0
D32: =Asset21 -> 2014-15 to 2018-19 Sub-transmission lines and cables | H32: ='RFM input'!H283*(1+vanilla1)^0.5 -> 38.82661055 | I32: ='RFM input'!I283*(1+vanilla2)^0.5 -> 23.87863707 | J32: ='RFM input'!J283*(1+vanilla3)^0.5 -> 31.46364958 | K32: ='RFM input'!K283*(1+vanilla4)^0.5 -> 21.03221217 | L32: ='RFM input'!L283*(1+vanilla5)^0.5 -> 17.39346657 | M32: ='RFM input'!M283*(1+vanilla6)^0.5 -> 0 | N32: ='RFM input'!N283*(1+vanilla7)^0.5 -> 0 | O32: ='RFM input'!O283*(1+vanilla8)^0.5 -> 0 | P32: ='RFM input'!P283*(1+vanilla9)^0.5 -> 0 | Q32: ='RFM input'!Q283*(1+vanilla10)^0.5 -> 0
D33: =Asset22 -> 2014-15 to 2018-19 Distribution lines and cables | H33: ='RFM input'!H284*(1+vanilla1)^0.5 -> 86.91841619 | I33: ='RFM input'!I284*(1+vanilla2)^0.5 -> 45.24175017 | J33: ='RFM input'!J284*(1+vanilla3)^0.5 -> 48.9264185 | K33: ='RFM input'!K284*(1+vanilla4)^0.5 -> 53.41709783 | L33: ='RFM input'!L284*(1+vanilla5)^0.5 -> 123.4362075 | M33: ='RFM input'!M284*(1+vanilla6)^0.5 -> 0 | N33: ='RFM input'!N284*(1+vanilla7)^0.5 -> 0 | O33: ='RFM input'!O284*(1+vanilla8)^0.5 -> 0 | P33: ='RFM input'!P284*(1+vanilla9)^0.5 -> 0 | Q33: ='RFM input'!Q284*(1+vanilla10)^0.5 -> 0
D34: =Asset23 -> 2014-15 to 2018-19 Substations | H34: ='RFM input'!H285*(1+vanilla1)^0.5 -> 130.7881374 | I34: ='RFM input'!I285*(1+vanilla2)^0.5 -> 85.24352828 | J34: ='RFM input'!J285*(1+vanilla3)^0.5 -> 42.06195768 | K34: ='RFM input'!K285*(1+vanilla4)^0.5 -> 108.5793023 | L34: ='RFM input'!L285*(1+vanilla5)^0.5 -> 136.2180375 | M34: ='RFM input'!M285*(1+vanilla6)^0.5 -> 0 | N34: ='RFM input'!N285*(1+vanilla7)^0.5 -> 0 | O34: ='RFM input'!O285*(1+vanilla8)^0.5 -> 0 | P34: ='RFM input'!P285*(1+vanilla9)^0.5 -> 0 | Q34: ='RFM input'!Q285*(1+vanilla10)^0.5 -> 0
D35: =Asset24 -> 2014-15 to 2018-19 Transformers | H35: ='RFM input'!H286*(1+vanilla1)^0.5 -> 21.0220846 | I35: ='RFM input'!I286*(1+vanilla2)^0.5 -> 17.18639873 | J35: ='RFM input'!J286*(1+vanilla3)^0.5 -> 13.63998456 | K35: ='RFM input'!K286*(1+vanilla4)^0.5 -> 15.95712079 | L35: ='RFM input'!L286*(1+vanilla5)^0.5 -> 10.31583751 | M35: ='RFM input'!M286*(1+vanilla6)^0.5 -> 0 | N35: ='RFM input'!N286*(1+vanilla7)^0.5 -> 0 | O35: ='RFM input'!O286*(1+vanilla8)^0.5 -> 0 | P35: ='RFM input'!P286*(1+vanilla9)^0.5 -> 0 | Q35: ='RFM input'!Q286*(1+vanilla10)^0.5 -> 0
D36: =Asset25 -> 2014-15 to 2018-19 Low Voltage lines and cables | H36: ='RFM input'!H287*(1+vanilla1)^0.5 -> 45.92349813 | I36: ='RFM input'!I287*(1+vanilla2)^0.5 -> 40.29184715 | J36: ='RFM input'!J287*(1+vanilla3)^0.5 -> 31.68108224 | K36: ='RFM input'!K287*(1+vanilla4)^0.5 -> 70.87828693 | L36: ='RFM input'!L287*(1+vanilla5)^0.5 -> 13.07798909 | M36: ='RFM input'!M287*(1+vanilla6)^0.5 -> 0 | N36: ='RFM input'!N287*(1+vanilla7)^0.5 -> 0 | O36: ='RFM input'!O287*(1+vanilla8)^0.5 -> 0 | P36: ='RFM input'!P287*(1+vanilla9)^0.5 -> 0 | Q36: ='RFM input'!Q287*(1+vanilla10)^0.5 -> 0
D37: =Asset26 -> 2014-15 to 2018-19 Customer metering and Load control | H37: ='RFM input'!H288*(1+vanilla1)^0.5 -> 0.7797152392 | I37: ='RFM input'!I288*(1+vanilla2)^0.5 -> 0.5295993745 | J37: ='RFM input'!J288*(1+vanilla3)^0.5 -> 1.706817751 | K37: ='RFM input'!K288*(1+vanilla4)^0.5 -> 0.6648224419 | L37: ='RFM input'!L288*(1+vanilla5)^0.5 -> 0.6647173443 | M37: ='RFM input'!M288*(1+vanilla6)^0.5 -> 0 | N37: ='RFM input'!N288*(1+vanilla7)^0.5 -> 0 | O37: ='RFM input'!O288*(1+vanilla8)^0.5 -> 0 | P37: ='RFM input'!P288*(1+vanilla9)^0.5 -> 0 | Q37: ='RFM input'!Q288*(1+vanilla10)^0.5 -> 0
D38: =Asset27 -> 2014-15 to 2018-19 Communication | H38: ='RFM input'!H289*(1+vanilla1)^0.5 -> 5.485898349 | I38: ='RFM input'!I289*(1+vanilla2)^0.5 -> 4.447593654 | J38: ='RFM input'!J289*(1+vanilla3)^0.5 -> 6.64279738 | K38: ='RFM input'!K289*(1+vanilla4)^0.5 -> 7.912631942 | L38: ='RFM input'!L289*(1+vanilla5)^0.5 -> 16.78974112 | M38: ='RFM input'!M289*(1+vanilla6)^0.5 -> 0 | N38: ='RFM input'!N289*(1+vanilla7)^0.5 -> 0 | O38: ='RFM input'!O289*(1+vanilla8)^0.5 -> 0 | P38: ='RFM input'!P289*(1+vanilla9)^0.5 -> 0 | Q38: ='RFM input'!Q289*(1+vanilla10)^0.5 -> 0
D39: =Asset28 -> 2014-15 to 2018-19 Land | H39: ='RFM input'!H290*(1+vanilla1)^0.5 -> -0.3070072845 | I39: ='RFM input'!I290*(1+vanilla2)^0.5 -> -2.439807211 | J39: ='RFM input'!J290*(1+vanilla3)^0.5 -> -5.020611691 | K39: ='RFM input'!K290*(1+vanilla4)^0.5 -> -2.930743852 | L39: ='RFM input'!L290*(1+vanilla5)^0.5 -> 4.47043774 | M39: ='RFM input'!M290*(1+vanilla6)^0.5 -> 0 | N39: ='RFM input'!N290*(1+vanilla7)^0.5 -> 0 | O39: ='RFM input'!O290*(1+vanilla8)^0.5 -> 0 | P39: ='RFM input'!P290*(1+vanilla9)^0.5 -> 0 | Q39: ='RFM input'!Q290*(1+vanilla10)^0.5 -> 0
D40: =Asset29 -> 2014-15 to 2018-19 Easements | H40: ='RFM input'!H291*(1+vanilla1)^0.5 -> 0.06961018552 | I40: ='RFM input'!I291*(1+vanilla2)^0.5 -> 0.4154747106 | J40: ='RFM input'!J291*(1+vanilla3)^0.5 -> 0.1326827051 | K40: ='RFM input'!K291*(1+vanilla4)^0.5 -> 0.08979357945 | L40: ='RFM input'!L291*(1+vanilla5)^0.5 -> 0 | M40: ='RFM input'!M291*(1+vanilla6)^0.5 -> 0 | N40: ='RFM input'!N291*(1+vanilla7)^0.5 -> 0 | O40: ='RFM input'!O291*(1+vanilla8)^0.5 -> 0 | P40: ='RFM input'!P291*(1+vanilla9)^0.5 -> 0 | Q40: ='RFM input'!Q291*(1+vanilla10)^0.5 -> 0
D41: =Asset30 -> 2014-15 to 2018-19 Equity raising costs | H41: ='RFM input'!H292*(1+vanilla1)^0.5 -> 2.277751837 | I41: ='RFM input'!I292*(1+vanilla2)^0.5 -> 0 | J41: ='RFM input'!J292*(1+vanilla3)^0.5 -> -9.632630141e-07 | K41: ='RFM input'!K292*(1+vanilla4)^0.5 -> 0 | L41: ='RFM input'!L292*(1+vanilla5)^0.5 -> 0 | M41: ='RFM input'!M292*(1+vanilla6)^0.5 -> 0 | N41: ='RFM input'!N292*(1+vanilla7)^0.5 -> 0 | O41: ='RFM input'!O292*(1+vanilla8)^0.5 -> 0 | P41: ='RFM input'!P292*(1+vanilla9)^0.5 -> 0 | Q41: ='RFM input'!Q292*(1+vanilla10)^0.5 -> 0
D42: =Asset31 -> 2014-15 to 2018-19 Emergency Spares (Major Plant, Excludes Inventory) | H42: ='RFM input'!H293*(1+vanilla1)^0.5 -> 0.2489770549 | I42: ='RFM input'!I293*(1+vanilla2)^0.5 -> 0.1300888395 | J42: ='RFM input'!J293*(1+vanilla3)^0.5 -> 0.2803057991 | K42: ='RFM input'!K293*(1+vanilla4)^0.5 -> 1.131309765 | L42: ='RFM input'!L293*(1+vanilla5)^0.5 -> 1.468096385 | M42: ='RFM input'!M293*(1+vanilla6)^0.5 -> 0 | N42: ='RFM input'!N293*(1+vanilla7)^0.5 -> 0 | O42: ='RFM input'!O293*(1+vanilla8)^0.5 -> 0 | P42: ='RFM input'!P293*(1+vanilla9)^0.5 -> 0 | Q42: ='RFM input'!Q293*(1+vanilla10)^0.5 -> 0
D43: =Asset32 -> 2014-15 to 2018-19 Work in progress | H43: ='RFM input'!H294*(1+vanilla1)^0.5 -> 0 | I43: ='RFM input'!I294*(1+vanilla2)^0.5 -> 0 | J43: ='RFM input'!J294*(1+vanilla3)^0.5 -> 0 | K43: ='RFM input'!K294*(1+vanilla4)^0.5 -> 0 | L43: ='RFM input'!L294*(1+vanilla5)^0.5 -> 0 | M43: ='RFM input'!M294*(1+vanilla6)^0.5 -> 0 | N43: ='RFM input'!N294*(1+vanilla7)^0.5 -> 0 | O43: ='RFM input'!O294*(1+vanilla8)^0.5 -> 0 | P43: ='RFM input'!P294*(1+vanilla9)^0.5 -> 0 | Q43: ='RFM input'!Q294*(1+vanilla10)^0.5 -> 0
D44: =Asset33 -> 2014-15 to 2018-19 Information & Communication Technology | H44: ='RFM input'!H295*(1+vanilla1)^0.5 -> 11.93433774 | I44: ='RFM input'!I295*(1+vanilla2)^0.5 -> 9.368621978 | J44: ='RFM input'!J295*(1+vanilla3)^0.5 -> 8.210638235 | K44: ='RFM input'!K295*(1+vanilla4)^0.5 -> 47.36739271 | L44: ='RFM input'!L295*(1+vanilla5)^0.5 -> 38.02586444 | M44: ='RFM input'!M295*(1+vanilla6)^0.5 -> 0 | N44: ='RFM input'!N295*(1+vanilla7)^0.5 -> 0 | O44: ='RFM input'!O295*(1+vanilla8)^0.5 -> 0 | P44: ='RFM input'!P295*(1+vanilla9)^0.5 -> 0 | Q44: ='RFM input'!Q295*(1+vanilla10)^0.5 -> 0
D45: =Asset34 -> 2014-15 to 2018-19 Furniture, fittings, plant and equipment | H45: ='RFM input'!H296*(1+vanilla1)^0.5 -> 2.320820197 | I45: ='RFM input'!I296*(1+vanilla2)^0.5 -> 2.387784141 | J45: ='RFM input'!J296*(1+vanilla3)^0.5 -> 0.2882968785 | K45: ='RFM input'!K296*(1+vanilla4)^0.5 -> 3.421243787 | L45: ='RFM input'!L296*(1+vanilla5)^0.5 -> 3.319198887 | M45: ='RFM input'!M296*(1+vanilla6)^0.5 -> 0 | N45: ='RFM input'!N296*(1+vanilla7)^0.5 -> 0 | O45: ='RFM input'!O296*(1+vanilla8)^0.5 -> 0 | P45: ='RFM input'!P296*(1+vanilla9)^0.5 -> 0 | Q45: ='RFM input'!Q296*(1+vanilla10)^0.5 -> 0
D46: =Asset35 -> 2014-15 to 2018-19 Motor Vehicles | H46: ='RFM input'!H297*(1+vanilla1)^0.5 -> 0.8575995454 | I46: ='RFM input'!I297*(1+vanilla2)^0.5 -> 0.1346345636 | J46: ='RFM input'!J297*(1+vanilla3)^0.5 -> -0.2061559649 | K46: ='RFM input'!K297*(1+vanilla4)^0.5 -> 5.127974922 | L46: ='RFM input'!L297*(1+vanilla5)^0.5 -> 3.148318092 | M46: ='RFM input'!M297*(1+vanilla6)^0.5 -> 0 | N46: ='RFM input'!N297*(1+vanilla7)^0.5 -> 0 | O46: ='RFM input'!O297*(1+vanilla8)^0.5 -> 0 | P46: ='RFM input'!P297*(1+vanilla9)^0.5 -> 0 | Q46: ='RFM input'!Q297*(1+vanilla10)^0.5 -> 0
D47: =Asset36 -> 2014-15 to 2018-19 Buildings | H47: ='RFM input'!H298*(1+vanilla1)^0.5 -> 21.2300172 | I47: ='RFM input'!I298*(1+vanilla2)^0.5 -> 4.460686762 | J47: ='RFM input'!J298*(1+vanilla3)^0.5 -> 3.394532461 | K47: ='RFM input'!K298*(1+vanilla4)^0.5 -> 6.209345951 | L47: ='RFM input'!L298*(1+vanilla5)^0.5 -> 3.450096872 | M47: ='RFM input'!M298*(1+vanilla6)^0.5 -> 0 | N47: ='RFM input'!N298*(1+vanilla7)^0.5 -> 0 | O47: ='RFM input'!O298*(1+vanilla8)^0.5 -> 0 | P47: ='RFM input'!P298*(1+vanilla9)^0.5 -> 0 | Q47: ='RFM input'!Q298*(1+vanilla10)^0.5 -> 0
D48: =Asset37 -> 2014-15 to 2018-19 Land (non-system) | H48: ='RFM input'!H299*(1+vanilla1)^0.5 -> 0 | I48: ='RFM input'!I299*(1+vanilla2)^0.5 -> -25.18014764 | J48: ='RFM input'!J299*(1+vanilla3)^0.5 -> 0.006770270472 | K48: ='RFM input'!K299*(1+vanilla4)^0.5 -> 0.01640025886 | L48: ='RFM input'!L299*(1+vanilla5)^0.5 -> 0 | M48: ='RFM input'!M299*(1+vanilla6)^0.5 -> 0 | N48: ='RFM input'!N299*(1+vanilla7)^0.5 -> 0 | O48: ='RFM input'!O299*(1+vanilla8)^0.5 -> 0 | P48: ='RFM input'!P299*(1+vanilla9)^0.5 -> 0 | Q48: ='RFM input'!Q299*(1+vanilla10)^0.5 -> 0
D49: =Asset38 -> 2014-15 to 2018-19 Other non system assets | H49: ='RFM input'!H300*(1+vanilla1)^0.5 -> 0 | I49: ='RFM input'!I300*(1+vanilla2)^0.5 -> 0 | J49: ='RFM input'!J300*(1+vanilla3)^0.5 -> 0 | K49: ='RFM input'!K300*(1+vanilla4)^0.5 -> 0 | L49: ='RFM input'!L300*(1+vanilla5)^0.5 -> 0 | M49: ='RFM input'!M300*(1+vanilla6)^0.5 -> 0 | N49: ='RFM input'!N300*(1+vanilla7)^0.5 -> 0 | O49: ='RFM input'!O300*(1+vanilla8)^0.5 -> 0 | P49: ='RFM input'!P300*(1+vanilla9)^0.5 -> 0 | Q49: ='RFM input'!Q300*(1+vanilla10)^0.5 -> 0
D50: =Asset39 -> 2014-15 to 2018-19 Blank 1 | H50: ='RFM input'!H301*(1+vanilla1)^0.5 -> 0 | I50: ='RFM input'!I301*(1+vanilla2)^0.5 -> 0 | J50: ='RFM input'!J301*(1+vanilla3)^0.5 -> 0 | K50: ='RFM input'!K301*(1+vanilla4)^0.5 -> 0 | L50: ='RFM input'!L301*(1+vanilla5)^0.5 -> 0 | M50: ='RFM input'!M301*(1+vanilla6)^0.5 -> 0 | N50: ='RFM input'!N301*(1+vanilla7)^0.5 -> 0 | O50: ='RFM input'!O301*(1+vanilla8)^0.5 -> 0 | P50: ='RFM input'!P301*(1+vanilla9)^0.5 -> 0 | Q50: ='RFM input'!Q301*(1+vanilla10)^0.5 -> 0
D51: =Asset40 -> 2014-15 to 2018-19 Blank 2 | H51: ='RFM input'!H302*(1+vanilla1)^0.5 -> 0 | I51: ='RFM input'!I302*(1+vanilla2)^0.5 -> 0 | J51: ='RFM input'!J302*(1+vanilla3)^0.5 -> 0 | K51: ='RFM input'!K302*(1+vanilla4)^0.5 -> 0 | L51: ='RFM input'!L302*(1+vanilla5)^0.5 -> 0 | M51: ='RFM input'!M302*(1+vanilla6)^0.5 -> 0 | N51: ='RFM input'!N302*(1+vanilla7)^0.5 -> 0 | O51: ='RFM input'!O302*(1+vanilla8)^0.5 -> 0 | P51: ='RFM input'!P302*(1+vanilla9)^0.5 -> 0 | Q51: ='RFM input'!Q302*(1+vanilla10)^0.5 -> 0
D52: =Asset41 -> 2019-20 to 2023-24 Sub-transmission lines and cables | H52: ='RFM input'!H303*(1+vanilla1)^0.5 -> 0 | I52: ='RFM input'!I303*(1+vanilla2)^0.5 -> 0 | J52: ='RFM input'!J303*(1+vanilla3)^0.5 -> 0 | K52: ='RFM input'!K303*(1+vanilla4)^0.5 -> 0 | L52: ='RFM input'!L303*(1+vanilla5)^0.5 -> 0 | M52: ='RFM input'!M303*(1+vanilla6)^0.5 -> 0 | N52: ='RFM input'!N303*(1+vanilla7)^0.5 -> 0 | O52: ='RFM input'!O303*(1+vanilla8)^0.5 -> 0 | P52: ='RFM input'!P303*(1+vanilla9)^0.5 -> 0 | Q52: ='RFM input'!Q303*(1+vanilla10)^0.5 -> 0
D53: =Asset42 -> 2019-20 to 2023-24 Distribution lines and cables | H53: ='RFM input'!H304*(1+vanilla1)^0.5 -> 0 | I53: ='RFM input'!I304*(1+vanilla2)^0.5 -> 0 | J53: ='RFM input'!J304*(1+vanilla3)^0.5 -> 0 | K53: ='RFM input'!K304*(1+vanilla4)^0.5 -> 0 | L53: ='RFM input'!L304*(1+vanilla5)^0.5 -> 0 | M53: ='RFM input'!M304*(1+vanilla6)^0.5 -> 0 | N53: ='RFM input'!N304*(1+vanilla7)^0.5 -> 0 | O53: ='RFM input'!O304*(1+vanilla8)^0.5 -> 0 | P53: ='RFM input'!P304*(1+vanilla9)^0.5 -> 0 | Q53: ='RFM input'!Q304*(1+vanilla10)^0.5 -> 0
D54: =Asset43 -> 2019-20 to 2023-24 Substations | H54: ='RFM input'!H305*(1+vanilla1)^0.5 -> 0 | I54: ='RFM input'!I305*(1+vanilla2)^0.5 -> 0 | J54: ='RFM input'!J305*(1+vanilla3)^0.5 -> 0 | K54: ='RFM input'!K305*(1+vanilla4)^0.5 -> 0 | L54: ='RFM input'!L305*(1+vanilla5)^0.5 -> 0 | M54: ='RFM input'!M305*(1+vanilla6)^0.5 -> 0 | N54: ='RFM input'!N305*(1+vanilla7)^0.5 -> 0 | O54: ='RFM input'!O305*(1+vanilla8)^0.5 -> 0 | P54: ='RFM input'!P305*(1+vanilla9)^0.5 -> 0 | Q54: ='RFM input'!Q305*(1+vanilla10)^0.5 -> 0
D55: =Asset44 -> 2019-20 to 2023-24 Transformers | H55: ='RFM input'!H306*(1+vanilla1)^0.5 -> 0 | I55: ='RFM input'!I306*(1+vanilla2)^0.5 -> 0 | J55: ='RFM input'!J306*(1+vanilla3)^0.5 -> 0 | K55: ='RFM input'!K306*(1+vanilla4)^0.5 -> 0 | L55: ='RFM input'!L306*(1+vanilla5)^0.5 -> 0 | M55: ='RFM input'!M306*(1+vanilla6)^0.5 -> 0 | N55: ='RFM input'!N306*(1+vanilla7)^0.5 -> 0 | O55: ='RFM input'!O306*(1+vanilla8)^0.5 -> 0 | P55: ='RFM input'!P306*(1+vanilla9)^0.5 -> 0 | Q55: ='RFM input'!Q306*(1+vanilla10)^0.5 -> 0
D56: =Asset45 -> 2019-20 to 2023-24 Low Voltage lines and cables | H56: ='RFM input'!H307*(1+vanilla1)^0.5 -> 0 | I56: ='RFM input'!I307*(1+vanilla2)^0.5 -> 0 | J56: ='RFM input'!J307*(1+vanilla3)^0.5 -> 0 | K56: ='RFM input'!K307*(1+vanilla4)^0.5 -> 0 | L56: ='RFM input'!L307*(1+vanilla5)^0.5 -> 0 | M56: ='RFM input'!M307*(1+vanilla6)^0.5 -> 0 | N56: ='RFM input'!N307*(1+vanilla7)^0.5 -> 0 | O56: ='RFM input'!O307*(1+vanilla8)^0.5 -> 0 | P56: ='RFM input'!P307*(1+vanilla9)^0.5 -> 0 | Q56: ='RFM input'!Q307*(1+vanilla10)^0.5 -> 0
D57: =Asset46 -> 2019-20 to 2023-24 Customer metering and Load control | H57: ='RFM input'!H308*(1+vanilla1)^0.5 -> 0 | I57: ='RFM input'!I308*(1+vanilla2)^0.5 -> 0 | J57: ='RFM input'!J308*(1+vanilla3)^0.5 -> 0 | K57: ='RFM input'!K308*(1+vanilla4)^0.5 -> 0 | L57: ='RFM input'!L308*(1+vanilla5)^0.5 -> 0 | M57: ='RFM input'!M308*(1+vanilla6)^0.5 -> 0 | N57: ='RFM input'!N308*(1+vanilla7)^0.5 -> 0 | O57: ='RFM input'!O308*(1+vanilla8)^0.5 -> 0 | P57: ='RFM input'!P308*(1+vanilla9)^0.5 -> 0 | Q57: ='RFM input'!Q308*(1+vanilla10)^0.5 -> 0
D58: =Asset47 -> 2019-20 to 2023-24 Communication | H58: ='RFM input'!H309*(1+vanilla1)^0.5 -> 0 | I58: ='RFM input'!I309*(1+vanilla2)^0.5 -> 0 | J58: ='RFM input'!J309*(1+vanilla3)^0.5 -> 0 | K58: ='RFM input'!K309*(1+vanilla4)^0.5 -> 0 | L58: ='RFM input'!L309*(1+vanilla5)^0.5 -> 0 | M58: ='RFM input'!M309*(1+vanilla6)^0.5 -> 0 | N58: ='RFM input'!N309*(1+vanilla7)^0.5 -> 0 | O58: ='RFM input'!O309*(1+vanilla8)^0.5 -> 0 | P58: ='RFM input'!P309*(1+vanilla9)^0.5 -> 0 | Q58: ='RFM input'!Q309*(1+vanilla10)^0.5 -> 0
D59: =Asset48 -> 2019-20 to 2023-24 Land | H59: ='RFM input'!H310*(1+vanilla1)^0.5 -> 0 | I59: ='RFM input'!I310*(1+vanilla2)^0.5 -> 0 | J59: ='RFM input'!J310*(1+vanilla3)^0.5 -> 0 | K59: ='RFM input'!K310*(1+vanilla4)^0.5 -> 0 | L59: ='RFM input'!L310*(1+vanilla5)^0.5 -> 0 | M59: ='RFM input'!M310*(1+vanilla6)^0.5 -> 0 | N59: ='RFM input'!N310*(1+vanilla7)^0.5 -> 0 | O59: ='RFM input'!O310*(1+vanilla8)^0.5 -> 0 | P59: ='RFM input'!P310*(1+vanilla9)^0.5 -> 0 | Q59: ='RFM input'!Q310*(1+vanilla10)^0.5 -> 0
D60: =Asset49 -> 2019-20 to 2023-24 Easements | H60: ='RFM input'!H311*(1+vanilla1)^0.5 -> 0 | I60: ='RFM input'!I311*(1+vanilla2)^0.5 -> 0 | J60: ='RFM input'!J311*(1+vanilla3)^0.5 -> 0 | K60: ='RFM input'!K311*(1+vanilla4)^0.5 -> 0 | L60: ='RFM input'!L311*(1+vanilla5)^0.5 -> 0 | M60: ='RFM input'!M311*(1+vanilla6)^0.5 -> 0 | N60: ='RFM input'!N311*(1+vanilla7)^0.5 -> 0 | O60: ='RFM input'!O311*(1+vanilla8)^0.5 -> 0 | P60: ='RFM input'!P311*(1+vanilla9)^0.5 -> 0 | Q60: ='RFM input'!Q311*(1+vanilla10)^0.5 -> 0
D61: =Asset50 -> 2019-20 to 2023-24 Equity raising costs | H61: ='RFM input'!H312*(1+vanilla1)^0.5 -> 0 | I61: ='RFM input'!I312*(1+vanilla2)^0.5 -> 0 | J61: ='RFM input'!J312*(1+vanilla3)^0.5 -> 0 | K61: ='RFM input'!K312*(1+vanilla4)^0.5 -> 0 | L61: ='RFM input'!L312*(1+vanilla5)^0.5 -> 0 | M61: ='RFM input'!M312*(1+vanilla6)^0.5 -> 0 | N61: ='RFM input'!N312*(1+vanilla7)^0.5 -> 0 | O61: ='RFM input'!O312*(1+vanilla8)^0.5 -> 0 | P61: ='RFM input'!P312*(1+vanilla9)^0.5 -> 0 | Q61: ='RFM input'!Q312*(1+vanilla10)^0.5 -> 0
D62: =Asset51 -> 2019-20 to 2023-24 Emergency Spares (Major Plant, Excludes Inventory) | H62: ='RFM input'!H313*(1+vanilla1)^0.5 -> 0 | I62: ='RFM input'!I313*(1+vanilla2)^0.5 -> 0 | J62: ='RFM input'!J313*(1+vanilla3)^0.5 -> 0 | K62: ='RFM input'!K313*(1+vanilla4)^0.5 -> 0 | L62: ='RFM input'!L313*(1+vanilla5)^0.5 -> 0 | M62: ='RFM input'!M313*(1+vanilla6)^0.5 -> 0 | N62: ='RFM input'!N313*(1+vanilla7)^0.5 -> 0 | O62: ='RFM input'!O313*(1+vanilla8)^0.5 -> 0 | P62: ='RFM input'!P313*(1+vanilla9)^0.5 -> 0 | Q62: ='RFM input'!Q313*(1+vanilla10)^0.5 -> 0
D63: =Asset52 -> 2019-20 to 2023-24 Work in progress | H63: ='RFM input'!H314*(1+vanilla1)^0.5 -> 0 | I63: ='RFM input'!I314*(1+vanilla2)^0.5 -> 0 | J63: ='RFM input'!J314*(1+vanilla3)^0.5 -> 0 | K63: ='RFM input'!K314*(1+vanilla4)^0.5 -> 0 | L63: ='RFM input'!L314*(1+vanilla5)^0.5 -> 0 | M63: ='RFM input'!M314*(1+vanilla6)^0.5 -> 0 | N63: ='RFM input'!N314*(1+vanilla7)^0.5 -> 0 | O63: ='RFM input'!O314*(1+vanilla8)^0.5 -> 0 | P63: ='RFM input'!P314*(1+vanilla9)^0.5 -> 0 | Q63: ='RFM input'!Q314*(1+vanilla10)^0.5 -> 0
D64: =Asset53 -> 2019-20 to 2023-24 Information & Communication Technology | H64: ='RFM input'!H315*(1+vanilla1)^0.5 -> 0 | I64: ='RFM input'!I315*(1+vanilla2)^0.5 -> 0 | J64: ='RFM input'!J315*(1+vanilla3)^0.5 -> 0 | K64: ='RFM input'!K315*(1+vanilla4)^0.5 -> 0 | L64: ='RFM input'!L315*(1+vanilla5)^0.5 -> 0 | M64: ='RFM input'!M315*(1+vanilla6)^0.5 -> 0 | N64: ='RFM input'!N315*(1+vanilla7)^0.5 -> 0 | O64: ='RFM input'!O315*(1+vanilla8)^0.5 -> 0 | P64: ='RFM input'!P315*(1+vanilla9)^0.5 -> 0 | Q64: ='RFM input'!Q315*(1+vanilla10)^0.5 -> 0
D65: =Asset54 -> 2019-20 to 2023-24 Furniture, fittings, plant and equipment | H65: ='RFM input'!H316*(1+vanilla1)^0.5 -> 0 | I65: ='RFM input'!I316*(1+vanilla2)^0.5 -> 0 | J65: ='RFM input'!J316*(1+vanilla3)^0.5 -> 0 | K65: ='RFM input'!K316*(1+vanilla4)^0.5 -> 0 | L65: ='RFM input'!L316*(1+vanilla5)^0.5 -> 0 | M65: ='RFM input'!M316*(1+vanilla6)^0.5 -> 0 | N65: ='RFM input'!N316*(1+vanilla7)^0.5 -> 0 | O65: ='RFM input'!O316*(1+vanilla8)^0.5 -> 0 | P65: ='RFM input'!P316*(1+vanilla9)^0.5 -> 0 | Q65: ='RFM input'!Q316*(1+vanilla10)^0.5 -> 0
D66: =Asset55 -> 2019-20 to 2023-24 Motor Vehicles | H66: ='RFM input'!H317*(1+vanilla1)^0.5 -> 0 | I66: ='RFM input'!I317*(1+vanilla2)^0.5 -> 0 | J66: ='RFM input'!J317*(1+vanilla3)^0.5 -> 0 | K66: ='RFM input'!K317*(1+vanilla4)^0.5 -> 0 | L66: ='RFM input'!L317*(1+vanilla5)^0.5 -> 0 | M66: ='RFM input'!M317*(1+vanilla6)^0.5 -> 0 | N66: ='RFM input'!N317*(1+vanilla7)^0.5 -> 0 | O66: ='RFM input'!O317*(1+vanilla8)^0.5 -> 0 | P66: ='RFM input'!P317*(1+vanilla9)^0.5 -> 0 | Q66: ='RFM input'!Q317*(1+vanilla10)^0.5 -> 0
D67: =Asset56 -> 2019-20 to 2023-24 Buildings | H67: ='RFM input'!H318*(1+vanilla1)^0.5 -> 0 | I67: ='RFM input'!I318*(1+vanilla2)^0.5 -> 0 | J67: ='RFM input'!J318*(1+vanilla3)^0.5 -> 0 | K67: ='RFM input'!K318*(1+vanilla4)^0.5 -> 0 | L67: ='RFM input'!L318*(1+vanilla5)^0.5 -> 0 | M67: ='RFM input'!M318*(1+vanilla6)^0.5 -> 0 | N67: ='RFM input'!N318*(1+vanilla7)^0.5 -> 0 | O67: ='RFM input'!O318*(1+vanilla8)^0.5 -> 0 | P67: ='RFM input'!P318*(1+vanilla9)^0.5 -> 0 | Q67: ='RFM input'!Q318*(1+vanilla10)^0.5 -> 0
D68: =Asset57 -> 2019-20 to 2023-24 Land (non-system) | H68: ='RFM input'!H319*(1+vanilla1)^0.5 -> 0 | I68: ='RFM input'!I319*(1+vanilla2)^0.5 -> 0 | J68: ='RFM input'!J319*(1+vanilla3)^0.5 -> 0 | K68: ='RFM input'!K319*(1+vanilla4)^0.5 -> 0 | L68: ='RFM input'!L319*(1+vanilla5)^0.5 -> 0 | M68: ='RFM input'!M319*(1+vanilla6)^0.5 -> 0 | N68: ='RFM input'!N319*(1+vanilla7)^0.5 -> 0 | O68: ='RFM input'!O319*(1+vanilla8)^0.5 -> 0 | P68: ='RFM input'!P319*(1+vanilla9)^0.5 -> 0 | Q68: ='RFM input'!Q319*(1+vanilla10)^0.5 -> 0
D69: =Asset58 -> 2019-20 to 2023-24 Other non system assets | H69: ='RFM input'!H320*(1+vanilla1)^0.5 -> 0 | I69: ='RFM input'!I320*(1+vanilla2)^0.5 -> 0 | J69: ='RFM input'!J320*(1+vanilla3)^0.5 -> 0 | K69: ='RFM input'!K320*(1+vanilla4)^0.5 -> 0 | L69: ='RFM input'!L320*(1+vanilla5)^0.5 -> 0 | M69: ='RFM input'!M320*(1+vanilla6)^0.5 -> 0 | N69: ='RFM input'!N320*(1+vanilla7)^0.5 -> 0 | O69: ='RFM input'!O320*(1+vanilla8)^0.5 -> 0 | P69: ='RFM input'!P320*(1+vanilla9)^0.5 -> 0 | Q69: ='RFM input'!Q320*(1+vanilla10)^0.5 -> 0
D70: =Asset59 -> 2019-20 to 2023-24 Blank 1 | H70: ='RFM input'!H321*(1+vanilla1)^0.5 -> 0 | I70: ='RFM input'!I321*(1+vanilla2)^0.5 -> 0 | J70: ='RFM input'!J321*(1+vanilla3)^0.5 -> 0 | K70: ='RFM input'!K321*(1+vanilla4)^0.5 -> 0 | L70: ='RFM input'!L321*(1+vanilla5)^0.5 -> 0 | M70: ='RFM input'!M321*(1+vanilla6)^0.5 -> 0 | N70: ='RFM input'!N321*(1+vanilla7)^0.5 -> 0 | O70: ='RFM input'!O321*(1+vanilla8)^0.5 -> 0 | P70: ='RFM input'!P321*(1+vanilla9)^0.5 -> 0 | Q70: ='RFM input'!Q321*(1+vanilla10)^0.5 -> 0
D71: =Asset60 -> 2019-20 to 2023-24 Blank 2 | H71: ='RFM input'!H322*(1+vanilla1)^0.5 -> 0 | I71: ='RFM input'!I322*(1+vanilla2)^0.5 -> 0 | J71: ='RFM input'!J322*(1+vanilla3)^0.5 -> 0 | K71: ='RFM input'!K322*(1+vanilla4)^0.5 -> 0 | L71: ='RFM input'!L322*(1+vanilla5)^0.5 -> 0 | M71: ='RFM input'!M322*(1+vanilla6)^0.5 -> 0 | N71: ='RFM input'!N322*(1+vanilla7)^0.5 -> 0 | O71: ='RFM input'!O322*(1+vanilla8)^0.5 -> 0 | P71: ='RFM input'!P322*(1+vanilla9)^0.5 -> 0 | Q71: ='RFM input'!Q322*(1+vanilla10)^0.5 -> 0
C73: ="Real "&'RFM input'!$H$344& " Straight-line Depreciation" -> Real Forecast Straight-line Depreciation | H73: =H86+H99+H112+H125+H138+H151+H164+H177+H190+H203+H216+H229+H242+H255+H268+H281+H294+H307+H320+H333+H346+H359+H372+H385+H398+H411+H424+H437+H450+H463+H476+H489+H502+H515+H528+H541+H554+H567+H580+H593+H606+H619+H632+H645+H658+H671+H684+H697+H710+H723+H736+H749+H762+H775+H788+H801+H814+H827+H840+H853 -> -197.4429911 | I73: =I86+I99+I112+I125+I138+I151+I164+I177+I190+I203+I216+I229+I242+I255+I268+I281+I294+I307+I320+I333+I346+I359+I372+I385+I398+I411+I424+I437+I450+I463+I476+I489+I502+I515+I528+I541+I554+I567+I580+I593+I606+I619+I632+I645+I658+I671+I684+I697+I710+I723+I736+I749+I762+I775+I788+I801+I814+I827+I840+I853 -> -210.2696352 | J73: -221.6048894 | K73: -224.946402 | L73: -229.7916998 | M73: =M86+M99+M112+M125+M138+M151+M164+M177+M190+M203+M216+M229+M242+M255+M268+M281+M294+M307+M320+M333+M346+M359+M372+M385+M398+M411+M424+M437+M450+M463+M476+M489+M502+M515+M528+M541+M554+M567+M580+M593+M606+M619+M632+M645+M658+M671+M684+M697+M710+M723+M736+M749+M762+M775+M788+M801+M814+M827+M840+M853 -> 0 | N73: 0 | O73: 0 | P73: 0 | Q73: 0
C74: =Asset1 -> 2013-14 ORAB Sub-transmission lines and cables | E74: Opening RAB | H74: =IF(H$3>A1remlife,A1value-SUM($G74:G74),IF(A1remlife="N/A","n/a",A1value/A1remlife)) -> 16.42289869 | I74: =IF(I$3>A1remlife,A1value-SUM($G74:H74),IF(A1remlife="N/A","n/a",A1value/A1remlife)) -> 16.42289869 | J74: =IF(J$3>A1remlife,A1value-SUM($G74:I74),IF(A1remlife="N/A","n/a",A1value/A1remlife)) -> 16.42289869 | K74: =IF(K$3>A1remlife,A1value-SUM($G74:J74),IF(A1remlife="N/A","n/a",A1value/A1remlife)) -> 16.42289869 | L74: =IF(L$3>A1remlife,A1value-SUM($G74:K74),IF(A1remlife="N/A","n/a",A1value/A1remlife)) -> 16.42289869 | M74: =IF(M$3>A1remlife,A1value-SUM($G74:L74),IF(A1remlife="N/A","n/a",A1value/A1remlife)) -> 16.42289869 | N74: =IF(N$3>A1remlife,A1value-SUM($G74:M74),IF(A1remlife="N/A","n/a",A1value/A1remlife)) -> 16.42289869 | O74: =IF(O$3>A1remlife,A1value-SUM($G74:N74),IF(A1remlife="N/A","n/a",A1value/A1remlife)) -> 16.42289869 | P74: =IF(P$3>A1remlife,A1value-SUM($G74:O74),IF(A1remlife="N/A","n/a",A1value/A1remlife)) -> 16.42289869 | Q74: =IF(Q$3>A1remlife,A1value-SUM($G74:P74),IF(A1remlife="N/A","n/a",A1value/A1remlife)) -> 16.42289869
E75: Capex in year
F76: 1 | I76: =IF(A1stdlife="n/a","n/a",IF(I$3>(A1stdlife+$F76),('RFM input'!$H$263*(1+vanilla1)^0.5)-SUM($H76:H76),('RFM input'!$H$263*(1+vanilla1)^0.5)/A1stdlife)) -> 0 | J76: =IF(A1stdlife="n/a","n/a",IF(J$3>(A1stdlife+$F76),('RFM input'!$H$263*(1+vanilla1)^0.5)-SUM($H76:I76),('RFM input'!$H$263*(1+vanilla1)^0.5)/A1stdlife)) -> 0 | K76: =IF(A1stdlife="n/a","n/a",IF(K$3>(A1stdlife+$F76),('RFM input'!$H$263*(1+vanilla1)^0.5)-SUM($H76:J76),('RFM input'!$H$263*(1+vanilla1)^0.5)/A1stdlife)) -> 0 | L76: =IF(A1stdlife="n/a","n/a",IF(L$3>(A1stdlife+$F76),('RFM input'!$H$263*(1+vanilla1)^0.5)-SUM($H76:K76),('RFM input'!$H$263*(1+vanilla1)^0.5)/A1stdlife)) -> 0 | M76: =IF(A1stdlife="n/a","n/a",IF(M$3>(A1stdlife+$F76),('RFM input'!$H$263*(1+vanilla1)^0.5)-SUM($H76:L76),('RFM input'!$H$263*(1+vanilla1)^0.5)/A1stdlife)) -> 0 | N76: =IF(A1stdlife="n/a","n/a",IF(N$3>(A1stdlife+$F76),('RFM input'!$H$263*(1+vanilla1)^0.5)-SUM($H76:M76),('RFM input'!$H$263*(1+vanilla1)^0.5)/A1stdlife)) -> 0 | O76: =IF(A1stdlife="n/a","n/a",IF(O$3>(A1stdlife+$F76),('RFM input'!$H$263*(1+vanilla1)^0.5)-SUM($H76:N76),('RFM input'!$H$263*(1+vanilla1)^0.5)/A1stdlife)) -> 0 | P76: =IF(A1stdlife="n/a","n/a",IF(P$3>(A1stdlife+$F76),('RFM input'!$H$263*(1+vanilla1)^0.5)-SUM($H76:O76),('RFM input'!$H$263*(1+vanilla1)^0.5)/A1stdlife)) -> 0 | Q76: =IF(A1stdlife="n/a","n/a",IF(Q$3>(A1stdlife+$F76),('RFM input'!$H$263*(1+vanilla1)^0.5)-SUM($H76:P76),('RFM input'!$H$263*(1+vanilla1)^0.5)/A1stdlife)) -> 0
F77: 2 | J77: =IF(A1stdlife="n/a","n/a",IF(J$3>(A1stdlife+$F77),('RFM input'!$I$263*(1+vanilla2)^0.5)-SUM($I77:I77),('RFM input'!$I$263*(1+vanilla2)^0.5)/A1stdlife)) -> 0 | K77: =IF(A1stdlife="n/a","n/a",IF(K$3>(A1stdlife+$F77),('RFM input'!$I$263*(1+vanilla2)^0.5)-SUM($I77:J77),('RFM input'!$I$263*(1+vanilla2)^0.5)/A1stdlife)) -> 0 | L77: =IF(A1stdlife="n/a","n/a",IF(L$3>(A1stdlife+$F77),('RFM input'!$I$263*(1+vanilla2)^0.5)-SUM($I77:K77),('RFM input'!$I$263*(1+vanilla2)^0.5)/A1stdlife)) -> 0 | M77: =IF(A1stdlife="n/a","n/a",IF(M$3>(A1stdlife+$F77),('RFM input'!$I$263*(1+vanilla2)^0.5)-SUM($I77:L77),('RFM input'!$I$263*(1+vanilla2)^0.5)/A1stdlife)) -> 0 | N77: =IF(A1stdlife="n/a","n/a",IF(N$3>(A1stdlife+$F77),('RFM input'!$I$263*(1+vanilla2)^0.5)-SUM($I77:M77),('RFM input'!$I$263*(1+vanilla2)^0.5)/A1stdlife)) -> 0 | O77: =IF(A1stdlife="n/a","n/a",IF(O$3>(A1stdlife+$F77),('RFM input'!$I$263*(1+vanilla2)^0.5)-SUM($I77:N77),('RFM input'!$I$263*(1+vanilla2)^0.5)/A1stdlife)) -> 0 | P77: =IF(A1stdlife="n/a","n/a",IF(P$3>(A1stdlife+$F77),('RFM input'!$I$263*(1+vanilla2)^0.5)-SUM($I77:O77),('RFM input'!$I$263*(1+vanilla2)^0.5)/A1stdlife)) -> 0 | Q77: =IF(A1stdlife="n/a","n/a",IF(Q$3>(A1stdlife+$F77),('RFM input'!$I$263*(1+vanilla2)^0.5)-SUM($I77:P77),('RFM input'!$I$263*(1+vanilla2)^0.5)/A1stdlife)) -> 0
F78: 3 | K78: =IF(A1stdlife="n/a","n/a",IF(K$3>(A1stdlife+$F78),('RFM input'!$J$263*(1+vanilla3)^0.5)-SUM($J78:J78),('RFM input'!$J$263*(1+vanilla3)^0.5)/A1stdlife)) -> 0 | L78: =IF(A1stdlife="n/a","n/a",IF(L$3>(A1stdlife+$F78),('RFM input'!$J$263*(1+vanilla3)^0.5)-SUM($J78:K78),('RFM input'!$J$263*(1+vanilla3)^0.5)/A1stdlife)) -> 0 | M78: =IF(A1stdlife="n/a","n/a",IF(M$3>(A1stdlife+$F78),('RFM input'!$J$263*(1+vanilla3)^0.5)-SUM($J78:L78),('RFM input'!$J$263*(1+vanilla3)^0.5)/A1stdlife)) -> 0 | N78: =IF(A1stdlife="n/a","n/a",IF(N$3>(A1stdlife+$F78),('RFM input'!$J$263*(1+vanilla3)^0.5)-SUM($J78:M78),('RFM input'!$J$263*(1+vanilla3)^0.5)/A1stdlife)) -> 0 | O78: =IF(A1stdlife="n/a","n/a",IF(O$3>(A1stdlife+$F78),('RFM input'!$J$263*(1+vanilla3)^0.5)-SUM($J78:N78),('RFM input'!$J$263*(1+vanilla3)^0.5)/A1stdlife)) -> 0 | P78: =IF(A1stdlife="n/a","n/a",IF(P$3>(A1stdlife+$F78),('RFM input'!$J$263*(1+vanilla3)^0.5)-SUM($J78:O78),('RFM input'!$J$263*(1+vanilla3)^0.5)/A1stdlife)) -> 0 | Q78: =IF(A1stdlife="n/a","n/a",IF(Q$3>(A1stdlife+$F78),('RFM input'!$J$263*(1+vanilla3)^0.5)-SUM($J78:P78),('RFM input'!$J$263*(1+vanilla3)^0.5)/A1stdlife)) -> 0
F79: 4 | L79: =IF(A1stdlife="n/a","n/a",IF(L$3>(A1stdlife+$F79),('RFM input'!$K$263*(1+vanilla4)^0.5)-SUM($K79:K79),('RFM input'!$K$263*(1+vanilla4)^0.5)/A1stdlife)) -> 0 | M79: =IF(A1stdlife="n/a","n/a",IF(M$3>(A1stdlife+$F79),('RFM input'!$K$263*(1+vanilla4)^0.5)-SUM($K79:L79),('RFM input'!$K$263*(1+vanilla4)^0.5)/A1stdlife)) -> 0 | N79: =IF(A1stdlife="n/a","n/a",IF(N$3>(A1stdlife+$F79),('RFM input'!$K$263*(1+vanilla4)^0.5)-SUM($K79:M79),('RFM input'!$K$263*(1+vanilla4)^0.5)/A1stdlife)) -> 0 | O79: =IF(A1stdlife="n/a","n/a",IF(O$3>(A1stdlife+$F79),('RFM input'!$K$263*(1+vanilla4)^0.5)-SUM($K79:N79),('RFM input'!$K$263*(1+vanilla4)^0.5)/A1stdlife)) -> 0 | P79: =IF(A1stdlife="n/a","n/a",IF(P$3>(A1stdlife+$F79),('RFM input'!$K$263*(1+vanilla4)^0.5)-SUM($K79:O79),('RFM input'!$K$263*(1+vanilla4)^0.5)/A1stdlife)) -> 0 | Q79: =IF(A1stdlife="n/a","n/a",IF(Q$3>(A1stdlife+$F79),('RFM input'!$K$263*(1+vanilla4)^0.5)-SUM($K79:P79),('RFM input'!$K$263*(1+vanilla4)^0.5)/A1stdlife)) -> 0
F80: 5 | M80: =IF(A1stdlife="n/a","n/a",IF(M$3>(A1stdlife+$F80),('RFM input'!$L$263*(1+vanilla5)^0.5)-SUM($L80:L80),('RFM input'!$L$263*(1+vanilla5)^0.5)/A1stdlife)) -> 0 | N80: =IF(A1stdlife="n/a","n/a",IF(N$3>(A1stdlife+$F80),('RFM input'!$L$263*(1+vanilla5)^0.5)-SUM($L80:M80),('RFM input'!$L$263*(1+vanilla5)^0.5)/A1stdlife)) -> 0 | O80: =IF(A1stdlife="n/a","n/a",IF(O$3>(A1stdlife+$F80),('RFM input'!$L$263*(1+vanilla5)^0.5)-SUM($L80:N80),('RFM input'!$L$263*(1+vanilla5)^0.5)/A1stdlife)) -> 0 | P80: =IF(A1stdlife="n/a","n/a",IF(P$3>(A1stdlife+$F80),('RFM input'!$L$263*(1+vanilla5)^0.5)-SUM($L80:O80),('RFM input'!$L$263*(1+vanilla5)^0.5)/A1stdlife)) -> 0 | Q80: =IF(A1stdlife="n/a","n/a",IF(Q$3>(A1stdlife+$F80),('RFM input'!$L$263*(1+vanilla5)^0.5)-SUM($L80:P80),('RFM input'!$L$263*(1+vanilla5)^0.5)/A1stdlife)) -> 0
F81: 6 | N81: =IF(A1stdlife="n/a","n/a",IF(N$3>(A1stdlife+$F81),('RFM input'!$M$263*(1+vanilla6)^0.5)-SUM($M81:M81),('RFM input'!$M$263*(1+vanilla6)^0.5)/A1stdlife)) -> 0 | O81: =IF(A1stdlife="n/a","n/a",IF(O$3>(A1stdlife+$F81),('RFM input'!$M$263*(1+vanilla6)^0.5)-SUM($M81:N81),('RFM input'!$M$263*(1+vanilla6)^0.5)/A1stdlife)) -> 0 | P81: =IF(A1stdlife="n/a","n/a",IF(P$3>(A1stdlife+$F81),('RFM input'!$M$263*(1+vanilla6)^0.5)-SUM($M81:O81),('RFM input'!$M$263*(1+vanilla6)^0.5)/A1stdlife)) -> 0 | Q81: =IF(A1stdlife="n/a","n/a",IF(Q$3>(A1stdlife+$F81),('RFM input'!$M$263*(1+vanilla6)^0.5)-SUM($M81:P81),('RFM input'!$M$263*(1+vanilla6)^0.5)/A1stdlife)) -> 0
F82: 7 | O82: =IF(A1stdlife="n/a","n/a",IF(O$3>(A1stdlife+$F82),('RFM input'!$N$263*(1+vanilla7)^0.5)-SUM($N82:N82),('RFM input'!$N$263*(1+vanilla7)^0.5)/A1stdlife)) -> 0 | P82: =IF(A1stdlife="n/a","n/a",IF(P$3>(A1stdlife+$F82),('RFM input'!$N$263*(1+vanilla7)^0.5)-SUM($N82:O82),('RFM input'!$N$263*(1+vanilla7)^0.5)/A1stdlife)) -> 0 | Q82: =IF(A1stdlife="n/a","n/a",IF(Q$3>(A1stdlife+$F82),('RFM input'!$N$263*(1+vanilla7)^0.5)-SUM($N82:P82),('RFM input'!$N$263*(1+vanilla7)^0.5)/A1stdlife)) -> 0
F83: 8 | P83: =IF(A1stdlife="n/a","n/a",IF(P$3>(A1stdlife+$F83),('RFM input'!$O$263*(1+vanilla8)^0.5)-SUM($O83:O83),('RFM input'!$O$263*(1+vanilla8)^0.5)/A1stdlife)) -> 0 | Q83: =IF(A1stdlife="n/a","n/a",IF(Q$3>(A1stdlife+$F83),('RFM input'!$O$263*(1+vanilla8)^0.5)-SUM($O83:P83),('RFM input'!$O$263*(1+vanilla8)^0.5)/A1stdlife)) -> 0
F84: 9 | Q84: =IF(A1stdlife="n/a","n/a",IF(Q$3>(A1stdlife+$F84),('RFM input'!$P$263*(1+vanilla9)^0.5)-SUM($P84:P84),('RFM input'!$P$263*(1+vanilla9)^0.5)/A1stdlife)) -> 0
F85: 10
D86: =Asset1 -> 2013-14 ORAB Sub-transmission lines and cables | H86: =IF('RFM input'!$F$343='RFM input'!$H$342,-'RFM input'!H348,-SUM(H74:H85)) -> -16.42289869 | I86: =IF('RFM input'!$F$343='RFM input'!$H$342,-'RFM input'!I348,-SUM(I74:I85)) -> -16.42289869 | J86: =IF(COUNT($H86:I86)>='RFM input'!$W$7,0,IF('RFM input'!$F$343='RFM input'!$H$342,-'RFM input'!J348,-SUM(J74:J85))) -> -16.42289869 | K86: =IF(COUNT($H86:J86)>='RFM input'!$W$7,0,IF('RFM input'!$F$343='RFM input'!$H$342,-'RFM input'!K348,-SUM(K74:K85))) -> -16.42289869 | L86: =IF(COUNT($H86:K86)>='RFM input'!$W$7,0,IF('RFM input'!$F$343='RFM input'!$H$342,-'RFM input'!L348,-SUM(L74:L85))) -> -16.42289869 | M86: =IF(COUNT($H86:L86)>='RFM input'!$W$7,0,IF('RFM input'!$F$343='RFM input'!$H$342,-'RFM input'!M348,-SUM(M74:M85))) -> 0 | N86: =IF(COUNT($H86:M86)>='RFM input'!$W$7,0,IF('RFM input'!$F$343='RFM input'!$H$342,-'RFM input'!N348,-SUM(N74:N85))) -> 0 | O86: =IF(COUNT($H86:N86)>='RFM input'!$W$7,0,IF('RFM input'!$F$343='RFM input'!$H$342,-'RFM input'!O348,-SUM(O74:O85))) -> 0 | P86: =IF(COUNT($H86:O86)>='RFM input'!$W$7,0,IF('RFM input'!$F$343='RFM input'!$H$342,-'RFM input'!P348,-SUM(P74:P85))) -> 0 | Q86: =IF(COUNT($H86:P86)>='RFM input'!$W$7,0,IF('RFM input'!$F$343='RFM input'!$H$342,-'RFM input'!Q348,-SUM(Q74:Q85))) -> 0
C87: =Asset2 -> 2013-14 ORAB Distribution lines and cables | E87: Opening RAB | H87: =IF(H$3>A2remlife,A2value-SUM($G87:G87),IF(A2remlife="N/A","n/a",A2value/A2remlife)) -> 30.73051343 | I87: =IF(I$3>A2remlife,A2value-SUM($G87:H87),IF(A2remlife="N/A","n/a",A2value/A2remlife)) -> 30.73051343 | J87: =IF(J$3>A2remlife,A2value-SUM($G87:I87),IF(A2remlife="N/A","n/a",A2value/A2remlife)) -> 30.73051343 | K87: =IF(K$3>A2remlife,A2value-SUM($G87:J87),IF(A2remlife="N/A","n/a",A2value/A2remlife)) -> 30.73051343 | L87: =IF(L$3>A2remlife,A2value-SUM($G87:K87),IF(A2remlife="N/A","n/a",A2value/A2remlife)) -> 30.73051343 | M87: =IF(M$3>A2remlife,A2value-SUM($G87:L87),IF(A2remlife="N/A","n/a",A2value/A2remlife)) -> 30.73051343 | N87: =IF(N$3>A2remlife,A2value-SUM($G87:M87),IF(A2remlife="N/A","n/a",A2value/A2remlife)) -> 30.73051343 | O87: =IF(O$3>A2remlife,A2value-SUM($G87:N87),IF(A2remlife="N/A","n/a",A2value/A2remlife)) -> 30.73051343 | P87: =IF(P$3>A2remlife,A2value-SUM($G87:O87),IF(A2remlife="N/A","n/a",A2value/A2remlife)) -> 30.73051343 | Q87: =IF(Q$3>A2remlife,A2value-SUM($G87:P87),IF(A2remlife="N/A","n/a",A2value/A2remlife)) -> 30.73051343
E88: Capex in year
F89: 1 | I89: =IF(A2stdlife="n/a","n/a",IF(I$3>(A2stdlife+$F89),('RFM input'!$H$264*(1+vanilla1)^0.5)-SUM($H89:H89),('RFM input'!$H$264*(1+vanilla1)^0.5)/A2stdlife)) -> 0 | J89: =IF(A2stdlife="n/a","n/a",IF(J$3>(A2stdlife+$F89),('RFM input'!$H$264*(1+vanilla1)^0.5)-SUM($H89:I89),('RFM input'!$H$264*(1+vanilla1)^0.5)/A2stdlife)) -> 0 | K89: =IF(A2stdlife="n/a","n/a",IF(K$3>(A2stdlife+$F89),('RFM input'!$H$264*(1+vanilla1)^0.5)-SUM($H89:J89),('RFM input'!$H$264*(1+vanilla1)^0.5)/A2stdlife)) -> 0 | L89: =IF(A2stdlife="n/a","n/a",IF(L$3>(A2stdlife+$F89),('RFM input'!$H$264*(1+vanilla1)^0.5)-SUM($H89:K89),('RFM input'!$H$264*(1+vanilla1)^0.5)/A2stdlife)) -> 0 | M89: =IF(A2stdlife="n/a","n/a",IF(M$3>(A2stdlife+$F89),('RFM input'!$H$264*(1+vanilla1)^0.5)-SUM($H89:L89),('RFM input'!$H$264*(1+vanilla1)^0.5)/A2stdlife)) -> 0 | N89: =IF(A2stdlife="n/a","n/a",IF(N$3>(A2stdlife+$F89),('RFM input'!$H$264*(1+vanilla1)^0.5)-SUM($H89:M89),('RFM input'!$H$264*(1+vanilla1)^0.5)/A2stdlife)) -> 0 | O89: =IF(A2stdlife="n/a","n/a",IF(O$3>(A2stdlife+$F89),('RFM input'!$H$264*(1+vanilla1)^0.5)-SUM($H89:N89),('RFM input'!$H$264*(1+vanilla1)^0.5)/A2stdlife)) -> 0 | P89: =IF(A2stdlife="n/a","n/a",IF(P$3>(A2stdlife+$F89),('RFM input'!$H$264*(1+vanilla1)^0.5)-SUM($H89:O89),('RFM input'!$H$264*(1+vanilla1)^0.5)/A2stdlife)) -> 0 | Q89: =IF(A2stdlife="n/a","n/a",IF(Q$3>(A2stdlife+$F89),('RFM input'!$H$264*(1+vanilla1)^0.5)-SUM($H89:P89),('RFM input'!$H$264*(1+vanilla1)^0.5)/A2stdlife)) -> 0
F90: 2 | J90: =IF(A2stdlife="n/a","n/a",IF(J$3>(A2stdlife+$F90),('RFM input'!$I$264*(1+vanilla2)^0.5)-SUM($I90:I90),('RFM input'!$I$264*(1+vanilla2)^0.5)/A2stdlife)) -> 0 | K90: =IF(A2stdlife="n/a","n/a",IF(K$3>(A2stdlife+$F90),('RFM input'!$I$264*(1+vanilla2)^0.5)-SUM($I90:J90),('RFM input'!$I$264*(1+vanilla2)^0.5)/A2stdlife)) -> 0 | L90: =IF(A2stdlife="n/a","n/a",IF(L$3>(A2stdlife+$F90),('RFM input'!$I$264*(1+vanilla2)^0.5)-SUM($I90:K90),('RFM input'!$I$264*(1+vanilla2)^0.5)/A2stdlife)) -> 0 | M90: =IF(A2stdlife="n/a","n/a",IF(M$3>(A2stdlife+$F90),('RFM input'!$I$264*(1+vanilla2)^0.5)-SUM($I90:L90),('RFM input'!$I$264*(1+vanilla2)^0.5)/A2stdlife)) -> 0 | N90: =IF(A2stdlife="n/a","n/a",IF(N$3>(A2stdlife+$F90),('RFM input'!$I$264*(1+vanilla2)^0.5)-SUM($I90:M90),('RFM input'!$I$264*(1+vanilla2)^0.5)/A2stdlife)) -> 0 | O90: =IF(A2stdlife="n/a","n/a",IF(O$3>(A2stdlife+$F90),('RFM input'!$I$264*(1+vanilla2)^0.5)-SUM($I90:N90),('RFM input'!$I$264*(1+vanilla2)^0.5)/A2stdlife)) -> 0 | P90: =IF(A2stdlife="n/a","n/a",IF(P$3>(A2stdlife+$F90),('RFM input'!$I$264*(1+vanilla2)^0.5)-SUM($I90:O90),('RFM input'!$I$264*(1+vanilla2)^0.5)/A2stdlife)) -> 0 | Q90: =IF(A2stdlife="n/a","n/a",IF(Q$3>(A2stdlife+$F90),('RFM input'!$I$264*(1+vanilla2)^0.5)-SUM($I90:P90),('RFM input'!$I$264*(1+vanilla2)^0.5)/A2stdlife)) -> 0
F91: 3 | K91: =IF(A2stdlife="n/a","n/a",IF(K$3>(A2stdlife+$F91),('RFM input'!$J$264*(1+vanilla3)^0.5)-SUM($J91:J91),('RFM input'!$J$264*(1+vanilla3)^0.5)/A2stdlife)) -> 0 | L91: =IF(A2stdlife="n/a","n/a",IF(L$3>(A2stdlife+$F91),('RFM input'!$J$264*(1+vanilla3)^0.5)-SUM($J91:K91),('RFM input'!$J$264*(1+vanilla3)^0.5)/A2stdlife)) -> 0 | M91: =IF(A2stdlife="n/a","n/a",IF(M$3>(A2stdlife+$F91),('RFM input'!$J$264*(1+vanilla3)^0.5)-SUM($J91:L91),('RFM input'!$J$264*(1+vanilla3)^0.5)/A2stdlife)) -> 0 | N91: =IF(A2stdlife="n/a","n/a",IF(N$3>(A2stdlife+$F91),('RFM input'!$J$264*(1+vanilla3)^0.5)-SUM($J91:M91),('RFM input'!$J$264*(1+vanilla3)^0.5)/A2stdlife)) -> 0 | O91: =IF(A2stdlife="n/a","n/a",IF(O$3>(A2stdlife+$F91),('RFM input'!$J$264*(1+vanilla3)^0.5)-SUM($J91:N91),('RFM input'!$J$264*(1+vanilla3)^0.5)/A2stdlife)) -> 0 | P91: =IF(A2stdlife="n/a","n/a",IF(P$3>(A2stdlife+$F91),('RFM input'!$J$264*(1+vanilla3)^0.5)-SUM($J91:O91),('RFM input'!$J$264*(1+vanilla3)^0.5)/A2stdlife)) -> 0 | Q91: =IF(A2stdlife="n/a","n/a",IF(Q$3>(A2stdlife+$F91),('RFM input'!$J$264*(1+vanilla3)^0.5)-SUM($J91:P91),('RFM input'!$J$264*(1+vanilla3)^0.5)/A2stdlife)) -> 0
F92: 4 | L92: =IF(A2stdlife="n/a","n/a",IF(L$3>(A2stdlife+$F92),('RFM input'!$K$264*(1+vanilla4)^0.5)-SUM($K92:K92),('RFM input'!$K$264*(1+vanilla4)^0.5)/A2stdlife)) -> 0 | M92: =IF(A2stdlife="n/a","n/a",IF(M$3>(A2stdlife+$F92),('RFM input'!$K$264*(1+vanilla4)^0.5)-SUM($K92:L92),('RFM input'!$K$264*(1+vanilla4)^0.5)/A2stdlife)) -> 0 | N92: =IF(A2stdlife="n/a","n/a",IF(N$3>(A2stdlife+$F92),('RFM input'!$K$264*(1+vanilla4)^0.5)-SUM($K92:M92),('RFM input'!$K$264*(1+vanilla4)^0.5)/A2stdlife)) -> 0 | O92: =IF(A2stdlife="n/a","n/a",IF(O$3>(A2stdlife+$F92),('RFM input'!$K$264*(1+vanilla4)^0.5)-SUM($K92:N92),('RFM input'!$K$264*(1+vanilla4)^0.5)/A2stdlife)) -> 0 | P92: =IF(A2stdlife="n/a","n/a",IF(P$3>(A2stdlife+$F92),('RFM input'!$K$264*(1+vanilla4)^0.5)-SUM($K92:O92),('RFM input'!$K$264*(1+vanilla4)^0.5)/A2stdlife)) -> 0 | Q92: =IF(A2stdlife="n/a","n/a",IF(Q$3>(A2stdlife+$F92),('RFM input'!$K$264*(1+vanilla4)^0.5)-SUM($K92:P92),('RFM input'!$K$264*(1+vanilla4)^0.5)/A2stdlife)) -> 0
F93: 5 | M93: =IF(A2stdlife="n/a","n/a",IF(M$3>(A2stdlife+$F93),('RFM input'!$L$264*(1+vanilla5)^0.5)-SUM($L93:L93),('RFM input'!$L$264*(1+vanilla5)^0.5)/A2stdlife)) -> 0 | N93: =IF(A2stdlife="n/a","n/a",IF(N$3>(A2stdlife+$F93),('RFM input'!$L$264*(1+vanilla5)^0.5)-SUM($L93:M93),('RFM input'!$L$264*(1+vanilla5)^0.5)/A2stdlife)) -> 0 | O93: =IF(A2stdlife="n/a","n/a",IF(O$3>(A2stdlife+$F93),('RFM input'!$L$264*(1+vanilla5)^0.5)-SUM($L93:N93),('RFM input'!$L$264*(1+vanilla5)^0.5)/A2stdlife)) -> 0 | P93: =IF(A2stdlife="n/a","n/a",IF(P$3>(A2stdlife+$F93),('RFM input'!$L$264*(1+vanilla5)^0.5)-SUM($L93:O93),('RFM input'!$L$264*(1+vanilla5)^0.5)/A2stdlife)) -> 0 | Q93: =IF(A2stdlife="n/a","n/a",IF(Q$3>(A2stdlife+$F93),('RFM input'!$L$264*(1+vanilla5)^0.5)-SUM($L93:P93),('RFM input'!$L$264*(1+vanilla5)^0.5)/A2stdlife)) -> 0
F94: 6 | N94: =IF(A2stdlife="n/a","n/a",IF(N$3>(A2stdlife+$F94),('RFM input'!$M$264*(1+vanilla6)^0.5)-SUM($M94:M94),('RFM input'!$M$264*(1+vanilla6)^0.5)/A2stdlife)) -> 0 | O94: =IF(A2stdlife="n/a","n/a",IF(O$3>(A2stdlife+$F94),('RFM input'!$M$264*(1+vanilla6)^0.5)-SUM($M94:N94),('RFM input'!$M$264*(1+vanilla6)^0.5)/A2stdlife)) -> 0 | P94: =IF(A2stdlife="n/a","n/a",IF(P$3>(A2stdlife+$F94),('RFM input'!$M$264*(1+vanilla6)^0.5)-SUM($M94:O94),('RFM input'!$M$264*(1+vanilla6)^0.5)/A2stdlife)) -> 0 | Q94: =IF(A2stdlife="n/a","n/a",IF(Q$3>(A2stdlife+$F94),('RFM input'!$M$264*(1+vanilla6)^0.5)-SUM($M94:P94),('RFM input'!$M$264*(1+vanilla6)^0.5)/A2stdlife)) -> 0
F95: 7 | O95: =IF(A2stdlife="n/a","n/a",IF(O$3>(A2stdlife+$F95),('RFM input'!$N$264*(1+vanilla7)^0.5)-SUM($N95:N95),('RFM input'!$N$264*(1+vanilla7)^0.5)/A2stdlife)) -> 0 | P95: =IF(A2stdlife="n/a","n/a",IF(P$3>(A2stdlife+$F95),('RFM input'!$N$264*(1+vanilla7)^0.5)-SUM($N95:O95),('RFM input'!$N$264*(1+vanilla7)^0.5)/A2stdlife)) -> 0 | Q95: =IF(A2stdlife="n/a","n/a",IF(Q$3>(A2stdlife+$F95),('RFM input'!$N$264*(1+vanilla7)^0.5)-SUM($N95:P95),('RFM input'!$N$264*(1+vanilla7)^0.5)/A2stdlife)) -> 0
F96: 8 | P96: =IF(A2stdlife="n/a","n/a",IF(P$3>(A2stdlife+$F96),('RFM input'!$O$264*(1+vanilla8)^0.5)-SUM($O96:O96),('RFM input'!$O$264*(1+vanilla8)^0.5)/A2stdlife)) -> 0 | Q96: =IF(A2stdlife="n/a","n/a",IF(Q$3>(A2stdlife+$F96),('RFM input'!$O$264*(1+vanilla8)^0.5)-SUM($O96:P96),('RFM input'!$O$264*(1+vanilla8)^0.5)/A2stdlife)) -> 0
F97: 9 | Q97: =IF(A2stdlife="n/a","n/a",IF(Q$3>(A2stdlife+$F97),('RFM input'!$P$264*(1+vanilla9)^0.5)-SUM($P97:P97),('RFM input'!$P$264*(1+vanilla9)^0.5)/A2stdlife)) -> 0
F98: 10
D99: =Asset2 -> 2013-14 ORAB Distribution lines and cables | H99: =IF('RFM input'!$F$343='RFM input'!$H$342,-'RFM input'!H349,-SUM(H87:H98)) -> -30.73051343 | I99: =IF('RFM input'!$F$343='RFM input'!$H$342,-'RFM input'!I349,-SUM(I87:I98)) -> -30.73051343 | J99: =IF(COUNT($H99:I99)>='RFM input'!$W$7,0,IF('RFM input'!$F$343='RFM input'!$H$342,-'RFM input'!J349,-SUM(J87:J98))) -> -30.73051343 | K99: =IF(COUNT($H99:J99)>='RFM input'!$W$7,0,IF('RFM input'!$F$343='RFM input'!$H$342,-'RFM input'!K349,-SUM(K87:K98))) -> -30.73051343 | L99: =IF(COUNT($H99:K99)>='RFM input'!$W$7,0,IF('RFM input'!$F$343='RFM input'!$H$342,-'RFM input'!L349,-SUM(L87:L98))) -> -30.73051343 | M99: =IF(COUNT($H99:L99)>='RFM input'!$W$7,0,IF('RFM input'!$F$343='RFM input'!$H$342,-'RFM input'!M349,-SUM(M87:M98))) -> 0 | N99: =IF(COUNT($H99:M99)>='RFM input'!$W$7,0,IF('RFM input'!$F$343='RFM input'!$H$342,-'RFM input'!N349,-SUM(N87:N98))) -> 0 | O99: =IF(COUNT($H99:N99)>='RFM input'!$W$7,0,IF('RFM input'!$F$343='RFM input'!$H$342,-'RFM input'!O349,-SUM(O87:O98))) -> 0 | P99: =IF(COUNT($H99:O99)>='RFM input'!$W$7,0,IF('RFM input'!$F$343='RFM input'!$H$342,-'RFM input'!P349,-SUM(P87:P98))) -> 0 | Q99: =IF(COUNT($H99:P99)>='RFM input'!$W$7,0,IF('RFM input'!$F$343='RFM input'!$H$342,-'RFM input'!Q349,-SUM(Q87:Q98))) -> 0
C100: =Asset3 -> 2013-14 ORAB Substations | E100: Opening RAB | H100: =IF(H$3>A3remlife,A3value-SUM($G100:G100),IF(A3remlife="N/A","n/a",A3value/A3remlife)) -> 74.07089089 | I100: =IF(I$3>A3remlife,A3value-SUM($G100:H100),IF(A3remlife="N/A","n/a",A3value/A3remlife)) -> 74.07089089 | J100: =IF(J$3>A3remlife,A3value-SUM($G100:I100),IF(A3remlife="N/A","n/a",A3value/A3remlife)) -> 74.07089089 | K100: =IF(K$3>A3remlife,A3value-SUM($G100:J100),IF(A3remlife="N/A","n/a",A3value/A3remlife)) -> 74.07089089 | L100: =IF(L$3>A3remlife,A3value-SUM($G100:K100),IF(A3remlife="N/A","n/a",A3value/A3remlife)) -> 74.07089089 | M100: =IF(M$3>A3remlife,A3value-SUM($G100:L100),IF(A3remlife="N/A","n/a",A3value/A3remlife)) -> 74.07089089 | N100: =IF(N$3>A3remlife,A3value-SUM($G100:M100),IF(A3remlife="N/A","n/a",A3value/A3remlife)) -> 74.07089089 | O100: =IF(O$3>A3remlife,A3value-SUM($G100:N100),IF(A3remlife="N/A","n/a",A3value/A3remlife)) -> 74.07089089 | P100: =IF(P$3>A3remlife,A3value-SUM($G100:O100),IF(A3remlife="N/A","n/a",A3value/A3remlife)) -> 74.07089089 | Q100: =IF(Q$3>A3remlife,A3value-SUM($G100:P100),IF(A3remlife="N/A","n/a",A3value/A3remlife)) -> 74.07089089
E101: Capex in year
F102: 1 | I102: =IF(A3stdlife="n/a","n/a",IF(I$3>(A3stdlife+$F102),('RFM input'!$H$265*(1+vanilla1)^0.5)-SUM($H102:H102),('RFM input'!$H$265*(1+vanilla1)^0.5)/A3stdlife)) -> 0 | J102: =IF(A3stdlife="n/a","n/a",IF(J$3>(A3stdlife+$F102),('RFM input'!$H$265*(1+vanilla1)^0.5)-SUM($H102:I102),('RFM input'!$H$265*(1+vanilla1)^0.5)/A3stdlife)) -> 0 | K102: =IF(A3stdlife="n/a","n/a",IF(K$3>(A3stdlife+$F102),('RFM input'!$H$265*(1+vanilla1)^0.5)-SUM($H102:J102),('RFM input'!$H$265*(1+vanilla1)^0.5)/A3stdlife)) -> 0 | L102: =IF(A3stdlife="n/a","n/a",IF(L$3>(A3stdlife+$F102),('RFM input'!$H$265*(1+vanilla1)^0.5)-SUM($H102:K102),('RFM input'!$H$265*(1+vanilla1)^0.5)/A3stdlife)) -> 0 | M102: =IF(A3stdlife="n/a","n/a",IF(M$3>(A3stdlife+$F102),('RFM input'!$H$265*(1+vanilla1)^0.5)-SUM($H102:L102),('RFM input'!$H$265*(1+vanilla1)^0.5)/A3stdlife)) -> 0 | N102: =IF(A3stdlife="n/a","n/a",IF(N$3>(A3stdlife+$F102),('RFM input'!$H$265*(1+vanilla1)^0.5)-SUM($H102:M102),('RFM input'!$H$265*(1+vanilla1)^0.5)/A3stdlife)) -> 0 | O102: =IF(A3stdlife="n/a","n/a",IF(O$3>(A3stdlife+$F102),('RFM input'!$H$265*(1+vanilla1)^0.5)-SUM($H102:N102),('RFM input'!$H$265*(1+vanilla1)^0.5)/A3stdlife)) -> 0 | P102: =IF(A3stdlife="n/a","n/a",IF(P$3>(A3stdlife+$F102),('RFM input'!$H$265*(1+vanilla1)^0.5)-SUM($H102:O102),('RFM input'!$H$265*(1+vanilla1)^0.5)/A3stdlife)) -> 0 | Q102: =IF(A3stdlife="n/a","n/a",IF(Q$3>(A3stdlife+$F102),('RFM input'!$H$265*(1+vanilla1)^0.5)-SUM($H102:P102),('RFM input'!$H$265*(1+vanilla1)^0.5)/A3stdlife)) -> 0
F103: 2 | J103: =IF(A3stdlife="n/a","n/a",IF(J$3>(A3stdlife+$F103),('RFM input'!$I$265*(1+vanilla2)^0.5)-SUM($I103:I103),('RFM input'!$I$265*(1+vanilla2)^0.5)/A3stdlife)) -> 0 | K103: =IF(A3stdlife="n/a","n/a",IF(K$3>(A3stdlife+$F103),('RFM input'!$I$265*(1+vanilla2)^0.5)-SUM($I103:J103),('RFM input'!$I$265*(1+vanilla2)^0.5)/A3stdlife)) -> 0 | L103: =IF(A3stdlife="n/a","n/a",IF(L$3>(A3stdlife+$F103),('RFM input'!$I$265*(1+vanilla2)^0.5)-SUM($I103:K103),('RFM input'!$I$265*(1+vanilla2)^0.5)/A3stdlife)) -> 0 | M103: =IF(A3stdlife="n/a","n/a",IF(M$3>(A3stdlife+$F103),('RFM input'!$I$265*(1+vanilla2)^0.5)-SUM($I103:L103),('RFM input'!$I$265*(1+vanilla2)^0.5)/A3stdlife)) -> 0 | N103: =IF(A3stdlife="n/a","n/a",IF(N$3>(A3stdlife+$F103),('RFM input'!$I$265*(1+vanilla2)^0.5)-SUM($I103:M103),('RFM input'!$I$265*(1+vanilla2)^0.5)/A3stdlife)) -> 0 | O103: =IF(A3stdlife="n/a","n/a",IF(O$3>(A3stdlife+$F103),('RFM input'!$I$265*(1+vanilla2)^0.5)-SUM($I103:N103),('RFM input'!$I$265*(1+vanilla2)^0.5)/A3stdlife)) -> 0 | P103: =IF(A3stdlife="n/a","n/a",IF(P$3>(A3stdlife+$F103),('RFM input'!$I$265*(1+vanilla2)^0.5)-SUM($I103:O103),('RFM input'!$I$265*(1+vanilla2)^0.5)/A3stdlife)) -> 0 | Q103: =IF(A3stdlife="n/a","n/a",IF(Q$3>(A3stdlife+$F103),('RFM input'!$I$265*(1+vanilla2)^0.5)-SUM($I103:P103),('RFM input'!$I$265*(1+vanilla2)^0.5)/A3stdlife)) -> 0
F104: 3 | K104: =IF(A3stdlife="n/a","n/a",IF(K$3>(A3stdlife+$F104),('RFM input'!$J$265*(1+vanilla3)^0.5)-SUM($J104:J104),('RFM input'!$J$265*(1+vanilla3)^0.5)/A3stdlife)) -> 0 | L104: =IF(A3stdlife="n/a","n/a",IF(L$3>(A3stdlife+$F104),('RFM input'!$J$265*(1+vanilla3)^0.5)-SUM($J104:K104),('RFM input'!$J$265*(1+vanilla3)^0.5)/A3stdlife)) -> 0 | M104: =IF(A3stdlife="n/a","n/a",IF(M$3>(A3stdlife+$F104),('RFM input'!$J$265*(1+vanilla3)^0.5)-SUM($J104:L104),('RFM input'!$J$265*(1+vanilla3)^0.5)/A3stdlife)) -> 0 | N104: =IF(A3stdlife="n/a","n/a",IF(N$3>(A3stdlife+$F104),('RFM input'!$J$265*(1+vanilla3)^0.5)-SUM($J104:M104),('RFM input'!$J$265*(1+vanilla3)^0.5)/A3stdlife)) -> 0 | O104: =IF(A3stdlife="n/a","n/a",IF(O$3>(A3stdlife+$F104),('RFM input'!$J$265*(1+vanilla3)^0.5)-SUM($J104:N104),('RFM input'!$J$265*(1+vanilla3)^0.5)/A3stdlife)) -> 0 | P104: =IF(A3stdlife="n/a","n/a",IF(P$3>(A3stdlife+$F104),('RFM input'!$J$265*(1+vanilla3)^0.5)-SUM($J104:O104),('RFM input'!$J$265*(1+vanilla3)^0.5)/A3stdlife)) -> 0 | Q104: =IF(A3stdlife="n/a","n/a",IF(Q$3>(A3stdlife+$F104),('RFM input'!$J$265*(1+vanilla3)^0.5)-SUM($J104:P104),('RFM input'!$J$265*(1+vanilla3)^0.5)/A3stdlife)) -> 0
F105: 4 | L105: =IF(A3stdlife="n/a","n/a",IF(L$3>(A3stdlife+$F105),('RFM input'!$K$265*(1+vanilla4)^0.5)-SUM($K105:K105),('RFM input'!$K$265*(1+vanilla4)^0.5)/A3stdlife)) -> 0 | M105: =IF(A3stdlife="n/a","n/a",IF(M$3>(A3stdlife+$F105),('RFM input'!$K$265*(1+vanilla4)^0.5)-SUM($K105:L105),('RFM input'!$K$265*(1+vanilla4)^0.5)/A3stdlife)) -> 0 | N105: =IF(A3stdlife="n/a","n/a",IF(N$3>(A3stdlife+$F105),('RFM input'!$K$265*(1+vanilla4)^0.5)-SUM($K105:M105),('RFM input'!$K$265*(1+vanilla4)^0.5)/A3stdlife)) -> 0 | O105: =IF(A3stdlife="n/a","n/a",IF(O$3>(A3stdlife+$F105),('RFM input'!$K$265*(1+vanilla4)^0.5)-SUM($K105:N105),('RFM input'!$K$265*(1+vanilla4)^0.5)/A3stdlife)) -> 0 | P105: =IF(A3stdlife="n/a","n/a",IF(P$3>(A3stdlife+$F105),('RFM input'!$K$265*(1+vanilla4)^0.5)-SUM($K105:O105),('RFM input'!$K$265*(1+vanilla4)^0.5)/A3stdlife)) -> 0 | Q105: =IF(A3stdlife="n/a","n/a",IF(Q$3>(A3stdlife+$F105),('RFM input'!$K$265*(1+vanilla4)^0.5)-SUM($K105:P105),('RFM input'!$K$265*(1+vanilla4)^0.5)/A3stdlife)) -> 0
F106: 5 | M106: =IF(A3stdlife="n/a","n/a",IF(M$3>(A3stdlife+$F106),('RFM input'!$L$265*(1+vanilla5)^0.5)-SUM($L106:L106),('RFM input'!$L$265*(1+vanilla5)^0.5)/A3stdlife)) -> 0 | N106: =IF(A3stdlife="n/a","n/a",IF(N$3>(A3stdlife+$F106),('RFM input'!$L$265*(1+vanilla5)^0.5)-SUM($L106:M106),('RFM input'!$L$265*(1+vanilla5)^0.5)/A3stdlife)) -> 0 | O106: =IF(A3stdlife="n/a","n/a",IF(O$3>(A3stdlife+$F106),('RFM input'!$L$265*(1+vanilla5)^0.5)-SUM($L106:N106),('RFM input'!$L$265*(1+vanilla5)^0.5)/A3stdlife)) -> 0 | P106: =IF(A3stdlife="n/a","n/a",IF(P$3>(A3stdlife+$F106),('RFM input'!$L$265*(1+vanilla5)^0.5)-SUM($L106:O106),('RFM input'!$L$265*(1+vanilla5)^0.5)/A3stdlife)) -> 0 | Q106: =IF(A3stdlife="n/a","n/a",IF(Q$3>(A3stdlife+$F106),('RFM input'!$L$265*(1+vanilla5)^0.5)-SUM($L106:P106),('RFM input'!$L$265*(1+vanilla5)^0.5)/A3stdlife)) -> 0
F107: 6 | N107: =IF(A3stdlife="n/a","n/a",IF(N$3>(A3stdlife+$F107),('RFM input'!$M$265*(1+vanilla6)^0.5)-SUM($M107:M107),('RFM input'!$M$265*(1+vanilla6)^0.5)/A3stdlife)) -> 0 | O107: =IF(A3stdlife="n/a","n/a",IF(O$3>(A3stdlife+$F107),('RFM input'!$M$265*(1+vanilla6)^0.5)-SUM($M107:N107),('RFM input'!$M$265*(1+vanilla6)^0.5)/A3stdlife)) -> 0 | P107: =IF(A3stdlife="n/a","n/a",IF(P$3>(A3stdlife+$F107),('RFM input'!$M$265*(1+vanilla6)^0.5)-SUM($M107:O107),('RFM input'!$M$265*(1+vanilla6)^0.5)/A3stdlife)) -> 0 | Q107: =IF(A3stdlife="n/a","n/a",IF(Q$3>(A3stdlife+$F107),('RFM input'!$M$265*(1+vanilla6)^0.5)-SUM($M107:P107),('RFM input'!$M$265*(1+vanilla6)^0.5)/A3stdlife)) -> 0
F108: 7 | O108: =IF(A3stdlife="n/a","n/a",IF(O$3>(A3stdlife+$F108),('RFM input'!$N$265*(1+vanilla7)^0.5)-SUM($N108:N108),('RFM input'!$N$265*(1+vanilla7)^0.5)/A3stdlife)) -> 0 | P108: =IF(A3stdlife="n/a","n/a",IF(P$3>(A3stdlife+$F108),('RFM input'!$N$265*(1+vanilla7)^0.5)-SUM($N108:O108),('RFM input'!$N$265*(1+vanilla7)^0.5)/A3stdlife)) -> 0 | Q108: =IF(A3stdlife="n/a","n/a",IF(Q$3>(A3stdlife+$F108),('RFM input'!$N$265*(1+vanilla7)^0.5)-SUM($N108:P108),('RFM input'!$N$265*(1+vanilla7)^0.5)/A3stdlife)) -> 0
F109: 8 | P109: =IF(A3stdlife="n/a","n/a",IF(P$3>(A3stdlife+$F109),('RFM input'!$O$265*(1+vanilla8)^0.5)-SUM($O109:O109),('RFM input'!$O$265*(1+vanilla8)^0.5)/A3stdlife)) -> 0 | Q109: =IF(A3stdlife="n/a","n/a",IF(Q$3>(A3stdlife+$F109),('RFM input'!$O$265*(1+vanilla8)^0.5)-SUM($O109:P109),('RFM input'!$O$265*(1+vanilla8)^0.5)/A3stdlife)) -> 0
F110: 9 | Q110: =IF(A3stdlife="n/a","n/a",IF(Q$3>(A3stdlife+$F110),('RFM input'!$P$265*(1+vanilla9)^0.5)-SUM($P110:P110),('RFM input'!$P$265*(1+vanilla9)^0.5)/A3stdlife)) -> 0
F111: 10
D112: =Asset3 -> 2013-14 ORAB Substations | H112: =IF('RFM input'!$F$343='RFM input'!$H$342,-'RFM input'!H350,-SUM(H100:H111)) -> -74.07089089 | I112: =IF('RFM input'!$F$343='RFM input'!$H$342,-'RFM input'!I350,-SUM(I100:I111)) -> -74.07089089 | J112: =IF(COUNT($H112:I112)>='RFM input'!$W$7,0,IF('RFM input'!$F$343='RFM input'!$H$342,-'RFM input'!J350,-SUM(J100:J111))) -> -74.07089089 | K112: =IF(COUNT($H112:J112)>='RFM input'!$W$7,0,IF('RFM input'!$F$343='RFM input'!$H$342,-'RFM input'!K350,-SUM(K100:K111))) -> -74.07089089 | L112: =IF(COUNT($H112:K112)>='RFM input'!$W$7,0,IF('RFM input'!$F$343='RFM input'!$H$342,-'RFM input'!L350,-SUM(L100:L111))) -> -74.07089089 | M112: =IF(COUNT($H112:L112)>='RFM input'!$W$7,0,IF('RFM input'!$F$343='RFM input'!$H$342,-'RFM input'!M350,-SUM(M100:M111))) -> 0 | N112: =IF(COUNT($H112:M112)>='RFM input'!$W$7,0,IF('RFM input'!$F$343='RFM input'!$H$342,-'RFM input'!N350,-SUM(N100:N111))) -> 0 | O112: =IF(COUNT($H112:N112)>='RFM input'!$W$7,0,IF('RFM input'!$F$343='RFM input'!$H$342,-'RFM input'!O350,-SUM(O100:O111))) -> 0 | P112: =IF(COUNT($H112:O112)>='RFM input'!$W$7,0,IF('RFM input'!$F$343='RFM input'!$H$342,-'RFM input'!P350,-SUM(P100:P111))) -> 0 | Q112: =IF(COUNT($H112:P112)>='RFM input'!$W$7,0,IF('RFM input'!$F$343='RFM input'!$H$342,-'RFM input'!Q350,-SUM(Q100:Q111))) -> 0
C113: =Asset4 -> 2013-14 ORAB Transformers | E113: Opening RAB | H113: =IF(H$3>A4remlife,A4value-SUM($G113:G113),IF(A4remlife="N/A","n/a",A4value/A4remlife)) -> 19.69136069 | I113: =IF(I$3>A4remlife,A4value-SUM($G113:H113),IF(A4remlife="N/A","n/a",A4value/A4remlife)) -> 19.69136069 | J113: =IF(J$3>A4remlife,A4value-SUM($G113:I113),IF(A4remlife="N/A","n/a",A4value/A4remlife)) -> 19.69136069 | K113: =IF(K$3>A4remlife,A4value-SUM($G113:J113),IF(A4remlife="N/A","n/a",A4value/A4remlife)) -> 19.69136069 | L113: =IF(L$3>A4remlife,A4value-SUM($G113:K113),IF(A4remlife="N/A","n/a",A4value/A4remlife)) -> 19.69136069 | M113: =IF(M$3>A4remlife,A4value-SUM($G113:L113),IF(A4remlife="N/A","n/a",A4value/A4remlife)) -> 19.69136069 | N113: =IF(N$3>A4remlife,A4value-SUM($G113:M113),IF(A4remlife="N/A","n/a",A4value/A4remlife)) -> 19.69136069 | O113: =IF(O$3>A4remlife,A4value-SUM($G113:N113),IF(A4remlife="N/A","n/a",A4value/A4remlife)) -> 19.69136069 | P113: =IF(P$3>A4remlife,A4value-SUM($G113:O113),IF(A4remlife="N/A","n/a",A4value/A4remlife)) -> 19.69136069 | Q113: =IF(Q$3>A4remlife,A4value-SUM($G113:P113),IF(A4remlife="N/A","n/a",A4value/A4remlife)) -> 19.69136069
E114: Capex in year
F115: 1 | I115: =IF(A4stdlife="n/a","n/a",IF(I$3>(A4stdlife+$F115),('RFM input'!$H$266*(1+vanilla1)^0.5)-SUM($H115:H115),('RFM input'!$H$266*(1+vanilla1)^0.5)/A4stdlife)) -> 0 | J115: =IF(A4stdlife="n/a","n/a",IF(J$3>(A4stdlife+$F115),('RFM input'!$H$266*(1+vanilla1)^0.5)-SUM($H115:I115),('RFM input'!$H$266*(1+vanilla1)^0.5)/A4stdlife)) -> 0 | K115: =IF(A4stdlife="n/a","n/a",IF(K$3>(A4stdlife+$F115),('RFM input'!$H$266*(1+vanilla1)^0.5)-SUM($H115:J115),('RFM input'!$H$266*(1+vanilla1)^0.5)/A4stdlife)) -> 0 | L115: =IF(A4stdlife="n/a","n/a",IF(L$3>(A4stdlife+$F115),('RFM input'!$H$266*(1+vanilla1)^0.5)-SUM($H115:K115),('RFM input'!$H$266*(1+vanilla1)^0.5)/A4stdlife)) -> 0 | M115: =IF(A4stdlife="n/a","n/a",IF(M$3>(A4stdlife+$F115),('RFM input'!$H$266*(1+vanilla1)^0.5)-SUM($H115:L115),('RFM input'!$H$266*(1+vanilla1)^0.5)/A4stdlife)) -> 0 | N115: =IF(A4stdlife="n/a","n/a",IF(N$3>(A4stdlife+$F115),('RFM input'!$H$266*(1+vanilla1)^0.5)-SUM($H115:M115),('RFM input'!$H$266*(1+vanilla1)^0.5)/A4stdlife)) -> 0 | O115: =IF(A4stdlife="n/a","n/a",IF(O$3>(A4stdlife+$F115),('RFM input'!$H$266*(1+vanilla1)^0.5)-SUM($H115:N115),('RFM input'!$H$266*(1+vanilla1)^0.5)/A4stdlife)) -> 0 | P115: =IF(A4stdlife="n/a","n/a",IF(P$3>(A4stdlife+$F115),('RFM input'!$H$266*(1+vanilla1)^0.5)-SUM($H115:O115),('RFM input'!$H$266*(1+vanilla1)^0.5)/A4stdlife)) -> 0 | Q115: =IF(A4stdlife="n/a","n/a",IF(Q$3>(A4stdlife+$F115),('RFM input'!$H$266*(1+vanilla1)^0.5)-SUM($H115:P115),('RFM input'!$H$266*(1+vanilla1)^0.5)/A4stdlife)) -> 0
F116: 2 | J116: =IF(A4stdlife="n/a","n/a",IF(J$3>(A4stdlife+$F116),('RFM input'!$I$266*(1+vanilla2)^0.5)-SUM($I116:I116),('RFM input'!$I$266*(1+vanilla2)^0.5)/A4stdlife)) -> 0 | K116: =IF(A4stdlife="n/a","n/a",IF(K$3>(A4stdlife+$F116),('RFM input'!$I$266*(1+vanilla2)^0.5)-SUM($I116:J116),('RFM input'!$I$266*(1+vanilla2)^0.5)/A4stdlife)) -> 0 | L116: =IF(A4stdlife="n/a","n/a",IF(L$3>(A4stdlife+$F116),('RFM input'!$I$266*(1+vanilla2)^0.5)-SUM($I116:K116),('RFM input'!$I$266*(1+vanilla2)^0.5)/A4stdlife)) -> 0 | M116: =IF(A4stdlife="n/a","n/a",IF(M$3>(A4stdlife+$F116),('RFM input'!$I$266*(1+vanilla2)^0.5)-SUM($I116:L116),('RFM input'!$I$266*(1+vanilla2)^0.5)/A4stdlife)) -> 0 | N116: =IF(A4stdlife="n/a","n/a",IF(N$3>(A4stdlife+$F116),('RFM input'!$I$266*(1+vanilla2)^0.5)-SUM($I116:M116),('RFM input'!$I$266*(1+vanilla2)^0.5)/A4stdlife)) -> 0 | O116: =IF(A4stdlife="n/a","n/a",IF(O$3>(A4stdlife+$F116),('RFM input'!$I$266*(1+vanilla2)^0.5)-SUM($I116:N116),('RFM input'!$I$266*(1+vanilla2)^0.5)/A4stdlife)) -> 0 | P116: =IF(A4stdlife="n/a","n/a",IF(P$3>(A4stdlife+$F116),('RFM input'!$I$266*(1+vanilla2)^0.5)-SUM($I116:O116),('RFM input'!$I$266*(1+vanilla2)^0.5)/A4stdlife)) -> 0 | Q116: =IF(A4stdlife="n/a","n/a",IF(Q$3>(A4stdlife+$F116),('RFM input'!$I$266*(1+vanilla2)^0.5)-SUM($I116:P116),('RFM input'!$I$266*(1+vanilla2)^0.5)/A4stdlife)) -> 0
F117: 3 | K117: =IF(A4stdlife="n/a","n/a",IF(K$3>(A4stdlife+$F117),('RFM input'!$J$266*(1+vanilla3)^0.5)-SUM($J117:J117),('RFM input'!$J$266*(1+vanilla3)^0.5)/A4stdlife)) -> 0 | L117: =IF(A4stdlife="n/a","n/a",IF(L$3>(A4stdlife+$F117),('RFM input'!$J$266*(1+vanilla3)^0.5)-SUM($J117:K117),('RFM input'!$J$266*(1+vanilla3)^0.5)/A4stdlife)) -> 0 | M117: =IF(A4stdlife="n/a","n/a",IF(M$3>(A4stdlife+$F117),('RFM input'!$J$266*(1+vanilla3)^0.5)-SUM($J117:L117),('RFM input'!$J$266*(1+vanilla3)^0.5)/A4stdlife)) -> 0 | N117: =IF(A4stdlife="n/a","n/a",IF(N$3>(A4stdlife+$F117),('RFM input'!$J$266*(1+vanilla3)^0.5)-SUM($J117:M117),('RFM input'!$J$266*(1+vanilla3)^0.5)/A4stdlife)) -> 0 | O117: =IF(A4stdlife="n/a","n/a",IF(O$3>(A4stdlife+$F117),('RFM input'!$J$266*(1+vanilla3)^0.5)-SUM($J117:N117),('RFM input'!$J$266*(1+vanilla3)^0.5)/A4stdlife)) -> 0 | P117: =IF(A4stdlife="n/a","n/a",IF(P$3>(A4stdlife+$F117),('RFM input'!$J$266*(1+vanilla3)^0.5)-SUM($J117:O117),('RFM input'!$J$266*(1+vanilla3)^0.5)/A4stdlife)) -> 0 | Q117: =IF(A4stdlife="n/a","n/a",IF(Q$3>(A4stdlife+$F117),('RFM input'!$J$266*(1+vanilla3)^0.5)-SUM($J117:P117),('RFM input'!$J$266*(1+vanilla3)^0.5)/A4stdlife)) -> 0
F118: 4 | L118: =IF(A4stdlife="n/a","n/a",IF(L$3>(A4stdlife+$F118),('RFM input'!$K$266*(1+vanilla4)^0.5)-SUM($K118:K118),('RFM input'!$K$266*(1+vanilla4)^0.5)/A4stdlife)) -> 0 | M118: =IF(A4stdlife="n/a","n/a",IF(M$3>(A4stdlife+$F118),('RFM input'!$K$266*(1+vanilla4)^0.5)-SUM($K118:L118),('RFM input'!$K$266*(1+vanilla4)^0.5)/A4stdlife)) -> 0 | N118: =IF(A4stdlife="n/a","n/a",IF(N$3>(A4stdlife+$F118),('RFM input'!$K$266*(1+vanilla4)^0.5)-SUM($K118:M118),('RFM input'!$K$266*(1+vanilla4)^0.5)/A4stdlife)) -> 0 | O118: =IF(A4stdlife="n/a","n/a",IF(O$3>(A4stdlife+$F118),('RFM input'!$K$266*(1+vanilla4)^0.5)-SUM($K118:N118),('RFM input'!$K$266*(1+vanilla4)^0.5)/A4stdlife)) -> 0 | P118: =IF(A4stdlife="n/a","n/a",IF(P$3>(A4stdlife+$F118),('RFM input'!$K$266*(1+vanilla4)^0.5)-SUM($K118:O118),('RFM input'!$K$266*(1+vanilla4)^0.5)/A4stdlife)) -> 0 | Q118: =IF(A4stdlife="n/a","n/a",IF(Q$3>(A4stdlife+$F118),('RFM input'!$K$266*(1+vanilla4)^0.5)-SUM($K118:P118),('RFM input'!$K$266*(1+vanilla4)^0.5)/A4stdlife)) -> 0
F119: 5 | M119: =IF(A4stdlife="n/a","n/a",IF(M$3>(A4stdlife+$F119),('RFM input'!$L$266*(1+vanilla5)^0.5)-SUM($L119:L119),('RFM input'!$L$266*(1+vanilla5)^0.5)/A4stdlife)) -> 0 | N119: =IF(A4stdlife="n/a","n/a",IF(N$3>(A4stdlife+$F119),('RFM input'!$L$266*(1+vanilla5)^0.5)-SUM($L119:M119),('RFM input'!$L$266*(1+vanilla5)^0.5)/A4stdlife)) -> 0 | O119: =IF(A4stdlife="n/a","n/a",IF(O$3>(A4stdlife+$F119),('RFM input'!$L$266*(1+vanilla5)^0.5)-SUM($L119:N119),('RFM input'!$L$266*(1+vanilla5)^0.5)/A4stdlife)) -> 0 | P119: =IF(A4stdlife="n/a","n/a",IF(P$3>(A4stdlife+$F119),('RFM input'!$L$266*(1+vanilla5)^0.5)-SUM($L119:O119),('RFM input'!$L$266*(1+vanilla5)^0.5)/A4stdlife)) -> 0 | Q119: =IF(A4stdlife="n/a","n/a",IF(Q$3>(A4stdlife+$F119),('RFM input'!$L$266*(1+vanilla5)^0.5)-SUM($L119:P119),('RFM input'!$L$266*(1+vanilla5)^0.5)/A4stdlife)) -> 0
F120: 6 | N120: =IF(A4stdlife="n/a","n/a",IF(N$3>(A4stdlife+$F120),('RFM input'!$M$266*(1+vanilla6)^0.5)-SUM($M120:M120),('RFM input'!$M$266*(1+vanilla6)^0.5)/A4stdlife)) -> 0 | O120: =IF(A4stdlife="n/a","n/a",IF(O$3>(A4stdlife+$F120),('RFM input'!$M$266*(1+vanilla6)^0.5)-SUM($M120:N120),('RFM input'!$M$266*(1+vanilla6)^0.5)/A4stdlife)) -> 0 | P120: =IF(A4stdlife="n/a","n/a",IF(P$3>(A4stdlife+$F120),('RFM input'!$M$266*(1+vanilla6)^0.5)-SUM($M120:O120),('RFM input'!$M$266*(1+vanilla6)^0.5)/A4stdlife)) -> 0 | Q120: =IF(A4stdlife="n/a","n/a",IF(Q$3>(A4stdlife+$F120),('RFM input'!$M$266*(1+vanilla6)^0.5)-SUM($M120:P120),('RFM input'!$M$266*(1+vanilla6)^0.5)/A4stdlife)) -> 0
F121: 7 | O121: =IF(A4stdlife="n/a","n/a",IF(O$3>(A4stdlife+$F121),('RFM input'!$N$266*(1+vanilla7)^0.5)-SUM($N121:N121),('RFM input'!$N$266*(1+vanilla7)^0.5)/A4stdlife)) -> 0 | P121: =IF(A4stdlife="n/a","n/a",IF(P$3>(A4stdlife+$F121),('RFM input'!$N$266*(1+vanilla7)^0.5)-SUM($N121:O121),('RFM input'!$N$266*(1+vanilla7)^0.5)/A4stdlife)) -> 0 | Q121: =IF(A4stdlife="n/a","n/a",IF(Q$3>(A4stdlife+$F121),('RFM input'!$N$266*(1+vanilla7)^0.5)-SUM($N121:P121),('RFM input'!$N$266*(1+vanilla7)^0.5)/A4stdlife)) -> 0
F122: 8 | P122: =IF(A4stdlife="n/a","n/a",IF(P$3>(A4stdlife+$F122),('RFM input'!$O$266*(1+vanilla8)^0.5)-SUM($O122:O122),('RFM input'!$O$266*(1+vanilla8)^0.5)/A4stdlife)) -> 0 | Q122: =IF(A4stdlife="n/a","n/a",IF(Q$3>(A4stdlife+$F122),('RFM input'!$O$266*(1+vanilla8)^0.5)-SUM($O122:P122),('RFM input'!$O$266*(1+vanilla8)^0.5)/A4stdlife)) -> 0
F123: 9 | Q123: =IF(A4stdlife="n/a","n/a",IF(Q$3>(A4stdlife+$F123),('RFM input'!$P$266*(1+vanilla9)^0.5)-SUM($P123:P123),('RFM input'!$P$266*(1+vanilla9)^0.5)/A4stdlife)) -> 0
F124: 10
D125: =Asset4 -> 2013-14 ORAB Transformers | H125: =IF('RFM input'!$F$343='RFM input'!$H$342,-'RFM input'!H351,-SUM(H113:H124)) -> -19.69136069 | I125: =IF('RFM input'!$F$343='RFM input'!$H$342,-'RFM input'!I351,-SUM(I113:I124)) -> -19.69136069 | J125: =IF(COUNT($H125:I125)>='RFM input'!$W$7,0,IF('RFM input'!$F$343='RFM input'!$H$342,-'RFM input'!J351,-SUM(J113:J124))) -> -19.69136069 | K125: =IF(COUNT($H125:J125)>='RFM input'!$W$7,0,IF('RFM input'!$F$343='RFM input'!$H$342,-'RFM input'!K351,-SUM(K113:K124))) -> -19.69136069 | L125: =IF(COUNT($H125:K125)>='RFM input'!$W$7,0,IF('RFM input'!$F$343='RFM input'!$H$342,-'RFM input'!L351,-SUM(L113:L124))) -> -19.69136069 | M125: =IF(COUNT($H125:L125)>='RFM input'!$W$7,0,IF('RFM input'!$F$343='RFM input'!$H$342,-'RFM input'!M351,-SUM(M113:M124))) -> 0 | N125: =IF(COUNT($H125:M125)>='RFM input'!$W$7,0,IF('RFM input'!$F$343='RFM input'!$H$342,-'RFM input'!N351,-SUM(N113:N124))) -> 0 | O125: =IF(COUNT($H125:N125)>='RFM input'!$W$7,0,IF('RFM input'!$F$343='RFM input'!$H$342,-'RFM input'!O351,-SUM(O113:O124))) -> 0 | P125: =IF(COUNT($H125:O125)>='RFM input'!$W$7,0,IF('RFM input'!$F$343='RFM input'!$H$342,-'RFM input'!P351,-SUM(P113:P124))) -> 0 | Q125: =IF(COUNT($H125:P125)>='RFM input'!$W$7,0,IF('RFM input'!$F$343='RFM input'!$H$342,-'RFM input'!Q351,-SUM(Q113:Q124))) -> 0
C126: =Asset5 -> 2013-14 ORAB Low Voltage lines and cables | E126: Opening RAB | H126: =IF(H$3>A5remlife,A5value-SUM($G126:G126),IF(A5remlife="N/A","n/a",A5value/A5remlife)) -> 25.18436434 | I126: =IF(I$3>A5remlife,A5value-SUM($G126:H126),IF(A5remlife="N/A","n/a",A5value/A5remlife)) -> 25.18436434 | J126: =IF(J$3>A5remlife,A5value-SUM($G126:I126),IF(A5remlife="N/A","n/a",A5value/A5remlife)) -> 25.18436434 | K126: =IF(K$3>A5remlife,A5value-SUM($G126:J126),IF(A5remlife="N/A","n/a",A5value/A5remlife)) -> 25.18436434 | L126: =IF(L$3>A5remlife,A5value-SUM($G126:K126),IF(A5remlife="N/A","n/a",A5value/A5remlife)) -> 25.18436434 | M126: =IF(M$3>A5remlife,A5value-SUM($G126:L126),IF(A5remlife="N/A","n/a",A5value/A5remlife)) -> 25.18436434 | N126: =IF(N$3>A5remlife,A5value-SUM($G126:M126),IF(A5remlife="N/A","n/a",A5value/A5remlife)) -> 25.18436434 | O126: =IF(O$3>A5remlife,A5value-SUM($G126:N126),IF(A5remlife="N/A","n/a",A5value/A5remlife)) -> 25.18436434 | P126: =IF(P$3>A5remlife,A5value-SUM($G126:O126),IF(A5remlife="N/A","n/a",A5value/A5remlife)) -> 25.18436434 | Q126: =IF(Q$3>A5remlife,A5value-SUM($G126:P126),IF(A5remlife="N/A","n/a",A5value/A5remlife)) -> 25.18436434
E127: Capex in year
F128: 1 | I128: =IF(A5stdlife="n/a","n/a",IF(I$3>(A5stdlife+$F128),('RFM input'!$H$267*(1+vanilla1)^0.5)-SUM($H128:H128),('RFM input'!$H$267*(1+vanilla1)^0.5)/A5stdlife)) -> 0 | J128: =IF(A5stdlife="n/a","n/a",IF(J$3>(A5stdlife+$F128),('RFM input'!$H$267*(1+vanilla1)^0.5)-SUM($H128:I128),('RFM input'!$H$267*(1+vanilla1)^0.5)/A5stdlife)) -> 0 | K128: =IF(A5stdlife="n/a","n/a",IF(K$3>(A5stdlife+$F128),('RFM input'!$H$267*(1+vanilla1)^0.5)-SUM($H128:J128),('RFM input'!$H$267*(1+vanilla1)^0.5)/A5stdlife)) -> 0 | L128: =IF(A5stdlife="n/a","n/a",IF(L$3>(A5stdlife+$F128),('RFM input'!$H$267*(1+vanilla1)^0.5)-SUM($H128:K128),('RFM input'!$H$267*(1+vanilla1)^0.5)/A5stdlife)) -> 0 | M128: =IF(A5stdlife="n/a","n/a",IF(M$3>(A5stdlife+$F128),('RFM input'!$H$267*(1+vanilla1)^0.5)-SUM($H128:L128),('RFM input'!$H$267*(1+vanilla1)^0.5)/A5stdlife)) -> 0 | N128: =IF(A5stdlife="n/a","n/a",IF(N$3>(A5stdlife+$F128),('RFM input'!$H$267*(1+vanilla1)^0.5)-SUM($H128:M128),('RFM input'!$H$267*(1+vanilla1)^0.5)/A5stdlife)) -> 0 | O128: =IF(A5stdlife="n/a","n/a",IF(O$3>(A5stdlife+$F128),('RFM input'!$H$267*(1+vanilla1)^0.5)-SUM($H128:N128),('RFM input'!$H$267*(1+vanilla1)^0.5)/A5stdlife)) -> 0 | P128: =IF(A5stdlife="n/a","n/a",IF(P$3>(A5stdlife+$F128),('RFM input'!$H$267*(1+vanilla1)^0.5)-SUM($H128:O128),('RFM input'!$H$267*(1+vanilla1)^0.5)/A5stdlife)) -> 0 | Q128: =IF(A5stdlife="n/a","n/a",IF(Q$3>(A5stdlife+$F128),('RFM input'!$H$267*(1+vanilla1)^0.5)-SUM($H128:P128),('RFM input'!$H$267*(1+vanilla1)^0.5)/A5stdlife)) -> 0
F129: 2 | J129: =IF(A5stdlife="n/a","n/a",IF(J$3>(A5stdlife+$F129),('RFM input'!$I$267*(1+vanilla2)^0.5)-SUM($I129:I129),('RFM input'!$I$267*(1+vanilla2)^0.5)/A5stdlife)) -> 0 | K129: =IF(A5stdlife="n/a","n/a",IF(K$3>(A5stdlife+$F129),('RFM input'!$I$267*(1+vanilla2)^0.5)-SUM($I129:J129),('RFM input'!$I$267*(1+vanilla2)^0.5)/A5stdlife)) -> 0 | L129: =IF(A5stdlife="n/a","n/a",IF(L$3>(A5stdlife+$F129),('RFM input'!$I$267*(1+vanilla2)^0.5)-SUM($I129:K129),('RFM input'!$I$267*(1+vanilla2)^0.5)/A5stdlife)) -> 0 | M129: =IF(A5stdlife="n/a","n/a",IF(M$3>(A5stdlife+$F129),('RFM input'!$I$267*(1+vanilla2)^0.5)-SUM($I129:L129),('RFM input'!$I$267*(1+vanilla2)^0.5)/A5stdlife)) -> 0 | N129: =IF(A5stdlife="n/a","n/a",IF(N$3>(A5stdlife+$F129),('RFM input'!$I$267*(1+vanilla2)^0.5)-SUM($I129:M129),('RFM input'!$I$267*(1+vanilla2)^0.5)/A5stdlife)) -> 0 | O129: =IF(A5stdlife="n/a","n/a",IF(O$3>(A5stdlife+$F129),('RFM input'!$I$267*(1+vanilla2)^0.5)-SUM($I129:N129),('RFM input'!$I$267*(1+vanilla2)^0.5)/A5stdlife)) -> 0 | P129: =IF(A5stdlife="n/a","n/a",IF(P$3>(A5stdlife+$F129),('RFM input'!$I$267*(1+vanilla2)^0.5)-SUM($I129:O129),('RFM input'!$I$267*(1+vanilla2)^0.5)/A5stdlife)) -> 0 | Q129: =IF(A5stdlife="n/a","n/a",IF(Q$3>(A5stdlife+$F129),('RFM input'!$I$267*(1+vanilla2)^0.5)-SUM($I129:P129),('RFM input'!$I$267*(1+vanilla2)^0.5)/A5stdlife)) -> 0
F130: 3 | K130: =IF(A5stdlife="n/a","n/a",IF(K$3>(A5stdlife+$F130),('RFM input'!$J$267*(1+vanilla3)^0.5)-SUM($J130:J130),('RFM input'!$J$267*(1+vanilla3)^0.5)/A5stdlife)) -> 0 | L130: =IF(A5stdlife="n/a","n/a",IF(L$3>(A5stdlife+$F130),('RFM input'!$J$267*(1+vanilla3)^0.5)-SUM($J130:K130),('RFM input'!$J$267*(1+vanilla3)^0.5)/A5stdlife)) -> 0 | M130: =IF(A5stdlife="n/a","n/a",IF(M$3>(A5stdlife+$F130),('RFM input'!$J$267*(1+vanilla3)^0.5)-SUM($J130:L130),('RFM input'!$J$267*(1+vanilla3)^0.5)/A5stdlife)) -> 0 | N130: =IF(A5stdlife="n/a","n/a",IF(N$3>(A5stdlife+$F130),('RFM input'!$J$267*(1+vanilla3)^0.5)-SUM($J130:M130),('RFM input'!$J$267*(1+vanilla3)^0.5)/A5stdlife)) -> 0 | O130: =IF(A5stdlife="n/a","n/a",IF(O$3>(A5stdlife+$F130),('RFM input'!$J$267*(1+vanilla3)^0.5)-SUM($J130:N130),('RFM input'!$J$267*(1+vanilla3)^0.5)/A5stdlife)) -> 0 | P130: =IF(A5stdlife="n/a","n/a",IF(P$3>(A5stdlife+$F130),('RFM input'!$J$267*(1+vanilla3)^0.5)-SUM($J130:O130),('RFM input'!$J$267*(1+vanilla3)^0.5)/A5stdlife)) -> 0 | Q130: =IF(A5stdlife="n/a","n/a",IF(Q$3>(A5stdlife+$F130),('RFM input'!$J$267*(1+vanilla3)^0.5)-SUM($J130:P130),('RFM input'!$J$267*(1+vanilla3)^0.5)/A5stdlife)) -> 0
F131: 4 | L131: =IF(A5stdlife="n/a","n/a",IF(L$3>(A5stdlife+$F131),('RFM input'!$K$267*(1+vanilla4)^0.5)-SUM($K131:K131),('RFM input'!$K$267*(1+vanilla4)^0.5)/A5stdlife)) -> 0 | M131: =IF(A5stdlife="n/a","n/a",IF(M$3>(A5stdlife+$F131),('RFM input'!$K$267*(1+vanilla4)^0.5)-SUM($K131:L131),('RFM input'!$K$267*(1+vanilla4)^0.5)/A5stdlife)) -> 0 | N131: =IF(A5stdlife="n/a","n/a",IF(N$3>(A5stdlife+$F131),('RFM input'!$K$267*(1+vanilla4)^0.5)-SUM($K131:M131),('RFM input'!$K$267*(1+vanilla4)^0.5)/A5stdlife)) -> 0 | O131: =IF(A5stdlife="n/a","n/a",IF(O$3>(A5stdlife+$F131),('RFM input'!$K$267*(1+vanilla4)^0.5)-SUM($K131:N131),('RFM input'!$K$267*(1+vanilla4)^0.5)/A5stdlife)) -> 0 | P131: =IF(A5stdlife="n/a","n/a",IF(P$3>(A5stdlife+$F131),('RFM input'!$K$267*(1+vanilla4)^0.5)-SUM($K131:O131),('RFM input'!$K$267*(1+vanilla4)^0.5)/A5stdlife)) -> 0 | Q131: =IF(A5stdlife="n/a","n/a",IF(Q$3>(A5stdlife+$F131),('RFM input'!$K$267*(1+vanilla4)^0.5)-SUM($K131:P131),('RFM input'!$K$267*(1+vanilla4)^0.5)/A5stdlife)) -> 0
F132: 5 | M132: =IF(A5stdlife="n/a","n/a",IF(M$3>(A5stdlife+$F132),('RFM input'!$L$267*(1+vanilla5)^0.5)-SUM($L132:L132),('RFM input'!$L$267*(1+vanilla5)^0.5)/A5stdlife)) -> 0 | N132: =IF(A5stdlife="n/a","n/a",IF(N$3>(A5stdlife+$F132),('RFM input'!$L$267*(1+vanilla5)^0.5)-SUM($L132:M132),('RFM input'!$L$267*(1+vanilla5)^0.5)/A5stdlife)) -> 0 | O132: =IF(A5stdlife="n/a","n/a",IF(O$3>(A5stdlife+$F132),('RFM input'!$L$267*(1+vanilla5)^0.5)-SUM($L132:N132),('RFM input'!$L$267*(1+vanilla5)^0.5)/A5stdlife)) -> 0 | P132: =IF(A5stdlife="n/a","n/a",IF(P$3>(A5stdlife+$F132),('RFM input'!$L$267*(1+vanilla5)^0.5)-SUM($L132:O132),('RFM input'!$L$267*(1+vanilla5)^0.5)/A5stdlife)) -> 0 | Q132: =IF(A5stdlife="n/a","n/a",IF(Q$3>(A5stdlife+$F132),('RFM input'!$L$267*(1+vanilla5)^0.5)-SUM($L132:P132),('RFM input'!$L$267*(1+vanilla5)^0.5)/A5stdlife)) -> 0
F133: 6 | N133: =IF(A5stdlife="n/a","n/a",IF(N$3>(A5stdlife+$F133),('RFM input'!$M$267*(1+vanilla6)^0.5)-SUM($M133:M133),('RFM input'!$M$267*(1+vanilla6)^0.5)/A5stdlife)) -> 0 | O133: =IF(A5stdlife="n/a","n/a",IF(O$3>(A5stdlife+$F133),('RFM input'!$M$267*(1+vanilla6)^0.5)-SUM($M133:N133),('RFM input'!$M$267*(1+vanilla6)^0.5)/A5stdlife)) -> 0 | P133: =IF(A5stdlife="n/a","n/a",IF(P$3>(A5stdlife+$F133),('RFM input'!$M$267*(1+vanilla6)^0.5)-SUM($M133:O133),('RFM input'!$M$267*(1+vanilla6)^0.5)/A5stdlife)) -> 0 | Q133: =IF(A5stdlife="n/a","n/a",IF(Q$3>(A5stdlife+$F133),('RFM input'!$M$267*(1+vanilla6)^0.5)-SUM($M133:P133),('RFM input'!$M$267*(1+vanilla6)^0.5)/A5stdlife)) -> 0
F134: 7 | O134: =IF(A5stdlife="n/a","n/a",IF(O$3>(A5stdlife+$F134),('RFM input'!$N$267*(1+vanilla7)^0.5)-SUM($N134:N134),('RFM input'!$N$267*(1+vanilla7)^0.5)/A5stdlife)) -> 0 | P134: =IF(A5stdlife="n/a","n/a",IF(P$3>(A5stdlife+$F134),('RFM input'!$N$267*(1+vanilla7)^0.5)-SUM($N134:O134),('RFM input'!$N$267*(1+vanilla7)^0.5)/A5stdlife)) -> 0 | Q134: =IF(A5stdlife="n/a","n/a",IF(Q$3>(A5stdlife+$F134),('RFM input'!$N$267*(1+vanilla7)^0.5)-SUM($N134:P134),('RFM input'!$N$267*(1+vanilla7)^0.5)/A5stdlife)) -> 0
F135: 8 | P135: =IF(A5stdlife="n/a","n/a",IF(P$3>(A5stdlife+$F135),('RFM input'!$O$267*(1+vanilla8)^0.5)-SUM($O135:O135),('RFM input'!$O$267*(1+vanilla8)^0.5)/A5stdlife)) -> 0 | Q135: =IF(A5stdlife="n/a","n/a",IF(Q$3>(A5stdlife+$F135),('RFM input'!$O$267*(1+vanilla8)^0.5)-SUM($O135:P135),('RFM input'!$O$267*(1+vanilla8)^0.5)/A5stdlife)) -> 0
F136: 9 | Q136: =IF(A5stdlife="n/a","n/a",IF(Q$3>(A5stdlife+$F136),('RFM input'!$P$267*(1+vanilla9)^0.5)-SUM($P136:P136),('RFM input'!$P$267*(1+vanilla9)^0.5)/A5stdlife)) -> 0
F137: 10
D138: =Asset5 -> 2013-14 ORAB Low Voltage lines and cables | H138: =IF('RFM input'!$F$343='RFM input'!$H$342,-'RFM input'!H352,-SUM(H126:H137)) -> -25.18436434 | I138: =IF('RFM input'!$F$343='RFM input'!$H$342,-'RFM input'!I352,-SUM(I126:I137)) -> -25.18436434 | J138: =IF(COUNT($H138:I138)>='RFM input'!$W$7,0,IF('RFM input'!$F$343='RFM input'!$H$342,-'RFM input'!J352,-SUM(J126:J137))) -> -25.18436434 | K138: =IF(COUNT($H138:J138)>='RFM input'!$W$7,0,IF('RFM input'!$F$343='RFM input'!$H$342,-'RFM input'!K352,-SUM(K126:K137))) -> -25.18436434 | L138: =IF(COUNT($H138:K138)>='RFM input'!$W$7,0,IF('RFM input'!$F$343='RFM input'!$H$342,-'RFM input'!L352,-SUM(L126:L137))) -> -25.18436434 | M138: =IF(COUNT($H138:L138)>='RFM input'!$W$7,0,IF('RFM input'!$F$343='RFM input'!$H$342,-'RFM input'!M352,-SUM(M126:M137))) -> 0 | N138: =IF(COUNT($H138:M138)>='RFM input'!$W$7,0,IF('RFM input'!$F$343='RFM input'!$H$342,-'RFM input'!N352,-SUM(N126:N137))) -> 0 | O138: =IF(COUNT($H138:N138)>='RFM input'!$W$7,0,IF('RFM input'!$F$343='RFM input'!$H$342,-'RFM input'!O352,-SUM(O126:O137))) -> 0 | P138: =IF(COUNT($H138:O138)>='RFM input'!$W$7,0,IF('RFM input'!$F$343='RFM input'!$H$342,-'RFM input'!P352,-SUM(P126:P137))) -> 0 | Q138: =IF(COUNT($H138:P138)>='RFM input'!$W$7,0,IF('RFM input'!$F$343='RFM input'!$H$342,-'RFM input'!Q352,-SUM(Q126:Q137))) -> 0
C139: =Asset6 -> 2013-14 ORAB Customer metering and Load control | E139: Opening RAB | H139: =IF(H$3>A6remlife,A6value-SUM($G139:G139),IF(A6remlife="N/A","n/a",A6value/A6remlife)) -> 0.3568541064 | I139: =IF(I$3>A6remlife,A6value-SUM($G139:H139),IF(A6remlife="N/A","n/a",A6value/A6remlife)) -> 0.3568541064 | J139: =IF(J$3>A6remlife,A6value-SUM($G139:I139),IF(A6remlife="N/A","n/a",A6value/A6remlife)) -> 0.3568541064 | K139: =IF(K$3>A6remlife,A6value-SUM($G139:J139),IF(A6remlife="N/A","n/a",A6value/A6remlife)) -> 0.3568541064 | L139: =IF(L$3>A6remlife,A6value-SUM($G139:K139),IF(A6remlife="N/A","n/a",A6value/A6remlife)) -> 0.3568541064 | M139: =IF(M$3>A6remlife,A6value-SUM($G139:L139),IF(A6remlife="N/A","n/a",A6value/A6remlife)) -> 0.3568541064 | N139: =IF(N$3>A6remlife,A6value-SUM($G139:M139),IF(A6remlife="N/A","n/a",A6value/A6remlife)) -> 0.3568541064 | O139: =IF(O$3>A6remlife,A6value-SUM($G139:N139),IF(A6remlife="N/A","n/a",A6value/A6remlife)) -> 0.3568541064 | P139: =IF(P$3>A6remlife,A6value-SUM($G139:O139),IF(A6remlife="N/A","n/a",A6value/A6remlife)) -> 0.3568541064 | Q139: =IF(Q$3>A6remlife,A6value-SUM($G139:P139),IF(A6remlife="N/A","n/a",A6value/A6remlife)) -> 0.3568541064
E140: Capex in year
F141: 1 | I141: =IF(A6stdlife="n/a","n/a",IF(I$3>(A6stdlife+$F141),('RFM input'!$H$268*(1+vanilla1)^0.5)-SUM($H141:H141),('RFM input'!$H$268*(1+vanilla1)^0.5)/A6stdlife)) -> 0 | J141: =IF(A6stdlife="n/a","n/a",IF(J$3>(A6stdlife+$F141),('RFM input'!$H$268*(1+vanilla1)^0.5)-SUM($H141:I141),('RFM input'!$H$268*(1+vanilla1)^0.5)/A6stdlife)) -> 0 | K141: =IF(A6stdlife="n/a","n/a",IF(K$3>(A6stdlife+$F141),('RFM input'!$H$268*(1+vanilla1)^0.5)-SUM($H141:J141),('RFM input'!$H$268*(1+vanilla1)^0.5)/A6stdlife)) -> 0 | L141: =IF(A6stdlife="n/a","n/a",IF(L$3>(A6stdlife+$F141),('RFM input'!$H$268*(1+vanilla1)^0.5)-SUM($H141:K141),('RFM input'!$H$268*(1+vanilla1)^0.5)/A6stdlife)) -> 0 | M141: =IF(A6stdlife="n/a","n/a",IF(M$3>(A6stdlife+$F141),('RFM input'!$H$268*(1+vanilla1)^0.5)-SUM($H141:L141),('RFM input'!$H$268*(1+vanilla1)^0.5)/A6stdlife)) -> 0 | N141: =IF(A6stdlife="n/a","n/a",IF(N$3>(A6stdlife+$F141),('RFM input'!$H$268*(1+vanilla1)^0.5)-SUM($H141:M141),('RFM input'!$H$268*(1+vanilla1)^0.5)/A6stdlife)) -> 0 | O141: =IF(A6stdlife="n/a","n/a",IF(O$3>(A6stdlife+$F141),('RFM input'!$H$268*(1+vanilla1)^0.5)-SUM($H141:N141),('RFM input'!$H$268*(1+vanilla1)^0.5)/A6stdlife)) -> 0 | P141: =IF(A6stdlife="n/a","n/a",IF(P$3>(A6stdlife+$F141),('RFM input'!$H$268*(1+vanilla1)^0.5)-SUM($H141:O141),('RFM input'!$H$268*(1+vanilla1)^0.5)/A6stdlife)) -> 0 | Q141: =IF(A6stdlife="n/a","n/a",IF(Q$3>(A6stdlife+$F141),('RFM input'!$H$268*(1+vanilla1)^0.5)-SUM($H141:P141),('RFM input'!$H$268*(1+vanilla1)^0.5)/A6stdlife)) -> 0
F142: 2 | J142: =IF(A6stdlife="n/a","n/a",IF(J$3>(A6stdlife+$F142),('RFM input'!$I$268*(1+vanilla2)^0.5)-SUM($I142:I142),('RFM input'!$I$268*(1+vanilla2)^0.5)/A6stdlife)) -> 0 | K142: =IF(A6stdlife="n/a","n/a",IF(K$3>(A6stdlife+$F142),('RFM input'!$I$268*(1+vanilla2)^0.5)-SUM($I142:J142),('RFM input'!$I$268*(1+vanilla2)^0.5)/A6stdlife)) -> 0 | L142: =IF(A6stdlife="n/a","n/a",IF(L$3>(A6stdlife+$F142),('RFM input'!$I$268*(1+vanilla2)^0.5)-SUM($I142:K142),('RFM input'!$I$268*(1+vanilla2)^0.5)/A6stdlife)) -> 0 | M142: =IF(A6stdlife="n/a","n/a",IF(M$3>(A6stdlife+$F142),('RFM input'!$I$268*(1+vanilla2)^0.5)-SUM($I142:L142),('RFM input'!$I$268*(1+vanilla2)^0.5)/A6stdlife)) -> 0 | N142: =IF(A6stdlife="n/a","n/a",IF(N$3>(A6stdlife+$F142),('RFM input'!$I$268*(1+vanilla2)^0.5)-SUM($I142:M142),('RFM input'!$I$268*(1+vanilla2)^0.5)/A6stdlife)) -> 0 | O142: =IF(A6stdlife="n/a","n/a",IF(O$3>(A6stdlife+$F142),('RFM input'!$I$268*(1+vanilla2)^0.5)-SUM($I142:N142),('RFM input'!$I$268*(1+vanilla2)^0.5)/A6stdlife)) -> 0 | P142: =IF(A6stdlife="n/a","n/a",IF(P$3>(A6stdlife+$F142),('RFM input'!$I$268*(1+vanilla2)^0.5)-SUM($I142:O142),('RFM input'!$I$268*(1+vanilla2)^0.5)/A6stdlife)) -> 0 | Q142: =IF(A6stdlife="n/a","n/a",IF(Q$3>(A6stdlife+$F142),('RFM input'!$I$268*(1+vanilla2)^0.5)-SUM($I142:P142),('RFM input'!$I$268*(1+vanilla2)^0.5)/A6stdlife)) -> 0
F143: 3 | K143: =IF(A6stdlife="n/a","n/a",IF(K$3>(A6stdlife+$F143),('RFM input'!$J$268*(1+vanilla3)^0.5)-SUM($J143:J143),('RFM input'!$J$268*(1+vanilla3)^0.5)/A6stdlife)) -> 0 | L143: =IF(A6stdlife="n/a","n/a",IF(L$3>(A6stdlife+$F143),('RFM input'!$J$268*(1+vanilla3)^0.5)-SUM($J143:K143),('RFM input'!$J$268*(1+vanilla3)^0.5)/A6stdlife)) -> 0 | M143: =IF(A6stdlife="n/a","n/a",IF(M$3>(A6stdlife+$F143),('RFM input'!$J$268*(1+vanilla3)^0.5)-SUM($J143:L143),('RFM input'!$J$268*(1+vanilla3)^0.5)/A6stdlife)) -> 0 | N143: =IF(A6stdlife="n/a","n/a",IF(N$3>(A6stdlife+$F143),('RFM input'!$J$268*(1+vanilla3)^0.5)-SUM($J143:M143),('RFM input'!$J$268*(1+vanilla3)^0.5)/A6stdlife)) -> 0 | O143: =IF(A6stdlife="n/a","n/a",IF(O$3>(A6stdlife+$F143),('RFM input'!$J$268*(1+vanilla3)^0.5)-SUM($J143:N143),('RFM input'!$J$268*(1+vanilla3)^0.5)/A6stdlife)) -> 0 | P143: =IF(A6stdlife="n/a","n/a",IF(P$3>(A6stdlife+$F143),('RFM input'!$J$268*(1+vanilla3)^0.5)-SUM($J143:O143),('RFM input'!$J$268*(1+vanilla3)^0.5)/A6stdlife)) -> 0 | Q143: =IF(A6stdlife="n/a","n/a",IF(Q$3>(A6stdlife+$F143),('RFM input'!$J$268*(1+vanilla3)^0.5)-SUM($J143:P143),('RFM input'!$J$268*(1+vanilla3)^0.5)/A6stdlife)) -> 0
F144: 4 | L144: =IF(A6stdlife="n/a","n/a",IF(L$3>(A6stdlife+$F144),('RFM input'!$K$268*(1+vanilla4)^0.5)-SUM($K144:K144),('RFM input'!$K$268*(1+vanilla4)^0.5)/A6stdlife)) -> 0 | M144: =IF(A6stdlife="n/a","n/a",IF(M$3>(A6stdlife+$F144),('RFM input'!$K$268*(1+vanilla4)^0.5)-SUM($K144:L144),('RFM input'!$K$268*(1+vanilla4)^0.5)/A6stdlife)) -> 0 | N144: =IF(A6stdlife="n/a","n/a",IF(N$3>(A6stdlife+$F144),('RFM input'!$K$268*(1+vanilla4)^0.5)-SUM($K144:M144),('RFM input'!$K$268*(1+vanilla4)^0.5)/A6stdlife)) -> 0 | O144: =IF(A6stdlife="n/a","n/a",IF(O$3>(A6stdlife+$F144),('RFM input'!$K$268*(1+vanilla4)^0.5)-SUM($K144:N144),('RFM input'!$K$268*(1+vanilla4)^0.5)/A6stdlife)) -> 0 | P144: =IF(A6stdlife="n/a","n/a",IF(P$3>(A6stdlife+$F144),('RFM input'!$K$268*(1+vanilla4)^0.5)-SUM($K144:O144),('RFM input'!$K$268*(1+vanilla4)^0.5)/A6stdlife)) -> 0 | Q144: =IF(A6stdlife="n/a","n/a",IF(Q$3>(A6stdlife+$F144),('RFM input'!$K$268*(1+vanilla4)^0.5)-SUM($K144:P144),('RFM input'!$K$268*(1+vanilla4)^0.5)/A6stdlife)) -> 0
F145: 5 | M145: =IF(A6stdlife="n/a","n/a",IF(M$3>(A6stdlife+$F145),('RFM input'!$L$268*(1+vanilla5)^0.5)-SUM($L145:L145),('RFM input'!$L$268*(1+vanilla5)^0.5)/A6stdlife)) -> 0 | N145: =IF(A6stdlife="n/a","n/a",IF(N$3>(A6stdlife+$F145),('RFM input'!$L$268*(1+vanilla5)^0.5)-SUM($L145:M145),('RFM input'!$L$268*(1+vanilla5)^0.5)/A6stdlife)) -> 0 | O145: =IF(A6stdlife="n/a","n/a",IF(O$3>(A6stdlife+$F145),('RFM input'!$L$268*(1+vanilla5)^0.5)-SUM($L145:N145),('RFM input'!$L$268*(1+vanilla5)^0.5)/A6stdlife)) -> 0 | P145: =IF(A6stdlife="n/a","n/a",IF(P$3>(A6stdlife+$F145),('RFM input'!$L$268*(1+vanilla5)^0.5)-SUM($L145:O145),('RFM input'!$L$268*(1+vanilla5)^0.5)/A6stdlife)) -> 0 | Q145: =IF(A6stdlife="n/a","n/a",IF(Q$3>(A6stdlife+$F145),('RFM input'!$L$268*(1+vanilla5)^0.5)-SUM($L145:P145),('RFM input'!$L$268*(1+vanilla5)^0.5)/A6stdlife)) -> 0
F146: 6 | N146: =IF(A6stdlife="n/a","n/a",IF(N$3>(A6stdlife+$F146),('RFM input'!$M$268*(1+vanilla6)^0.5)-SUM($M146:M146),('RFM input'!$M$268*(1+vanilla6)^0.5)/A6stdlife)) -> 0 | O146: =IF(A6stdlife="n/a","n/a",IF(O$3>(A6stdlife+$F146),('RFM input'!$M$268*(1+vanilla6)^0.5)-SUM($M146:N146),('RFM input'!$M$268*(1+vanilla6)^0.5)/A6stdlife)) -> 0 | P146: =IF(A6stdlife="n/a","n/a",IF(P$3>(A6stdlife+$F146),('RFM input'!$M$268*(1+vanilla6)^0.5)-SUM($M146:O146),('RFM input'!$M$268*(1+vanilla6)^0.5)/A6stdlife)) -> 0 | Q146: =IF(A6stdlife="n/a","n/a",IF(Q$3>(A6stdlife+$F146),('RFM input'!$M$268*(1+vanilla6)^0.5)-SUM($M146:P146),('RFM input'!$M$268*(1+vanilla6)^0.5)/A6stdlife)) -> 0
F147: 7 | O147: =IF(A6stdlife="n/a","n/a",IF(O$3>(A6stdlife+$F147),('RFM input'!$N$268*(1+vanilla7)^0.5)-SUM($N147:N147),('RFM input'!$N$268*(1+vanilla7)^0.5)/A6stdlife)) -> 0 | P147: =IF(A6stdlife="n/a","n/a",IF(P$3>(A6stdlife+$F147),('RFM input'!$N$268*(1+vanilla7)^0.5)-SUM($N147:O147),('RFM input'!$N$268*(1+vanilla7)^0.5)/A6stdlife)) -> 0 | Q147: =IF(A6stdlife="n/a","n/a",IF(Q$3>(A6stdlife+$F147),('RFM input'!$N$268*(1+vanilla7)^0.5)-SUM($N147:P147),('RFM input'!$N$268*(1+vanilla7)^0.5)/A6stdlife)) -> 0
F148: 8 | P148: =IF(A6stdlife="n/a","n/a",IF(P$3>(A6stdlife+$F148),('RFM input'!$O$268*(1+vanilla8)^0.5)-SUM($O148:O148),('RFM input'!$O$268*(1+vanilla8)^0.5)/A6stdlife)) -> 0 | Q148: =IF(A6stdlife="n/a","n/a",IF(Q$3>(A6stdlife+$F148),('RFM input'!$O$268*(1+vanilla8)^0.5)-SUM($O148:P148),('RFM input'!$O$268*(1+vanilla8)^0.5)/A6stdlife)) -> 0
F149: 9 | Q149: =IF(A6stdlife="n/a","n/a",IF(Q$3>(A6stdlife+$F149),('RFM input'!$P$268*(1+vanilla9)^0.5)-SUM($P149:P149),('RFM input'!$P$268*(1+vanilla9)^0.5)/A6stdlife)) -> 0
F150: 10
D151: =Asset6 -> 2013-14 ORAB Customer metering and Load control | H151: =IF('RFM input'!$F$343='RFM input'!$H$342,-'RFM input'!H353,-SUM(H139:H150)) -> -0.3568541064 | I151: =IF('RFM input'!$F$343='RFM input'!$H$342,-'RFM input'!I353,-SUM(I139:I150)) -> -0.3568541064 | J151: =IF(COUNT($H151:I151)>='RFM input'!$W$7,0,IF('RFM input'!$F$343='RFM input'!$H$342,-'RFM input'!J353,-SUM(J139:J150))) -> -0.3568541064 | K151: =IF(COUNT($H151:J151)>='RFM input'!$W$7,0,IF('RFM input'!$F$343='RFM input'!$H$342,-'RFM input'!K353,-SUM(K139:K150))) -> -0.3568541064 | L151: =IF(COUNT($H151:K151)>='RFM input'!$W$7,0,IF('RFM input'!$F$343='RFM input'!$H$342,-'RFM input'!L353,-SUM(L139:L150))) -> -0.3568541064 | M151: =IF(COUNT($H151:L151)>='RFM input'!$W$7,0,IF('RFM input'!$F$343='RFM input'!$H$342,-'RFM input'!M353,-SUM(M139:M150))) -> 0 | N151: =IF(COUNT($H151:M151)>='RFM input'!$W$7,0,IF('RFM input'!$F$343='RFM input'!$H$342,-'RFM input'!N353,-SUM(N139:N150))) -> 0 | O151: =IF(COUNT($H151:N151)>='RFM input'!$W$7,0,IF('RFM input'!$F$343='RFM input'!$H$342,-'RFM input'!O353,-SUM(O139:O150))) -> 0 | P151: =IF(COUNT($H151:O151)>='RFM input'!$W$7,0,IF('RFM input'!$F$343='RFM input'!$H$342,-'RFM input'!P353,-SUM(P139:P150))) -> 0 | Q151: =IF(COUNT($H151:P151)>='RFM input'!$W$7,0,IF('RFM input'!$F$343='RFM input'!$H$342,-'RFM input'!Q353,-SUM(Q139:Q150))) -> 0
C152: =Asset7 -> 2013-14 ORAB Communication | E152: Opening RAB | H152: =IF(H$3>A7remlife,A7value-SUM($G152:G152),IF(A7remlife="N/A","n/a",A7value/A7remlife)) -> 2.330895977 | I152: =IF(I$3>A7remlife,A7value-SUM($G152:H152),IF(A7remlife="N/A","n/a",A7value/A7remlife)) -> 2.330895977 | J152: =IF(J$3>A7remlife,A7value-SUM($G152:I152),IF(A7remlife="N/A","n/a",A7value/A7remlife)) -> 2.330895977 | K152: =IF(K$3>A7remlife,A7value-SUM($G152:J152),IF(A7remlife="N/A","n/a",A7value/A7remlife)) -> 2.330895977 | L152: =IF(L$3>A7remlife,A7value-SUM($G152:K152),IF(A7remlife="N/A","n/a",A7value/A7remlife)) -> 2.330895977 | M152: =IF(M$3>A7remlife,A7value-SUM($G152:L152),IF(A7remlife="N/A","n/a",A7value/A7remlife)) -> 2.330895977 | N152: =IF(N$3>A7remlife,A7value-SUM($G152:M152),IF(A7remlife="N/A","n/a",A7value/A7remlife)) -> 2.330895977 | O152: =IF(O$3>A7remlife,A7value-SUM($G152:N152),IF(A7remlife="N/A","n/a",A7value/A7remlife)) -> 0.1946680897 | P152: =IF(P$3>A7remlife,A7value-SUM($G152:O152),IF(A7remlife="N/A","n/a",A7value/A7remlife)) -> 0 | Q152: =IF(Q$3>A7remlife,A7value-SUM($G152:P152),IF(A7remlife="N/A","n/a",A7value/A7remlife)) -> 0
E153: Capex in year
F154: 1 | I154: =IF(A7stdlife="n/a","n/a",IF(I$3>(A7stdlife+$F154),('RFM input'!$H$269*(1+vanilla1)^0.5)-SUM($H154:H154),('RFM input'!$H$269*(1+vanilla1)^0.5)/A7stdlife)) -> 0 | J154: =IF(A7stdlife="n/a","n/a",IF(J$3>(A7stdlife+$F154),('RFM input'!$H$269*(1+vanilla1)^0.5)-SUM($H154:I154),('RFM input'!$H$269*(1+vanilla1)^0.5)/A7stdlife)) -> 0 | K154: =IF(A7stdlife="n/a","n/a",IF(K$3>(A7stdlife+$F154),('RFM input'!$H$269*(1+vanilla1)^0.5)-SUM($H154:J154),('RFM input'!$H$269*(1+vanilla1)^0.5)/A7stdlife)) -> 0 | L154: =IF(A7stdlife="n/a","n/a",IF(L$3>(A7stdlife+$F154),('RFM input'!$H$269*(1+vanilla1)^0.5)-SUM($H154:K154),('RFM input'!$H$269*(1+vanilla1)^0.5)/A7stdlife)) -> 0 | M154: =IF(A7stdlife="n/a","n/a",IF(M$3>(A7stdlife+$F154),('RFM input'!$H$269*(1+vanilla1)^0.5)-SUM($H154:L154),('RFM input'!$H$269*(1+vanilla1)^0.5)/A7stdlife)) -> 0 | N154: =IF(A7stdlife="n/a","n/a",IF(N$3>(A7stdlife+$F154),('RFM input'!$H$269*(1+vanilla1)^0.5)-SUM($H154:M154),('RFM input'!$H$269*(1+vanilla1)^0.5)/A7stdlife)) -> 0 | O154: =IF(A7stdlife="n/a","n/a",IF(O$3>(A7stdlife+$F154),('RFM input'!$H$269*(1+vanilla1)^0.5)-SUM($H154:N154),('RFM input'!$H$269*(1+vanilla1)^0.5)/A7stdlife)) -> 0 | P154: =IF(A7stdlife="n/a","n/a",IF(P$3>(A7stdlife+$F154),('RFM input'!$H$269*(1+vanilla1)^0.5)-SUM($H154:O154),('RFM input'!$H$269*(1+vanilla1)^0.5)/A7stdlife)) -> 0 | Q154: =IF(A7stdlife="n/a","n/a",IF(Q$3>(A7stdlife+$F154),('RFM input'!$H$269*(1+vanilla1)^0.5)-SUM($H154:P154),('RFM input'!$H$269*(1+vanilla1)^0.5)/A7stdlife)) -> 0
F155: 2 | J155: =IF(A7stdlife="n/a","n/a",IF(J$3>(A7stdlife+$F155),('RFM input'!$I$269*(1+vanilla2)^0.5)-SUM($I155:I155),('RFM input'!$I$269*(1+vanilla2)^0.5)/A7stdlife)) -> 0 | K155: =IF(A7stdlife="n/a","n/a",IF(K$3>(A7stdlife+$F155),('RFM input'!$I$269*(1+vanilla2)^0.5)-SUM($I155:J155),('RFM input'!$I$269*(1+vanilla2)^0.5)/A7stdlife)) -> 0 | L155: =IF(A7stdlife="n/a","n/a",IF(L$3>(A7stdlife+$F155),('RFM input'!$I$269*(1+vanilla2)^0.5)-SUM($I155:K155),('RFM input'!$I$269*(1+vanilla2)^0.5)/A7stdlife)) -> 0 | M155: =IF(A7stdlife="n/a","n/a",IF(M$3>(A7stdlife+$F155),('RFM input'!$I$269*(1+vanilla2)^0.5)-SUM($I155:L155),('RFM input'!$I$269*(1+vanilla2)^0.5)/A7stdlife)) -> 0 | N155: =IF(A7stdlife="n/a","n/a",IF(N$3>(A7stdlife+$F155),('RFM input'!$I$269*(1+vanilla2)^0.5)-SUM($I155:M155),('RFM input'!$I$269*(1+vanilla2)^0.5)/A7stdlife)) -> 0 | O155: =IF(A7stdlife="n/a","n/a",IF(O$3>(A7stdlife+$F155),('RFM input'!$I$269*(1+vanilla2)^0.5)-SUM($I155:N155),('RFM input'!$I$269*(1+vanilla2)^0.5)/A7stdlife)) -> 0 | P155: =IF(A7stdlife="n/a","n/a",IF(P$3>(A7stdlife+$F155),('RFM input'!$I$269*(1+vanilla2)^0.5)-SUM($I155:O155),('RFM input'!$I$269*(1+vanilla2)^0.5)/A7stdlife)) -> 0 | Q155: =IF(A7stdlife="n/a","n/a",IF(Q$3>(A7stdlife+$F155),('RFM input'!$I$269*(1+vanilla2)^0.5)-SUM($I155:P155),('RFM input'!$I$269*(1+vanilla2)^0.5)/A7stdlife)) -> 0
F156: 3 | K156: =IF(A7stdlife="n/a","n/a",IF(K$3>(A7stdlife+$F156),('RFM input'!$J$269*(1+vanilla3)^0.5)-SUM($J156:J156),('RFM input'!$J$269*(1+vanilla3)^0.5)/A7stdlife)) -> 0 | L156: =IF(A7stdlife="n/a","n/a",IF(L$3>(A7stdlife+$F156),('RFM input'!$J$269*(1+vanilla3)^0.5)-SUM($J156:K156),('RFM input'!$J$269*(1+vanilla3)^0.5)/A7stdlife)) -> 0 | M156: =IF(A7stdlife="n/a","n/a",IF(M$3>(A7stdlife+$F156),('RFM input'!$J$269*(1+vanilla3)^0.5)-SUM($J156:L156),('RFM input'!$J$269*(1+vanilla3)^0.5)/A7stdlife)) -> 0 | N156: =IF(A7stdlife="n/a","n/a",IF(N$3>(A7stdlife+$F156),('RFM input'!$J$269*(1+vanilla3)^0.5)-SUM($J156:M156),('RFM input'!$J$269*(1+vanilla3)^0.5)/A7stdlife)) -> 0 | O156: =IF(A7stdlife="n/a","n/a",IF(O$3>(A7stdlife+$F156),('RFM input'!$J$269*(1+vanilla3)^0.5)-SUM($J156:N156),('RFM input'!$J$269*(1+vanilla3)^0.5)/A7stdlife)) -> 0 | P156: =IF(A7stdlife="n/a","n/a",IF(P$3>(A7stdlife+$F156),('RFM input'!$J$269*(1+vanilla3)^0.5)-SUM($J156:O156),('RFM input'!$J$269*(1+vanilla3)^0.5)/A7stdlife)) -> 0 | Q156: =IF(A7stdlife="n/a","n/a",IF(Q$3>(A7stdlife+$F156),('RFM input'!$J$269*(1+vanilla3)^0.5)-SUM($J156:P156),('RFM input'!$J$269*(1+vanilla3)^0.5)/A7stdlife)) -> 0
F157: 4 | L157: =IF(A7stdlife="n/a","n/a",IF(L$3>(A7stdlife+$F157),('RFM input'!$K$269*(1+vanilla4)^0.5)-SUM($K157:K157),('RFM input'!$K$269*(1+vanilla4)^0.5)/A7stdlife)) -> 0 | M157: =IF(A7stdlife="n/a","n/a",IF(M$3>(A7stdlife+$F157),('RFM input'!$K$269*(1+vanilla4)^0.5)-SUM($K157:L157),('RFM input'!$K$269*(1+vanilla4)^0.5)/A7stdlife)) -> 0 | N157: =IF(A7stdlife="n/a","n/a",IF(N$3>(A7stdlife+$F157),('RFM input'!$K$269*(1+vanilla4)^0.5)-SUM($K157:M157),('RFM input'!$K$269*(1+vanilla4)^0.5)/A7stdlife)) -> 0 | O157: =IF(A7stdlife="n/a","n/a",IF(O$3>(A7stdlife+$F157),('RFM input'!$K$269*(1+vanilla4)^0.5)-SUM($K157:N157),('RFM input'!$K$269*(1+vanilla4)^0.5)/A7stdlife)) -> 0 | P157: =IF(A7stdlife="n/a","n/a",IF(P$3>(A7stdlife+$F157),('RFM input'!$K$269*(1+vanilla4)^0.5)-SUM($K157:O157),('RFM input'!$K$269*(1+vanilla4)^0.5)/A7stdlife)) -> 0 | Q157: =IF(A7stdlife="n/a","n/a",IF(Q$3>(A7stdlife+$F157),('RFM input'!$K$269*(1+vanilla4)^0.5)-SUM($K157:P157),('RFM input'!$K$269*(1+vanilla4)^0.5)/A7stdlife)) -> 0
F158: 5 | M158: =IF(A7stdlife="n/a","n/a",IF(M$3>(A7stdlife+$F158),('RFM input'!$L$269*(1+vanilla5)^0.5)-SUM($L158:L158),('RFM input'!$L$269*(1+vanilla5)^0.5)/A7stdlife)) -> 0 | N158: =IF(A7stdlife="n/a","n/a",IF(N$3>(A7stdlife+$F158),('RFM input'!$L$269*(1+vanilla5)^0.5)-SUM($L158:M158),('RFM input'!$L$269*(1+vanilla5)^0.5)/A7stdlife)) -> 0 | O158: =IF(A7stdlife="n/a","n/a",IF(O$3>(A7stdlife+$F158),('RFM input'!$L$269*(1+vanilla5)^0.5)-SUM($L158:N158),('RFM input'!$L$269*(1+vanilla5)^0.5)/A7stdlife)) -> 0 | P158: =IF(A7stdlife="n/a","n/a",IF(P$3>(A7stdlife+$F158),('RFM input'!$L$269*(1+vanilla5)^0.5)-SUM($L158:O158),('RFM input'!$L$269*(1+vanilla5)^0.5)/A7stdlife)) -> 0 | Q158: =IF(A7stdlife="n/a","n/a",IF(Q$3>(A7stdlife+$F158),('RFM input'!$L$269*(1+vanilla5)^0.5)-SUM($L158:P158),('RFM input'!$L$269*(1+vanilla5)^0.5)/A7stdlife)) -> 0
F159: 6 | N159: =IF(A7stdlife="n/a","n/a",IF(N$3>(A7stdlife+$F159),('RFM input'!$M$269*(1+vanilla6)^0.5)-SUM($M159:M159),('RFM input'!$M$269*(1+vanilla6)^0.5)/A7stdlife)) -> 0 | O159: =IF(A7stdlife="n/a","n/a",IF(O$3>(A7stdlife+$F159),('RFM input'!$M$269*(1+vanilla6)^0.5)-SUM($M159:N159),('RFM input'!$M$269*(1+vanilla6)^0.5)/A7stdlife)) -> 0 | P159: =IF(A7stdlife="n/a","n/a",IF(P$3>(A7stdlife+$F159),('RFM input'!$M$269*(1+vanilla6)^0.5)-SUM($M159:O159),('RFM input'!$M$269*(1+vanilla6)^0.5)/A7stdlife)) -> 0 | Q159: =IF(A7stdlife="n/a","n/a",IF(Q$3>(A7stdlife+$F159),('RFM input'!$M$269*(1+vanilla6)^0.5)-SUM($M159:P159),('RFM input'!$M$269*(1+vanilla6)^0.5)/A7stdlife)) -> 0
F160: 7 | O160: =IF(A7stdlife="n/a","n/a",IF(O$3>(A7stdlife+$F160),('RFM input'!$N$269*(1+vanilla7)^0.5)-SUM($N160:N160),('RFM input'!$N$269*(1+vanilla7)^0.5)/A7stdlife)) -> 0 | P160: =IF(A7stdlife="n/a","n/a",IF(P$3>(A7stdlife+$F160),('RFM input'!$N$269*(1+vanilla7)^0.5)-SUM($N160:O160),('RFM input'!$N$269*(1+vanilla7)^0.5)/A7stdlife)) -> 0 | Q160: =IF(A7stdlife="n/a","n/a",IF(Q$3>(A7stdlife+$F160),('RFM input'!$N$269*(1+vanilla7)^0.5)-SUM($N160:P160),('RFM input'!$N$269*(1+vanilla7)^0.5)/A7stdlife)) -> 0
F161: 8 | P161: =IF(A7stdlife="n/a","n/a",IF(P$3>(A7stdlife+$F161),('RFM input'!$O$269*(1+vanilla8)^0.5)-SUM($O161:O161),('RFM input'!$O$269*(1+vanilla8)^0.5)/A7stdlife)) -> 0 | Q161: =IF(A7stdlife="n/a","n/a",IF(Q$3>(A7stdlife+$F161),('RFM input'!$O$269*(1+vanilla8)^0.5)-SUM($O161:P161),('RFM input'!$O$269*(1+vanilla8)^0.5)/A7stdlife)) -> 0
F162: 9 | Q162: =IF(A7stdlife="n/a","n/a",IF(Q$3>(A7stdlife+$F162),('RFM input'!$P$269*(1+vanilla9)^0.5)-SUM($P162:P162),('RFM input'!$P$269*(1+vanilla9)^0.5)/A7stdlife)) -> 0
F163: 10
D164: =Asset7 -> 2013-14 ORAB Communication | H164: =IF('RFM input'!$F$343='RFM input'!$H$342,-'RFM input'!H354,-SUM(H152:H163)) -> -2.330895977 | I164: =IF('RFM input'!$F$343='RFM input'!$H$342,-'RFM input'!I354,-SUM(I152:I163)) -> -2.330895977 | J164: =IF(COUNT($H164:I164)>='RFM input'!$W$7,0,IF('RFM input'!$F$343='RFM input'!$H$342,-'RFM input'!J354,-SUM(J152:J163))) -> -2.330895977 | K164: =IF(COUNT($H164:J164)>='RFM input'!$W$7,0,IF('RFM input'!$F$343='RFM input'!$H$342,-'RFM input'!K354,-SUM(K152:K163))) -> -2.330895977 | L164: =IF(COUNT($H164:K164)>='RFM input'!$W$7,0,IF('RFM input'!$F$343='RFM input'!$H$342,-'RFM input'!L354,-SUM(L152:L163))) -> -2.330895977 | M164: =IF(COUNT($H164:L164)>='RFM input'!$W$7,0,IF('RFM input'!$F$343='RFM input'!$H$342,-'RFM input'!M354,-SUM(M152:M163))) -> 0 | N164: =IF(COUNT($H164:M164)>='RFM input'!$W$7,0,IF('RFM input'!$F$343='RFM input'!$H$342,-'RFM input'!N354,-SUM(N152:N163))) -> 0 | O164: =IF(COUNT($H164:N164)>='RFM input'!$W$7,0,IF('RFM input'!$F$343='RFM input'!$H$342,-'RFM input'!O354,-SUM(O152:O163))) -> 0 | P164: =IF(COUNT($H164:O164)>='RFM input'!$W$7,0,IF('RFM input'!$F$343='RFM input'!$H$342,-'RFM input'!P354,-SUM(P152:P163))) -> 0 | Q164: =IF(COUNT($H164:P164)>='RFM input'!$W$7,0,IF('RFM input'!$F$343='RFM input'!$H$342,-'RFM input'!Q354,-SUM(Q152:Q163))) -> 0
C165: =Asset8 -> 2013-14 ORAB Land | E165: Opening RAB | H165: =IF(H$3>A8remlife,A8value-SUM($G165:G165),IF(A8remlife="N/A","n/a",A8value/A8remlife)) -> n/a | I165: =IF(I$3>A8remlife,A8value-SUM($G165:H165),IF(A8remlife="N/A","n/a",A8value/A8remlife)) -> n/a | J165: =IF(J$3>A8remlife,A8value-SUM($G165:I165),IF(A8remlife="N/A","n/a",A8value/A8remlife)) -> n/a | K165: =IF(K$3>A8remlife,A8value-SUM($G165:J165),IF(A8remlife="N/A","n/a",A8value/A8remlife)) -> n/a | L165: =IF(L$3>A8remlife,A8value-SUM($G165:K165),IF(A8remlife="N/A","n/a",A8value/A8remlife)) -> n/a | M165: =IF(M$3>A8remlife,A8value-SUM($G165:L165),IF(A8remlife="N/A","n/a",A8value/A8remlife)) -> n/a | N165: =IF(N$3>A8remlife,A8value-SUM($G165:M165),IF(A8remlife="N/A","n/a",A8value/A8remlife)) -> n/a | O165: =IF(O$3>A8remlife,A8value-SUM($G165:N165),IF(A8remlife="N/A","n/a",A8value/A8remlife)) -> n/a | P165: =IF(P$3>A8remlife,A8value-SUM($G165:O165),IF(A8remlife="N/A","n/a",A8value/A8remlife)) -> n/a | Q165: =IF(Q$3>A8remlife,A8value-SUM($G165:P165),IF(A8remlife="N/A","n/a",A8value/A8remlife)) -> n/a
E166: Capex in year
F167: 1 | I167: =IF(A8stdlife="n/a","n/a",IF(I$3>(A8stdlife+$F167),('RFM input'!$H$270*(1+vanilla1)^0.5)-SUM($H167:H167),('RFM input'!$H$270*(1+vanilla1)^0.5)/A8stdlife)) -> n/a | J167: =IF(A8stdlife="n/a","n/a",IF(J$3>(A8stdlife+$F167),('RFM input'!$H$270*(1+vanilla1)^0.5)-SUM($H167:I167),('RFM input'!$H$270*(1+vanilla1)^0.5)/A8stdlife)) -> n/a | K167: =IF(A8stdlife="n/a","n/a",IF(K$3>(A8stdlife+$F167),('RFM input'!$H$270*(1+vanilla1)^0.5)-SUM($H167:J167),('RFM input'!$H$270*(1+vanilla1)^0.5)/A8stdlife)) -> n/a | L167: =IF(A8stdlife="n/a","n/a",IF(L$3>(A8stdlife+$F167),('RFM input'!$H$270*(1+vanilla1)^0.5)-SUM($H167:K167),('RFM input'!$H$270*(1+vanilla1)^0.5)/A8stdlife)) -> n/a | M167: =IF(A8stdlife="n/a","n/a",IF(M$3>(A8stdlife+$F167),('RFM input'!$H$270*(1+vanilla1)^0.5)-SUM($H167:L167),('RFM input'!$H$270*(1+vanilla1)^0.5)/A8stdlife)) -> n/a | N167: =IF(A8stdlife="n/a","n/a",IF(N$3>(A8stdlife+$F167),('RFM input'!$H$270*(1+vanilla1)^0.5)-SUM($H167:M167),('RFM input'!$H$270*(1+vanilla1)^0.5)/A8stdlife)) -> n/a | O167: =IF(A8stdlife="n/a","n/a",IF(O$3>(A8stdlife+$F167),('RFM input'!$H$270*(1+vanilla1)^0.5)-SUM($H167:N167),('RFM input'!$H$270*(1+vanilla1)^0.5)/A8stdlife)) -> n/a | P167: =IF(A8stdlife="n/a","n/a",IF(P$3>(A8stdlife+$F167),('RFM input'!$H$270*(1+vanilla1)^0.5)-SUM($H167:O167),('RFM input'!$H$270*(1+vanilla1)^0.5)/A8stdlife)) -> n/a | Q167: =IF(A8stdlife="n/a","n/a",IF(Q$3>(A8stdlife+$F167),('RFM input'!$H$270*(1+vanilla1)^0.5)-SUM($H167:P167),('RFM input'!$H$270*(1+vanilla1)^0.5)/A8stdlife)) -> n/a
F168: 2 | J168: =IF(A8stdlife="n/a","n/a",IF(J$3>(A8stdlife+$F168),('RFM input'!$I$270*(1+vanilla2)^0.5)-SUM($I168:I168),('RFM input'!$I$270*(1+vanilla2)^0.5)/A8stdlife)) -> n/a | K168: =IF(A8stdlife="n/a","n/a",IF(K$3>(A8stdlife+$F168),('RFM input'!$I$270*(1+vanilla2)^0.5)-SUM($I168:J168),('RFM input'!$I$270*(1+vanilla2)^0.5)/A8stdlife)) -> n/a | L168: =IF(A8stdlife="n/a","n/a",IF(L$3>(A8stdlife+$F168),('RFM input'!$I$270*(1+vanilla2)^0.5)-SUM($I168:K168),('RFM input'!$I$270*(1+vanilla2)^0.5)/A8stdlife)) -> n/a | M168: =IF(A8stdlife="n/a","n/a",IF(M$3>(A8stdlife+$F168),('RFM input'!$I$270*(1+vanilla2)^0.5)-SUM($I168:L168),('RFM input'!$I$270*(1+vanilla2)^0.5)/A8stdlife)) -> n/a | N168: =IF(A8stdlife="n/a","n/a",IF(N$3>(A8stdlife+$F168),('RFM input'!$I$270*(1+vanilla2)^0.5)-SUM($I168:M168),('RFM input'!$I$270*(1+vanilla2)^0.5)/A8stdlife)) -> n/a | O168: =IF(A8stdlife="n/a","n/a",IF(O$3>(A8stdlife+$F168),('RFM input'!$I$270*(1+vanilla2)^0.5)-SUM($I168:N168),('RFM input'!$I$270*(1+vanilla2)^0.5)/A8stdlife)) -> n/a | P168: =IF(A8stdlife="n/a","n/a",IF(P$3>(A8stdlife+$F168),('RFM input'!$I$270*(1+vanilla2)^0.5)-SUM($I168:O168),('RFM input'!$I$270*(1+vanilla2)^0.5)/A8stdlife)) -> n/a | Q168: =IF(A8stdlife="n/a","n/a",IF(Q$3>(A8stdlife+$F168),('RFM input'!$I$270*(1+vanilla2)^0.5)-SUM($I168:P168),('RFM input'!$I$270*(1+vanilla2)^0.5)/A8stdlife)) -> n/a
F169: 3 | K169: =IF(A8stdlife="n/a","n/a",IF(K$3>(A8stdlife+$F169),('RFM input'!$J$270*(1+vanilla3)^0.5)-SUM($J169:J169),('RFM input'!$J$270*(1+vanilla3)^0.5)/A8stdlife)) -> n/a | L169: =IF(A8stdlife="n/a","n/a",IF(L$3>(A8stdlife+$F169),('RFM input'!$J$270*(1+vanilla3)^0.5)-SUM($J169:K169),('RFM input'!$J$270*(1+vanilla3)^0.5)/A8stdlife)) -> n/a | M169: =IF(A8stdlife="n/a","n/a",IF(M$3>(A8stdlife+$F169),('RFM input'!$J$270*(1+vanilla3)^0.5)-SUM($J169:L169),('RFM input'!$J$270*(1+vanilla3)^0.5)/A8stdlife)) -> n/a | N169: =IF(A8stdlife="n/a","n/a",IF(N$3>(A8stdlife+$F169),('RFM input'!$J$270*(1+vanilla3)^0.5)-SUM($J169:M169),('RFM input'!$J$270*(1+vanilla3)^0.5)/A8stdlife)) -> n/a | O169: =IF(A8stdlife="n/a","n/a",IF(O$3>(A8stdlife+$F169),('RFM input'!$J$270*(1+vanilla3)^0.5)-SUM($J169:N169),('RFM input'!$J$270*(1+vanilla3)^0.5)/A8stdlife)) -> n/a | P169: =IF(A8stdlife="n/a","n/a",IF(P$3>(A8stdlife+$F169),('RFM input'!$J$270*(1+vanilla3)^0.5)-SUM($J169:O169),('RFM input'!$J$270*(1+vanilla3)^0.5)/A8stdlife)) -> n/a | Q169: =IF(A8stdlife="n/a","n/a",IF(Q$3>(A8stdlife+$F169),('RFM input'!$J$270*(1+vanilla3)^0.5)-SUM($J169:P169),('RFM input'!$J$270*(1+vanilla3)^0.5)/A8stdlife)) -> n/a
F170: 4 | L170: =IF(A8stdlife="n/a","n/a",IF(L$3>(A8stdlife+$F170),('RFM input'!$K$270*(1+vanilla4)^0.5)-SUM($K170:K170),('RFM input'!$K$270*(1+vanilla4)^0.5)/A8stdlife)) -> n/a | M170: =IF(A8stdlife="n/a","n/a",IF(M$3>(A8stdlife+$F170),('RFM input'!$K$270*(1+vanilla4)^0.5)-SUM($K170:L170),('RFM input'!$K$270*(1+vanilla4)^0.5)/A8stdlife)) -> n/a | N170: =IF(A8stdlife="n/a","n/a",IF(N$3>(A8stdlife+$F170),('RFM input'!$K$270*(1+vanilla4)^0.5)-SUM($K170:M170),('RFM input'!$K$270*(1+vanilla4)^0.5)/A8stdlife)) -> n/a | O170: =IF(A8stdlife="n/a","n/a",IF(O$3>(A8stdlife+$F170),('RFM input'!$K$270*(1+vanilla4)^0.5)-SUM($K170:N170),('RFM input'!$K$270*(1+vanilla4)^0.5)/A8stdlife)) -> n/a | P170: =IF(A8stdlife="n/a","n/a",IF(P$3>(A8stdlife+$F170),('RFM input'!$K$270*(1+vanilla4)^0.5)-SUM($K170:O170),('RFM input'!$K$270*(1+vanilla4)^0.5)/A8stdlife)) -> n/a | Q170: =IF(A8stdlife="n/a","n/a",IF(Q$3>(A8stdlife+$F170),('RFM input'!$K$270*(1+vanilla4)^0.5)-SUM($K170:P170),('RFM input'!$K$270*(1+vanilla4)^0.5)/A8stdlife)) -> n/a
F171: 5 | M171: =IF(A8stdlife="n/a","n/a",IF(M$3>(A8stdlife+$F171),('RFM input'!$L$270*(1+vanilla5)^0.5)-SUM($L171:L171),('RFM input'!$L$270*(1+vanilla5)^0.5)/A8stdlife)) -> n/a | N171: =IF(A8stdlife="n/a","n/a",IF(N$3>(A8stdlife+$F171),('RFM input'!$L$270*(1+vanilla5)^0.5)-SUM($L171:M171),('RFM input'!$L$270*(1+vanilla5)^0.5)/A8stdlife)) -> n/a | O171: =IF(A8stdlife="n/a","n/a",IF(O$3>(A8stdlife+$F171),('RFM input'!$L$270*(1+vanilla5)^0.5)-SUM($L171:N171),('RFM input'!$L$270*(1+vanilla5)^0.5)/A8stdlife)) -> n/a | P171: =IF(A8stdlife="n/a","n/a",IF(P$3>(A8stdlife+$F171),('RFM input'!$L$270*(1+vanilla5)^0.5)-SUM($L171:O171),('RFM input'!$L$270*(1+vanilla5)^0.5)/A8stdlife)) -> n/a | Q171: =IF(A8stdlife="n/a","n/a",IF(Q$3>(A8stdlife+$F171),('RFM input'!$L$270*(1+vanilla5)^0.5)-SUM($L171:P171),('RFM input'!$L$270*(1+vanilla5)^0.5)/A8stdlife)) -> n/a
F172: 6 | N172: =IF(A8stdlife="n/a","n/a",IF(N$3>(A8stdlife+$F172),('RFM input'!$M$270*(1+vanilla6)^0.5)-SUM($M172:M172),('RFM input'!$M$270*(1+vanilla6)^0.5)/A8stdlife)) -> n/a | O172: =IF(A8stdlife="n/a","n/a",IF(O$3>(A8stdlife+$F172),('RFM input'!$M$270*(1+vanilla6)^0.5)-SUM($M172:N172),('RFM input'!$M$270*(1+vanilla6)^0.5)/A8stdlife)) -> n/a | P172: =IF(A8stdlife="n/a","n/a",IF(P$3>(A8stdlife+$F172),('RFM input'!$M$270*(1+vanilla6)^0.5)-SUM($M172:O172),('RFM input'!$M$270*(1+vanilla6)^0.5)/A8stdlife)) -> n/a | Q172: =IF(A8stdlife="n/a","n/a",IF(Q$3>(A8stdlife+$F172),('RFM input'!$M$270*(1+vanilla6)^0.5)-SUM($M172:P172),('RFM input'!$M$270*(1+vanilla6)^0.5)/A8stdlife)) -> n/a
F173: 7 | O173: =IF(A8stdlife="n/a","n/a",IF(O$3>(A8stdlife+$F173),('RFM input'!$N$270*(1+vanilla7)^0.5)-SUM($N173:N173),('RFM input'!$N$270*(1+vanilla7)^0.5)/A8stdlife)) -> n/a | P173: =IF(A8stdlife="n/a","n/a",IF(P$3>(A8stdlife+$F173),('RFM input'!$N$270*(1+vanilla7)^0.5)-SUM($N173:O173),('RFM input'!$N$270*(1+vanilla7)^0.5)/A8stdlife)) -> n/a | Q173: =IF(A8stdlife="n/a","n/a",IF(Q$3>(A8stdlife+$F173),('RFM input'!$N$270*(1+vanilla7)^0.5)-SUM($N173:P173),('RFM input'!$N$270*(1+vanilla7)^0.5)/A8stdlife)) -> n/a
F174: 8 | P174: =IF(A8stdlife="n/a","n/a",IF(P$3>(A8stdlife+$F174),('RFM input'!$O$270*(1+vanilla8)^0.5)-SUM($O174:O174),('RFM input'!$O$270*(1+vanilla8)^0.5)/A8stdlife)) -> n/a | Q174: =IF(A8stdlife="n/a","n/a",IF(Q$3>(A8stdlife+$F174),('RFM input'!$O$270*(1+vanilla8)^0.5)-SUM($O174:P174),('RFM input'!$O$270*(1+vanilla8)^0.5)/A8stdlife)) -> n/a
F175: 9 | Q175: =IF(A8stdlife="n/a","n/a",IF(Q$3>(A8stdlife+$F175),('RFM input'!$P$270*(1+vanilla9)^0.5)-SUM($P175:P175),('RFM input'!$P$270*(1+vanilla9)^0.5)/A8stdlife)) -> n/a
F176: 10
D177: =Asset8 -> 2013-14 ORAB Land | H177: =IF('RFM input'!$F$343='RFM input'!$H$342,-'RFM input'!H355,-SUM(H165:H176)) -> 0 | I177: =IF('RFM input'!$F$343='RFM input'!$H$342,-'RFM input'!I355,-SUM(I165:I176)) -> 0 | J177: =IF(COUNT($H177:I177)>='RFM input'!$W$7,0,IF('RFM input'!$F$343='RFM input'!$H$342,-'RFM input'!J355,-SUM(J165:J176))) -> 0 | K177: =IF(COUNT($H177:J177)>='RFM input'!$W$7,0,IF('RFM input'!$F$343='RFM input'!$H$342,-'RFM input'!K355,-SUM(K165:K176))) -> 0 | L177: =IF(COUNT($H177:K177)>='RFM input'!$W$7,0,IF('RFM input'!$F$343='RFM input'!$H$342,-'RFM input'!L355,-SUM(L165:L176))) -> 0 | M177: =IF(COUNT($H177:L177)>='RFM input'!$W$7,0,IF('RFM input'!$F$343='RFM input'!$H$342,-'RFM input'!M355,-SUM(M165:M176))) -> 0 | N177: =IF(COUNT($H177:M177)>='RFM input'!$W$7,0,IF('RFM input'!$F$343='RFM input'!$H$342,-'RFM input'!N355,-SUM(N165:N176))) -> 0 | O177: =IF(COUNT($H177:N177)>='RFM input'!$W$7,0,IF('RFM input'!$F$343='RFM input'!$H$342,-'RFM input'!O355,-SUM(O165:O176))) -> 0 | P177: =IF(COUNT($H177:O177)>='RFM input'!$W$7,0,IF('RFM input'!$F$343='RFM input'!$H$342,-'RFM input'!P355,-SUM(P165:P176))) -> 0 | Q177: =IF(COUNT($H177:P177)>='RFM input'!$W$7,0,IF('RFM input'!$F$343='RFM input'!$H$342,-'RFM input'!Q355,-SUM(Q165:Q176))) -> 0
C178: =Asset9 -> 2013-14 ORAB Easements | E178: Opening RAB | H178: =IF(H$3>A9remlife,A9value-SUM($G178:G178),IF(A9remlife="N/A","n/a",A9value/A9remlife)) -> n/a | I178: =IF(I$3>A9remlife,A9value-SUM($G178:H178),IF(A9remlife="N/A","n/a",A9value/A9remlife)) -> n/a | J178: =IF(J$3>A9remlife,A9value-SUM($G178:I178),IF(A9remlife="N/A","n/a",A9value/A9remlife)) -> n/a | K178: =IF(K$3>A9remlife,A9value-SUM($G178:J178),IF(A9remlife="N/A","n/a",A9value/A9remlife)) -> n/a | L178: =IF(L$3>A9remlife,A9value-SUM($G178:K178),IF(A9remlife="N/A","n/a",A9value/A9remlife)) -> n/a | M178: =IF(M$3>A9remlife,A9value-SUM($G178:L178),IF(A9remlife="N/A","n/a",A9value/A9remlife)) -> n/a | N178: =IF(N$3>A9remlife,A9value-SUM($G178:M178),IF(A9remlife="N/A","n/a",A9value/A9remlife)) -> n/a | O178: =IF(O$3>A9remlife,A9value-SUM($G178:N178),IF(A9remlife="N/A","n/a",A9value/A9remlife)) -> n/a | P178: =IF(P$3>A9remlife,A9value-SUM($G178:O178),IF(A9remlife="N/A","n/a",A9value/A9remlife)) -> n/a | Q178: =IF(Q$3>A9remlife,A9value-SUM($G178:P178),IF(A9remlife="N/A","n/a",A9value/A9remlife)) -> n/a
E179: Capex in year
F180: 1 | I180: =IF(A9stdlife="n/a","n/a",IF(I$3>(A9stdlife+$F180),('RFM input'!$H$271*(1+vanilla1)^0.5)-SUM($H180:H180),('RFM input'!$H$271*(1+vanilla1)^0.5)/A9stdlife)) -> n/a | J180: =IF(A9stdlife="n/a","n/a",IF(J$3>(A9stdlife+$F180),('RFM input'!$H$271*(1+vanilla1)^0.5)-SUM($H180:I180),('RFM input'!$H$271*(1+vanilla1)^0.5)/A9stdlife)) -> n/a | K180: =IF(A9stdlife="n/a","n/a",IF(K$3>(A9stdlife+$F180),('RFM input'!$H$271*(1+vanilla1)^0.5)-SUM($H180:J180),('RFM input'!$H$271*(1+vanilla1)^0.5)/A9stdlife)) -> n/a | L180: =IF(A9stdlife="n/a","n/a",IF(L$3>(A9stdlife+$F180),('RFM input'!$H$271*(1+vanilla1)^0.5)-SUM($H180:K180),('RFM input'!$H$271*(1+vanilla1)^0.5)/A9stdlife)) -> n/a | M180: =IF(A9stdlife="n/a","n/a",IF(M$3>(A9stdlife+$F180),('RFM input'!$H$271*(1+vanilla1)^0.5)-SUM($H180:L180),('RFM input'!$H$271*(1+vanilla1)^0.5)/A9stdlife)) -> n/a | N180: =IF(A9stdlife="n/a","n/a",IF(N$3>(A9stdlife+$F180),('RFM input'!$H$271*(1+vanilla1)^0.5)-SUM($H180:M180),('RFM input'!$H$271*(1+vanilla1)^0.5)/A9stdlife)) -> n/a | O180: =IF(A9stdlife="n/a","n/a",IF(O$3>(A9stdlife+$F180),('RFM input'!$H$271*(1+vanilla1)^0.5)-SUM($H180:N180),('RFM input'!$H$271*(1+vanilla1)^0.5)/A9stdlife)) -> n/a | P180: =IF(A9stdlife="n/a","n/a",IF(P$3>(A9stdlife+$F180),('RFM input'!$H$271*(1+vanilla1)^0.5)-SUM($H180:O180),('RFM input'!$H$271*(1+vanilla1)^0.5)/A9stdlife)) -> n/a | Q180: =IF(A9stdlife="n/a","n/a",IF(Q$3>(A9stdlife+$F180),('RFM input'!$H$271*(1+vanilla1)^0.5)-SUM($H180:P180),('RFM input'!$H$271*(1+vanilla1)^0.5)/A9stdlife)) -> n/a
F181: 2 | J181: =IF(A9stdlife="n/a","n/a",IF(J$3>(A9stdlife+$F181),('RFM input'!$I$271*(1+vanilla2)^0.5)-SUM($I181:I181),('RFM input'!$I$271*(1+vanilla2)^0.5)/A9stdlife)) -> n/a | K181: =IF(A9stdlife="n/a","n/a",IF(K$3>(A9stdlife+$F181),('RFM input'!$I$271*(1+vanilla2)^0.5)-SUM($I181:J181),('RFM input'!$I$271*(1+vanilla2)^0.5)/A9stdlife)) -> n/a | L181: =IF(A9stdlife="n/a","n/a",IF(L$3>(A9stdlife+$F181),('RFM input'!$I$271*(1+vanilla2)^0.5)-SUM($I181:K181),('RFM input'!$I$271*(1+vanilla2)^0.5)/A9stdlife)) -> n/a | M181: =IF(A9stdlife="n/a","n/a",IF(M$3>(A9stdlife+$F181),('RFM input'!$I$271*(1+vanilla2)^0.5)-SUM($I181:L181),('RFM input'!$I$271*(1+vanilla2)^0.5)/A9stdlife)) -> n/a | N181: =IF(A9stdlife="n/a","n/a",IF(N$3>(A9stdlife+$F181),('RFM input'!$I$271*(1+vanilla2)^0.5)-SUM($I181:M181),('RFM input'!$I$271*(1+vanilla2)^0.5)/A9stdlife)) -> n/a | O181: =IF(A9stdlife="n/a","n/a",IF(O$3>(A9stdlife+$F181),('RFM input'!$I$271*(1+vanilla2)^0.5)-SUM($I181:N181),('RFM input'!$I$271*(1+vanilla2)^0.5)/A9stdlife)) -> n/a | P181: =IF(A9stdlife="n/a","n/a",IF(P$3>(A9stdlife+$F181),('RFM input'!$I$271*(1+vanilla2)^0.5)-SUM($I181:O181),('RFM input'!$I$271*(1+vanilla2)^0.5)/A9stdlife)) -> n/a | Q181: =IF(A9stdlife="n/a","n/a",IF(Q$3>(A9stdlife+$F181),('RFM input'!$I$271*(1+vanilla2)^0.5)-SUM($I181:P181),('RFM input'!$I$271*(1+vanilla2)^0.5)/A9stdlife)) -> n/a
F182: 3 | K182: =IF(A9stdlife="n/a","n/a",IF(K$3>(A9stdlife+$F182),('RFM input'!$J$271*(1+vanilla3)^0.5)-SUM($J182:J182),('RFM input'!$J$271*(1+vanilla3)^0.5)/A9stdlife)) -> n/a | L182: =IF(A9stdlife="n/a","n/a",IF(L$3>(A9stdlife+$F182),('RFM input'!$J$271*(1+vanilla3)^0.5)-SUM($J182:K182),('RFM input'!$J$271*(1+vanilla3)^0.5)/A9stdlife)) -> n/a | M182: =IF(A9stdlife="n/a","n/a",IF(M$3>(A9stdlife+$F182),('RFM input'!$J$271*(1+vanilla3)^0.5)-SUM($J182:L182),('RFM input'!$J$271*(1+vanilla3)^0.5)/A9stdlife)) -> n/a | N182: =IF(A9stdlife="n/a","n/a",IF(N$3>(A9stdlife+$F182),('RFM input'!$J$271*(1+vanilla3)^0.5)-SUM($J182:M182),('RFM input'!$J$271*(1+vanilla3)^0.5)/A9stdlife)) -> n/a | O182: =IF(A9stdlife="n/a","n/a",IF(O$3>(A9stdlife+$F182),('RFM input'!$J$271*(1+vanilla3)^0.5)-SUM($J182:N182),('RFM input'!$J$271*(1+vanilla3)^0.5)/A9stdlife)) -> n/a | P182: =IF(A9stdlife="n/a","n/a",IF(P$3>(A9stdlife+$F182),('RFM input'!$J$271*(1+vanilla3)^0.5)-SUM($J182:O182),('RFM input'!$J$271*(1+vanilla3)^0.5)/A9stdlife)) -> n/a | Q182: =IF(A9stdlife="n/a","n/a",IF(Q$3>(A9stdlife+$F182),('RFM input'!$J$271*(1+vanilla3)^0.5)-SUM($J182:P182),('RFM input'!$J$271*(1+vanilla3)^0.5)/A9stdlife)) -> n/a
F183: 4 | L183: =IF(A9stdlife="n/a","n/a",IF(L$3>(A9stdlife+$F183),('RFM input'!$K$271*(1+vanilla4)^0.5)-SUM($K183:K183),('RFM input'!$K$271*(1+vanilla4)^0.5)/A9stdlife)) -> n/a | M183: =IF(A9stdlife="n/a","n/a",IF(M$3>(A9stdlife+$F183),('RFM input'!$K$271*(1+vanilla4)^0.5)-SUM($K183:L183),('RFM input'!$K$271*(1+vanilla4)^0.5)/A9stdlife)) -> n/a | N183: =IF(A9stdlife="n/a","n/a",IF(N$3>(A9stdlife+$F183),('RFM input'!$K$271*(1+vanilla4)^0.5)-SUM($K183:M183),('RFM input'!$K$271*(1+vanilla4)^0.5)/A9stdlife)) -> n/a | O183: =IF(A9stdlife="n/a","n/a",IF(O$3>(A9stdlife+$F183),('RFM input'!$K$271*(1+vanilla4)^0.5)-SUM($K183:N183),('RFM input'!$K$271*(1+vanilla4)^0.5)/A9stdlife)) -> n/a | P183: =IF(A9stdlife="n/a","n/a",IF(P$3>(A9stdlife+$F183),('RFM input'!$K$271*(1+vanilla4)^0.5)-SUM($K183:O183),('RFM input'!$K$271*(1+vanilla4)^0.5)/A9stdlife)) -> n/a | Q183: =IF(A9stdlife="n/a","n/a",IF(Q$3>(A9stdlife+$F183),('RFM input'!$K$271*(1+vanilla4)^0.5)-SUM($K183:P183),('RFM input'!$K$271*(1+vanilla4)^0.5)/A9stdlife)) -> n/a
F184: 5 | M184: =IF(A9stdlife="n/a","n/a",IF(M$3>(A9stdlife+$F184),('RFM input'!$L$271*(1+vanilla5)^0.5)-SUM($L184:L184),('RFM input'!$L$271*(1+vanilla5)^0.5)/A9stdlife)) -> n/a | N184: =IF(A9stdlife="n/a","n/a",IF(N$3>(A9stdlife+$F184),('RFM input'!$L$271*(1+vanilla5)^0.5)-SUM($L184:M184),('RFM input'!$L$271*(1+vanilla5)^0.5)/A9stdlife)) -> n/a | O184: =IF(A9stdlife="n/a","n/a",IF(O$3>(A9stdlife+$F184),('RFM input'!$L$271*(1+vanilla5)^0.5)-SUM($L184:N184),('RFM input'!$L$271*(1+vanilla5)^0.5)/A9stdlife)) -> n/a | P184: =IF(A9stdlife="n/a","n/a",IF(P$3>(A9stdlife+$F184),('RFM input'!$L$271*(1+vanilla5)^0.5)-SUM($L184:O184),('RFM input'!$L$271*(1+vanilla5)^0.5)/A9stdlife)) -> n/a | Q184: =IF(A9stdlife="n/a","n/a",IF(Q$3>(A9stdlife+$F184),('RFM input'!$L$271*(1+vanilla5)^0.5)-SUM($L184:P184),('RFM input'!$L$271*(1+vanilla5)^0.5)/A9stdlife)) -> n/a
F185: 6 | N185: =IF(A9stdlife="n/a","n/a",IF(N$3>(A9stdlife+$F185),('RFM input'!$M$271*(1+vanilla6)^0.5)-SUM($M185:M185),('RFM input'!$M$271*(1+vanilla6)^0.5)/A9stdlife)) -> n/a | O185: =IF(A9stdlife="n/a","n/a",IF(O$3>(A9stdlife+$F185),('RFM input'!$M$271*(1+vanilla6)^0.5)-SUM($M185:N185),('RFM input'!$M$271*(1+vanilla6)^0.5)/A9stdlife)) -> n/a | P185: =IF(A9stdlife="n/a","n/a",IF(P$3>(A9stdlife+$F185),('RFM input'!$M$271*(1+vanilla6)^0.5)-SUM($M185:O185),('RFM input'!$M$271*(1+vanilla6)^0.5)/A9stdlife)) -> n/a | Q185: =IF(A9stdlife="n/a","n/a",IF(Q$3>(A9stdlife+$F185),('RFM input'!$M$271*(1+vanilla6)^0.5)-SUM($M185:P185),('RFM input'!$M$271*(1+vanilla6)^0.5)/A9stdlife)) -> n/a
F186: 7 | O186: =IF(A9stdlife="n/a","n/a",IF(O$3>(A9stdlife+$F186),('RFM input'!$N$271*(1+vanilla7)^0.5)-SUM($N186:N186),('RFM input'!$N$271*(1+vanilla7)^0.5)/A9stdlife)) -> n/a | P186: =IF(A9stdlife="n/a","n/a",IF(P$3>(A9stdlife+$F186),('RFM input'!$N$271*(1+vanilla7)^0.5)-SUM($N186:O186),('RFM input'!$N$271*(1+vanilla7)^0.5)/A9stdlife)) -> n/a | Q186: =IF(A9stdlife="n/a","n/a",IF(Q$3>(A9stdlife+$F186),('RFM input'!$N$271*(1+vanilla7)^0.5)-SUM($N186:P186),('RFM input'!$N$271*(1+vanilla7)^0.5)/A9stdlife)) -> n/a
F187: 8 | P187: =IF(A9stdlife="n/a","n/a",IF(P$3>(A9stdlife+$F187),('RFM input'!$O$271*(1+vanilla8)^0.5)-SUM($O187:O187),('RFM input'!$O$271*(1+vanilla8)^0.5)/A9stdlife)) -> n/a | Q187: =IF(A9stdlife="n/a","n/a",IF(Q$3>(A9stdlife+$F187),('RFM input'!$O$271*(1+vanilla8)^0.5)-SUM($O187:P187),('RFM input'!$O$271*(1+vanilla8)^0.5)/A9stdlife)) -> n/a
F188: 9 | Q188: =IF(A9stdlife="n/a","n/a",IF(Q$3>(A9stdlife+$F188),('RFM input'!$P$271*(1+vanilla9)^0.5)-SUM($P188:P188),('RFM input'!$P$271*(1+vanilla9)^0.5)/A9stdlife)) -> n/a
F189: 10
D190: =Asset9 -> 2013-14 ORAB Easements | H190: =IF('RFM input'!$F$343='RFM input'!$H$342,-'RFM input'!H356,-SUM(H178:H189)) -> 0 | I190: =IF('RFM input'!$F$343='RFM input'!$H$342,-'RFM input'!I356,-SUM(I178:I189)) -> 0 | J190: =IF(COUNT($H190:I190)>='RFM input'!$W$7,0,IF('RFM input'!$F$343='RFM input'!$H$342,-'RFM input'!J356,-SUM(J178:J189))) -> 0 | K190: =IF(COUNT($H190:J190)>='RFM input'!$W$7,0,IF('RFM input'!$F$343='RFM input'!$H$342,-'RFM input'!K356,-SUM(K178:K189))) -> 0 | L190: =IF(COUNT($H190:K190)>='RFM input'!$W$7,0,IF('RFM input'!$F$343='RFM input'!$H$342,-'RFM input'!L356,-SUM(L178:L189))) -> 0 | M190: =IF(COUNT($H190:L190)>='RFM input'!$W$7,0,IF('RFM input'!$F$343='RFM input'!$H$342,-'RFM input'!M356,-SUM(M178:M189))) -> 0 | N190: =IF(COUNT($H190:M190)>='RFM input'!$W$7,0,IF('RFM input'!$F$343='RFM input'!$H$342,-'RFM input'!N356,-SUM(N178:N189))) -> 0 | O190: =IF(COUNT($H190:N190)>='RFM input'!$W$7,0,IF('RFM input'!$F$343='RFM input'!$H$342,-'RFM input'!O356,-SUM(O178:O189))) -> 0 | P190: =IF(COUNT($H190:O190)>='RFM input'!$W$7,0,IF('RFM input'!$F$343='RFM input'!$H$342,-'RFM input'!P356,-SUM(P178:P189))) -> 0 | Q190: =IF(COUNT($H190:P190)>='RFM input'!$W$7,0,IF('RFM input'!$F$343='RFM input'!$H$342,-'RFM input'!Q356,-SUM(Q178:Q189))) -> 0
C191: =Asset10 -> 2013-14 ORAB Equity raising costs | E191: Opening RAB | H191: =IF(H$3>A10remlife,A10value-SUM($G191:G191),IF(A10remlife="N/A","n/a",A10value/A10remlife)) -> 0.2152083995 | I191: =IF(I$3>A10remlife,A10value-SUM($G191:H191),IF(A10remlife="N/A","n/a",A10value/A10remlife)) -> 0.2152083995 | J191: =IF(J$3>A10remlife,A10value-SUM($G191:I191),IF(A10remlife="N/A","n/a",A10value/A10remlife)) -> 0.2152083995 | K191: =IF(K$3>A10remlife,A10value-SUM($G191:J191),IF(A10remlife="N/A","n/a",A10value/A10remlife)) -> 0.2152083995 | L191: =IF(L$3>A10remlife,A10value-SUM($G191:K191),IF(A10remlife="N/A","n/a",A10value/A10remlife)) -> 0.2152083995 | M191: =IF(M$3>A10remlife,A10value-SUM($G191:L191),IF(A10remlife="N/A","n/a",A10value/A10remlife)) -> 0.2152083995 | N191: =IF(N$3>A10remlife,A10value-SUM($G191:M191),IF(A10remlife="N/A","n/a",A10value/A10remlife)) -> 0.2152083995 | O191: =IF(O$3>A10remlife,A10value-SUM($G191:N191),IF(A10remlife="N/A","n/a",A10value/A10remlife)) -> 0.2152083995 | P191: =IF(P$3>A10remlife,A10value-SUM($G191:O191),IF(A10remlife="N/A","n/a",A10value/A10remlife)) -> 0.2152083995 | Q191: =IF(Q$3>A10remlife,A10value-SUM($G191:P191),IF(A10remlife="N/A","n/a",A10value/A10remlife)) -> 0.2152083995
E192: Capex in year
F193: 1 | I193: =IF(A10stdlife="n/a","n/a",IF(I$3>(A10stdlife+$F193),('RFM input'!$H$272*(1+vanilla1)^0.5)-SUM($H193:H193),('RFM input'!$H$272*(1+vanilla1)^0.5)/A10stdlife)) -> 0 | J193: =IF(A10stdlife="n/a","n/a",IF(J$3>(A10stdlife+$F193),('RFM input'!$H$272*(1+vanilla1)^0.5)-SUM($H193:I193),('RFM input'!$H$272*(1+vanilla1)^0.5)/A10stdlife)) -> 0 | K193: =IF(A10stdlife="n/a","n/a",IF(K$3>(A10stdlife+$F193),('RFM input'!$H$272*(1+vanilla1)^0.5)-SUM($H193:J193),('RFM input'!$H$272*(1+vanilla1)^0.5)/A10stdlife)) -> 0 | L193: =IF(A10stdlife="n/a","n/a",IF(L$3>(A10stdlife+$F193),('RFM input'!$H$272*(1+vanilla1)^0.5)-SUM($H193:K193),('RFM input'!$H$272*(1+vanilla1)^0.5)/A10stdlife)) -> 0 | M193: =IF(A10stdlife="n/a","n/a",IF(M$3>(A10stdlife+$F193),('RFM input'!$H$272*(1+vanilla1)^0.5)-SUM($H193:L193),('RFM input'!$H$272*(1+vanilla1)^0.5)/A10stdlife)) -> 0 | N193: =IF(A10stdlife="n/a","n/a",IF(N$3>(A10stdlife+$F193),('RFM input'!$H$272*(1+vanilla1)^0.5)-SUM($H193:M193),('RFM input'!$H$272*(1+vanilla1)^0.5)/A10stdlife)) -> 0 | O193: =IF(A10stdlife="n/a","n/a",IF(O$3>(A10stdlife+$F193),('RFM input'!$H$272*(1+vanilla1)^0.5)-SUM($H193:N193),('RFM input'!$H$272*(1+vanilla1)^0.5)/A10stdlife)) -> 0 | P193: =IF(A10stdlife="n/a","n/a",IF(P$3>(A10stdlife+$F193),('RFM input'!$H$272*(1+vanilla1)^0.5)-SUM($H193:O193),('RFM input'!$H$272*(1+vanilla1)^0.5)/A10stdlife)) -> 0 | Q193: =IF(A10stdlife="n/a","n/a",IF(Q$3>(A10stdlife+$F193),('RFM input'!$H$272*(1+vanilla1)^0.5)-SUM($H193:P193),('RFM input'!$H$272*(1+vanilla1)^0.5)/A10stdlife)) -> 0
F194: 2 | J194: =IF(A10stdlife="n/a","n/a",IF(J$3>(A10stdlife+$F194),('RFM input'!$I$272*(1+vanilla2)^0.5)-SUM($I194:I194),('RFM input'!$I$272*(1+vanilla2)^0.5)/A10stdlife)) -> 0 | K194: =IF(A10stdlife="n/a","n/a",IF(K$3>(A10stdlife+$F194),('RFM input'!$I$272*(1+vanilla2)^0.5)-SUM($I194:J194),('RFM input'!$I$272*(1+vanilla2)^0.5)/A10stdlife)) -> 0 | L194: =IF(A10stdlife="n/a","n/a",IF(L$3>(A10stdlife+$F194),('RFM input'!$I$272*(1+vanilla2)^0.5)-SUM($I194:K194),('RFM input'!$I$272*(1+vanilla2)^0.5)/A10stdlife)) -> 0 | M194: =IF(A10stdlife="n/a","n/a",IF(M$3>(A10stdlife+$F194),('RFM input'!$I$272*(1+vanilla2)^0.5)-SUM($I194:L194),('RFM input'!$I$272*(1+vanilla2)^0.5)/A10stdlife)) -> 0 | N194: =IF(A10stdlife="n/a","n/a",IF(N$3>(A10stdlife+$F194),('RFM input'!$I$272*(1+vanilla2)^0.5)-SUM($I194:M194),('RFM input'!$I$272*(1+vanilla2)^0.5)/A10stdlife)) -> 0 | O194: =IF(A10stdlife="n/a","n/a",IF(O$3>(A10stdlife+$F194),('RFM input'!$I$272*(1+vanilla2)^0.5)-SUM($I194:N194),('RFM input'!$I$272*(1+vanilla2)^0.5)/A10stdlife)) -> 0 | P194: =IF(A10stdlife="n/a","n/a",IF(P$3>(A10stdlife+$F194),('RFM input'!$I$272*(1+vanilla2)^0.5)-SUM($I194:O194),('RFM input'!$I$272*(1+vanilla2)^0.5)/A10stdlife)) -> 0 | Q194: =IF(A10stdlife="n/a","n/a",IF(Q$3>(A10stdlife+$F194),('RFM input'!$I$272*(1+vanilla2)^0.5)-SUM($I194:P194),('RFM input'!$I$272*(1+vanilla2)^0.5)/A10stdlife)) -> 0
F195: 3 | K195: =IF(A10stdlife="n/a","n/a",IF(K$3>(A10stdlife+$F195),('RFM input'!$J$272*(1+vanilla3)^0.5)-SUM($J195:J195),('RFM input'!$J$272*(1+vanilla3)^0.5)/A10stdlife)) -> 0 | L195: =IF(A10stdlife="n/a","n/a",IF(L$3>(A10stdlife+$F195),('RFM input'!$J$272*(1+vanilla3)^0.5)-SUM($J195:K195),('RFM input'!$J$272*(1+vanilla3)^0.5)/A10stdlife)) -> 0 | M195: =IF(A10stdlife="n/a","n/a",IF(M$3>(A10stdlife+$F195),('RFM input'!$J$272*(1+vanilla3)^0.5)-SUM($J195:L195),('RFM input'!$J$272*(1+vanilla3)^0.5)/A10stdlife)) -> 0 | N195: =IF(A10stdlife="n/a","n/a",IF(N$3>(A10stdlife+$F195),('RFM input'!$J$272*(1+vanilla3)^0.5)-SUM($J195:M195),('RFM input'!$J$272*(1+vanilla3)^0.5)/A10stdlife)) -> 0 | O195: =IF(A10stdlife="n/a","n/a",IF(O$3>(A10stdlife+$F195),('RFM input'!$J$272*(1+vanilla3)^0.5)-SUM($J195:N195),('RFM input'!$J$272*(1+vanilla3)^0.5)/A10stdlife)) -> 0 | P195: =IF(A10stdlife="n/a","n/a",IF(P$3>(A10stdlife+$F195),('RFM input'!$J$272*(1+vanilla3)^0.5)-SUM($J195:O195),('RFM input'!$J$272*(1+vanilla3)^0.5)/A10stdlife)) -> 0 | Q195: =IF(A10stdlife="n/a","n/a",IF(Q$3>(A10stdlife+$F195),('RFM input'!$J$272*(1+vanilla3)^0.5)-SUM($J195:P195),('RFM input'!$J$272*(1+vanilla3)^0.5)/A10stdlife)) -> 0
F196: 4 | L196: =IF(A10stdlife="n/a","n/a",IF(L$3>(A10stdlife+$F196),('RFM input'!$K$272*(1+vanilla4)^0.5)-SUM($K196:K196),('RFM input'!$K$272*(1+vanilla4)^0.5)/A10stdlife)) -> 0 | M196: =IF(A10stdlife="n/a","n/a",IF(M$3>(A10stdlife+$F196),('RFM input'!$K$272*(1+vanilla4)^0.5)-SUM($K196:L196),('RFM input'!$K$272*(1+vanilla4)^0.5)/A10stdlife)) -> 0 | N196: =IF(A10stdlife="n/a","n/a",IF(N$3>(A10stdlife+$F196),('RFM input'!$K$272*(1+vanilla4)^0.5)-SUM($K196:M196),('RFM input'!$K$272*(1+vanilla4)^0.5)/A10stdlife)) -> 0 | O196: =IF(A10stdlife="n/a","n/a",IF(O$3>(A10stdlife+$F196),('RFM input'!$K$272*(1+vanilla4)^0.5)-SUM($K196:N196),('RFM input'!$K$272*(1+vanilla4)^0.5)/A10stdlife)) -> 0 | P196: =IF(A10stdlife="n/a","n/a",IF(P$3>(A10stdlife+$F196),('RFM input'!$K$272*(1+vanilla4)^0.5)-SUM($K196:O196),('RFM input'!$K$272*(1+vanilla4)^0.5)/A10stdlife)) -> 0 | Q196: =IF(A10stdlife="n/a","n/a",IF(Q$3>(A10stdlife+$F196),('RFM input'!$K$272*(1+vanilla4)^0.5)-SUM($K196:P196),('RFM input'!$K$272*(1+vanilla4)^0.5)/A10stdlife)) -> 0
F197: 5 | M197: =IF(A10stdlife="n/a","n/a",IF(M$3>(A10stdlife+$F197),('RFM input'!$L$272*(1+vanilla5)^0.5)-SUM($L197:L197),('RFM input'!$L$272*(1+vanilla5)^0.5)/A10stdlife)) -> 0 | N197: =IF(A10stdlife="n/a","n/a",IF(N$3>(A10stdlife+$F197),('RFM input'!$L$272*(1+vanilla5)^0.5)-SUM($L197:M197),('RFM input'!$L$272*(1+vanilla5)^0.5)/A10stdlife)) -> 0 | O197: =IF(A10stdlife="n/a","n/a",IF(O$3>(A10stdlife+$F197),('RFM input'!$L$272*(1+vanilla5)^0.5)-SUM($L197:N197),('RFM input'!$L$272*(1+vanilla5)^0.5)/A10stdlife)) -> 0 | P197: =IF(A10stdlife="n/a","n/a",IF(P$3>(A10stdlife+$F197),('RFM input'!$L$272*(1+vanilla5)^0.5)-SUM($L197:O197),('RFM input'!$L$272*(1+vanilla5)^0.5)/A10stdlife)) -> 0 | Q197: =IF(A10stdlife="n/a","n/a",IF(Q$3>(A10stdlife+$F197),('RFM input'!$L$272*(1+vanilla5)^0.5)-SUM($L197:P197),('RFM input'!$L$272*(1+vanilla5)^0.5)/A10stdlife)) -> 0
F198: 6 | N198: =IF(A10stdlife="n/a","n/a",IF(N$3>(A10stdlife+$F198),('RFM input'!$M$272*(1+vanilla6)^0.5)-SUM($M198:M198),('RFM input'!$M$272*(1+vanilla6)^0.5)/A10stdlife)) -> 0 | O198: =IF(A10stdlife="n/a","n/a",IF(O$3>(A10stdlife+$F198),('RFM input'!$M$272*(1+vanilla6)^0.5)-SUM($M198:N198),('RFM input'!$M$272*(1+vanilla6)^0.5)/A10stdlife)) -> 0 | P198: =IF(A10stdlife="n/a","n/a",IF(P$3>(A10stdlife+$F198),('RFM input'!$M$272*(1+vanilla6)^0.5)-SUM($M198:O198),('RFM input'!$M$272*(1+vanilla6)^0.5)/A10stdlife)) -> 0 | Q198: =IF(A10stdlife="n/a","n/a",IF(Q$3>(A10stdlife+$F198),('RFM input'!$M$272*(1+vanilla6)^0.5)-SUM($M198:P198),('RFM input'!$M$272*(1+vanilla6)^0.5)/A10stdlife)) -> 0
F199: 7 | O199: =IF(A10stdlife="n/a","n/a",IF(O$3>(A10stdlife+$F199),('RFM input'!$N$272*(1+vanilla7)^0.5)-SUM($N199:N199),('RFM input'!$N$272*(1+vanilla7)^0.5)/A10stdlife)) -> 0 | P199: =IF(A10stdlife="n/a","n/a",IF(P$3>(A10stdlife+$F199),('RFM input'!$N$272*(1+vanilla7)^0.5)-SUM($N199:O199),('RFM input'!$N$272*(1+vanilla7)^0.5)/A10stdlife)) -> 0 | Q199: =IF(A10stdlife="n/a","n/a",IF(Q$3>(A10stdlife+$F199),('RFM input'!$N$272*(1+vanilla7)^0.5)-SUM($N199:P199),('RFM input'!$N$272*(1+vanilla7)^0.5)/A10stdlife)) -> 0
F200: 8 | P200: =IF(A10stdlife="n/a","n/a",IF(P$3>(A10stdlife+$F200),('RFM input'!$O$272*(1+vanilla8)^0.5)-SUM($O200:O200),('RFM input'!$O$272*(1+vanilla8)^0.5)/A10stdlife)) -> 0 | Q200: =IF(A10stdlife="n/a","n/a",IF(Q$3>(A10stdlife+$F200),('RFM input'!$O$272*(1+vanilla8)^0.5)-SUM($O200:P200),('RFM input'!$O$272*(1+vanilla8)^0.5)/A10stdlife)) -> 0
F201: 9 | Q201: =IF(A10stdlife="n/a","n/a",IF(Q$3>(A10stdlife+$F201),('RFM input'!$P$272*(1+vanilla9)^0.5)-SUM($P201:P201),('RFM input'!$P$272*(1+vanilla9)^0.5)/A10stdlife)) -> 0
F202: 10
D203: =Asset10 -> 2013-14 ORAB Equity raising costs | H203: =IF('RFM input'!$F$343='RFM input'!$H$342,-'RFM input'!H357,-SUM(H191:H202)) -> -0.2152083995 | I203: =IF('RFM input'!$F$343='RFM input'!$H$342,-'RFM input'!I357,-SUM(I191:I202)) -> -0.2152083995 | J203: =IF(COUNT($H203:I203)>='RFM input'!$W$7,0,IF('RFM input'!$F$343='RFM input'!$H$342,-'RFM input'!J357,-SUM(J191:J202))) -> -0.2152083995 | K203: =IF(COUNT($H203:J203)>='RFM input'!$W$7,0,IF('RFM input'!$F$343='RFM input'!$H$342,-'RFM input'!K357,-SUM(K191:K202))) -> -0.2152083995 | L203: =IF(COUNT($H203:K203)>='RFM input'!$W$7,0,IF('RFM input'!$F$343='RFM input'!$H$342,-'RFM input'!L357,-SUM(L191:L202))) -> -0.2152083995 | M203: =IF(COUNT($H203:L203)>='RFM input'!$W$7,0,IF('RFM input'!$F$343='RFM input'!$H$342,-'RFM input'!M357,-SUM(M191:M202))) -> 0 | N203: =IF(COUNT($H203:M203)>='RFM input'!$W$7,0,IF('RFM input'!$F$343='RFM input'!$H$342,-'RFM input'!N357,-SUM(N191:N202))) -> 0 | O203: =IF(COUNT($H203:N203)>='RFM input'!$W$7,0,IF('RFM input'!$F$343='RFM input'!$H$342,-'RFM input'!O357,-SUM(O191:O202))) -> 0 | P203: =IF(COUNT($H203:O203)>='RFM input'!$W$7,0,IF('RFM input'!$F$343='RFM input'!$H$342,-'RFM input'!P357,-SUM(P191:P202))) -> 0 | Q203: =IF(COUNT($H203:P203)>='RFM input'!$W$7,0,IF('RFM input'!$F$343='RFM input'!$H$342,-'RFM input'!Q357,-SUM(Q191:Q202))) -> 0
C204: =Asset11 -> 2013-14 ORAB Emergency Spares (Major Plant, Excludes Inventory) | E204: Opening RAB | H204: =IF(H$3>A11remlife,A11value-SUM($G204:G204),IF(A11remlife="N/A","n/a",A11value/A11remlife)) -> 1.237844972 | I204: =IF(I$3>A11remlife,A11value-SUM($G204:H204),IF(A11remlife="N/A","n/a",A11value/A11remlife)) -> 1.237844972 | J204: =IF(J$3>A11remlife,A11value-SUM($G204:I204),IF(A11remlife="N/A","n/a",A11value/A11remlife)) -> 1.237844972 | K204: =IF(K$3>A11remlife,A11value-SUM($G204:J204),IF(A11remlife="N/A","n/a",A11value/A11remlife)) -> 1.237844972 | L204: =IF(L$3>A11remlife,A11value-SUM($G204:K204),IF(A11remlife="N/A","n/a",A11value/A11remlife)) -> 1.237844972 | M204: =IF(M$3>A11remlife,A11value-SUM($G204:L204),IF(A11remlife="N/A","n/a",A11value/A11remlife)) -> 1.237844972 | N204: =IF(N$3>A11remlife,A11value-SUM($G204:M204),IF(A11remlife="N/A","n/a",A11value/A11remlife)) -> 1.237844972 | O204: =IF(O$3>A11remlife,A11value-SUM($G204:N204),IF(A11remlife="N/A","n/a",A11value/A11remlife)) -> 1.237844972 | P204: =IF(P$3>A11remlife,A11value-SUM($G204:O204),IF(A11remlife="N/A","n/a",A11value/A11remlife)) -> 1.237844972 | Q204: =IF(Q$3>A11remlife,A11value-SUM($G204:P204),IF(A11remlife="N/A","n/a",A11value/A11remlife)) -> 1.237844972
E205: Capex in year
... 1137 more rows

Sheet Total RAB roll forward
C2: ='DMS input'!$C$16&" - Total Asset Roll Forward"&" - DNSP RFM - version "&Intro!$M$4 -> Endeavour - Total Asset Roll Forward - DNSP RFM - version 2
G3: 0 | H3: =G3+1 -> 1 | I3: 2 | J3: 3 | K3: 4 | L3: 5 | M3: 6
C4: Year | G4: ='RFM input'!G70 -> 2013-14 | H4: ='RFM input'!H70 -> 2014-15 | I4: ='RFM input'!I70 -> 2015-16 | J4: ='RFM input'!J70 -> 2016-17 | K4: ='RFM input'!K70 -> 2017-18 | L4: ='RFM input'!L70 -> 2018-19 | M4: ='RFM input'!M70 -> 2019-20 | N4: ='RFM input'!N70 -> 2020-21 | O4: ='RFM input'!O70 -> 2021-22 | P4: ='RFM input'!P70 -> 2022-23 | Q4: ='RFM input'!Q70 -> 2023-24
C5: Asset Values ($m Nominal)
C7: Nominal Opening Regulatory Asset Base | G7: =SUM(G8:G67) -> 5345.979472 | H7: =SUM(H8:H67) -> 5581.338882 | I7: 5895.319435 | J7: 5979.860931 | K7: 6015.30008 | L7: 6255.494802 | M7: 0 | N7: 0 | O7: 0 | P7: 0 | Q7: 0
D8: =Asset1 -> 2013-14 ORAB Sub-transmission lines and cables | G8: ='RAB roll forward'!G858 -> 477.5570443 | H8: =G8+G70+G132+G194+G256+G318 -> 499.7721329 | I8: =H8+H70+H132 -> 495.3808358 | J8: =IF(COUNT($H8:I8)>='RFM input'!$W$7,0, I8+I70+I132) -> 485.6091551 | K8: =IF(COUNT($H8:J8)>='RFM input'!$W$7,0, J8+J70+J132) -> 474.3063992 | L8: =IF(COUNT($H8:K8)>='RFM input'!$W$7,0, K8+K70+K132) -> 465.8214941 | M8: =IF(COUNT($H8:L8)>='RFM input'!$W$7,0, L8+L70+L132) -> 0 | N8: =IF(COUNT($H8:M8)>='RFM input'!$W$7,0, M8+M70+M132) -> 0 | O8: =IF(COUNT($H8:N8)>='RFM input'!$W$7,0, N8+N70+N132) -> 0 | P8: =IF(COUNT($H8:O8)>='RFM input'!$W$7,0, O8+O70+O132) -> 0 | Q8: =IF(COUNT($H8:P8)>='RFM input'!$W$7,0, P8+P70+P132) -> 0
D9: =Asset2 -> 2013-14 ORAB Distribution lines and cables | G9: ='RAB roll forward'!G859 -> 1045.077693 | H9: 1177.057127 | I9: 1174.858022 | J9: =IF(COUNT($H9:I9)>='RFM input'!$W$7,0, I9+I71+I133) -> 1160.312531 | K9: =IF(COUNT($H9:J9)>='RFM input'!$W$7,0, J9+J71+J133) -> 1142.376258 | L9: =IF(COUNT($H9:K9)>='RFM input'!$W$7,0, K9+K71+K133) -> 1131.465528 | M9: =IF(COUNT($H9:L9)>='RFM input'!$W$7,0, L9+L71+L133) -> 0 | N9: =IF(COUNT($H9:M9)>='RFM input'!$W$7,0, M9+M71+M133) -> 0 | O9: =IF(COUNT($H9:N9)>='RFM input'!$W$7,0, N9+N71+N133) -> 0 | P9: =IF(COUNT($H9:O9)>='RFM input'!$W$7,0, O9+O71+O133) -> 0 | Q9: =IF(COUNT($H9:P9)>='RFM input'!$W$7,0, P9+P71+P133) -> 0
D10: =Asset3 -> 2013-14 ORAB Substations | G10: ='RAB roll forward'!G860 -> 2074.137607 | H10: 2088.701186 | I10: 2064.780912 | J10: =IF(COUNT($H10:I10)>='RFM input'!$W$7,0, I10+I72+I134) -> 2018.151861 | K10: =IF(COUNT($H10:J10)>='RFM input'!$W$7,0, J10+J72+J134) -> 1964.976849 | L10: =IF(COUNT($H10:K10)>='RFM input'!$W$7,0, K10+K72+K134) -> 1923.312549 | M10: =IF(COUNT($H10:L10)>='RFM input'!$W$7,0, L10+L72+L134) -> 0 | N10: =IF(COUNT($H10:M10)>='RFM input'!$W$7,0, M10+M72+M134) -> 0 | O10: =IF(COUNT($H10:N10)>='RFM input'!$W$7,0, N10+N72+N134) -> 0 | P10: =IF(COUNT($H10:O10)>='RFM input'!$W$7,0, O10+O72+O134) -> 0 | Q10: =IF(COUNT($H10:P10)>='RFM input'!$W$7,0, P10+P72+P134) -> 0
D11: =Asset4 -> 2013-14 ORAB Transformers | G11: ='RAB roll forward'!G861 -> 433.8910444 | H11: 490.5694812 | I11: 482.6006936 | J11: =IF(COUNT($H11:I11)>='RFM input'!$W$7,0, I11+I73+I135) -> 469.2043967 | K11: =IF(COUNT($H11:J11)>='RFM input'!$W$7,0, J11+J73+J135) -> 454.2085442 | L11: =IF(COUNT($H11:K11)>='RFM input'!$W$7,0, K11+K73+K135) -> 441.8039078 | M11: =IF(COUNT($H11:L11)>='RFM input'!$W$7,0, L11+L73+L135) -> 0 | N11: =IF(COUNT($H11:M11)>='RFM input'!$W$7,0, M11+M73+M135) -> 0 | O11: =IF(COUNT($H11:N11)>='RFM input'!$W$7,0, N11+N73+N135) -> 0 | P11: =IF(COUNT($H11:O11)>='RFM input'!$W$7,0, O11+O73+O135) -> 0 | Q11: =IF(COUNT($H11:P11)>='RFM input'!$W$7,0, P11+P73+P135) -> 0
D12: =Asset5 -> 2013-14 ORAB Low Voltage lines and cables | G12: ='RAB roll forward'!G862 -> 654.1185171 | H12: 702.5046467 | I12: 694.1810661 | J12: =IF(COUNT($H12:I12)>='RFM input'!$W$7,0, I12+I74+I136) -> 678.2085913 | K12: =IF(COUNT($H12:J12)>='RFM input'!$W$7,0, J12+J74+J136) -> 660.0271211 | L12: =IF(COUNT($H12:K12)>='RFM input'!$W$7,0, K12+K74+K136) -> 645.7038185 | M12: =IF(COUNT($H12:L12)>='RFM input'!$W$7,0, L12+L74+L136) -> 0 | N12: =IF(COUNT($H12:M12)>='RFM input'!$W$7,0, M12+M74+M136) -> 0 | O12: =IF(COUNT($H12:N12)>='RFM input'!$W$7,0, N12+N74+N136) -> 0 | P12: =IF(COUNT($H12:O12)>='RFM input'!$W$7,0, O12+O74+O136) -> 0 | Q12: =IF(COUNT($H12:P12)>='RFM input'!$W$7,0, P12+P74+P136) -> 0
D13: =Asset6 -> 2013-14 ORAB Customer metering and Load control | G13: ='RAB roll forward'!G863 -> 23.86726862 | H13: 8.14257293 | I13: 7.979557216 | J13: =IF(COUNT($H13:I13)>='RFM input'!$W$7,0, I13+I75+I137) -> 7.725225805 | K13: =IF(COUNT($H13:J13)>='RFM input'!$W$7,0, J13+J75+J137) -> 7.443532107 | L13: =IF(COUNT($H13:K13)>='RFM input'!$W$7,0, K13+K75+K137) -> 7.203379211 | M13: =IF(COUNT($H13:L13)>='RFM input'!$W$7,0, L13+L75+L137) -> 0 | N13: =IF(COUNT($H13:M13)>='RFM input'!$W$7,0, M13+M75+M137) -> 0 | O13: =IF(COUNT($H13:N13)>='RFM input'!$W$7,0, N13+N75+N137) -> 0 | P13: =IF(COUNT($H13:O13)>='RFM input'!$W$7,0, O13+O75+O137) -> 0 | Q13: =IF(COUNT($H13:P13)>='RFM input'!$W$7,0, P13+P75+P137) -> 0
D14: =Asset7 -> 2013-14 ORAB Communication | G14: ='RAB roll forward'!G864 -> 17.7716869 | H14: 16.51093993 | I14: 14.53371902 | J14: =IF(COUNT($H14:I14)>='RFM input'!$W$7,0, I14+I76+I138) -> 12.30552887 | K14: =IF(COUNT($H14:J14)>='RFM input'!$W$7,0, J14+J76+J138) -> 9.978341474 | L14: =IF(COUNT($H14:K14)>='RFM input'!$W$7,0, K14+K76+K138) -> 7.656731641 | M14: =IF(COUNT($H14:L14)>='RFM input'!$W$7,0, L14+L76+L138) -> 0 | N14: =IF(COUNT($H14:M14)>='RFM input'!$W$7,0, M14+M76+M138) -> 0 | O14: =IF(COUNT($H14:N14)>='RFM input'!$W$7,0, N14+N76+N138) -> 0 | P14: =IF(COUNT($H14:O14)>='RFM input'!$W$7,0, O14+O76+O138) -> 0 | Q14: =IF(COUNT($H14:P14)>='RFM input'!$W$7,0, P14+P76+P138) -> 0
D15: =Asset8 -> 2013-14 ORAB Land | G15: ='RAB roll forward'!G865 -> 134.4533557 | H15: 129.349432 | I15: 132.5675459 | J15: =IF(COUNT($H15:I15)>='RFM input'!$W$7,0, I15+I77+I139) -> 134.5671506 | K15: =IF(COUNT($H15:J15)>='RFM input'!$W$7,0, J15+J77+J139) -> 136.285561 | L15: =IF(COUNT($H15:K15)>='RFM input'!$W$7,0, K15+K77+K139) -> 138.941286 | M15: =IF(COUNT($H15:L15)>='RFM input'!$W$7,0, L15+L77+L139) -> 0 | N15: =IF(COUNT($H15:M15)>='RFM input'!$W$7,0, M15+M77+M139) -> 0 | O15: =IF(COUNT($H15:N15)>='RFM input'!$W$7,0, N15+N77+N139) -> 0 | P15: =IF(COUNT($H15:O15)>='RFM input'!$W$7,0, O15+O77+O139) -> 0 | Q15: =IF(COUNT($H15:P15)>='RFM input'!$W$7,0, P15+P77+P139) -> 0
D16: =Asset9 -> 2013-14 ORAB Easements | G16: ='RAB roll forward'!G866 -> 14.7397767 | H16: 16.63390159 | I16: 17.0477402 | J16: =IF(COUNT($H16:I16)>='RFM input'!$W$7,0, I16+I78+I140) -> 17.30488264 | K16: =IF(COUNT($H16:J16)>='RFM input'!$W$7,0, J16+J78+J140) -> 17.52586443 | L16: =IF(COUNT($H16:K16)>='RFM input'!$W$7,0, K16+K78+K140) -> 17.86738173 | M16: =IF(COUNT($H16:L16)>='RFM input'!$W$7,0, L16+L78+L140) -> 0 | N16: =IF(COUNT($H16:M16)>='RFM input'!$W$7,0, M16+M78+M140) -> 0 | O16: =IF(COUNT($H16:N16)>='RFM input'!$W$7,0, N16+N78+N140) -> 0 | P16: =IF(COUNT($H16:O16)>='RFM input'!$W$7,0, O16+O78+O140) -> 0 | Q16: =IF(COUNT($H16:P16)>='RFM input'!$W$7,0, P16+P78+P140) -> 0
D17: =Asset10 -> 2013-14 ORAB Equity raising costs | G17: ='RAB roll forward'!G867 -> 7.987380923 | H17: 7.969354724 | I17: 7.947145344 | J17: =IF(COUNT($H17:I17)>='RFM input'!$W$7,0, I17+I79+I141) -> 7.841051283 | K17: =IF(COUNT($H17:J17)>='RFM input'!$W$7,0, J17+J79+J141) -> 7.711806243 | L17: =IF(COUNT($H17:K17)>='RFM input'!$W$7,0, K17+K79+K141) -> 7.629778508 | M17: =IF(COUNT($H17:L17)>='RFM input'!$W$7,0, L17+L79+L141) -> 0 | N17: =IF(COUNT($H17:M17)>='RFM input'!$W$7,0, M17+M79+M141) -> 0 | O17: =IF(COUNT($H17:N17)>='RFM input'!$W$7,0, N17+N79+N141) -> 0 | P17: =IF(COUNT($H17:O17)>='RFM input'!$W$7,0, O17+O79+O141) -> 0 | Q17: =IF(COUNT($H17:P17)>='RFM input'!$W$7,0, P17+P79+P141) -> 0
D18: =Asset11 -> 2013-14 ORAB Emergency Spares (Major Plant, Excludes Inventory) | G18: ='RAB roll forward'!G868 -> 10.76582976 | H18: 13.42443664 | I18: 12.49025545 | J18: =IF(COUNT($H18:I18)>='RFM input'!$W$7,0, I18+I80+I142) -> 11.37893241 | K18: =IF(COUNT($H18:J18)>='RFM input'!$W$7,0, J18+J80+J142) -> 10.20491386 | L18: =IF(COUNT($H18:K18)>='RFM input'!$W$7,0, K18+K80+K142) -> 9.067597497 | M18: =IF(COUNT($H18:L18)>='RFM input'!$W$7,0, L18+L80+L142) -> 0 | N18: =IF(COUNT($H18:M18)>='RFM input'!$W$7,0, M18+M80+M142) -> 0 | O18: =IF(COUNT($H18:N18)>='RFM input'!$W$7,0, N18+N80+N142) -> 0 | P18: =IF(COUNT($H18:O18)>='RFM input'!$W$7,0, O18+O80+O142) -> 0 | Q18: =IF(COUNT($H18:P18)>='RFM input'!$W$7,0, P18+P80+P142) -> 0
D19: =Asset12 -> 2013-14 ORAB Work in progress | G19: ='RAB roll forward'!G869 -> 0 | H19: 0 | I19: 0 | J19: =IF(COUNT($H19:I19)>='RFM input'!$W$7,0, I19+I81+I143) -> 0 | K19: =IF(COUNT($H19:J19)>='RFM input'!$W$7,0, J19+J81+J143) -> 0 | L19: =IF(COUNT($H19:K19)>='RFM input'!$W$7,0, K19+K81+K143) -> 0 | M19: =IF(COUNT($H19:L19)>='RFM input'!$W$7,0, L19+L81+L143) -> 0 | N19: =IF(COUNT($H19:M19)>='RFM input'!$W$7,0, M19+M81+M143) -> 0 | O19: =IF(COUNT($H19:N19)>='RFM input'!$W$7,0, N19+N81+N143) -> 0 | P19: =IF(COUNT($H19:O19)>='RFM input'!$W$7,0, O19+O81+O143) -> 0 | Q19: =IF(COUNT($H19:P19)>='RFM input'!$W$7,0, P19+P81+P143) -> 0
D20: =Asset13 -> 2013-14 ORAB Information & Communication Technology | G20: ='RAB roll forward'!G870 -> 47.7857445 | H20: 44.96399363 | I20: 32.71956804 | J20: =IF(COUNT($H20:I20)>='RFM input'!$W$7,0, I20+I82+I144) -> 19.51754064 | K20: =IF(COUNT($H20:J20)>='RFM input'!$W$7,0, J20+J82+J144) -> 5.864640156 | L20: =IF(COUNT($H20:K20)>='RFM input'!$W$7,0, K20+K82+K144) -> -0.3178220964 | M20: =IF(COUNT($H20:L20)>='RFM input'!$W$7,0, L20+L82+L144) -> 0 | N20: =IF(COUNT($H20:M20)>='RFM input'!$W$7,0, M20+M82+M144) -> 0 | O20: =IF(COUNT($H20:N20)>='RFM input'!$W$7,0, N20+N82+N144) -> 0 | P20: =IF(COUNT($H20:O20)>='RFM input'!$W$7,0, O20+O82+O144) -> 0 | Q20: =IF(COUNT($H20:P20)>='RFM input'!$W$7,0, P20+P82+P144) -> 0
D21: =Asset14 -> 2013-14 ORAB Furniture, fittings, plant and equipment | G21: ='RAB roll forward'!G871 -> 43.02289526 | H21: 45.26802009 | I21: 40.4687763 | J21: =IF(COUNT($H21:I21)>='RFM input'!$W$7,0, I21+I83+I145) -> 35.00629542 | K21: =IF(COUNT($H21:J21)>='RFM input'!$W$7,0, J21+J83+J145) -> 29.28882263 | L21: =IF(COUNT($H21:K21)>='RFM input'!$W$7,0, K21+K83+K145) -> 23.61633839 | M21: =IF(COUNT($H21:L21)>='RFM input'!$W$7,0, L21+L83+L145) -> 0 | N21: =IF(COUNT($H21:M21)>='RFM input'!$W$7,0, M21+M83+M145) -> 0 | O21: =IF(COUNT($H21:N21)>='RFM input'!$W$7,0, N21+N83+N145) -> 0 | P21: =IF(COUNT($H21:O21)>='RFM input'!$W$7,0, O21+O83+O145) -> 0 | Q21: =IF(COUNT($H21:P21)>='RFM input'!$W$7,0, P21+P83+P145) -> 0
D22: =Asset15 -> 2013-14 ORAB Motor Vehicles | G22: ='RAB roll forward'!G872 -> 36.61781445 | H22: 22.94382223 | I22: 19.35024101 | J22: =IF(COUNT($H22:I22)>='RFM input'!$W$7,0, I22+I84+I146) -> 15.37410061 | K22: =IF(COUNT($H22:J22)>='RFM input'!$W$7,0, J22+J84+J146) -> 11.23803621 | L22: =IF(COUNT($H22:K22)>='RFM input'!$W$7,0, K22+K84+K146) -> 7.069311403 | M22: =IF(COUNT($H22:L22)>='RFM input'!$W$7,0, L22+L84+L146) -> 0 | N22: =IF(COUNT($H22:M22)>='RFM input'!$W$7,0, M22+M84+M146) -> 0 | O22: =IF(COUNT($H22:N22)>='RFM input'!$W$7,0, N22+N84+N146) -> 0 | P22: =IF(COUNT($H22:O22)>='RFM input'!$W$7,0, O22+O84+O146) -> 0 | Q22: =IF(COUNT($H22:P22)>='RFM input'!$W$7,0, P22+P84+P146) -> 0
D23: =Asset16 -> 2013-14 ORAB Buildings | G23: ='RAB roll forward'!G873 -> 202.2077858 | H23: 192.6225558 | I23: 192.9992518 | J23: =IF(COUNT($H23:I23)>='RFM input'!$W$7,0, I23+I85+I147) -> 191.3849272 | K23: =IF(COUNT($H23:J23)>='RFM input'!$W$7,0, J23+J85+J147) -> 189.2351738 | L23: =IF(COUNT($H23:K23)>='RFM input'!$W$7,0, K23+K85+K147) -> 188.2703171 | M23: =IF(COUNT($H23:L23)>='RFM input'!$W$7,0, L23+L85+L147) -> 0 | N23: =IF(COUNT($H23:M23)>='RFM input'!$W$7,0, M23+M85+M147) -> 0 | O23: =IF(COUNT($H23:N23)>='RFM input'!$W$7,0, N23+N85+N147) -> 0 | P23: =IF(COUNT($H23:O23)>='RFM input'!$W$7,0, O23+O85+O147) -> 0 | Q23: =IF(COUNT($H23:P23)>='RFM input'!$W$7,0, P23+P85+P147) -> 0
D24: =Asset17 -> 2013-14 ORAB Land (non-system) | G24: ='RAB roll forward'!G874 -> 121.9863871 | H24: 124.9138142 | I24: 128.0215733 | J24: =IF(COUNT($H24:I24)>='RFM input'!$W$7,0, I24+I86+I148) -> 129.9526082 | K24: =IF(COUNT($H24:J24)>='RFM input'!$W$7,0, J24+J86+J148) -> 131.6120912 | L24: =IF(COUNT($H24:K24)>='RFM input'!$W$7,0, K24+K86+K148) -> 134.1767468 | M24: =IF(COUNT($H24:L24)>='RFM input'!$W$7,0, L24+L86+L148) -> 0 | N24: =IF(COUNT($H24:M24)>='RFM input'!$W$7,0, M24+M86+M148) -> 0 | O24: =IF(COUNT($H24:N24)>='RFM input'!$W$7,0, N24+N86+N148) -> 0 | P24: =IF(COUNT($H24:O24)>='RFM input'!$W$7,0, O24+O86+O148) -> 0 | Q24: =IF(COUNT($H24:P24)>='RFM input'!$W$7,0, P24+P86+P148) -> 0
D25: =Asset18 -> 2013-14 ORAB Other non system assets | G25: ='RAB roll forward'!G875 -> -0.008359946674 | H25: -0.00853597825 | I25: -0.008748346791 | J25: =IF(COUNT($H25:I25)>='RFM input'!$W$7,0, I25+I87+I149) -> -0.008880303943 | K25: =IF(COUNT($H25:J25)>='RFM input'!$W$7,0, J25+J87+J149) -> -0.00899370462 | L25: =IF(COUNT($H25:K25)>='RFM input'!$W$7,0, K25+K87+K149) -> -0.009168960212 | M25: =IF(COUNT($H25:L25)>='RFM input'!$W$7,0, L25+L87+L149) -> 0 | N25: =IF(COUNT($H25:M25)>='RFM input'!$W$7,0, M25+M87+M149) -> 0 | O25: =IF(COUNT($H25:N25)>='RFM input'!$W$7,0, N25+N87+N149) -> 0 | P25: =IF(COUNT($H25:O25)>='RFM input'!$W$7,0, O25+O87+O149) -> 0 | Q25: =IF(COUNT($H25:P25)>='RFM input'!$W$7,0, P25+P87+P149) -> 0
D26: =Asset19 -> 2013-14 ORAB Blank 1 | G26: ='RAB roll forward'!G876 -> 0 | H26: 0 | I26: 0 | J26: =IF(COUNT($H26:I26)>='RFM input'!$W$7,0, I26+I88+I150) -> 0 | K26: =IF(COUNT($H26:J26)>='RFM input'!$W$7,0, J26+J88+J150) -> 0 | L26: =IF(COUNT($H26:K26)>='RFM input'!$W$7,0, K26+K88+K150) -> 0 | M26: =IF(COUNT($H26:L26)>='RFM input'!$W$7,0, L26+L88+L150) -> 0 | N26: =IF(COUNT($H26:M26)>='RFM input'!$W$7,0, M26+M88+M150) -> 0 | O26: =IF(COUNT($H26:N26)>='RFM input'!$W$7,0, N26+N88+N150) -> 0 | P26: =IF(COUNT($H26:O26)>='RFM input'!$W$7,0, O26+O88+O150) -> 0 | Q26: =IF(COUNT($H26:P26)>='RFM input'!$W$7,0, P26+P88+P150) -> 0
D27: =Asset20 -> 2013-14 ORAB Blank 2 | G27: ='RAB roll forward'!G877 -> 0 | H27: 0 | I27: 0 | J27: =IF(COUNT($H27:I27)>='RFM input'!$W$7,0, I27+I89+I151) -> 0 | K27: =IF(COUNT($H27:J27)>='RFM input'!$W$7,0, J27+J89+J151) -> 0 | L27: =IF(COUNT($H27:K27)>='RFM input'!$W$7,0, K27+K89+K151) -> 0 | M27: =IF(COUNT($H27:L27)>='RFM input'!$W$7,0, L27+L89+L151) -> 0 | N27: =IF(COUNT($H27:M27)>='RFM input'!$W$7,0, M27+M89+M151) -> 0 | O27: =IF(COUNT($H27:N27)>='RFM input'!$W$7,0, N27+N89+N151) -> 0 | P27: =IF(COUNT($H27:O27)>='RFM input'!$W$7,0, O27+O89+O151) -> 0 | Q27: =IF(COUNT($H27:P27)>='RFM input'!$W$7,0, P27+P89+P151) -> 0
D28: =Asset21 -> 2014-15 to 2018-19 Sub-transmission lines and cables | G28: ='RAB roll forward'!G878 -> 0 | H28: 0 | I28: 39.77781927 | J28: =IF(COUNT($H28:I28)>='RFM input'!$W$7,0, I28+I90+I152) -> 63.94661968 | K28: =IF(COUNT($H28:J28)>='RFM input'!$W$7,0, J28+J90+J152) -> 95.48440101 | L28: =IF(COUNT($H28:K28)>='RFM input'!$W$7,0, K28+K90+K152) -> 116.3433404 | M28: =IF(COUNT($H28:L28)>='RFM input'!$W$7,0, L28+L90+L152) -> 0 | N28: =IF(COUNT($H28:M28)>='RFM input'!$W$7,0, M28+M90+M152) -> 0 | O28: =IF(COUNT($H28:N28)>='RFM input'!$W$7,0, N28+N90+N152) -> 0 | P28: =IF(COUNT($H28:O28)>='RFM input'!$W$7,0, O28+O90+O152) -> 0 | Q28: =IF(COUNT($H28:P28)>='RFM input'!$W$7,0, P28+P90+P152) -> 0
D29: =Asset22 -> 2014-15 to 2018-19 Distribution lines and cables | G29: ='RAB roll forward'!G879 -> 0 | H29: 0 | I29: 89.04782059 | J29: =IF(COUNT($H29:I29)>='RFM input'!$W$7,0, I29+I91+I153) -> 135.3909323 | K29: =IF(COUNT($H29:J29)>='RFM input'!$W$7,0, J29+J91+J153) -> 184.4922099 | L29: =IF(COUNT($H29:K29)>='RFM input'!$W$7,0, K29+K91+K153) -> 238.7133437 | M29: =IF(COUNT($H29:L29)>='RFM input'!$W$7,0, L29+L91+L153) -> 0 | N29: =IF(COUNT($H29:M29)>='RFM input'!$W$7,0, M29+M91+M153) -> 0 | O29: =IF(COUNT($H29:N29)>='RFM input'!$W$7,0, N29+N91+N153) -> 0 | P29: =IF(COUNT($H29:O29)>='RFM input'!$W$7,0, O29+O91+O153) -> 0 | Q29: =IF(COUNT($H29:P29)>='RFM input'!$W$7,0, P29+P91+P153) -> 0
D30: =Asset23 -> 2014-15 to 2018-19 Substations | G30: ='RAB roll forward'!G880 -> 0 | H30: 0 | I30: 133.9923011 | J30: =IF(COUNT($H30:I30)>='RFM input'!$W$7,0, I30+I92+I154) -> 221.5779772 | K30: =IF(COUNT($H30:J30)>='RFM input'!$W$7,0, J30+J92+J154) -> 262.3238898 | L30: =IF(COUNT($H30:K30)>='RFM input'!$W$7,0, K30+K92+K154) -> 375.1494295 | M30: =IF(COUNT($H30:L30)>='RFM input'!$W$7,0, L30+L92+L154) -> 0 | N30: =IF(COUNT($H30:M30)>='RFM input'!$W$7,0, M30+M92+M154) -> 0 | O30: =IF(COUNT($H30:N30)>='RFM input'!$W$7,0, N30+N92+N154) -> 0 | P30: =IF(COUNT($H30:O30)>='RFM input'!$W$7,0, O30+O92+O154) -> 0 | Q30: =IF(COUNT($H30:P30)>='RFM input'!$W$7,0, P30+P92+P154) -> 0
D31: =Asset24 -> 2014-15 to 2018-19 Transformers | G31: ='RAB roll forward'!G881 -> 0 | H31: 0 | I31: 21.53710227 | J31: =IF(COUNT($H31:I31)>='RFM input'!$W$7,0, I31+I93+I155) -> 39.83388525 | K31: =IF(COUNT($H31:J31)>='RFM input'!$W$7,0, J31+J93+J155) -> 54.55514422 | L31: =IF(COUNT($H31:K31)>='RFM input'!$W$7,0, K31+K93+K155) -> 72.43772138 | M31: =IF(COUNT($H31:L31)>='RFM input'!$W$7,0, L31+L93+L155) -> 0 | N31: =IF(COUNT($H31:M31)>='RFM input'!$W$7,0, M31+M93+M155) -> 0 | O31: =IF(COUNT($H31:N31)>='RFM input'!$W$7,0, N31+N93+N155) -> 0 | P31: =IF(COUNT($H31:O31)>='RFM input'!$W$7,0, O31+O93+O155) -> 0 | Q31: =IF(COUNT($H31:P31)>='RFM input'!$W$7,0, P31+P93+P155) -> 0
D32: =Asset25 -> 2014-15 to 2018-19 Low Voltage lines and cables | G32: ='RAB roll forward'!G882 -> 0 | H32: 0 | I32: 47.04857269 | J32: =IF(COUNT($H32:I32)>='RFM input'!$W$7,0, I32+I94+I156) -> 89.71302197 | K32: =IF(COUNT($H32:J32)>='RFM input'!$W$7,0, J32+J94+J156) -> 123.7657489 | L32: =IF(COUNT($H32:K32)>='RFM input'!$W$7,0, K32+K94+K156) -> 201.4802433 | M32: =IF(COUNT($H32:L32)>='RFM input'!$W$7,0, L32+L94+L156) -> 0 | N32: =IF(COUNT($H32:M32)>='RFM input'!$W$7,0, M32+M94+M156) -> 0 | O32: =IF(COUNT($H32:N32)>='RFM input'!$W$7,0, N32+N94+N156) -> 0 | P32: =IF(COUNT($H32:O32)>='RFM input'!$W$7,0, O32+O94+O156) -> 0 | Q32: =IF(COUNT($H32:P32)>='RFM input'!$W$7,0, P32+P94+P156) -> 0
D33: =Asset26 -> 2014-15 to 2018-19 Customer metering and Load control | G33: ='RAB roll forward'!G883 -> 0 | H33: 0 | I33: 0.7988173943 | J33: =IF(COUNT($H33:I33)>='RFM input'!$W$7,0, I33+I95+I157) -> 1.344944434 | K33: =IF(COUNT($H33:J33)>='RFM input'!$W$7,0, J33+J95+J157) -> 3.138862539 | L33: =IF(COUNT($H33:K33)>='RFM input'!$W$7,0, K33+K95+K157) -> 3.852502912 | M33: =IF(COUNT($H33:L33)>='RFM input'!$W$7,0, L33+L95+L157) -> 0 | N33: =IF(COUNT($H33:M33)>='RFM input'!$W$7,0, M33+M95+M157) -> 0 | O33: =IF(COUNT($H33:N33)>='RFM input'!$W$7,0, N33+N95+N157) -> 0 | P33: =IF(COUNT($H33:O33)>='RFM input'!$W$7,0, O33+O95+O157) -> 0 | Q33: =IF(COUNT($H33:P33)>='RFM input'!$W$7,0, P33+P95+P157) -> 0
D34: =Asset27 -> 2014-15 to 2018-19 Communication | G34: ='RAB roll forward'!G884 -> 0 | H34: 0 | I34: 5.620296749 | J34: =IF(COUNT($H34:I34)>='RFM input'!$W$7,0, I34+I96+I158) -> 10.0921831 | K34: =IF(COUNT($H34:J34)>='RFM input'!$W$7,0, J34+J96+J158) -> 16.57137131 | L34: =IF(COUNT($H34:K34)>='RFM input'!$W$7,0, K34+K96+K158) -> 24.08506645 | M34: =IF(COUNT($H34:L34)>='RFM input'!$W$7,0, L34+L96+L158) -> 0 | N34: =IF(COUNT($H34:M34)>='RFM input'!$W$7,0, M34+M96+M158) -> 0 | O34: =IF(COUNT($H34:N34)>='RFM input'!$W$7,0, N34+N96+N158) -> 0 | P34: =IF(COUNT($H34:O34)>='RFM input'!$W$7,0, O34+O96+O158) -> 0 | Q34: =IF(COUNT($H34:P34)>='RFM input'!$W$7,0, P34+P96+P158) -> 0
D35: =Asset28 -> 2014-15 to 2018-19 Land | G35: ='RAB roll forward'!G885 -> 0 | H35: 0 | I35: -0.3145286211 | J35: =IF(COUNT($H35:I35)>='RFM input'!$W$7,0, I35+I97+I159) -> -2.881040249 | K35: =IF(COUNT($H35:J35)>='RFM input'!$W$7,0, J35+J97+J159) -> -8.268925788 | L35: =IF(COUNT($H35:K35)>='RFM input'!$W$7,0, K35+K97+K159) -> -11.59360778 | M35: =IF(COUNT($H35:L35)>='RFM input'!$W$7,0, L35+L97+L159) -> 0 | N35: =IF(COUNT($H35:M35)>='RFM input'!$W$7,0, M35+M97+M159) -> 0 | O35: =IF(COUNT($H35:N35)>='RFM input'!$W$7,0, N35+N97+N159) -> 0 | P35: =IF(COUNT($H35:O35)>='RFM input'!$W$7,0, O35+O97+O159) -> 0 | Q35: =IF(COUNT($H35:P35)>='RFM input'!$W$7,0, P35+P97+P159) -> 0
D36: =Asset29 -> 2014-15 to 2018-19 Easements | G36: ='RAB roll forward'!G886 -> 0 | H36: 0 | I36: 0.07131555755 | J36: =IF(COUNT($H36:I36)>='RFM input'!$W$7,0, I36+I98+I160) -> 0.5086345631 | K36: =IF(COUNT($H36:J36)>='RFM input'!$W$7,0, J36+J98+J160) -> 0.6565463632 | L36: =IF(COUNT($H36:K36)>='RFM input'!$W$7,0, K36+K98+K160) -> 0.7662665396 | M36: =IF(COUNT($H36:L36)>='RFM input'!$W$7,0, L36+L98+L160) -> 0 | N36: =IF(COUNT($H36:M36)>='RFM input'!$W$7,0, M36+M98+M160) -> 0 | O36: =IF(COUNT($H36:N36)>='RFM input'!$W$7,0, N36+N98+N160) -> 0 | P36: =IF(COUNT($H36:O36)>='RFM input'!$W$7,0, O36+O98+O160) -> 0 | Q36: =IF(COUNT($H36:P36)>='RFM input'!$W$7,0, P36+P98+P160) -> 0
D37: =Asset30 -> 2014-15 to 2018-19 Equity raising costs | G37: ='RAB roll forward'!G887 -> 0 | H37: 0 | I37: 2.333554221 | J37: =IF(COUNT($H37:I37)>='RFM input'!$W$7,0, I37+I99+I161) -> 2.315041178 | K37: =IF(COUNT($H37:J37)>='RFM input'!$W$7,0, J37+J99+J161) -> 2.290081251 | L37: =IF(COUNT($H37:K37)>='RFM input'!$W$7,0, K37+K99+K161) -> 2.279488856 | M37: =IF(COUNT($H37:L37)>='RFM input'!$W$7,0, L37+L99+L161) -> 0 | N37: =IF(COUNT($H37:M37)>='RFM input'!$W$7,0, M37+M99+M161) -> 0 | O37: =IF(COUNT($H37:N37)>='RFM input'!$W$7,0, N37+N99+N161) -> 0 | P37: =IF(COUNT($H37:O37)>='RFM input'!$W$7,0, O37+O99+O161) -> 0 | Q37: =IF(COUNT($H37:P37)>='RFM input'!$W$7,0, P37+P99+P161) -> 0
D38: =Asset31 -> 2014-15 to 2018-19 Emergency Spares (Major Plant, Excludes Inventory) | G38: ='RAB roll forward'!G888 -> 0 | H38: =G38+G100+G162+G224+G286+G348 -> 0 | I38: =H38+H100+H162 -> 0.2550767155 | J38: =IF(COUNT($H38:I38)>='RFM input'!$W$7,0, I38+I100+I162) -> 0.3295670364 | K38: =IF(COUNT($H38:J38)>='RFM input'!$W$7,0, J38+J100+J162) -> 0.4774337823 | L38: =IF(COUNT($H38:K38)>='RFM input'!$W$7,0, K38+K100+K162) -> 1.457211126 | M38: =IF(COUNT($H38:L38)>='RFM input'!$W$7,0, L38+L100+L162) -> 0 | N38: =IF(COUNT($H38:M38)>='RFM input'!$W$7,0, M38+M100+M162) -> 0 | O38: =IF(COUNT($H38:N38)>='RFM input'!$W$7,0, N38+N100+N162) -> 0 | P38: =IF(COUNT($H38:O38)>='RFM input'!$W$7,0, O38+O100+O162) -> 0 | Q38: =IF(COUNT($H38:P38)>='RFM input'!$W$7,0, P38+P100+P162) -> 0
D39: =Asset32 -> 2014-15 to 2018-19 Work in progress | G39: ='RAB roll forward'!G889 -> 0 | H39: 0 | I39: =H39+H101+H163 -> 0 | J39: =IF(COUNT($H39:I39)>='RFM input'!$W$7,0, I39+I101+I163) -> 0 | K39: =IF(COUNT($H39:J39)>='RFM input'!$W$7,0, J39+J101+J163) -> 0 | L39: =IF(COUNT($H39:K39)>='RFM input'!$W$7,0, K39+K101+K163) -> 0 | M39: =IF(COUNT($H39:L39)>='RFM input'!$W$7,0, L39+L101+L163) -> 0 | N39: =IF(COUNT($H39:M39)>='RFM input'!$W$7,0, M39+M101+M163) -> 0 | O39: =IF(COUNT($H39:N39)>='RFM input'!$W$7,0, N39+N101+N163) -> 0 | P39: =IF(COUNT($H39:O39)>='RFM input'!$W$7,0, O39+O101+O163) -> 0 | Q39: =IF(COUNT($H39:P39)>='RFM input'!$W$7,0, P39+P101+P163) -> 0
D40: =Asset33 -> 2014-15 to 2018-19 Information & Communication Technology | G40: ='RAB roll forward'!G890 -> 0 | H40: 0 | I40: 12.22671573 | J40: =IF(COUNT($H40:I40)>='RFM input'!$W$7,0, I40+I102+I164) -> 18.98291491 | K40: =IF(COUNT($H40:J40)>='RFM input'!$W$7,0, J40+J102+J164) -> 21.29011037 | L40: =IF(COUNT($H40:K40)>='RFM input'!$W$7,0, K40+K102+K164) -> 62.38114028 | M40: =IF(COUNT($H40:L40)>='RFM input'!$W$7,0, L40+L102+L164) -> 0 | N40: =IF(COUNT($H40:M40)>='RFM input'!$W$7,0, M40+M102+M164) -> 0 | O40: =IF(COUNT($H40:N40)>='RFM input'!$W$7,0, N40+N102+N164) -> 0 | P40: =IF(COUNT($H40:O40)>='RFM input'!$W$7,0, O40+O102+O164) -> 0 | Q40: =IF(COUNT($H40:P40)>='RFM input'!$W$7,0, P40+P102+P164) -> 0
D41: =Asset34 -> 2014-15 to 2018-19 Furniture, fittings, plant and equipment | G41: ='RAB roll forward'!G891 -> 0 | H41: 0 | I41: 2.377677708 | J41: =IF(COUNT($H41:I41)>='RFM input'!$W$7,0, I41+I103+I165) -> 4.599243797 | K41: =IF(COUNT($H41:J41)>='RFM input'!$W$7,0, J41+J103+J165) -> 4.373040523 | L41: =IF(COUNT($H41:K41)>='RFM input'!$W$7,0, K41+K103+K165) -> 7.280871136 | M41: =IF(COUNT($H41:L41)>='RFM input'!$W$7,0, L41+L103+L165) -> 0 | N41: =IF(COUNT($H41:M41)>='RFM input'!$W$7,0, M41+M103+M165) -> 0 | O41: =IF(COUNT($H41:N41)>='RFM input'!$W$7,0, N41+N103+N165) -> 0 | P41: =IF(COUNT($H41:O41)>='RFM input'!$W$7,0, O41+O103+O165) -> 0 | Q41: =IF(COUNT($H41:P41)>='RFM input'!$W$7,0, P41+P103+P165) -> 0
D42: =Asset35 -> 2014-15 to 2018-19 Motor Vehicles | G42: ='RAB roll forward'!G892 -> 0 | H42: 0 | I42: 0.8786097793 | J42: =IF(COUNT($H42:I42)>='RFM input'!$W$7,0, I42+I104+I166) -> 0.4890091789 | K42: =IF(COUNT($H42:J42)>='RFM input'!$W$7,0, J42+J104+J166) -> -0.8871988613 | L42: =IF(COUNT($H42:K42)>='RFM input'!$W$7,0, K42+K104+K166) -> 2.781723811 | M42: =IF(COUNT($H42:L42)>='RFM input'!$W$7,0, L42+L104+L166) -> 0 | N42: =IF(COUNT($H42:M42)>='RFM input'!$W$7,0, M42+M104+M166) -> 0 | O42: =IF(COUNT($H42:N42)>='RFM input'!$W$7,0, N42+N104+N166) -> 0 | P42: =IF(COUNT($H42:O42)>='RFM input'!$W$7,0, O42+O104+O166) -> 0 | Q42: =IF(COUNT($H42:P42)>='RFM input'!$W$7,0, P42+P104+P166) -> 0
D43: =Asset36 -> 2014-15 to 2018-19 Buildings | G43: ='RAB roll forward'!G893 -> 0 | H43: 0 | I43: 21.75012898 | J43: =IF(COUNT($H43:I43)>='RFM input'!$W$7,0, I43+I105+I167) -> 26.220942 | K43: =IF(COUNT($H43:J43)>='RFM input'!$W$7,0, J43+J105+J167) -> 29.53165311 | L43: =IF(COUNT($H43:K43)>='RFM input'!$W$7,0, K43+K105+K167) -> 36.07407045 | M43: =IF(COUNT($H43:L43)>='RFM input'!$W$7,0, L43+L105+L167) -> 0 | N43: =IF(COUNT($H43:M43)>='RFM input'!$W$7,0, M43+M105+M167) -> 0 | O43: =IF(COUNT($H43:N43)>='RFM input'!$W$7,0, N43+N105+N167) -> 0 | P43: =IF(COUNT($H43:O43)>='RFM input'!$W$7,0, O43+O105+O167) -> 0 | Q43: =IF(COUNT($H43:P43)>='RFM input'!$W$7,0, P43+P105+P167) -> 0
D44: =Asset37 -> 2014-15 to 2018-19 Land (non-system) | G44: ='RAB roll forward'!G894 -> 0 | H44: 0 | I44: 0 | J44: =IF(COUNT($H44:I44)>='RFM input'!$W$7,0, I44+I106+I168) -> -26.43884346 | K44: =IF(COUNT($H44:J44)>='RFM input'!$W$7,0, J44+J106+J168) -> -26.76924917 | L44: =IF(COUNT($H44:K44)>='RFM input'!$W$7,0, K44+K106+K168) -> -27.27318443 | M44: =IF(COUNT($H44:L44)>='RFM input'!$W$7,0, L44+L106+L168) -> 0 | N44: =IF(COUNT($H44:M44)>='RFM input'!$W$7,0, M44+M106+M168) -> 0 | O44: =IF(COUNT($H44:N44)>='RFM input'!$W$7,0, N44+N106+N168) -> 0 | P44: =IF(COUNT($H44:O44)>='RFM input'!$W$7,0, O44+O106+O168) -> 0 | Q44: =IF(COUNT($H44:P44)>='RFM input'!$W$7,0, P44+P106+P168) -> 0
D45: =Asset38 -> 2014-15 to 2018-19 Other non system assets | G45: ='RAB roll forward'!G895 -> 0 | H45: 0 | I45: 0 | J45: =IF(COUNT($H45:I45)>='RFM input'!$W$7,0, I45+I107+I169) -> 0 | K45: =IF(COUNT($H45:J45)>='RFM input'!$W$7,0, J45+J107+J169) -> 0 | L45: =IF(COUNT($H45:K45)>='RFM input'!$W$7,0, K45+K107+K169) -> 0 | M45: =IF(COUNT($H45:L45)>='RFM input'!$W$7,0, L45+L107+L169) -> 0 | N45: =IF(COUNT($H45:M45)>='RFM input'!$W$7,0, M45+M107+M169) -> 0 | O45: =IF(COUNT($H45:N45)>='RFM input'!$W$7,0, N45+N107+N169) -> 0 | P45: =IF(COUNT($H45:O45)>='RFM input'!$W$7,0, O45+O107+O169) -> 0 | Q45: =IF(COUNT($H45:P45)>='RFM input'!$W$7,0, P45+P107+P169) -> 0
D46: =Asset39 -> 2014-15 to 2018-19 Blank 1 | G46: ='RAB roll forward'!G896 -> 0 | H46: 0 | I46: 0 | J46: =IF(COUNT($H46:I46)>='RFM input'!$W$7,0, I46+I108+I170) -> 0 | K46: =IF(COUNT($H46:J46)>='RFM input'!$W$7,0, J46+J108+J170) -> 0 | L46: =IF(COUNT($H46:K46)>='RFM input'!$W$7,0, K46+K108+K170) -> 0 | M46: =IF(COUNT($H46:L46)>='RFM input'!$W$7,0, L46+L108+L170) -> 0 | N46: =IF(COUNT($H46:M46)>='RFM input'!$W$7,0, M46+M108+M170) -> 0 | O46: =IF(COUNT($H46:N46)>='RFM input'!$W$7,0, N46+N108+N170) -> 0 | P46: =IF(COUNT($H46:O46)>='RFM input'!$W$7,0, O46+O108+O170) -> 0 | Q46: =IF(COUNT($H46:P46)>='RFM input'!$W$7,0, P46+P108+P170) -> 0
D47: =Asset40 -> 2014-15 to 2018-19 Blank 2 | G47: ='RAB roll forward'!G897 -> 0 | H47: 0 | I47: 0 | J47: =IF(COUNT($H47:I47)>='RFM input'!$W$7,0, I47+I109+I171) -> 0 | K47: =IF(COUNT($H47:J47)>='RFM input'!$W$7,0, J47+J109+J171) -> 0 | L47: =IF(COUNT($H47:K47)>='RFM input'!$W$7,0, K47+K109+K171) -> 0 | M47: =IF(COUNT($H47:L47)>='RFM input'!$W$7,0, L47+L109+L171) -> 0 | N47: =IF(COUNT($H47:M47)>='RFM input'!$W$7,0, M47+M109+M171) -> 0 | O47: =IF(COUNT($H47:N47)>='RFM input'!$W$7,0, N47+N109+N171) -> 0 | P47: =IF(COUNT($H47:O47)>='RFM input'!$W$7,0, O47+O109+O171) -> 0 | Q47: =IF(COUNT($H47:P47)>='RFM input'!$W$7,0, P47+P109+P171) -> 0
D48: =Asset41 -> 2019-20 to 2023-24 Sub-transmission lines and cables | G48: ='RAB roll forward'!G898 -> 0 | H48: 0 | I48: 0 | J48: =IF(COUNT($H48:I48)>='RFM input'!$W$7,0, I48+I110+I172) -> 0 | K48: =IF(COUNT($H48:J48)>='RFM input'!$W$7,0, J48+J110+J172) -> 0 | L48: =IF(COUNT($H48:K48)>='RFM input'!$W$7,0, K48+K110+K172) -> 0 | M48: =IF(COUNT($H48:L48)>='RFM input'!$W$7,0, L48+L110+L172) -> 0 | N48: =IF(COUNT($H48:M48)>='RFM input'!$W$7,0, M48+M110+M172) -> 0 | O48: =IF(COUNT($H48:N48)>='RFM input'!$W$7,0, N48+N110+N172) -> 0 | P48: =IF(COUNT($H48:O48)>='RFM input'!$W$7,0, O48+O110+O172) -> 0 | Q48: =IF(COUNT($H48:P48)>='RFM input'!$W$7,0, P48+P110+P172) -> 0
D49: =Asset42 -> 2019-20 to 2023-24 Distribution lines and cables | G49: ='RAB roll forward'!G899 -> 0 | H49: 0 | I49: 0 | J49: =IF(COUNT($H49:I49)>='RFM input'!$W$7,0, I49+I111+I173) -> 0 | K49: =IF(COUNT($H49:J49)>='RFM input'!$W$7,0, J49+J111+J173) -> 0 | L49: =IF(COUNT($H49:K49)>='RFM input'!$W$7,0, K49+K111+K173) -> 0 | M49: =IF(COUNT($H49:L49)>='RFM input'!$W$7,0, L49+L111+L173) -> 0 | N49: =IF(COUNT($H49:M49)>='RFM input'!$W$7,0, M49+M111+M173) -> 0 | O49: =IF(COUNT($H49:N49)>='RFM input'!$W$7,0, N49+N111+N173) -> 0 | P49: =IF(COUNT($H49:O49)>='RFM input'!$W$7,0, O49+O111+O173) -> 0 | Q49: =IF(COUNT($H49:P49)>='RFM input'!$W$7,0, P49+P111+P173) -> 0
D50: =Asset43 -> 2019-20 to 2023-24 Substations | G50: ='RAB roll forward'!G900 -> 0 | H50: 0 | I50: 0 | J50: =IF(COUNT($H50:I50)>='RFM input'!$W$7,0, I50+I112+I174) -> 0 | K50: =IF(COUNT($H50:J50)>='RFM input'!$W$7,0, J50+J112+J174) -> 0 | L50: =IF(COUNT($H50:K50)>='RFM input'!$W$7,0, K50+K112+K174) -> 0 | M50: =IF(COUNT($H50:L50)>='RFM input'!$W$7,0, L50+L112+L174) -> 0 | N50: =IF(COUNT($H50:M50)>='RFM input'!$W$7,0, M50+M112+M174) -> 0 | O50: =IF(COUNT($H50:N50)>='RFM input'!$W$7,0, N50+N112+N174) -> 0 | P50: =IF(COUNT($H50:O50)>='RFM input'!$W$7,0, O50+O112+O174) -> 0 | Q50: =IF(COUNT($H50:P50)>='RFM input'!$W$7,0, P50+P112+P174) -> 0
D51: =Asset44 -> 2019-20 to 2023-24 Transformers | G51: ='RAB roll forward'!G901 -> 0 | H51: 0 | I51: 0 | J51: =IF(COUNT($H51:I51)>='RFM input'!$W$7,0, I51+I113+I175) -> 0 | K51: =IF(COUNT($H51:J51)>='RFM input'!$W$7,0, J51+J113+J175) -> 0 | L51: =IF(COUNT($H51:K51)>='RFM input'!$W$7,0, K51+K113+K175) -> 0 | M51: =IF(COUNT($H51:L51)>='RFM input'!$W$7,0, L51+L113+L175) -> 0 | N51: =IF(COUNT($H51:M51)>='RFM input'!$W$7,0, M51+M113+M175) -> 0 | O51: =IF(COUNT($H51:N51)>='RFM input'!$W$7,0, N51+N113+N175) -> 0 | P51: =IF(COUNT($H51:O51)>='RFM input'!$W$7,0, O51+O113+O175) -> 0 | Q51: =IF(COUNT($H51:P51)>='RFM input'!$W$7,0, P51+P113+P175) -> 0
D52: =Asset45 -> 2019-20 to 2023-24 Low Voltage lines and cables | G52: ='RAB roll forward'!G902 -> 0 | H52: 0 | I52: 0 | J52: =IF(COUNT($H52:I52)>='RFM input'!$W$7,0, I52+I114+I176) -> 0 | K52: =IF(COUNT($H52:J52)>='RFM input'!$W$7,0, J52+J114+J176) -> 0 | L52: =IF(COUNT($H52:K52)>='RFM input'!$W$7,0, K52+K114+K176) -> 0 | M52: =IF(COUNT($H52:L52)>='RFM input'!$W$7,0, L52+L114+L176) -> 0 | N52: =IF(COUNT($H52:M52)>='RFM input'!$W$7,0, M52+M114+M176) -> 0 | O52: =IF(COUNT($H52:N52)>='RFM input'!$W$7,0, N52+N114+N176) -> 0 | P52: =IF(COUNT($H52:O52)>='RFM input'!$W$7,0, O52+O114+O176) -> 0 | Q52: =IF(COUNT($H52:P52)>='RFM input'!$W$7,0, P52+P114+P176) -> 0
D53: =Asset46 -> 2019-20 to 2023-24 Customer metering and Load control | G53: ='RAB roll forward'!G903 -> 0 | H53: 0 | I53: 0 | J53: =IF(COUNT($H53:I53)>='RFM input'!$W$7,0, I53+I115+I177) -> 0 | K53: =IF(COUNT($H53:J53)>='RFM input'!$W$7,0, J53+J115+J177) -> 0 | L53: =IF(COUNT($H53:K53)>='RFM input'!$W$7,0, K53+K115+K177) -> 0 | M53: =IF(COUNT($H53:L53)>='RFM input'!$W$7,0, L53+L115+L177) -> 0 | N53: =IF(COUNT($H53:M53)>='RFM input'!$W$7,0, M53+M115+M177) -> 0 | O53: =IF(COUNT($H53:N53)>='RFM input'!$W$7,0, N53+N115+N177) -> 0 | P53: =IF(COUNT($H53:O53)>='RFM input'!$W$7,0, O53+O115+O177) -> 0 | Q53: =IF(COUNT($H53:P53)>='RFM input'!$W$7,0, P53+P115+P177) -> 0
D54: =Asset47 -> 2019-20 to 2023-24 Communication | G54: ='RAB roll forward'!G904 -> 0 | H54: 0 | I54: 0 | J54: =IF(COUNT($H54:I54)>='RFM input'!$W$7,0, I54+I116+I178) -> 0 | K54: =IF(COUNT($H54:J54)>='RFM input'!$W$7,0, J54+J116+J178) -> 0 | L54: =IF(COUNT($H54:K54)>='RFM input'!$W$7,0, K54+K116+K178) -> 0 | M54: =IF(COUNT($H54:L54)>='RFM input'!$W$7,0, L54+L116+L178) -> 0 | N54: =IF(COUNT($H54:M54)>='RFM input'!$W$7,0, M54+M116+M178) -> 0 | O54: =IF(COUNT($H54:N54)>='RFM input'!$W$7,0, N54+N116+N178) -> 0 | P54: =IF(COUNT($H54:O54)>='RFM input'!$W$7,0, O54+O116+O178) -> 0 | Q54: =IF(COUNT($H54:P54)>='RFM input'!$W$7,0, P54+P116+P178) -> 0
D55: =Asset48 -> 2019-20 to 2023-24 Land | G55: ='RAB roll forward'!G905 -> 0 | H55: 0 | I55: 0 | J55: =IF(COUNT($H55:I55)>='RFM input'!$W$7,0, I55+I117+I179) -> 0 | K55: =IF(COUNT($H55:J55)>='RFM input'!$W$7,0, J55+J117+J179) -> 0 | L55: =IF(COUNT($H55:K55)>='RFM input'!$W$7,0, K55+K117+K179) -> 0 | M55: =IF(COUNT($H55:L55)>='RFM input'!$W$7,0, L55+L117+L179) -> 0 | N55: =IF(COUNT($H55:M55)>='RFM input'!$W$7,0, M55+M117+M179) -> 0 | O55: =IF(COUNT($H55:N55)>='RFM input'!$W$7,0, N55+N117+N179) -> 0 | P55: =IF(COUNT($H55:O55)>='RFM input'!$W$7,0, O55+O117+O179) -> 0 | Q55: =IF(COUNT($H55:P55)>='RFM input'!$W$7,0, P55+P117+P179) -> 0
D56: =Asset49 -> 2019-20 to 2023-24 Easements | G56: ='RAB roll forward'!G906 -> 0 | H56: 0 | I56: 0 | J56: =IF(COUNT($H56:I56)>='RFM input'!$W$7,0, I56+I118+I180) -> 0 | K56: =IF(COUNT($H56:J56)>='RFM input'!$W$7,0, J56+J118+J180) -> 0 | L56: =IF(COUNT($H56:K56)>='RFM input'!$W$7,0, K56+K118+K180) -> 0 | M56: =IF(COUNT($H56:L56)>='RFM input'!$W$7,0, L56+L118+L180) -> 0 | N56: =IF(COUNT($H56:M56)>='RFM input'!$W$7,0, M56+M118+M180) -> 0 | O56: =IF(COUNT($H56:N56)>='RFM input'!$W$7,0, N56+N118+N180) -> 0 | P56: =IF(COUNT($H56:O56)>='RFM input'!$W$7,0, O56+O118+O180) -> 0 | Q56: =IF(COUNT($H56:P56)>='RFM input'!$W$7,0, P56+P118+P180) -> 0
D57: =Asset50 -> 2019-20 to 2023-24 Equity raising costs | G57: ='RAB roll forward'!G907 -> 0 | H57: 0 | I57: 0 | J57: =IF(COUNT($H57:I57)>='RFM input'!$W$7,0, I57+I119+I181) -> 0 | K57: =IF(COUNT($H57:J57)>='RFM input'!$W$7,0, J57+J119+J181) -> 0 | L57: =IF(COUNT($H57:K57)>='RFM input'!$W$7,0, K57+K119+K181) -> 0 | M57: =IF(COUNT($H57:L57)>='RFM input'!$W$7,0, L57+L119+L181) -> 0 | N57: =IF(COUNT($H57:M57)>='RFM input'!$W$7,0, M57+M119+M181) -> 0 | O57: =IF(COUNT($H57:N57)>='RFM input'!$W$7,0, N57+N119+N181) -> 0 | P57: =IF(COUNT($H57:O57)>='RFM input'!$W$7,0, O57+O119+O181) -> 0 | Q57: =IF(COUNT($H57:P57)>='RFM input'!$W$7,0, P57+P119+P181) -> 0
D58: =Asset51 -> 2019-20 to 2023-24 Emergency Spares (Major Plant, Excludes Inventory) | G58: ='RAB roll forward'!G908 -> 0 | H58: 0 | I58: 0 | J58: =IF(COUNT($H58:I58)>='RFM input'!$W$7,0, I58+I120+I182) -> 0 | K58: =IF(COUNT($H58:J58)>='RFM input'!$W$7,0, J58+J120+J182) -> 0 | L58: =IF(COUNT($H58:K58)>='RFM input'!$W$7,0, K58+K120+K182) -> 0 | M58: =IF(COUNT($H58:L58)>='RFM input'!$W$7,0, L58+L120+L182) -> 0 | N58: =IF(COUNT($H58:M58)>='RFM input'!$W$7,0, M58+M120+M182) -> 0 | O58: =IF(COUNT($H58:N58)>='RFM input'!$W$7,0, N58+N120+N182) -> 0 | P58: =IF(COUNT($H58:O58)>='RFM input'!$W$7,0, O58+O120+O182) -> 0 | Q58: =IF(COUNT($H58:P58)>='RFM input'!$W$7,0, P58+P120+P182) -> 0
